Workbook

Sheet START
F11: =INDIRECT("START!I25") -> START | I11: =INDIRECT("START!K25") -> Описание методологии финмодели
I13: лист | K13: описание листа/столбца/строки/ячейки/блока ячеек
D14: =INDIRECT("Cntrl!M17") -> 0 | E14: =SUM($F14:$PL14) -> 0 | F14: =IFERROR(_xlfn.SHEET($A$1)-SUMIFS(Cntrl!O$15:O$100000,Cntrl!I$15:I$100000,$F$11),1) -> 0
A15: =ROW() -> 15 | I15: разработка финмоделей: https://mngmnt.ru/
A16: =ROW() -> 16 | H16: ФИНАНСОВАЯ МОДЕЛЬ
A17: =ROW() -> 17
A18: =ROW() -> 18
A19: =ROW() -> 19 | H19: СЕТЬ САЛОНОВ ОПТИКИ
A20: =ROW() -> 20
A21: =ROW() -> 21
A22: =ROW() -> 22
A23: =ROW() -> 23 | H23: Методология. Список и предназначение листов настоящей финансовой модели
A24: =ROW() -> 24
A25: =ROW() -> 25 | I25: START | K25: Описание методологии финмодели
A26: =ROW() -> 26 | I26: Cntrl | K26: Общий контроль финансовой модели
A27: =ROW() -> 27 | I27: Periods | K27: Периоды и горизонты моделирования фактических и прогнозных данных
A28: =ROW() -> 28 | I28: Lists | K28: Выпадающие списки финансовой модели
A29: =ROW() -> 29 | I29: Macro | K29: Макропоказатели внешней среды
A30: =ROW() -> 30 | I30: Items | K30: Справочники статей доходов и расходов и т.д.
A31: =ROW() -> 31 | I31: KPI | K31: Справочники ключевых показателей эффективности
A32: =ROW() -> 32 | I32: Mrkting | K32: Маркетинг. Параметры рынков сбыта и каналов привлечения клиентов
A33: =ROW() -> 33 | I33: CapEx | K33: Календарный план-график капитальных затрат
A34: =ROW() -> 34 | I34: Sales | K34: Параметры бюджета продаж
A35: =ROW() -> 35 | I35: Prdction | K35: Технологическая карта производственного процесса
A36: =ROW() -> 36 | I36: HR | K36: Штатное расписание
A37: =ROW() -> 37 | I37: Exp | K37: Прочие расходы бизнес-проекта
A38: =ROW() -> 38 | I38: Credits | K38: Источники финансирования и их условия
A39: =ROW() -> 39 | I39: PL | K39: Итоговый отчет о прибылях и убытках
A40: =ROW() -> 40 | I40: CF | K40: Итоговый отчет о движении денежных средств
A41: =ROW() -> 41 | I41: BS | K41: Итоговый баланс
A42: =ROW() -> 42 | I42: MAIN | K42: Ключевые параметры управления и результаты финансовой модели
A43: =ROW() -> 43 | I43: PLd | K43: Детализированный отчет о прибылях и убытках
A44: =ROW() -> 44 | I44: CFd | K44: Детализированный отчет о движении денежных средств
A45: =ROW() -> 45 | I45: BSd | K45: Детализированный баланс
A46: =ROW() -> 46 | I46: Sens | K46: Анализ чувствительности финмодели
A47: =ROW() -> 47 | I47: UnitEc | K47: Расчет юнит-экономики бизнес-проекта
A48: =ROW() -> 48 | I48: CFind | K48: Анализ финансового потока косвенным методом
A49: =ROW() -> 49 | I49: FinEcAn | K49: Финансово-экономический анализ проекта
A50: =ROW() -> 50 | I50: InvAn | K50: Инвестиционный анализ проекта
A51: =ROW() -> 51 | I51: EBITDA | K51: Анализ собственной операционной деят-сти. Точки безубыточности
A52: =ROW() -> 52 | I52: Rep | K52: Укрупненное формирование всей отчетности финмодели
A53: =ROW() -> 53 | I53: Repd | K53: Детализированное формирование всей отчетности финмодели
A54: =ROW() -> 54 | I54: Calc | K54: Функционал финансовой модели. Все расчеты
A55: =ROW() -> 55 | I55: Fact | K55: Учет фактических операций
A56: =ROW() -> 56 | I56: 1S | K56: Выгрузки из 1С карточек с оборотами по счетам бухучета
A57: =ROW() -> 57 | I57: Rules | K57: Правила сопоставления статей для выгрузок из 1С
A58: =ROW() -> 58 | I58: Res1 | K58: Резервная вкладка 1
A59: =ROW() -> 59 | I59: Res2 | K59: Резервная вкладка 2
A60: =ROW() -> 60 | I60: Res3 | K60: Резервная вкладка 3
A61: =ROW() -> 61 | I61: Res4 | K61: Резервная вкладка 4
A62: =ROW() -> 62 | I62: Res5 | K62: Резервная вкладка 5
A63: =ROW() -> 63
A64: =ROW() -> 64 | H64: Обозначение ячеек для задания исходных данных
A65: =ROW() -> 65
A66: =ROW() -> 66 | H66: * | K66: Ячейки для задания исходных данных финмодели вручную
A67: =ROW() -> 67
A68: =ROW() -> 68 | H68: * | J68: ^ | K68: Ячейки для задания исходных данных финмодели из выпадающих списков вкладки "Lists"
A69: =ROW() -> 69
A70: =ROW() -> 70 | H70: Ячейка F11 | K70: Для каждого листа в этой ячейке отображается название (ярлычка) листа
A71: =ROW() -> 71
A72: =ROW() -> 72 | H72: Ячейка I11 | K72: Для каждого листа в этой ячейке отображается заголовок листа
A73: =ROW() -> 73
A74: =ROW() -> 74 | H74: Ячейка E14 | K74: Для каждого листа в этой ячейке суммируются все контроли листа по 14-той строке
A75: =ROW() -> 75
A76: =ROW() -> 76 | H76: Ячейка D14 | K76: Для каждого листа в этой ячейке отображается общий контроль финмодели из листа "Cntrl"
A77: =ROW() -> 77
A78: =ROW() -> 78 | H78: Ячейка F14 | K78: Для каждого листа в этой ячейке проверяется соответствие названия листа их списку из "START"
A79: =ROW() -> 79
A80: =ROW() -> 80 | H80: Строка 13 | K80: Для каждого листа в этой строке отображаются заголовки столбцов
A81: =ROW() -> 81
A82: =ROW() -> 82 | I82: =$I$26 -> Cntrl | K82: =$K$26 -> Общий контроль финансовой модели
A83: =ROW() -> 83
A84: =ROW() -> 84 | I84: столбец M | K84: Со строки 19 здесь подтягиваются контроли всех листов из ячеек E14
A85: =ROW() -> 85
A86: =ROW() -> 86 | I86: M17 | K86: Общий контроль финмодели - сумма всех контрлей листов в столбце M
A87: =ROW() -> 87
A88: =ROW() -> 88 | I88: столбец O | K88: Со строки 19 здесь рассчитываются порядковые номера ярлычков листов в нижней панели
A89: =ROW() -> 89
A90: =ROW() -> 90 | I90: столбец Q | K90: Со строки 19 здесь из выпадающего списка пользователь выбирает тип листов
A91: =ROW() -> 91
A92: =ROW() -> 92 | I92: столбец S | K92: Со строки 19 здесь проверяется наличие значений из столбца Q в списке столбца U листа "Lists"
A93: =ROW() -> 93
A94: =ROW() -> 94 | I94: столбец G | K94: Со строки 19 здесь проверяется наличие названия из столбца H в заголовках списков листа "Lists"
A95: =ROW() -> 95
A96: =ROW() -> 96 | I96: =$I$27 -> Periods | K96: =$K$27 -> Периоды и горизонты моделирования фактических и прогнозных данных
A97: =ROW() -> 97
A98: =ROW() -> 98 | I98: Q16 | K98: Пользователь задает, выбирая из выпадающего списка, минимальный период шкалы времени
A99: =ROW() -> 99
A100: =ROW() -> 100 | I100: Q17 | K100: Пользователь задает вручную дату, с которой начинаются расчеты моделирования - старт
A101: =ROW() -> 101
A102: =ROW() -> 102 | I102: Q18 | K102: Пользователь задает вручную (от 1 до 400) количество периодов в шкале расчетов - горизонт
A103: =ROW() -> 103
A104: =ROW() -> 104 | I104: строки 20,21 | K104: По данным из ячеек Q16,Q17,Q18 рассчитываются даты начала и окончания периодов шкалы расчетов
A105: =ROW() -> 105
A106: =ROW() -> 106 | I106: строка 22 | K106: Формируются названия периодов шкалы расчетов
A107: =ROW() -> 107
A108: =ROW() -> 108 | I108: Q25 | K108: Пользователь указывает на необходимость отражения фактически проведенных операций
A109: =ROW() -> 109
A110: =ROW() -> 110 | I110: Q26 | K110: В случае выбора "да" в ячейке Q25, пользователь выбирает вариант задания фактического периода
A111: =ROW() -> 111
A112: =ROW() -> 112 | I112: Q30 | K112: Если в ячейках Q25 и Q26 "да", то здесь отображается текущая дата - окончание фактического периода
A113: =ROW() -> 113
A114: =ROW() -> 114 | I114: Q31 | K114: Если в ячейке Q25 "да" и в Q26 "нет", то здесь вручную задаем дату окончания фактического периода
A115: =ROW() -> 115
A116: =ROW() -> 116 | I116: строки 28,29 | K116: По данным из ячеек Q25,Q26,Q30,Q31 рассчитываются даты начала и окончания фактических периодов
A117: =ROW() -> 117
A118: =ROW() -> 118 | I118: Q33 | K118: Пользователь задает, выбирая из выпадающего списка, период шкалы времени для отчетности
A119: =ROW() -> 119
A120: =ROW() -> 120 | I120: строки 35,36 | K120: Рассчитываются даты начала и окончания периодов шкалы отчетности
A121: =ROW() -> 121
A122: =ROW() -> 122 | I122: строка 37 | K122: Формируются названия периодов шкалы отчетности
A123: =ROW() -> 123
A124: =ROW() -> 124 | I124: Q12 | K124: Отображается тип листа
A125: =ROW() -> 125
A126: =ROW() -> 126 | I126: строки 11,12 | K126: В зависимости от типа листа отображаются соответствующие даты начала и окончания периодов
A127: =ROW() -> 127
A128: =ROW() -> 128 | I128: строки 1-10 | K128: Строки носят технический характер, в них рассчитываются следующие параметры:
A129: =ROW() -> 129
A130: =ROW() -> 130 | K130: номер столбца:
A131: =ROW() -> 131 | K131: номер периода модели:
A132: =ROW() -> 132 | K132: номер факт-периода:
A133: =ROW() -> 133 | K133: номер план-периода:
A134: =ROW() -> 134 | K134: число даты начала:
A135: =ROW() -> 135 | K135: номер месяца даты начала:
A136: =ROW() -> 136 | K136: год даты начала:
A137: =ROW() -> 137 | K137: число даты окончания:
A138: =ROW() -> 138 | K138: номер месяца даты окончания:
A139: =ROW() -> 139 | K139: год даты окончания:
A140: =ROW() -> 140
A141: =ROW() -> 141 | I141: столбцы G,S | K141: Производится контроль за корректностью работы выпадающих списков
A142: =ROW() -> 142
A143: =ROW() -> 143 | I143: Lists | K143: Выпадающие списки финансовой модели
A144: =ROW() -> 144
A145: =ROW() -> 145 | I145: строка 1 | K145: Для технических нужд отображаются номера столбцов, в которых находятся выпадающие списки
A146: =ROW() -> 146
A147: =ROW() -> 147 | I147: строка 2 | K147: Для технических нужд отображаются названия столбцов, в которых находятся выпадающие списки
A148: =ROW() -> 148
A149: =ROW() -> 149 | I149: строка 15 | K149: Для технических нужд рассчитываются адреса блоков ячеек с выпадающими списками
A150: =ROW() -> 150
A151: =ROW() -> 151 | I151: столбец Q | K151: Значения выпадающего списка зависят от значения ячейки Q16 листа "Periods" и столбца I
A152: =ROW() -> 152
A153: =ROW() -> 153 | I153: справа от списков | K153: В 1-ом столбце справа от вып.списков производится нумерация актуальных значений вып.списков
A154: =ROW() -> 154
A155: =ROW() -> 155 | I155: справа от списков | K155: Во 2-ом столбце справа от вып.списков производится контроль за неповторяемостью значений
A156: =ROW() -> 156
A157: =ROW() -> 157
A158: =ROW() -> 158
A159: =ROW() -> 159
A160: =ROW() -> 160
A161: =ROW() -> 161
A162: =ROW() -> 162
A163: =ROW() -> 163
A164: =ROW() -> 164
A165: =ROW() -> 165
A166: =ROW() -> 166
A167: =ROW() -> 167
A168: =ROW() -> 168
A169: =ROW() -> 169
A170: =ROW() -> 170
A171: =ROW() -> 171
A172: =ROW() -> 172
A173: =ROW() -> 173
A174: =ROW() -> 174
A175: =ROW() -> 175
A176: =ROW() -> 176

Sheet Cntrl
F11: Cntrl | I11: Общий контроль финансовой модели
I13: лист | K13: ячейка с контролем | M13: контроль | O13: номер листа | Q13: тип листа | V13: точность
D14: 0 | E14: 0 | F14: 0 | G14: 0 | S14: 0
A15: 15 | I15: разработка финмоделей: https://mngmnt.ru/
A16: 16
A17: 17 | G17: 0 | H17: Общий контроль | M17: 0
A18: 18
A19: 19 | G19: 0 | H19: тип листа | I19: START | K19: E14 | M19: 0 | O19: 1 | P19: * | Q19: технический | R19: ^ | S19: 0 | U19: * | V19: 0
A20: 20 | G20: 0 | H20: тип листа | I20: Cntrl | K20: E14 | M20: 0 | O20: 2 | P20: * | Q20: технический | R20: ^ | S20: 0 | U20: * | V20: 0
A21: 21 | G21: 0 | H21: тип листа | I21: Periods | K21: E14 | M21: 0 | O21: 3 | P21: * | Q21: расчетный | R21: ^ | S21: 0 | U21: * | V21: 0
A22: 22 | G22: 0 | H22: тип листа | I22: Lists | K22: E14 | M22: 0 | O22: 4 | P22: * | Q22: технический | R22: ^ | S22: 0 | U22: * | V22: 0
A23: 23 | G23: 0 | H23: тип листа | I23: Macro | K23: E14 | M23: 0 | O23: 5 | P23: * | Q23: расчетный | R23: ^ | S23: 0 | U23: * | V23: 0
A24: 24 | G24: 0 | H24: тип листа | I24: Items | K24: E14 | M24: 0 | O24: 6 | P24: * | Q24: технический | R24: ^ | S24: 0 | U24: * | V24: 0
A25: 25 | G25: 0 | H25: тип листа | I25: KPI | K25: E14 | M25: 0 | O25: 7 | P25: * | Q25: технический | R25: ^ | S25: 0 | U25: * | V25: 0
A26: 26 | G26: 0 | H26: тип листа | I26: Mrkting | K26: E14 | M26: 0 | O26: 8 | P26: * | Q26: расчетный | R26: ^ | S26: 0 | U26: * | V26: 1e-05
A27: 27 | G27: 0 | H27: тип листа | I27: CapEx | K27: E14 | M27: 0 | O27: 9 | P27: * | Q27: расчетный | R27: ^ | S27: 0 | U27: * | V27: 1e-05
A28: 28 | G28: 0 | H28: тип листа | I28: Sales | K28: E14 | M28: 0 | O28: 10 | P28: * | Q28: расчетный | R28: ^ | S28: 0 | U28: * | V28: 1e-05
A29: 29 | G29: 0 | H29: тип листа | I29: Prdction | K29: E14 | M29: 0 | O29: 11 | P29: * | Q29: расчетный | R29: ^ | S29: 0 | U29: * | V29: 1e-05
A30: 30 | G30: 0 | H30: тип листа | I30: HR | K30: E14 | M30: 0 | O30: 12 | P30: * | Q30: расчетный | R30: ^ | S30: 0 | U30: * | V30: 1e-05
A31: 31 | G31: 0 | H31: тип листа | I31: Exp | K31: E14 | M31: 0 | O31: 13 | P31: * | Q31: расчетный | R31: ^ | S31: 0 | U31: * | V31: 1e-05
A32: 32 | G32: 0 | H32: тип листа | I32: Credits | K32: E14 | M32: 0 | O32: 14 | P32: * | Q32: расчетный | R32: ^ | S32: 0 | U32: * | V32: 1e-05
A33: 33 | G33: 0 | H33: тип листа | I33: PL | K33: E14 | M33: 0 | O33: 15 | P33: * | Q33: отчетный | R33: ^ | S33: 0 | U33: * | V33: 1e-05
A34: 34 | G34: 0 | H34: тип листа | I34: CF | K34: E14 | M34: 0 | O34: 16 | P34: * | Q34: отчетный | R34: ^ | S34: 0 | U34: * | V34: 1e-05
A35: 35 | G35: 0 | H35: тип листа | I35: BS | K35: E14 | M35: 0 | O35: 17 | P35: * | Q35: отчетный | R35: ^ | S35: 0 | U35: * | V35: 1e-05
A36: 36 | G36: 0 | H36: тип листа | I36: MAIN | K36: E14 | M36: 0 | O36: 18 | P36: * | Q36: отчетный | R36: ^ | S36: 0 | U36: * | V36: 1e-05
A37: 37 | G37: 0 | H37: тип листа | I37: PLd | K37: E14 | M37: 0 | O37: 19 | P37: * | Q37: расчетный | R37: ^ | S37: 0 | U37: * | V37: 1e-05
A38: 38 | G38: 0 | H38: тип листа | I38: CFd | K38: E14 | M38: 0 | O38: 20 | P38: * | Q38: расчетный | R38: ^ | S38: 0 | U38: * | V38: 1e-05
A39: 39 | G39: 0 | H39: тип листа | I39: BSd | K39: E14 | M39: 0 | O39: 21 | P39: * | Q39: расчетный | R39: ^ | S39: 0 | U39: * | V39: 0.001
A40: 40 | G40: 0 | H40: тип листа | I40: Sens | K40: E14 | M40: 0 | O40: 22 | P40: * | Q40: отчетный | R40: ^ | S40: 0 | U40: * | V40: 1e-05
A41: 41 | G41: 0 | H41: тип листа | I41: UnitEc | K41: E14 | M41: 0 | O41: 23 | P41: * | Q41: отчетный | R41: ^ | S41: 0 | U41: * | V41: 1e-05
A42: 42 | G42: 0 | H42: тип листа | I42: CFind | K42: E14 | M42: 0 | O42: 24 | P42: * | Q42: отчетный | R42: ^ | S42: 0 | U42: * | V42: 1e-05
A43: 43 | G43: 0 | H43: тип листа | I43: FinEcAn | K43: E14 | M43: 0 | O43: 25 | P43: * | Q43: отчетный | R43: ^ | S43: 0 | U43: * | V43: 1e-05
A44: 44 | G44: 0 | H44: тип листа | I44: InvAn | K44: E14 | M44: 0 | O44: 26 | P44: * | Q44: отчетный | R44: ^ | S44: 0 | U44: * | V44: 1e-05
A45: 45 | G45: 0 | H45: тип листа | I45: EBITDA | K45: E14 | M45: 0 | O45: 27 | P45: * | Q45: отчетный | R45: ^ | S45: 0 | U45: * | V45: 1e-05
A46: 46 | G46: 0 | H46: тип листа | I46: Rep | K46: E14 | M46: 0 | O46: 28 | P46: * | Q46: отчетный | R46: ^ | S46: 0 | U46: * | V46: 1e-05
A47: 47 | G47: 0 | H47: тип листа | I47: Repd | K47: E14 | M47: 0 | O47: 29 | P47: * | Q47: расчетный | R47: ^ | S47: 0 | U47: * | V47: 0.001
A48: 48 | G48: 0 | H48: тип листа | I48: Calc | K48: E14 | M48: 0 | O48: 30 | P48: * | Q48: расчетный | R48: ^ | S48: 0 | U48: * | V48: 0.001
A49: 49 | G49: 0 | H49: тип листа | I49: Fact | K49: E14 | P49: * | Q49: расчетный | R49: ^ | S49: 0 | U49: * | V49: 0
A50: 50 | G50: 0 | H50: тип листа | I50: 1S | K50: E14 | P50: * | Q50: расчетный | R50: ^ | S50: 0 | U50: * | V50: 0
A51: 51 | G51: 0 | H51: тип листа | I51: Rules | K51: E14 | P51: * | Q51: расчетный | R51: ^ | S51: 0 | U51: * | V51: 0
A52: 52 | G52: 0 | H52: тип листа | I52: Res1 | K52: E14 | P52: * | Q52: расчетный | R52: ^ | S52: 0 | U52: * | V52: 0
A53: 53 | G53: 0 | H53: тип листа | I53: Res2 | K53: E14 | P53: * | Q53: расчетный | R53: ^ | S53: 0 | U53: * | V53: 0
A54: 54 | G54: 0 | H54: тип листа | I54: Res3 | K54: E14 | P54: * | Q54: расчетный | R54: ^ | S54: 0 | U54: * | V54: 0
A55: 55 | G55: 0 | H55: тип листа | I55: Res4 | K55: E14 | P55: * | Q55: расчетный | R55: ^ | S55: 0 | U55: * | V55: 0
A56: 56 | G56: 0 | H56: тип листа | I56: Res5 | K56: E14 | P56: * | Q56: расчетный | R56: ^ | S56: 0 | U56: * | V56: 0
A57: 57
A58: 58
A59: 59
A60: 60
A61: 61
A62: 62
A63: 63
A64: 64
A65: 65
A66: 66
A67: 67
A68: 68
A69: 69
A70: 70

Sheet Periods
Y1: номер столбца: | AA1: 27 | AB1: 28 | AC1: 29 | AD1: 30 | AE1: 31 | AF1: 32 | AG1: 33 | AH1: 34 | AI1: 35 | AJ1: 36 | AK1: 37 | AL1: 38 | AM1: 39 | AN1: 40 | AO1: 41 | AP1: 42 | AQ1: 43 | AR1: 44 | AS1: 45 | AT1: 46 | AU1: 47 | AV1: 48 | AW1: 49 | AX1: 50 | AY1: 51 | AZ1: 52 | BA1: 53 | BB1: 54 | BC1: 55 | BD1: 56 | BE1: 57 | BF1: 58 | BG1: 59 | BH1: 60 | BI1: 61 | BJ1: 62 | BK1: 63 | BL1: 64 | BM1: 65 | BN1: 66 | BO1: 67 | BP1: 68 | BQ1: 69 | BR1: 70 | BS1: 71 | BT1: 72 | BU1: 73 | BV1: 74 | BW1: 75 | BX1: 76 | BY1: 77 | BZ1: 78 | CA1: 79 | CB1: 80 | CC1: 81 | CD1: 82 | CE1: 83 | CF1: 84 | CG1: 85 | CH1: 86 | CI1: 87 | CJ1: 88 | CK1: 89 | CL1: 90 | CM1: 91 | CN1: 92 | CO1: 93 | CP1: 94 | CQ1: 95 | CR1: 96 | CS1: 97 | CT1: 98 | CU1: 99 | CV1: 100 | CW1: 101 | CX1: 102 | CY1: 103 | CZ1: 104 | DA1: 105 | DB1: 106 | DC1: 107 | DD1: 108 | DE1: 109 | DF1: 110 | DG1: 111 | DH1: 112 | DI1: 113 | DJ1: 114 | DK1: 115 | DL1: 116 | DM1: 117 | DN1: 118 | DO1: 119 | DP1: 120 | DQ1: 121 | DR1: 122 | DS1: 123 | DT1: 124 | DU1: 125 | DV1: 126 | DW1: 127 | DX1: 128 | DY1: 129 | DZ1: 130 | EA1: 131 | EB1: 132 | EC1: 133 | ED1: 134 | EE1: 135 | EF1: 136 | EG1: 137 | EH1: 138 | EI1: 139 | EJ1: 140 | EK1: 141 | EL1: 142 | EM1: 143 | EN1: 144 | EO1: 145 | EP1: 146 | EQ1: 147 | ER1: 148 | ES1: 149 | ET1: 150 | EU1: 151 | EV1: 152 | EW1: 153 | EX1: 154 | EY1: 155 | EZ1: 156 | FA1: 157 | FB1: 158 | FC1: 159
Y2: номер периода модели: | AA2: 1 | AB2: 2 | AC2: 3 | AD2: 4 | AE2: 5 | AF2: 6 | AG2: 7 | AH2: 8 | AI2: 9 | AJ2: 10 | AK2: 11 | AL2: 12 | AM2: 13 | AN2: 14 | AO2: 15 | AP2: 16 | AQ2: 17 | AR2: 18 | AS2: 19 | AT2: 20 | AU2: 21 | AV2: 22 | AW2: 23 | AX2: 24 | AY2: 25 | AZ2: 26 | BA2: 27 | BB2: 28 | BC2: 29 | BD2: 30 | BE2: 31 | BF2: 32 | BG2: 33 | BH2: 34 | BI2: 35 | BJ2: 36 | BK2: 37 | BL2: 38 | BM2: 39 | BN2: 40 | BO2: 41 | BP2: 42 | BQ2: 43 | BR2: 44 | BS2: 45 | BT2: 46 | BU2: 47 | BV2: 48 | BW2: 49 | BX2: 50 | BY2: 51 | BZ2: 52 | CA2: 53 | CB2: 54 | CC2: 55 | CD2: 56 | CE2: 57 | CF2: 58 | CG2: 59 | CH2: 60 | CI2: 61 | CJ2: 62 | CK2: 63 | CL2: 64 | CM2: 65 | CN2: 66 | CO2: 67 | CP2: 68 | CQ2: 69 | CR2: 70 | CS2: 71 | CT2: 72 | CU2: 73 | CV2: 74 | CW2: 75 | CX2: 76 | CY2: 77 | CZ2: 78 | DA2: 79 | DB2: 80 | DC2: 81 | DD2: 82 | DE2: 83 | DF2: 84 | DG2: 85 | DH2: 86 | DI2: 87 | DJ2: 88 | DK2: 89 | DL2: 90 | DM2: 91 | DN2: 92 | DO2: 93 | DP2: 94 | DQ2: 95 | DR2: 96 | DS2: 97 | DT2: 98 | DU2: 99 | DV2: 100 | DW2: 101 | DX2: 102 | DY2: 103 | DZ2: 104 | EA2: 105 | EB2: 106 | EC2: 107 | ED2: 108 | EE2: 109 | EF2: 110 | EG2: 111 | EH2: 112 | EI2: 113 | EJ2: 114 | EK2: 115 | EL2: 116 | EM2: 117 | EN2: 118 | EO2: 119 | EP2: 120 | EQ2: 121 | ER2: 122 | ES2: 123 | ET2: 124 | EU2: 125 | EV2: 126 | EW2: 127 | EX2: 128 | EY2: 129 | EZ2: 130 | FA2: 131 | FB2: 132 | FC2: 133
Y3: номер факт-периода:
Y4: номер план-периода: | AA4: 1 | AB4: 2 | AC4: 3 | AD4: 4 | AE4: 5 | AF4: 6 | AG4: 7 | AH4: 8 | AI4: 9 | AJ4: 10 | AK4: 11 | AL4: 12 | AM4: 13 | AN4: 14 | AO4: 15 | AP4: 16 | AQ4: 17 | AR4: 18 | AS4: 19 | AT4: 20 | AU4: 21 | AV4: 22 | AW4: 23 | AX4: 24 | AY4: 25 | AZ4: 26 | BA4: 27 | BB4: 28 | BC4: 29 | BD4: 30 | BE4: 31 | BF4: 32 | BG4: 33 | BH4: 34 | BI4: 35 | BJ4: 36 | BK4: 37 | BL4: 38 | BM4: 39 | BN4: 40 | BO4: 41 | BP4: 42 | BQ4: 43 | BR4: 44 | BS4: 45 | BT4: 46 | BU4: 47 | BV4: 48 | BW4: 49 | BX4: 50 | BY4: 51 | BZ4: 52 | CA4: 53 | CB4: 54 | CC4: 55 | CD4: 56 | CE4: 57 | CF4: 58 | CG4: 59 | CH4: 60 | CI4: 61 | CJ4: 62 | CK4: 63 | CL4: 64 | CM4: 65 | CN4: 66 | CO4: 67 | CP4: 68 | CQ4: 69 | CR4: 70 | CS4: 71 | CT4: 72 | CU4: 73 | CV4: 74 | CW4: 75 | CX4: 76 | CY4: 77 | CZ4: 78 | DA4: 79 | DB4: 80 | DC4: 81 | DD4: 82 | DE4: 83 | DF4: 84 | DG4: 85 | DH4: 86 | DI4: 87 | DJ4: 88 | DK4: 89 | DL4: 90 | DM4: 91 | DN4: 92 | DO4: 93 | DP4: 94 | DQ4: 95 | DR4: 96 | DS4: 97 | DT4: 98 | DU4: 99 | DV4: 100 | DW4: 101 | DX4: 102 | DY4: 103 | DZ4: 104 | EA4: 105 | EB4: 106 | EC4: 107 | ED4: 108 | EE4: 109 | EF4: 110 | EG4: 111 | EH4: 112 | EI4: 113 | EJ4: 114 | EK4: 115 | EL4: 116 | EM4: 117 | EN4: 118 | EO4: 119 | EP4: 120
Y5: число даты начала: | AA5: 1 | AB5: 1 | AC5: 1 | AD5: 1 | AE5: 1 | AF5: 1 | AG5: 1 | AH5: 1 | AI5: 1 | AJ5: 1 | AK5: 1 | AL5: 1 | AM5: 1 | AN5: 1 | AO5: 1 | AP5: 1 | AQ5: 1 | AR5: 1 | AS5: 1 | AT5: 1 | AU5: 1 | AV5: 1 | AW5: 1 | AX5: 1 | AY5: 1 | AZ5: 1 | BA5: 1 | BB5: 1 | BC5: 1 | BD5: 1 | BE5: 1 | BF5: 1 | BG5: 1 | BH5: 1 | BI5: 1 | BJ5: 1 | BK5: 1 | BL5: 1 | BM5: 1 | BN5: 1 | BO5: 1 | BP5: 1 | BQ5: 1 | BR5: 1 | BS5: 1 | BT5: 1 | BU5: 1 | BV5: 1 | BW5: 1 | BX5: 1 | BY5: 1 | BZ5: 1 | CA5: 1 | CB5: 1 | CC5: 1 | CD5: 1 | CE5: 1 | CF5: 1 | CG5: 1 | CH5: 1 | CI5: 1 | CJ5: 1 | CK5: 1 | CL5: 1 | CM5: 1 | CN5: 1 | CO5: 1 | CP5: 1 | CQ5: 1 | CR5: 1 | CS5: 1 | CT5: 1 | CU5: 1 | CV5: 1 | CW5: 1 | CX5: 1 | CY5: 1 | CZ5: 1 | DA5: 1 | DB5: 1 | DC5: 1 | DD5: 1 | DE5: 1 | DF5: 1 | DG5: 1 | DH5: 1 | DI5: 1 | DJ5: 1 | DK5: 1 | DL5: 1 | DM5: 1 | DN5: 1 | DO5: 1 | DP5: 1 | DQ5: 1 | DR5: 1 | DS5: 1 | DT5: 1 | DU5: 1 | DV5: 1 | DW5: 1 | DX5: 1 | DY5: 1 | DZ5: 1 | EA5: 1 | EB5: 1 | EC5: 1 | ED5: 1 | EE5: 1 | EF5: 1 | EG5: 1 | EH5: 1 | EI5: 1 | EJ5: 1 | EK5: 1 | EL5: 1 | EM5: 1 | EN5: 1 | EO5: 1 | EP5: 1
Y6: номер месяца даты начала: | AA6: 7 | AB6: 8 | AC6: 9 | AD6: 10 | AE6: 11 | AF6: 12 | AG6: 1 | AH6: 2 | AI6: 3 | AJ6: 4 | AK6: 5 | AL6: 6 | AM6: 7 | AN6: 8 | AO6: 9 | AP6: 10 | AQ6: 11 | AR6: 12 | AS6: 1 | AT6: 2 | AU6: 3 | AV6: 4 | AW6: 5 | AX6: 6 | AY6: 7 | AZ6: 8 | BA6: 9 | BB6: 10 | BC6: 11 | BD6: 12 | BE6: 1 | BF6: 2 | BG6: 3 | BH6: 4 | BI6: 5 | BJ6: 6 | BK6: 7 | BL6: 8 | BM6: 9 | BN6: 10 | BO6: 11 | BP6: 12 | BQ6: 1 | BR6: 2 | BS6: 3 | BT6: 4 | BU6: 5 | BV6: 6 | BW6: 7 | BX6: 8 | BY6: 9 | BZ6: 10 | CA6: 11 | CB6: 12 | CC6: 1 | CD6: 2 | CE6: 3 | CF6: 4 | CG6: 5 | CH6: 6 | CI6: 7 | CJ6: 8 | CK6: 9 | CL6: 10 | CM6: 11 | CN6: 12 | CO6: 1 | CP6: 2 | CQ6: 3 | CR6: 4 | CS6: 5 | CT6: 6 | CU6: 7 | CV6: 8 | CW6: 9 | CX6: 10 | CY6: 11 | CZ6: 12 | DA6: 1 | DB6: 2 | DC6: 3 | DD6: 4 | DE6: 5 | DF6: 6 | DG6: 7 | DH6: 8 | DI6: 9 | DJ6: 10 | DK6: 11 | DL6: 12 | DM6: 1 | DN6: 2 | DO6: 3 | DP6: 4 | DQ6: 5 | DR6: 6 | DS6: 7 | DT6: 8 | DU6: 9 | DV6: 10 | DW6: 11 | DX6: 12 | DY6: 1 | DZ6: 2 | EA6: 3 | EB6: 4 | EC6: 5 | ED6: 6 | EE6: 7 | EF6: 8 | EG6: 9 | EH6: 10 | EI6: 11 | EJ6: 12 | EK6: 1 | EL6: 2 | EM6: 3 | EN6: 4 | EO6: 5 | EP6: 6
Y7: год даты начала: | AA7: 21 | AB7: 21 | AC7: 21 | AD7: 21 | AE7: 21 | AF7: 21 | AG7: 22 | AH7: 22 | AI7: 22 | AJ7: 22 | AK7: 22 | AL7: 22 | AM7: 22 | AN7: 22 | AO7: 22 | AP7: 22 | AQ7: 22 | AR7: 22 | AS7: 23 | AT7: 23 | AU7: 23 | AV7: 23 | AW7: 23 | AX7: 23 | AY7: 23 | AZ7: 23 | BA7: 23 | BB7: 23 | BC7: 23 | BD7: 23 | BE7: 24 | BF7: 24 | BG7: 24 | BH7: 24 | BI7: 24 | BJ7: 24 | BK7: 24 | BL7: 24 | BM7: 24 | BN7: 24 | BO7: 24 | BP7: 24 | BQ7: 25 | BR7: 25 | BS7: 25 | BT7: 25 | BU7: 25 | BV7: 25 | BW7: 25 | BX7: 25 | BY7: 25 | BZ7: 25 | CA7: 25 | CB7: 25 | CC7: 26 | CD7: 26 | CE7: 26 | CF7: 26 | CG7: 26 | CH7: 26 | CI7: 26 | CJ7: 26 | CK7: 26 | CL7: 26 | CM7: 26 | CN7: 26 | CO7: 27 | CP7: 27 | CQ7: 27 | CR7: 27 | CS7: 27 | CT7: 27 | CU7: 27 | CV7: 27 | CW7: 27 | CX7: 27 | CY7: 27 | CZ7: 27 | DA7: 28 | DB7: 28 | DC7: 28 | DD7: 28 | DE7: 28 | DF7: 28 | DG7: 28 | DH7: 28 | DI7: 28 | DJ7: 28 | DK7: 28 | DL7: 28 | DM7: 29 | DN7: 29 | DO7: 29 | DP7: 29 | DQ7: 29 | DR7: 29 | DS7: 29 | DT7: 29 | DU7: 29 | DV7: 29 | DW7: 29 | DX7: 29 | DY7: 30 | DZ7: 30 | EA7: 30 | EB7: 30 | EC7: 30 | ED7: 30 | EE7: 30 | EF7: 30 | EG7: 30 | EH7: 30 | EI7: 30 | EJ7: 30 | EK7: 31 | EL7: 31 | EM7: 31 | EN7: 31 | EO7: 31 | EP7: 31
Y8: число даты окончания: | AA8: 31 | AB8: 31 | AC8: 30 | AD8: 31 | AE8: 30 | AF8: 31 | AG8: 31 | AH8: 28 | AI8: 31 | AJ8: 30 | AK8: 31 | AL8: 30 | AM8: 31 | AN8: 31 | AO8: 30 | AP8: 31 | AQ8: 30 | AR8: 31 | AS8: 31 | AT8: 28 | AU8: 31 | AV8: 30 | AW8: 31 | AX8: 30 | AY8: 31 | AZ8: 31 | BA8: 30 | BB8: 31 | BC8: 30 | BD8: 31 | BE8: 31 | BF8: 29 | BG8: 31 | BH8: 30 | BI8: 31 | BJ8: 30 | BK8: 31 | BL8: 31 | BM8: 30 | BN8: 31 | BO8: 30 | BP8: 31 | BQ8: 31 | BR8: 28 | BS8: 31 | BT8: 30 | BU8: 31 | BV8: 30 | BW8: 31 | BX8: 31 | BY8: 30 | BZ8: 31 | CA8: 30 | CB8: 31 | CC8: 31 | CD8: 28 | CE8: 31 | CF8: 30 | CG8: 31 | CH8: 30 | CI8: 31 | CJ8: 31 | CK8: 30 | CL8: 31 | CM8: 30 | CN8: 31 | CO8: 31 | CP8: 28 | CQ8: 31 | CR8: 30 | CS8: 31 | CT8: 30 | CU8: 31 | CV8: 31 | CW8: 30 | CX8: 31 | CY8: 30 | CZ8: 31 | DA8: 31 | DB8: 29 | DC8: 31 | DD8: 30 | DE8: 31 | DF8: 30 | DG8: 31 | DH8: 31 | DI8: 30 | DJ8: 31 | DK8: 30 | DL8: 31 | DM8: 31 | DN8: 28 | DO8: 31 | DP8: 30 | DQ8: 31 | DR8: 30 | DS8: 31 | DT8: 31 | DU8: 30 | DV8: 31 | DW8: 30 | DX8: 31 | DY8: 31 | DZ8: 28 | EA8: 31 | EB8: 30 | EC8: 31 | ED8: 30 | EE8: 31 | EF8: 31 | EG8: 30 | EH8: 31 | EI8: 30 | EJ8: 31 | EK8: 31 | EL8: 28 | EM8: 31 | EN8: 30 | EO8: 31 | EP8: 30
Y9: номер месяца даты окончания: | AA9: 7 | AB9: 8 | AC9: 9 | AD9: 10 | AE9: 11 | AF9: 12 | AG9: 1 | AH9: 2 | AI9: 3 | AJ9: 4 | AK9: 5 | AL9: 6 | AM9: 7 | AN9: 8 | AO9: 9 | AP9: 10 | AQ9: 11 | AR9: 12 | AS9: 1 | AT9: 2 | AU9: 3 | AV9: 4 | AW9: 5 | AX9: 6 | AY9: 7 | AZ9: 8 | BA9: 9 | BB9: 10 | BC9: 11 | BD9: 12 | BE9: 1 | BF9: 2 | BG9: 3 | BH9: 4 | BI9: 5 | BJ9: 6 | BK9: 7 | BL9: 8 | BM9: 9 | BN9: 10 | BO9: 11 | BP9: 12 | BQ9: 1 | BR9: 2 | BS9: 3 | BT9: 4 | BU9: 5 | BV9: 6 | BW9: 7 | BX9: 8 | BY9: 9 | BZ9: 10 | CA9: 11 | CB9: 12 | CC9: 1 | CD9: 2 | CE9: 3 | CF9: 4 | CG9: 5 | CH9: 6 | CI9: 7 | CJ9: 8 | CK9: 9 | CL9: 10 | CM9: 11 | CN9: 12 | CO9: 1 | CP9: 2 | CQ9: 3 | CR9: 4 | CS9: 5 | CT9: 6 | CU9: 7 | CV9: 8 | CW9: 9 | CX9: 10 | CY9: 11 | CZ9: 12 | DA9: 1 | DB9: 2 | DC9: 3 | DD9: 4 | DE9: 5 | DF9: 6 | DG9: 7 | DH9: 8 | DI9: 9 | DJ9: 10 | DK9: 11 | DL9: 12 | DM9: 1 | DN9: 2 | DO9: 3 | DP9: 4 | DQ9: 5 | DR9: 6 | DS9: 7 | DT9: 8 | DU9: 9 | DV9: 10 | DW9: 11 | DX9: 12 | DY9: 1 | DZ9: 2 | EA9: 3 | EB9: 4 | EC9: 5 | ED9: 6 | EE9: 7 | EF9: 8 | EG9: 9 | EH9: 10 | EI9: 11 | EJ9: 12 | EK9: 1 | EL9: 2 | EM9: 3 | EN9: 4 | EO9: 5 | EP9: 6
Y10: год даты окончания: | AA10: 21 | AB10: 21 | AC10: 21 | AD10: 21 | AE10: 21 | AF10: 21 | AG10: 22 | AH10: 22 | AI10: 22 | AJ10: 22 | AK10: 22 | AL10: 22 | AM10: 22 | AN10: 22 | AO10: 22 | AP10: 22 | AQ10: 22 | AR10: 22 | AS10: 23 | AT10: 23 | AU10: 23 | AV10: 23 | AW10: 23 | AX10: 23 | AY10: 23 | AZ10: 23 | BA10: 23 | BB10: 23 | BC10: 23 | BD10: 23 | BE10: 24 | BF10: 24 | BG10: 24 | BH10: 24 | BI10: 24 | BJ10: 24 | BK10: 24 | BL10: 24 | BM10: 24 | BN10: 24 | BO10: 24 | BP10: 24 | BQ10: 25 | BR10: 25 | BS10: 25 | BT10: 25 | BU10: 25 | BV10: 25 | BW10: 25 | BX10: 25 | BY10: 25 | BZ10: 25 | CA10: 25 | CB10: 25 | CC10: 26 | CD10: 26 | CE10: 26 | CF10: 26 | CG10: 26 | CH10: 26 | CI10: 26 | CJ10: 26 | CK10: 26 | CL10: 26 | CM10: 26 | CN10: 26 | CO10: 27 | CP10: 27 | CQ10: 27 | CR10: 27 | CS10: 27 | CT10: 27 | CU10: 27 | CV10: 27 | CW10: 27 | CX10: 27 | CY10: 27 | CZ10: 27 | DA10: 28 | DB10: 28 | DC10: 28 | DD10: 28 | DE10: 28 | DF10: 28 | DG10: 28 | DH10: 28 | DI10: 28 | DJ10: 28 | DK10: 28 | DL10: 28 | DM10: 29 | DN10: 29 | DO10: 29 | DP10: 29 | DQ10: 29 | DR10: 29 | DS10: 29 | DT10: 29 | DU10: 29 | DV10: 29 | DW10: 29 | DX10: 29 | DY10: 30 | DZ10: 30 | EA10: 30 | EB10: 30 | EC10: 30 | ED10: 30 | EE10: 30 | EF10: 30 | EG10: 30 | EH10: 30 | EI10: 30 | EJ10: 30 | EK10: 31 | EL10: 31 | EM10: 31 | EN10: 31 | EO10: 31 | EP10: 31
F11: Periods | I11: Периоды и горизонты моделирования фактических и прогнозных данных | X11: 2021-07-01 | AA11: 2021-07-01 | AB11: 2021-08-01 | AC11: 2021-09-01 | AD11: 2021-10-01 | AE11: 2021-11-01 | AF11: 2021-12-01 | AG11: 2022-01-01 | AH11: 2022-02-01 | AI11: 2022-03-01 | AJ11: 2022-04-01 | AK11: 2022-05-01 | AL11: 2022-06-01 | AM11: 2022-07-01 | AN11: 2022-08-01 | AO11: 2022-09-01 | AP11: 2022-10-01 | AQ11: 2022-11-01 | AR11: 2022-12-01 | AS11: 2023-01-01 | AT11: 2023-02-01 | AU11: 2023-03-01 | AV11: 2023-04-01 | AW11: 2023-05-01 | AX11: 2023-06-01 | AY11: 2023-07-01 | AZ11: 2023-08-01 | BA11: 2023-09-01 | BB11: 2023-10-01 | BC11: 2023-11-01 | BD11: 2023-12-01 | BE11: 2024-01-01 | BF11: 2024-02-01 | BG11: 2024-03-01 | BH11: 2024-04-01 | BI11: 2024-05-01 | BJ11: 2024-06-01 | BK11: 2024-07-01 | BL11: 2024-08-01 | BM11: 2024-09-01 | BN11: 2024-10-01 | BO11: 2024-11-01 | BP11: 2024-12-01 | BQ11: 2025-01-01 | BR11: 2025-02-01 | BS11: 2025-03-01 | BT11: 2025-04-01 | BU11: 2025-05-01 | BV11: 2025-06-01 | BW11: 2025-07-01 | BX11: 2025-08-01 | BY11: 2025-09-01 | BZ11: 2025-10-01 | CA11: 2025-11-01 | CB11: 2025-12-01 | CC11: 2026-01-01 | CD11: 2026-02-01 | CE11: 2026-03-01 | CF11: 2026-04-01 | CG11: 2026-05-01 | CH11: 2026-06-01 | CI11: 2026-07-01 | CJ11: 2026-08-01 | CK11: 2026-09-01 | CL11: 2026-10-01 | CM11: 2026-11-01 | CN11: 2026-12-01 | CO11: 2027-01-01 | CP11: 2027-02-01 | CQ11: 2027-03-01 | CR11: 2027-04-01 | CS11: 2027-05-01 | CT11: 2027-06-01 | CU11: 2027-07-01 | CV11: 2027-08-01 | CW11: 2027-09-01 | CX11: 2027-10-01 | CY11: 2027-11-01 | CZ11: 2027-12-01 | DA11: 2028-01-01 | DB11: 2028-02-01 | DC11: 2028-03-01 | DD11: 2028-04-01 | DE11: 2028-05-01 | DF11: 2028-06-01 | DG11: 2028-07-01 | DH11: 2028-08-01 | DI11: 2028-09-01 | DJ11: 2028-10-01 | DK11: 2028-11-01 | DL11: 2028-12-01 | DM11: 2029-01-01 | DN11: 2029-02-01 | DO11: 2029-03-01 | DP11: 2029-04-01 | DQ11: 2029-05-01 | DR11: 2029-06-01 | DS11: 2029-07-01 | DT11: 2029-08-01 | DU11: 2029-09-01 | DV11: 2029-10-01 | DW11: 2029-11-01 | DX11: 2029-12-01 | DY11: 2030-01-01 | DZ11: 2030-02-01 | EA11: 2030-03-01 | EB11: 2030-04-01 | EC11: 2030-05-01 | ED11: 2030-06-01 | EE11: 2030-07-01 | EF11: 2030-08-01 | EG11: 2030-09-01 | EH11: 2030-10-01 | EI11: 2030-11-01 | EJ11: 2030-12-01 | EK11: 2031-01-01 | EL11: 2031-02-01 | EM11: 2031-03-01 | EN11: 2031-04-01 | EO11: 2031-05-01 | EP11: 2031-06-01
H12: тип листа | Q12: расчетный | X12: 2031-06-30 | AA12: 2021-07-31 | AB12: 2021-08-31 | AC12: 2021-09-30 | AD12: 2021-10-31 | AE12: 2021-11-30 | AF12: 2021-12-31 | AG12: 2022-01-31 | AH12: 2022-02-28 | AI12: 2022-03-31 | AJ12: 2022-04-30 | AK12: 2022-05-31 | AL12: 2022-06-30 | AM12: 2022-07-31 | AN12: 2022-08-31 | AO12: 2022-09-30 | AP12: 2022-10-31 | AQ12: 2022-11-30 | AR12: 2022-12-31 | AS12: 2023-01-31 | AT12: 2023-02-28 | AU12: 2023-03-31 | AV12: 2023-04-30 | AW12: 2023-05-31 | AX12: 2023-06-30 | AY12: 2023-07-31 | AZ12: 2023-08-31 | BA12: 2023-09-30 | BB12: 2023-10-31 | BC12: 2023-11-30 | BD12: 2023-12-31 | BE12: 2024-01-31 | BF12: 2024-02-29 | BG12: 2024-03-31 | BH12: 2024-04-30 | BI12: 2024-05-31 | BJ12: 2024-06-30 | BK12: 2024-07-31 | BL12: 2024-08-31 | BM12: 2024-09-30 | BN12: 2024-10-31 | BO12: 2024-11-30 | BP12: 2024-12-31 | BQ12: 2025-01-31 | BR12: 2025-02-28 | BS12: 2025-03-31 | BT12: 2025-04-30 | BU12: 2025-05-31 | BV12: 2025-06-30 | BW12: 2025-07-31 | BX12: 2025-08-31 | BY12: 2025-09-30 | BZ12: 2025-10-31 | CA12: 2025-11-30 | CB12: 2025-12-31 | CC12: 2026-01-31 | CD12: 2026-02-28 | CE12: 2026-03-31 | CF12: 2026-04-30 | CG12: 2026-05-31 | CH12: 2026-06-30 | CI12: 2026-07-31 | CJ12: 2026-08-31 | CK12: 2026-09-30 | CL12: 2026-10-31 | CM12: 2026-11-30 | CN12: 2026-12-31 | CO12: 2027-01-31 | CP12: 2027-02-28 | CQ12: 2027-03-31 | CR12: 2027-04-30 | CS12: 2027-05-31 | CT12: 2027-06-30 | CU12: 2027-07-31 | CV12: 2027-08-31 | CW12: 2027-09-30 | CX12: 2027-10-31 | CY12: 2027-11-30 | CZ12: 2027-12-31 | DA12: 2028-01-31 | DB12: 2028-02-29 | DC12: 2028-03-31 | DD12: 2028-04-30 | DE12: 2028-05-31 | DF12: 2028-06-30 | DG12: 2028-07-31 | DH12: 2028-08-31 | DI12: 2028-09-30 | DJ12: 2028-10-31 | DK12: 2028-11-30 | DL12: 2028-12-31 | DM12: 2029-01-31 | DN12: 2029-02-28 | DO12: 2029-03-31 | DP12: 2029-04-30 | DQ12: 2029-05-31 | DR12: 2029-06-30 | DS12: 2029-07-31 | DT12: 2029-08-31 | DU12: 2029-09-30 | DV12: 2029-10-31 | DW12: 2029-11-30 | DX12: 2029-12-31 | DY12: 2030-01-31 | DZ12: 2030-02-28 | EA12: 2030-03-31 | EB12: 2030-04-30 | EC12: 2030-05-31 | ED12: 2030-06-30 | EE12: 2030-07-31 | EF12: 2030-08-31 | EG12: 2030-09-30 | EH12: 2030-10-31 | EI12: 2030-11-30 | EJ12: 2030-12-31 | EK12: 2031-01-31 | EL12: 2031-02-28 | EM12: 2031-03-31 | EN12: 2031-04-30 | EO12: 2031-05-31 | EP12: 2031-06-30
H13: показатель | Q13: значение | X13: итого | AA13: 2021-07-01 | AB13: 2021-08-01 | AC13: 2021-09-01 | AD13: 2021-10-01 | AE13: 2021-11-01 | AF13: 2021-12-01 | AG13: 2022-01-01 | AH13: 2022-02-01 | AI13: 2022-03-01 | AJ13: 2022-04-01 | AK13: 2022-05-01 | AL13: 2022-06-01 | AM13: 2022-07-01 | AN13: 2022-08-01 | AO13: 2022-09-01 | AP13: 2022-10-01 | AQ13: 2022-11-01 | AR13: 2022-12-01 | AS13: 2023-01-01 | AT13: 2023-02-01 | AU13: 2023-03-01 | AV13: 2023-04-01 | AW13: 2023-05-01 | AX13: 2023-06-01 | AY13: 2023-07-01 | AZ13: 2023-08-01 | BA13: 2023-09-01 | BB13: 2023-10-01 | BC13: 2023-11-01 | BD13: 2023-12-01 | BE13: 2024-01-01 | BF13: 2024-02-01 | BG13: 2024-03-01 | BH13: 2024-04-01 | BI13: 2024-05-01 | BJ13: 2024-06-01 | BK13: 2024-07-01 | BL13: 2024-08-01 | BM13: 2024-09-01 | BN13: 2024-10-01 | BO13: 2024-11-01 | BP13: 2024-12-01 | BQ13: 2025-01-01 | BR13: 2025-02-01 | BS13: 2025-03-01 | BT13: 2025-04-01 | BU13: 2025-05-01 | BV13: 2025-06-01 | BW13: 2025-07-01 | BX13: 2025-08-01 | BY13: 2025-09-01 | BZ13: 2025-10-01 | CA13: 2025-11-01 | CB13: 2025-12-01 | CC13: 2026-01-01 | CD13: 2026-02-01 | CE13: 2026-03-01 | CF13: 2026-04-01 | CG13: 2026-05-01 | CH13: 2026-06-01 | CI13: 2026-07-01 | CJ13: 2026-08-01 | CK13: 2026-09-01 | CL13: 2026-10-01 | CM13: 2026-11-01 | CN13: 2026-12-01 | CO13: 2027-01-01 | CP13: 2027-02-01 | CQ13: 2027-03-01 | CR13: 2027-04-01 | CS13: 2027-05-01 | CT13: 2027-06-01 | CU13: 2027-07-01 | CV13: 2027-08-01 | CW13: 2027-09-01 | CX13: 2027-10-01 | CY13: 2027-11-01 | CZ13: 2027-12-01 | DA13: 2028-01-01 | DB13: 2028-02-01 | DC13: 2028-03-01 | DD13: 2028-04-01 | DE13: 2028-05-01 | DF13: 2028-06-01 | DG13: 2028-07-01 | DH13: 2028-08-01 | DI13: 2028-09-01 | DJ13: 2028-10-01 | DK13: 2028-11-01 | DL13: 2028-12-01 | DM13: 2029-01-01 | DN13: 2029-02-01 | DO13: 2029-03-01 | DP13: 2029-04-01 | DQ13: 2029-05-01 | DR13: 2029-06-01 | DS13: 2029-07-01 | DT13: 2029-08-01 | DU13: 2029-09-01 | DV13: 2029-10-01 | DW13: 2029-11-01 | DX13: 2029-12-01 | DY13: 2030-01-01 | DZ13: 2030-02-01 | EA13: 2030-03-01 | EB13: 2030-04-01 | EC13: 2030-05-01 | ED13: 2030-06-01 | EE13: 2030-07-01 | EF13: 2030-08-01 | EG13: 2030-09-01 | EH13: 2030-10-01 | EI13: 2030-11-01 | EJ13: 2030-12-01 | EK13: 2031-01-01 | EL13: 2031-02-01 | EM13: 2031-03-01 | EN13: 2031-04-01 | EO13: 2031-05-01 | EP13: 2031-06-01
D14: 0 | E14: 0 | F14: 0 | G14: 0 | S14: 0
A15: 15 | H15: разработка финмоделей: https://mngmnt.ru/
A16: 16 | G16: 0 | H16: минимальный период расчетов | P16: * | Q16: месяц | R16: ^ | S16: 0 | Y16: номер периода модели: | AA16: 1 | AB16: 2 | AC16: 3 | AD16: 4 | AE16: 5 | AF16: 6 | AG16: 7 | AH16: 8 | AI16: 9 | AJ16: 10 | AK16: 11 | AL16: 12 | AM16: 13 | AN16: 14 | AO16: 15 | AP16: 16 | AQ16: 17 | AR16: 18 | AS16: 19 | AT16: 20 | AU16: 21 | AV16: 22 | AW16: 23 | AX16: 24 | AY16: 25 | AZ16: 26 | BA16: 27 | BB16: 28 | BC16: 29 | BD16: 30 | BE16: 31 | BF16: 32 | BG16: 33 | BH16: 34 | BI16: 35 | BJ16: 36 | BK16: 37 | BL16: 38 | BM16: 39 | BN16: 40 | BO16: 41 | BP16: 42 | BQ16: 43 | BR16: 44 | BS16: 45 | BT16: 46 | BU16: 47 | BV16: 48 | BW16: 49 | BX16: 50 | BY16: 51 | BZ16: 52 | CA16: 53 | CB16: 54 | CC16: 55 | CD16: 56 | CE16: 57 | CF16: 58 | CG16: 59 | CH16: 60 | CI16: 61 | CJ16: 62 | CK16: 63 | CL16: 64 | CM16: 65 | CN16: 66 | CO16: 67 | CP16: 68 | CQ16: 69 | CR16: 70 | CS16: 71 | CT16: 72 | CU16: 73 | CV16: 74 | CW16: 75 | CX16: 76 | CY16: 77 | CZ16: 78 | DA16: 79 | DB16: 80 | DC16: 81 | DD16: 82 | DE16: 83 | DF16: 84 | DG16: 85 | DH16: 86 | DI16: 87 | DJ16: 88 | DK16: 89 | DL16: 90 | DM16: 91 | DN16: 92 | DO16: 93 | DP16: 94 | DQ16: 95 | DR16: 96 | DS16: 97 | DT16: 98 | DU16: 99 | DV16: 100 | DW16: 101 | DX16: 102 | DY16: 103 | DZ16: 104 | EA16: 105 | EB16: 106 | EC16: 107 | ED16: 108 | EE16: 109 | EF16: 110 | EG16: 111 | EH16: 112 | EI16: 113 | EJ16: 114 | EK16: 115 | EL16: 116 | EM16: 117 | EN16: 118 | EO16: 119 | EP16: 120 | EQ16: 121 | ER16: 122 | ES16: 123 | ET16: 124 | EU16: 125 | EV16: 126 | EW16: 127 | EX16: 128 | EY16: 129 | EZ16: 130 | FA16: 131 | FB16: 132 | FC16: 133
A17: 17 | G17: 0 | H17: дата старта проекта | P17: * | Q17: 2021-07-01 | S17: 0 | Y17: номер месяца даты начала: | AA17: 7 | AB17: 8 | AC17: 9 | AD17: 10 | AE17: 11 | AF17: 12 | AG17: 1 | AH17: 2 | AI17: 3 | AJ17: 4 | AK17: 5 | AL17: 6 | AM17: 7 | AN17: 8 | AO17: 9 | AP17: 10 | AQ17: 11 | AR17: 12 | AS17: 1 | AT17: 2 | AU17: 3 | AV17: 4 | AW17: 5 | AX17: 6 | AY17: 7 | AZ17: 8 | BA17: 9 | BB17: 10 | BC17: 11 | BD17: 12 | BE17: 1 | BF17: 2 | BG17: 3 | BH17: 4 | BI17: 5 | BJ17: 6 | BK17: 7 | BL17: 8 | BM17: 9 | BN17: 10 | BO17: 11 | BP17: 12 | BQ17: 1 | BR17: 2 | BS17: 3 | BT17: 4 | BU17: 5 | BV17: 6 | BW17: 7 | BX17: 8 | BY17: 9 | BZ17: 10 | CA17: 11 | CB17: 12 | CC17: 1 | CD17: 2 | CE17: 3 | CF17: 4 | CG17: 5 | CH17: 6 | CI17: 7 | CJ17: 8 | CK17: 9 | CL17: 10 | CM17: 11 | CN17: 12 | CO17: 1 | CP17: 2 | CQ17: 3 | CR17: 4 | CS17: 5 | CT17: 6 | CU17: 7 | CV17: 8 | CW17: 9 | CX17: 10 | CY17: 11 | CZ17: 12 | DA17: 1 | DB17: 2 | DC17: 3 | DD17: 4 | DE17: 5 | DF17: 6 | DG17: 7 | DH17: 8 | DI17: 9 | DJ17: 10 | DK17: 11 | DL17: 12 | DM17: 1 | DN17: 2 | DO17: 3 | DP17: 4 | DQ17: 5 | DR17: 6 | DS17: 7 | DT17: 8 | DU17: 9 | DV17: 10 | DW17: 11 | DX17: 12 | DY17: 1 | DZ17: 2 | EA17: 3 | EB17: 4 | EC17: 5 | ED17: 6 | EE17: 7 | EF17: 8 | EG17: 9 | EH17: 10 | EI17: 11 | EJ17: 12 | EK17: 1 | EL17: 2 | EM17: 3 | EN17: 4 | EO17: 5 | EP17: 6
A18: 18 | G18: 0 | H18: горизонт моделирования в кол-ве периодов | P18: * | Q18: 120 | S18: 0 | Y18: год даты начала: | AA18: 21 | AB18: 21 | AC18: 21 | AD18: 21 | AE18: 21 | AF18: 21 | AG18: 22 | AH18: 22 | AI18: 22 | AJ18: 22 | AK18: 22 | AL18: 22 | AM18: 22 | AN18: 22 | AO18: 22 | AP18: 22 | AQ18: 22 | AR18: 22 | AS18: 23 | AT18: 23 | AU18: 23 | AV18: 23 | AW18: 23 | AX18: 23 | AY18: 23 | AZ18: 23 | BA18: 23 | BB18: 23 | BC18: 23 | BD18: 23 | BE18: 24 | BF18: 24 | BG18: 24 | BH18: 24 | BI18: 24 | BJ18: 24 | BK18: 24 | BL18: 24 | BM18: 24 | BN18: 24 | BO18: 24 | BP18: 24 | BQ18: 25 | BR18: 25 | BS18: 25 | BT18: 25 | BU18: 25 | BV18: 25 | BW18: 25 | BX18: 25 | BY18: 25 | BZ18: 25 | CA18: 25 | CB18: 25 | CC18: 26 | CD18: 26 | CE18: 26 | CF18: 26 | CG18: 26 | CH18: 26 | CI18: 26 | CJ18: 26 | CK18: 26 | CL18: 26 | CM18: 26 | CN18: 26 | CO18: 27 | CP18: 27 | CQ18: 27 | CR18: 27 | CS18: 27 | CT18: 27 | CU18: 27 | CV18: 27 | CW18: 27 | CX18: 27 | CY18: 27 | CZ18: 27 | DA18: 28 | DB18: 28 | DC18: 28 | DD18: 28 | DE18: 28 | DF18: 28 | DG18: 28 | DH18: 28 | DI18: 28 | DJ18: 28 | DK18: 28 | DL18: 28 | DM18: 29 | DN18: 29 | DO18: 29 | DP18: 29 | DQ18: 29 | DR18: 29 | DS18: 29 | DT18: 29 | DU18: 29 | DV18: 29 | DW18: 29 | DX18: 29 | DY18: 30 | DZ18: 30 | EA18: 30 | EB18: 30 | EC18: 30 | ED18: 30 | EE18: 30 | EF18: 30 | EG18: 30 | EH18: 30 | EI18: 30 | EJ18: 30 | EK18: 31 | EL18: 31 | EM18: 31 | EN18: 31 | EO18: 31 | EP18: 31
A19: 19
A20: 20 | G20: 0 | H20: дата старта периода расчетов модели | X20: 2021-07-01 | AA20: 2021-07-01 | AB20: 2021-08-01 | AC20: 2021-09-01 | AD20: 2021-10-01 | AE20: 2021-11-01 | AF20: 2021-12-01 | AG20: 2022-01-01 | AH20: 2022-02-01 | AI20: 2022-03-01 | AJ20: 2022-04-01 | AK20: 2022-05-01 | AL20: 2022-06-01 | AM20: 2022-07-01 | AN20: 2022-08-01 | AO20: 2022-09-01 | AP20: 2022-10-01 | AQ20: 2022-11-01 | AR20: 2022-12-01 | AS20: 2023-01-01 | AT20: 2023-02-01 | AU20: 2023-03-01 | AV20: 2023-04-01 | AW20: 2023-05-01 | AX20: 2023-06-01 | AY20: 2023-07-01 | AZ20: 2023-08-01 | BA20: 2023-09-01 | BB20: 2023-10-01 | BC20: 2023-11-01 | BD20: 2023-12-01 | BE20: 2024-01-01 | BF20: 2024-02-01 | BG20: 2024-03-01 | BH20: 2024-04-01 | BI20: 2024-05-01 | BJ20: 2024-06-01 | BK20: 2024-07-01 | BL20: 2024-08-01 | BM20: 2024-09-01 | BN20: 2024-10-01 | BO20: 2024-11-01 | BP20: 2024-12-01 | BQ20: 2025-01-01 | BR20: 2025-02-01 | BS20: 2025-03-01 | BT20: 2025-04-01 | BU20: 2025-05-01 | BV20: 2025-06-01 | BW20: 2025-07-01 | BX20: 2025-08-01 | BY20: 2025-09-01 | BZ20: 2025-10-01 | CA20: 2025-11-01 | CB20: 2025-12-01 | CC20: 2026-01-01 | CD20: 2026-02-01 | CE20: 2026-03-01 | CF20: 2026-04-01 | CG20: 2026-05-01 | CH20: 2026-06-01 | CI20: 2026-07-01 | CJ20: 2026-08-01 | CK20: 2026-09-01 | CL20: 2026-10-01 | CM20: 2026-11-01 | CN20: 2026-12-01 | CO20: 2027-01-01 | CP20: 2027-02-01 | CQ20: 2027-03-01 | CR20: 2027-04-01 | CS20: 2027-05-01 | CT20: 2027-06-01 | CU20: 2027-07-01 | CV20: 2027-08-01 | CW20: 2027-09-01 | CX20: 2027-10-01 | CY20: 2027-11-01 | CZ20: 2027-12-01 | DA20: 2028-01-01 | DB20: 2028-02-01 | DC20: 2028-03-01 | DD20: 2028-04-01 | DE20: 2028-05-01 | DF20: 2028-06-01 | DG20: 2028-07-01 | DH20: 2028-08-01 | DI20: 2028-09-01 | DJ20: 2028-10-01 | DK20: 2028-11-01 | DL20: 2028-12-01 | DM20: 2029-01-01 | DN20: 2029-02-01 | DO20: 2029-03-01 | DP20: 2029-04-01 | DQ20: 2029-05-01 | DR20: 2029-06-01 | DS20: 2029-07-01 | DT20: 2029-08-01 | DU20: 2029-09-01 | DV20: 2029-10-01 | DW20: 2029-11-01 | DX20: 2029-12-01 | DY20: 2030-01-01 | DZ20: 2030-02-01 | EA20: 2030-03-01 | EB20: 2030-04-01 | EC20: 2030-05-01 | ED20: 2030-06-01 | EE20: 2030-07-01 | EF20: 2030-08-01 | EG20: 2030-09-01 | EH20: 2030-10-01 | EI20: 2030-11-01 | EJ20: 2030-12-01 | EK20: 2031-01-01 | EL20: 2031-02-01 | EM20: 2031-03-01 | EN20: 2031-04-01 | EO20: 2031-05-01 | EP20: 2031-06-01
A21: 21 | G21: 0 | H21: дата завершения периода расчетов модели | X21: 2031-06-30 | AA21: 2021-07-31 | AB21: 2021-08-31 | AC21: 2021-09-30 | AD21: 2021-10-31 | AE21: 2021-11-30 | AF21: 2021-12-31 | AG21: 2022-01-31 | AH21: 2022-02-28 | AI21: 2022-03-31 | AJ21: 2022-04-30 | AK21: 2022-05-31 | AL21: 2022-06-30 | AM21: 2022-07-31 | AN21: 2022-08-31 | AO21: 2022-09-30 | AP21: 2022-10-31 | AQ21: 2022-11-30 | AR21: 2022-12-31 | AS21: 2023-01-31 | AT21: 2023-02-28 | AU21: 2023-03-31 | AV21: 2023-04-30 | AW21: 2023-05-31 | AX21: 2023-06-30 | AY21: 2023-07-31 | AZ21: 2023-08-31 | BA21: 2023-09-30 | BB21: 2023-10-31 | BC21: 2023-11-30 | BD21: 2023-12-31 | BE21: 2024-01-31 | BF21: 2024-02-29 | BG21: 2024-03-31 | BH21: 2024-04-30 | BI21: 2024-05-31 | BJ21: 2024-06-30 | BK21: 2024-07-31 | BL21: 2024-08-31 | BM21: 2024-09-30 | BN21: 2024-10-31 | BO21: 2024-11-30 | BP21: 2024-12-31 | BQ21: 2025-01-31 | BR21: 2025-02-28 | BS21: 2025-03-31 | BT21: 2025-04-30 | BU21: 2025-05-31 | BV21: 2025-06-30 | BW21: 2025-07-31 | BX21: 2025-08-31 | BY21: 2025-09-30 | BZ21: 2025-10-31 | CA21: 2025-11-30 | CB21: 2025-12-31 | CC21: 2026-01-31 | CD21: 2026-02-28 | CE21: 2026-03-31 | CF21: 2026-04-30 | CG21: 2026-05-31 | CH21: 2026-06-30 | CI21: 2026-07-31 | CJ21: 2026-08-31 | CK21: 2026-09-30 | CL21: 2026-10-31 | CM21: 2026-11-30 | CN21: 2026-12-31 | CO21: 2027-01-31 | CP21: 2027-02-28 | CQ21: 2027-03-31 | CR21: 2027-04-30 | CS21: 2027-05-31 | CT21: 2027-06-30 | CU21: 2027-07-31 | CV21: 2027-08-31 | CW21: 2027-09-30 | CX21: 2027-10-31 | CY21: 2027-11-30 | CZ21: 2027-12-31 | DA21: 2028-01-31 | DB21: 2028-02-29 | DC21: 2028-03-31 | DD21: 2028-04-30 | DE21: 2028-05-31 | DF21: 2028-06-30 | DG21: 2028-07-31 | DH21: 2028-08-31 | DI21: 2028-09-30 | DJ21: 2028-10-31 | DK21: 2028-11-30 | DL21: 2028-12-31 | DM21: 2029-01-31 | DN21: 2029-02-28 | DO21: 2029-03-31 | DP21: 2029-04-30 | DQ21: 2029-05-31 | DR21: 2029-06-30 | DS21: 2029-07-31 | DT21: 2029-08-31 | DU21: 2029-09-30 | DV21: 2029-10-31 | DW21: 2029-11-30 | DX21: 2029-12-31 | DY21: 2030-01-31 | DZ21: 2030-02-28 | EA21: 2030-03-31 | EB21: 2030-04-30 | EC21: 2030-05-31 | ED21: 2030-06-30 | EE21: 2030-07-31 | EF21: 2030-08-31 | EG21: 2030-09-30 | EH21: 2030-10-31 | EI21: 2030-11-30 | EJ21: 2030-12-31 | EK21: 2031-01-31 | EL21: 2031-02-28 | EM21: 2031-03-31 | EN21: 2031-04-30 | EO21: 2031-05-31 | EP21: 2031-06-30
A22: 22 | G22: 0 | H22: названия периодов расчета | AA22: 2021-07-01 | AB22: 2021-08-01 | AC22: 2021-09-01 | AD22: 2021-10-01 | AE22: 2021-11-01 | AF22: 2021-12-01 | AG22: 2022-01-01 | AH22: 2022-02-01 | AI22: 2022-03-01 | AJ22: 2022-04-01 | AK22: 2022-05-01 | AL22: 2022-06-01 | AM22: 2022-07-01 | AN22: 2022-08-01 | AO22: 2022-09-01 | AP22: 2022-10-01 | AQ22: 2022-11-01 | AR22: 2022-12-01 | AS22: 2023-01-01 | AT22: 2023-02-01 | AU22: 2023-03-01 | AV22: 2023-04-01 | AW22: 2023-05-01 | AX22: 2023-06-01 | AY22: 2023-07-01 | AZ22: 2023-08-01 | BA22: 2023-09-01 | BB22: 2023-10-01 | BC22: 2023-11-01 | BD22: 2023-12-01 | BE22: 2024-01-01 | BF22: 2024-02-01 | BG22: 2024-03-01 | BH22: 2024-04-01 | BI22: 2024-05-01 | BJ22: 2024-06-01 | BK22: 2024-07-01 | BL22: 2024-08-01 | BM22: 2024-09-01 | BN22: 2024-10-01 | BO22: 2024-11-01 | BP22: 2024-12-01 | BQ22: 2025-01-01 | BR22: 2025-02-01 | BS22: 2025-03-01 | BT22: 2025-04-01 | BU22: 2025-05-01 | BV22: 2025-06-01 | BW22: 2025-07-01 | BX22: 2025-08-01 | BY22: 2025-09-01 | BZ22: 2025-10-01 | CA22: 2025-11-01 | CB22: 2025-12-01 | CC22: 2026-01-01 | CD22: 2026-02-01 | CE22: 2026-03-01 | CF22: 2026-04-01 | CG22: 2026-05-01 | CH22: 2026-06-01 | CI22: 2026-07-01 | CJ22: 2026-08-01 | CK22: 2026-09-01 | CL22: 2026-10-01 | CM22: 2026-11-01 | CN22: 2026-12-01 | CO22: 2027-01-01 | CP22: 2027-02-01 | CQ22: 2027-03-01 | CR22: 2027-04-01 | CS22: 2027-05-01 | CT22: 2027-06-01 | CU22: 2027-07-01 | CV22: 2027-08-01 | CW22: 2027-09-01 | CX22: 2027-10-01 | CY22: 2027-11-01 | CZ22: 2027-12-01 | DA22: 2028-01-01 | DB22: 2028-02-01 | DC22: 2028-03-01 | DD22: 2028-04-01 | DE22: 2028-05-01 | DF22: 2028-06-01 | DG22: 2028-07-01 | DH22: 2028-08-01 | DI22: 2028-09-01 | DJ22: 2028-10-01 | DK22: 2028-11-01 | DL22: 2028-12-01 | DM22: 2029-01-01 | DN22: 2029-02-01 | DO22: 2029-03-01 | DP22: 2029-04-01 | DQ22: 2029-05-01 | DR22: 2029-06-01 | DS22: 2029-07-01 | DT22: 2029-08-01 | DU22: 2029-09-01 | DV22: 2029-10-01 | DW22: 2029-11-01 | DX22: 2029-12-01 | DY22: 2030-01-01 | DZ22: 2030-02-01 | EA22: 2030-03-01 | EB22: 2030-04-01 | EC22: 2030-05-01 | ED22: 2030-06-01 | EE22: 2030-07-01 | EF22: 2030-08-01 | EG22: 2030-09-01 | EH22: 2030-10-01 | EI22: 2030-11-01 | EJ22: 2030-12-01 | EK22: 2031-01-01 | EL22: 2031-02-01 | EM22: 2031-03-01 | EN22: 2031-04-01 | EO22: 2031-05-01 | EP22: 2031-06-01
A23: 23
A24: 24 | G24: 0 | H24: ответ "да/нет"
A25: 25 | G25: 0 | H25: ответ "да/нет" | I25: учесть фактические данные? | P25: * | Q25: нет | R25: ^ | S25: 0
A26: 26 | G26: 0 | H26: ответ "да/нет" | I26: фактический период выбрать по умолчанию? | Q26: да | R26: ^ | S26: 0
A27: 27
A28: 28 | G28: 0 | H28: дата начала фактического периода
A29: 29 | G29: 0 | H29: дата окончания фактического периода
A30: 30 | G30: 0 | H30: дата окончания фактического периода | I30: по умолчанию - сегодняшний день | Q30: 2022-02-07
A31: 31 | G31: 0 | H31: дата окончания фактического периода | I31: задать вручную дату окончания периода | Q31: 2020-10-31 | Y31: номер периода модели: | AA31: 1 | AB31: 2 | AC31: 3 | AD31: 4 | AE31: 5 | AF31: 6 | AG31: 7 | AH31: 8 | AI31: 9 | AJ31: 10 | AK31: 11 | AL31: 12 | AM31: 13 | AN31: 14 | AO31: 15 | AP31: 16 | AQ31: 17 | AR31: 18 | AS31: 19 | AT31: 20 | AU31: 21 | AV31: 22 | AW31: 23 | AX31: 24 | AY31: 25 | AZ31: 26 | BA31: 27 | BB31: 28 | BC31: 29 | BD31: 30 | BE31: 31 | BF31: 32 | BG31: 33 | BH31: 34 | BI31: 35 | BJ31: 36 | BK31: 37 | BL31: 38 | BM31: 39 | BN31: 40 | BO31: 41 | BP31: 42 | BQ31: 43 | BR31: 44 | BS31: 45 | BT31: 46 | BU31: 47 | BV31: 48 | BW31: 49 | BX31: 50 | BY31: 51 | BZ31: 52 | CA31: 53 | CB31: 54 | CC31: 55 | CD31: 56 | CE31: 57 | CF31: 58 | CG31: 59 | CH31: 60 | CI31: 61 | CJ31: 62 | CK31: 63 | CL31: 64 | CM31: 65 | CN31: 66 | CO31: 67 | CP31: 68 | CQ31: 69 | CR31: 70 | CS31: 71 | CT31: 72 | CU31: 73 | CV31: 74 | CW31: 75 | CX31: 76 | CY31: 77 | CZ31: 78 | DA31: 79 | DB31: 80 | DC31: 81 | DD31: 82 | DE31: 83 | DF31: 84 | DG31: 85 | DH31: 86 | DI31: 87 | DJ31: 88 | DK31: 89 | DL31: 90 | DM31: 91 | DN31: 92 | DO31: 93 | DP31: 94 | DQ31: 95 | DR31: 96 | DS31: 97 | DT31: 98 | DU31: 99 | DV31: 100 | DW31: 101 | DX31: 102 | DY31: 103 | DZ31: 104 | EA31: 105 | EB31: 106 | EC31: 107 | ED31: 108 | EE31: 109 | EF31: 110 | EG31: 111 | EH31: 112 | EI31: 113 | EJ31: 114 | EK31: 115 | EL31: 116 | EM31: 117 | EN31: 118 | EO31: 119 | EP31: 120 | EQ31: 121 | ER31: 122 | ES31: 123 | ET31: 124 | EU31: 125 | EV31: 126 | EW31: 127 | EX31: 128 | EY31: 129 | EZ31: 130 | FA31: 131 | FB31: 132 | FC31: 133
A32: 32 | Y32: номер месяца даты начала: | AA32: 7 | AB32: 7 | AC32: 7 | AD32: 7 | AE32: 7 | AF32: 7 | AG32: 7 | AH32: 7 | AI32: 7 | AJ32: 7
A33: 33 | G33: 0 | H33: период отчетности | P33: * | Q33: год текущий | R33: ^ | S33: 0 | Y33: год даты начала: | AA33: 21 | AB33: 22 | AC33: 23 | AD33: 24 | AE33: 25 | AF33: 26 | AG33: 27 | AH33: 28 | AI33: 29 | AJ33: 30
A34: 34
A35: 35 | G35: 0 | H35: дата старта отчетности модели | X35: 2021-07-01 | AA35: 2021-07-01 | AB35: 2022-07-01 | AC35: 2023-07-01 | AD35: 2024-07-01 | AE35: 2025-07-01 | AF35: 2026-07-01 | AG35: 2027-07-01 | AH35: 2028-07-01 | AI35: 2029-07-01 | AJ35: 2030-07-01
A36: 36 | G36: 0 | H36: дата завершения отчетности модели | X36: 2031-06-30 | AA36: 2022-06-30 | AB36: 2023-06-30 | AC36: 2024-06-30 | AD36: 2025-06-30 | AE36: 2026-06-30 | AF36: 2027-06-30 | AG36: 2028-06-30 | AH36: 2029-06-30 | AI36: 2030-06-30 | AJ36: 2031-06-30
A37: 37 | G37: 0 | H37: названия периодов отчетности | AA37: 1 год | AB37: 2 год | AC37: 3 год | AD37: 4 год | AE37: 5 год | AF37: 6 год | AG37: 7 год | AH37: 8 год | AI37: 9 год | AJ37: 10 год
A38: 38
A39: 39
A40: 40
A41: 41
A42: 42 | H42: разработка финмоделей: https://mngmnt.ru/
A43: 43
A44: 44
A45: 45
A46: 46
A47: 47
A48: 48
A49: 49
A50: 50
A51: 51
A52: 52
A53: 53
A54: 54
A55: 55
A56: 56
A57: 57
A58: 58
A59: 59
A60: 60
A61: 61
A62: 62
A63: 63
A64: 64
A65: 65
A66: 66
A67: 67
A68: 68
A69: 69
A70: 70

Sheet Lists
I1: =COLUMN() -> 9 | M1: =COLUMN() -> 13 | Q1: =COLUMN() -> 17 | U1: =COLUMN() -> 21 | AB1: =COLUMN() -> 28 | AF1: =COLUMN() -> 32 | AI1: =COLUMN() -> 35 | AM1: =COLUMN() -> 39 | AQ1: =COLUMN() -> 43 | AU1: =COLUMN() -> 47 | AY1: =COLUMN() -> 51 | BC1: =COLUMN() -> 55 | BG1: =COLUMN() -> 59 | BK1: =COLUMN() -> 63 | BO1: =COLUMN() -> 67 | BS1: =COLUMN() -> 71 | BW1: =COLUMN() -> 75 | CA1: =COLUMN() -> 79 | CE1: =COLUMN() -> 83 | CI1: =COLUMN() -> 87 | CM1: =COLUMN() -> 91 | CQ1: =COLUMN() -> 95 | CU1: =COLUMN() -> 99
I2: =LEFT(ADDRESS(1,COLUMN(),4),LEN(ADDRESS(1,COLUMN(),4))-1) -> I | M2: =LEFT(ADDRESS(1,COLUMN(),4),LEN(ADDRESS(1,COLUMN(),4))-1) -> M | Q2: =LEFT(ADDRESS(1,COLUMN(),4),LEN(ADDRESS(1,COLUMN(),4))-1) -> Q | U2: =LEFT(ADDRESS(1,COLUMN(),4),LEN(ADDRESS(1,COLUMN(),4))-1) -> U | AB2: =LEFT(ADDRESS(1,COLUMN(),4),LEN(ADDRESS(1,COLUMN(),4))-1) -> AB | AF2: =LEFT(ADDRESS(1,COLUMN(),4),LEN(ADDRESS(1,COLUMN(),4))-1) -> AF | AI2: =LEFT(ADDRESS(1,COLUMN(),4),LEN(ADDRESS(1,COLUMN(),4))-1) -> AI | AM2: =LEFT(ADDRESS(1,COLUMN(),4),LEN(ADDRESS(1,COLUMN(),4))-1) -> AM | AQ2: =LEFT(ADDRESS(1,COLUMN(),4),LEN(ADDRESS(1,COLUMN(),4))-1) -> AQ | AU2: =LEFT(ADDRESS(1,COLUMN(),4),LEN(ADDRESS(1,COLUMN(),4))-1) -> AU | AY2: =LEFT(ADDRESS(1,COLUMN(),4),LEN(ADDRESS(1,COLUMN(),4))-1) -> AY | BC2: =LEFT(ADDRESS(1,COLUMN(),4),LEN(ADDRESS(1,COLUMN(),4))-1) -> BC | BG2: =LEFT(ADDRESS(1,COLUMN(),4),LEN(ADDRESS(1,COLUMN(),4))-1) -> BG | BK2: =LEFT(ADDRESS(1,COLUMN(),4),LEN(ADDRESS(1,COLUMN(),4))-1) -> BK | BO2: =LEFT(ADDRESS(1,COLUMN(),4),LEN(ADDRESS(1,COLUMN(),4))-1) -> BO | BS2: =LEFT(ADDRESS(1,COLUMN(),4),LEN(ADDRESS(1,COLUMN(),4))-1) -> BS | BW2: =LEFT(ADDRESS(1,COLUMN(),4),LEN(ADDRESS(1,COLUMN(),4))-1) -> BW | CA2: =LEFT(ADDRESS(1,COLUMN(),4),LEN(ADDRESS(1,COLUMN(),4))-1) -> CA | CE2: =LEFT(ADDRESS(1,COLUMN(),4),LEN(ADDRESS(1,COLUMN(),4))-1) -> CE | CI2: =LEFT(ADDRESS(1,COLUMN(),4),LEN(ADDRESS(1,COLUMN(),4))-1) -> CI | CM2: =LEFT(ADDRESS(1,COLUMN(),4),LEN(ADDRESS(1,COLUMN(),4))-1) -> CM | CQ2: =LEFT(ADDRESS(1,COLUMN(),4),LEN(ADDRESS(1,COLUMN(),4))-1) -> CQ | CU2: =LEFT(ADDRESS(1,COLUMN(),4),LEN(ADDRESS(1,COLUMN(),4))-1) -> CU
F11: =INDIRECT("START!I28") -> Lists | I11: =INDIRECT("START!K28") -> Выпадающие списки финансовой модели
AI12: =START!$I$32 -> Mrkting | AY12: =START!$I$32 -> Mrkting | BC12: =START!$I$32 -> Mrkting | BK12: =START!$I$34 -> Sales | BO12: =START!$I$35 -> Prdction | BS12: =START!$I$33 -> CapEx | BW12: =START!$I$33 -> CapEx | CA12: =START!$I$36 -> HR | CI12: =START!$I$36 -> HR | CM12: =START!$I$29 -> Macro | CQ12: =START!$I$29 -> Macro | CU12: =START!$I$54 -> Calc
I13: минимальный период расчетов | M13: ответ "да/нет" | Q13: период отчетности | U13: тип листа | AB13: тип прогрессии | AF13: кол-во дней в периоде | AI13: каналы привлечения клиентов | AM13: продукция | AQ13: дата старта | AU13: тип учета | AY13: натуральные факторы переменных расходов маркетинга | BC13: денежные факторы переменных расходов маркетинга | BG13: тип зависимости переменных расходов | BK13: типы деятельности сотрудников отдела продаж | BO13: типы деятельности производственных сотрудников | BS13: Ввод в эксплуатацию | BW13: Налоги на внеоборотные активы | CA13: Типы и должности персонала | CE13: Типы оплаты | CI13: Потребность в офисе | CM13: Система налогообложения | CQ13: Налоги и сборы | CU13: Метки расчетов
D14: =INDIRECT("Cntrl!M17") -> 0 | E14: =SUM($F14:$PH14) -> 0 | F14: =IFERROR(_xlfn.SHEET($A$1)-SUMIFS(Cntrl!O$15:O$100000,Cntrl!I$15:I$100000,$F$11),1) -> 0 | I14: =IF(OR(I13=0,I13=""),1,IF(COUNTIF(13:13,I13)=1,0,1)) -> 0 | K14: =SUM(K$15:K$100000) -> 0 | M14: =IF(OR(M13=0,M13=""),1,IF(COUNTIF(13:13,M13)=1,0,1)) -> 0 | O14: =SUM(O$15:O$100000) -> 0 | Q14: =IF(OR(Q13=0,Q13=""),1,IF(COUNTIF(13:13,Q13)=1,0,1)) -> 0 | S14: =SUM(S$15:S$100000) -> 0 | U14: =IF(OR(U13=0,U13=""),1,IF(COUNTIF(13:13,U13)=1,0,1)) -> 0 | W14: =SUM(W$15:W$100000) -> 0 | AD14: =SUM(AD$15:AD$100000) -> 0 | AF14: =IF(OR(AF13=0,AF13=""),1,IF(COUNTIF(13:13,AF13)=1,0,1)) -> 0 | AI14: =IF(OR(AI13=0,AI13=""),1,IF(COUNTIF(13:13,AI13)=1,0,1)) -> 0 | AK14: =SUM(AK$15:AK$100000) -> 0 | AM14: =IF(OR(AM13=0,AM13=""),1,IF(COUNTIF(13:13,AM13)=1,0,1)) -> 0 | AO14: =SUM(AO$15:AO$100000) -> 0 | AQ14: =IF(OR(AQ13=0,AQ13=""),1,IF(COUNTIF(13:13,AQ13)=1,0,1)) -> 0 | AS14: =SUM(AS$15:AS$100000) -> 0 | AU14: =IF(OR(AU13=0,AU13=""),1,IF(COUNTIF(13:13,AU13)=1,0,1)) -> 0 | AW14: =SUM(AW$15:AW$100000) -> 0 | AY14: =IF(OR(AY13=0,AY13=""),1,IF(COUNTIF(13:13,AY13)=1,0,1)) -> 0 | BA14: =SUM(BA$15:BA$100000) -> 0 | BC14: =IF(OR(BC13=0,BC13=""),1,IF(COUNTIF(13:13,BC13)=1,0,1)) -> 0 | BE14: =SUM(BE$15:BE$100000) -> 0 | BG14: =IF(OR(BG13=0,BG13=""),1,IF(COUNTIF(13:13,BG13)=1,0,1)) -> 0 | BI14: =SUM(BI$15:BI$100000) -> 0 | BK14: =IF(OR(BK13=0,BK13=""),1,IF(COUNTIF(13:13,BK13)=1,0,1)) -> 0 | BM14: =SUM(BM$15:BM$100000) -> 0 | BO14: =IF(OR(BO13=0,BO13=""),1,IF(COUNTIF(13:13,BO13)=1,0,1)) -> 0 | BQ14: =SUM(BQ$15:BQ$100000) -> 0 | BS14: =IF(OR(BS13=0,BS13=""),1,IF(COUNTIF(13:13,BS13)=1,0,1)) -> 0 | BU14: =SUM(BU$15:BU$100000) -> 0 | BW14: =IF(OR(BW13=0,BW13=""),1,IF(COUNTIF(13:13,BW13)=1,0,1)) -> 0 | BY14: =SUM(BY$15:BY$100000) -> 0 | CA14: =IF(OR(CA13=0,CA13=""),1,IF(COUNTIF(13:13,CA13)=1,0,1)) -> 0 | CC14: =SUM(CC$15:CC$100000) -> 0 | CE14: =IF(OR(CE13=0,CE13=""),1,IF(COUNTIF(13:13,CE13)=1,0,1)) -> 0 | CG14: =SUM(CG$15:CG$100000) -> 0 | CI14: =IF(OR(CI13=0,CI13=""),1,IF(COUNTIF(13:13,CI13)=1,0,1)) -> 0 | CK14: =SUM(CK$15:CK$100000) -> 0 | CM14: =IF(OR(CM13=0,CM13=""),1,IF(COUNTIF(13:13,CM13)=1,0,1)) -> 0 | CO14: =SUM(CO$15:CO$100000) -> 0 | CQ14: =IF(OR(CQ13=0,CQ13=""),1,IF(COUNTIF(13:13,CQ13)=1,0,1)) -> 0 | CS14: =SUM(CS$15:CS$100000) -> 0 | CU14: =IF(OR(CU13=0,CU13=""),1,IF(COUNTIF(13:13,CU13)=1,0,1)) -> 0 | CW14: =SUM(CW$15:CW$100000) -> 0
A15: =ROW() -> 15 | I15: =$F$11&"!"&I$2&$A16&":"&I$2&($A15+MAX(J$15:J$100000)) -> Lists!I16:I22 | M15: =$F$11&"!"&M$2&$A16&":"&M$2&($A15+MAX(N$15:N$100000)) -> Lists!M16:M17 | Q15: =$F$11&"!"&Q$2&$A16&":"&Q$2&($A15+MAX(R$15:R$100000)) -> Lists!Q16:Q18 | U15: =$F$11&"!"&U$2&$A16&":"&U$2&($A15+MAX(V$15:V$100000)) -> Lists!U16:U18 | AB15: =$F$11&"!"&AB$2&$A16&":"&AB$2&($A15+MAX(AC$15:AC$100000)) -> Lists!AB16:AB17 | AF15: =$F$11&"!"&AF$2&$A16&":"&AF$2&($A15+MAX(AG$15:AG$100000)) -> Lists!AF16:AF22 | AI15: =$F$11&"!"&AI$2&$A16&":"&AI$2&($A15+MAX(AJ$15:AJ$100000)) -> Lists!AI16:AI17 | AM15: =$F$11&"!"&AM$2&$A16&":"&AM$2&($A15+MAX(AN$15:AN$100000)) -> Lists!AM16:AM18 | AQ15: =$F$11&"!"&AQ$2&$A16&":"&AQ$2&($A15+MAX(AR$15:AR$100000)) -> Lists!AQ16:AQ135 | AU15: =$F$11&"!"&AU$2&$A16&":"&AU$2&($A15+MAX(AV$15:AV$100000)) -> Lists!AU16:AU20 | AY15: =$F$11&"!"&AY$2&$A16&":"&AY$2&($A15+MAX(AZ$15:AZ$100000)) -> Lists!AY16:AY19 | BC15: =$F$11&"!"&BC$2&$A16&":"&BC$2&($A15+MAX(BD$15:BD$100000)) -> Lists!BC16:BC17 | BG15: =$F$11&"!"&BG$2&$A16&":"&BG$2&($A15+MAX(BH$15:BH$100000)) -> Lists!BG16:BG17 | BK15: =$F$11&"!"&BK$2&$A16&":"&BK$2&($A15+MAX(BL$15:BL$100000)) -> Lists!BK16:BK18 | BO15: =$F$11&"!"&BO$2&$A16&":"&BO$2&($A15+MAX(BP$15:BP$100000)) -> Lists!BO16:BO18 | BS15: =$F$11&"!"&BS$2&$A16&":"&BS$2&($A15+MAX(BT$15:BT$100000)) -> Lists!BS16:BS18 | BW15: =$F$11&"!"&BW$2&$A16&":"&BW$2&($A15+MAX(BX$15:BX$100000)) -> Lists!BW16:BW18 | CA15: =$F$11&"!"&CA$2&$A16&":"&CA$2&($A15+MAX(CB$15:CB$100000)) -> Lists!CA16:CA25 | CE15: =$F$11&"!"&CE$2&$A16&":"&CE$2&($A15+MAX(CF$15:CF$100000)) -> Lists!CE16:CE18 | CI15: =$F$11&"!"&CI$2&$A16&":"&CI$2&($A15+MAX(CJ$15:CJ$100000)) -> Lists!CI16:CI17 | CM15: =$F$11&"!"&CM$2&$A16&":"&CM$2&($A15+MAX(CN$15:CN$100000)) -> Lists!CM16:CM19 | CQ15: =$F$11&"!"&CQ$2&$A16&":"&CQ$2&($A15+MAX(CR$15:CR$100000)) -> Lists!CQ16:CQ19 | CU15: =$F$11&"!"&CU$2&$A16&":"&CU$2&($A15+MAX(CV$15:CV$100000)) -> Lists!CU16:CU29
A16: =ROW() -> 16 | I16: день | J16: =MAX(J$15:J15)+1 -> 1 | K16: =IF(OR(I16=0,I16=""),0,IF(COUNTIF(I$15:I$100000,I16)=1,0,1)) -> 0 | M16: да | N16: =MAX(N$15:N15)+1 -> 1 | O16: =IF(OR(M16=0,M16=""),0,IF(COUNTIF(M$15:M$100000,M16)=1,0,1)) -> 0 | Q16: =IF(Periods!$Q$16=$I$16,$I17,IF(OR(Periods!$Q$16=$I$17,Periods!$Q$16=$I$18),$I19,IF(Periods!$Q$16=$I$19,$I20,IF(Periods!$Q$16=$I$20,$I21,IF(Periods!$Q$16=$I$21,$I22,""))))) -> квартал | R16: =IF(OR(Q16="",Q16=0),"",MAX(R$15:R15)+1) -> 1 | S16: =IF(OR(Q16=0,Q16=""),0,IF(COUNTIF(Q$15:Q$100000,Q16)=1,0,1)) -> 0 | U16: расчетный | V16: =MAX(V$15:V15)+1 -> 1 | W16: =IF(OR(U16=0,U16=""),0,IF(COUNTIF(U$15:U$100000,U16)=1,0,1)) -> 0 | AB16: линейная | AC16: =MAX(AC$15:AC15)+1 -> 1 | AD16: =IF(OR(AB16=0,AB16=""),0,IF(COUNTIF(AB$15:AB$100000,AB16)=1,0,1)) -> 0 | AF16: 1 | AG16: =MAX(AG$15:AG15)+1 -> 1 | AH16: =MAX(AH$15:AH15)+1 -> 1 | AI16: =IF(SUMIFS(Mrkting!$A:$A,Mrkting!$K:$K,AH16)=0,"",INDEX(Mrkting!$L:$L,SUMIFS(Mrkting!$A:$A,Mrkting!$K:$K,AH16))) -> Street - Уличный трафик вдоль салонов | AJ16: =IF(OR(AI16="",AI16=0),"",MAX(AJ$15:AJ15)+1) -> 1 | AK16: =IF(OR(AI16=0,AI16=""),0,IF(COUNTIF(AI$15:AI$100000,AI16)=1,0,1)) -> 0 | AL16: * | AM16: Очки | AN16: =MAX(AN$15:AN15)+1 -> 1 | AO16: =IF(OR(AM16=0,AM16=""),0,IF(COUNTIF(AM$15:AM$100000,AM16)=1,0,1)) -> 0 | AP16: =MAX(AP$15:AP15)+1 -> 1 | AQ16: =SUMIFS(Periods!$11:$11,Periods!$2:$2,AP16) -> 2021-07-01 | AR16: =IF(OR(AQ16="",AQ16=0),"",MAX(AR$15:AR15)+1) -> 1 | AS16: =IF(OR(AQ16=0,AQ16=""),0,IF(COUNTIF(AQ$15:AQ$100000,AQ16)=1,0,1)) -> 0 | AU16: начисление | AV16: =MAX(AV$15:AV15)+1 -> 1 | AW16: =IF(OR(AU16=0,AU16=""),0,IF(COUNTIF(AU$15:AU$100000,AU16)=1,0,1)) -> 0 | AY16: =Mrkting!$H$19 -> Поток запусков создания салонов оптики | AZ16: =MAX(AZ$15:AZ15)+1 -> 1 | BA16: =IF(OR(AY16=0,AY16=""),0,IF(COUNTIF(AY$15:AY$100000,AY16)=1,0,1)) -> 0 | BC16: =Mrkting!$H$97 -> Общий оборот (GMV) | BD16: =MAX(BD$15:BD15)+1 -> 1 | BE16: =IF(OR(BC16=0,BC16=""),0,IF(COUNTIF(BC$15:BC$100000,BC16)=1,0,1)) -> 0 | BG16: натуральные факторы | BH16: =MAX(BH$15:BH15)+1 -> 1 | BI16: =IF(OR(BG16=0,BG16=""),0,IF(COUNTIF(BG$15:BG$100000,BG16)=1,0,1)) -> 0 | BJ16: * | BK16: информирование об услугах | BL16: =MAX(BL$15:BL15)+1 -> 1 | BM16: =IF(OR(BK16=0,BK16=""),0,IF(COUNTIF(BK$15:BK$100000,BK16)=1,0,1)) -> 0 | BN16: * | BO16: Проверка зрения | BP16: =MAX(BP$15:BP15)+1 -> 1 | BQ16: =IF(OR(BO16=0,BO16=""),0,IF(COUNTIF(BO$15:BO$100000,BO16)=1,0,1)) -> 0 | BS16: в последний период всех капзатрат | BT16: =MAX(BT$15:BT15)+1 -> 1 | BU16: =IF(OR(BS16=0,BS16=""),0,IF(COUNTIF(BS$15:BS$100000,BS16)=1,0,1)) -> 0 | BW16: земельный налог | BX16: =MAX(BX$15:BX15)+1 -> 1 | BY16: =IF(OR(BW16=0,BW16=""),0,IF(COUNTIF(BW$15:BW$100000,BW16)=1,0,1)) -> 0 | CA16: Сотрудники маркетинга | CB16: =MAX(CB$15:CB15)+1 -> 1 | CC16: =IF(OR(CA16=0,CA16=""),0,IF(COUNTIF(CA$15:CA$100000,CA16)=1,0,1)) -> 0 | CE16: аванс-доплата | CF16: =MAX(CF$15:CF15)+1 -> 1 | CG16: =IF(OR(CE16=0,CE16=""),0,IF(COUNTIF(CE$15:CE$100000,CE16)=1,0,1)) -> 0 | CI16: нужен офис | CJ16: =MAX(CJ$15:CJ15)+1 -> 1 | CK16: =IF(OR(CI16=0,CI16=""),0,IF(COUNTIF(CI$15:CI$100000,CI16)=1,0,1)) -> 0 | CM16: ОСНО | CN16: =MAX(CN$15:CN15)+1 -> 1 | CO16: =IF(OR(CM16=0,CM16=""),0,IF(COUNTIF(CM$15:CM$100000,CM16)=1,0,1)) -> 0 | CQ16: НДС | CR16: =MAX(CR$15:CR15)+1 -> 1 | CS16: =IF(OR(CQ16=0,CQ16=""),0,IF(COUNTIF(CQ$15:CQ$100000,CQ16)=1,0,1)) -> 0 | CU16: ндс(+) | CV16: =MAX(CV$15:CV15)+1 -> 1 | CW16: =IF(OR(CU16=0,CU16=""),0,IF(COUNTIF(CU$15:CU$100000,CU16)=1,0,1)) -> 0
A17: =ROW() -> 17 | I17: неделя | J17: =MAX(J$15:J16)+1 -> 2 | K17: =IF(OR(I17=0,I17=""),0,IF(COUNTIF(I$15:I$100000,I17)=1,0,1)) -> 0 | M17: нет | N17: =MAX(N$15:N16)+1 -> 2 | O17: =IF(OR(M17=0,M17=""),0,IF(COUNTIF(M$15:M$100000,M17)=1,0,1)) -> 0 | Q17: =IF(Periods!$Q$16=$I$16,$I18,IF(OR(Periods!$Q$16=$I$17,Periods!$Q$16=$I$18),$I20,IF(Periods!$Q$16=$I$19,$I21,IF(Periods!$Q$16=$I$20,$I22,IF(Periods!$Q$16=$I$21,$I23,""))))) -> год текущий | R17: =IF(OR(Q17="",Q17=0),"",MAX(R$15:R16)+1) -> 2 | S17: =IF(OR(Q17=0,Q17=""),0,IF(COUNTIF(Q$15:Q$100000,Q17)=1,0,1)) -> 0 | U17: отчетный | V17: =MAX(V$15:V16)+1 -> 2 | W17: =IF(OR(U17=0,U17=""),0,IF(COUNTIF(U$15:U$100000,U17)=1,0,1)) -> 0 | AB17: геометрическая | AC17: =MAX(AC$15:AC16)+1 -> 2 | AD17: =IF(OR(AB17=0,AB17=""),0,IF(COUNTIF(AB$15:AB$100000,AB17)=1,0,1)) -> 0 | AF17: 7 | AG17: =MAX(AG$15:AG16)+1 -> 2 | AH17: =MAX(AH$15:AH16)+1 -> 2 | AI17: =IF(SUMIFS(Mrkting!$A:$A,Mrkting!$K:$K,AH17)=0,"",INDEX(Mrkting!$L:$L,SUMIFS(Mrkting!$A:$A,Mrkting!$K:$K,AH17))) -> ТЦ - Трафик вдоль салонов внутри ТЦ | AJ17: =IF(OR(AI17="",AI17=0),"",MAX(AJ$15:AJ16)+1) -> 2 | AK17: =IF(OR(AI17=0,AI17=""),0,IF(COUNTIF(AI$15:AI$100000,AI17)=1,0,1)) -> 0 | AL17: * | AM17: Профилактика | AN17: =MAX(AN$15:AN16)+1 -> 2 | AO17: =IF(OR(AM17=0,AM17=""),0,IF(COUNTIF(AM$15:AM$100000,AM17)=1,0,1)) -> 0 | AP17: =MAX(AP$15:AP16)+1 -> 2 | AQ17: =SUMIFS(Periods!$11:$11,Periods!$2:$2,AP17) -> 2021-08-01 | AR17: =IF(OR(AQ17="",AQ17=0),"",MAX(AR$15:AR16)+1) -> 2 | AS17: =IF(OR(AQ17=0,AQ17=""),0,IF(COUNTIF(AQ$15:AQ$100000,AQ17)=1,0,1)) -> 0 | AU17: учет | AV17: =MAX(AV$15:AV16)+1 -> 2 | AW17: =IF(OR(AU17=0,AU17=""),0,IF(COUNTIF(AU$15:AU$100000,AU17)=1,0,1)) -> 0 | AY17: =Mrkting!$H$65 -> Трафик | AZ17: =MAX(AZ$15:AZ16)+1 -> 2 | BA17: =IF(OR(AY17=0,AY17=""),0,IF(COUNTIF(AY$15:AY$100000,AY17)=1,0,1)) -> 0 | BC17: =Mrkting!$H$131 -> Общий оборот (GMV) с учетом скидок | BD17: =MAX(BD$15:BD16)+1 -> 2 | BE17: =IF(OR(BC17=0,BC17=""),0,IF(COUNTIF(BC$15:BC$100000,BC17)=1,0,1)) -> 0 | BG17: денежные факторы | BH17: =MAX(BH$15:BH16)+1 -> 2 | BI17: =IF(OR(BG17=0,BG17=""),0,IF(COUNTIF(BG$15:BG$100000,BG17)=1,0,1)) -> 0 | BJ17: * | BK17: информирование о ценах и условиях | BL17: =MAX(BL$15:BL16)+1 -> 2 | BM17: =IF(OR(BK17=0,BK17=""),0,IF(COUNTIF(BK$15:BK$100000,BK17)=1,0,1)) -> 0 | BN17: * | BO17: Консультирование по зрению | BP17: =MAX(BP$15:BP16)+1 -> 2 | BQ17: =IF(OR(BO17=0,BO17=""),0,IF(COUNTIF(BO$15:BO$100000,BO17)=1,0,1)) -> 0 | BS17: в последний период данной статьи | BT17: =MAX(BT$15:BT16)+1 -> 2 | BU17: =IF(OR(BS17=0,BS17=""),0,IF(COUNTIF(BS$15:BS$100000,BS17)=1,0,1)) -> 0 | BW17: транспортный налог | BX17: =MAX(BX$15:BX16)+1 -> 2 | BY17: =IF(OR(BW17=0,BW17=""),0,IF(COUNTIF(BW$15:BW$100000,BW17)=1,0,1)) -> 0 | CA17: Продавцы-консультанты | CB17: =MAX(CB$15:CB16)+1 -> 2 | CC17: =IF(OR(CA17=0,CA17=""),0,IF(COUNTIF(CA$15:CA$100000,CA17)=1,0,1)) -> 0 | CE17: аванс-платеж | CF17: =MAX(CF$15:CF16)+1 -> 2 | CG17: =IF(OR(CE17=0,CE17=""),0,IF(COUNTIF(CE$15:CE$100000,CE17)=1,0,1)) -> 0 | CI17: не нужен офис | CJ17: =MAX(CJ$15:CJ16)+1 -> 2 | CK17: =IF(OR(CI17=0,CI17=""),0,IF(COUNTIF(CI$15:CI$100000,CI17)=1,0,1)) -> 0 | CM17: УСН(6%) | CN17: =MAX(CN$15:CN16)+1 -> 2 | CO17: =IF(OR(CM17=0,CM17=""),0,IF(COUNTIF(CM$15:CM$100000,CM17)=1,0,1)) -> 0 | CQ17: Соцсборы | CR17: =MAX(CR$15:CR16)+1 -> 2 | CS17: =IF(OR(CQ17=0,CQ17=""),0,IF(COUNTIF(CQ$15:CQ$100000,CQ17)=1,0,1)) -> 0 | CU17: ндс(-) | CV17: =MAX(CV$15:CV16)+1 -> 2 | CW17: 0
A18: =ROW() -> 18 | I18: декада | J18: =MAX(J$15:J17)+1 -> 3 | K18: 0 | Q18: =IF(Periods!$Q$16=$I$16,$I19,IF(OR(Periods!$Q$16=$I$17,Periods!$Q$16=$I$18),$I21,IF(Periods!$Q$16=$I$19,$I22,IF(Periods!$Q$16=$I$20,$I23,IF(Periods!$Q$16=$I$21,$I24,""))))) -> год календ. | R18: =IF(OR(Q18="",Q18=0),"",MAX(R$15:R17)+1) -> 3 | S18: 0 | U18: технический | V18: =MAX(V$15:V17)+1 -> 3 | W18: =IF(OR(U18=0,U18=""),0,IF(COUNTIF(U$15:U$100000,U18)=1,0,1)) -> 0 | AF18: 10 | AG18: =MAX(AG$15:AG17)+1 -> 3 | AH18: =MAX(AH$15:AH17)+1 -> 3 | AI18: =IF(SUMIFS(Mrkting!$A:$A,Mrkting!$K:$K,AH18)=0,"",INDEX(Mrkting!$L:$L,SUMIFS(Mrkting!$A:$A,Mrkting!$K:$K,AH18))) ->  | AJ18: =IF(OR(AI18="",AI18=0),"",MAX(AJ$15:AJ17)+1) ->  | AK18: 0 | AL18: * | AM18: Аксессуары | AN18: =MAX(AN$15:AN17)+1 -> 3 | AO18: =IF(OR(AM18=0,AM18=""),0,IF(COUNTIF(AM$15:AM$100000,AM18)=1,0,1)) -> 0 | AP18: =MAX(AP$15:AP17)+1 -> 3 | AQ18: =SUMIFS(Periods!$11:$11,Periods!$2:$2,AP18) -> 2021-09-01 | AR18: =IF(OR(AQ18="",AQ18=0),"",MAX(AR$15:AR17)+1) -> 3 | AS18: 0 | AU18: оплата | AV18: =MAX(AV$15:AV17)+1 -> 3 | AW18: =IF(OR(AU18=0,AU18=""),0,IF(COUNTIF(AU$15:AU$100000,AU18)=1,0,1)) -> 0 | AY18: =Mrkting!$H$67 -> Конверсия в посетителя | AZ18: =MAX(AZ$15:AZ17)+1 -> 3 | BA18: =IF(OR(AY18=0,AY18=""),0,IF(COUNTIF(AY$15:AY$100000,AY18)=1,0,1)) -> 0 | BJ18: * | BK18: представительская деятельность | BL18: =MAX(BL$15:BL17)+1 -> 3 | BM18: =IF(OR(BK18=0,BK18=""),0,IF(COUNTIF(BK$15:BK$100000,BK18)=1,0,1)) -> 0 | BN18: * | BO18: Консультирование по очкам и оправам | BP18: =MAX(BP$15:BP17)+1 -> 3 | BQ18: =IF(OR(BO18=0,BO18=""),0,IF(COUNTIF(BO$15:BO$100000,BO18)=1,0,1)) -> 0 | BS18: в каждый период начисления | BT18: =MAX(BT$15:BT17)+1 -> 3 | BU18: =IF(OR(BS18=0,BS18=""),0,IF(COUNTIF(BS$15:BS$100000,BS18)=1,0,1)) -> 0 | BW18: налог на имущество организаций | BX18: =MAX(BX$15:BX17)+1 -> 3 | BY18: =IF(OR(BW18=0,BW18=""),0,IF(COUNTIF(BW$15:BW$100000,BW18)=1,0,1)) -> 0 | CA18: Врачи и медики-консультанты | CB18: =MAX(CB$15:CB17)+1 -> 3 | CC18: =IF(OR(CA18=0,CA18=""),0,IF(COUNTIF(CA$15:CA$100000,CA18)=1,0,1)) -> 0 | CE18: ретро-платеж | CF18: =MAX(CF$15:CF17)+1 -> 3 | CG18: =IF(OR(CE18=0,CE18=""),0,IF(COUNTIF(CE$15:CE$100000,CE18)=1,0,1)) -> 0 | CM18: УСН(15%) | CN18: =MAX(CN$15:CN17)+1 -> 3 | CO18: =IF(OR(CM18=0,CM18=""),0,IF(COUNTIF(CM$15:CM$100000,CM18)=1,0,1)) -> 0 | CQ18: Налог на прибыль | CR18: =MAX(CR$15:CR17)+1 -> 3 | CS18: =IF(OR(CQ18=0,CQ18=""),0,IF(COUNTIF(CQ$15:CQ$100000,CQ18)=1,0,1)) -> 0 | CU18: PL(+) | CV18: =MAX(CV$15:CV17)+1 -> 3 | CW18: 0
A19: =ROW() -> 19 | I19: месяц | J19: =MAX(J$15:J18)+1 -> 4 | K19: 0 | Q19: =IF(Periods!$Q$16=$I$16,$I20,IF(OR(Periods!$Q$16=$I$17,Periods!$Q$16=$I$18),$I22,IF(Periods!$Q$16=$I$19,$I23,IF(Periods!$Q$16=$I$20,$I24,IF(Periods!$Q$16=$I$21,$I25,""))))) -> 0 | R19: =IF(OR(Q19="",Q19=0),"",MAX(R$15:R18)+1) ->  | S19: 0 | AF19: 30 | AG19: =MAX(AG$15:AG18)+1 -> 4 | AH19: =MAX(AH$15:AH18)+1 -> 4 | AI19: =IF(SUMIFS(Mrkting!$A:$A,Mrkting!$K:$K,AH19)=0,"",INDEX(Mrkting!$L:$L,SUMIFS(Mrkting!$A:$A,Mrkting!$K:$K,AH19))) ->  | AJ19: =IF(OR(AI19="",AI19=0),"",MAX(AJ$15:AJ18)+1) ->  | AK19: 0 | AP19: =MAX(AP$15:AP18)+1 -> 4 | AQ19: =SUMIFS(Periods!$11:$11,Periods!$2:$2,AP19) -> 2021-10-01 | AR19: =IF(OR(AQ19="",AQ19=0),"",MAX(AR$15:AR18)+1) -> 4 | AS19: 0 | AU19: списание | AV19: =MAX(AV$15:AV18)+1 -> 4 | AW19: =IF(OR(AU19=0,AU19=""),0,IF(COUNTIF(AU$15:AU$100000,AU19)=1,0,1)) -> 0 | AY19: =Mrkting!$H$76 -> Валовый поток посетителей | AZ19: =MAX(AZ$15:AZ18)+1 -> 4 | BA19: =IF(OR(AY19=0,AY19=""),0,IF(COUNTIF(AY$15:AY$100000,AY19)=1,0,1)) -> 0 | BZ19: * | CA19: Управляющий | CB19: =MAX(CB$15:CB18)+1 -> 4 | CC19: =IF(OR(CA19=0,CA19=""),0,IF(COUNTIF(CA$15:CA$100000,CA19)=1,0,1)) -> 0 | CM19: ТОСЭР | CN19: =MAX(CN$15:CN18)+1 -> 4 | CO19: =IF(OR(CM19=0,CM19=""),0,IF(COUNTIF(CM$15:CM$100000,CM19)=1,0,1)) -> 0 | CQ19: ТОСЭР | CR19: =MAX(CR$15:CR18)+1 -> 4 | CS19: =IF(OR(CQ19=0,CQ19=""),0,IF(COUNTIF(CQ$15:CQ$100000,CQ19)=1,0,1)) -> 0 | CU19: PL(-) | CV19: =MAX(CV$15:CV18)+1 -> 4 | CW19: 0
A20: =ROW() -> 20 | I20: квартал | J20: =MAX(J$15:J19)+1 -> 5 | K20: 0 | Q20: =IF(Periods!$Q$16=$I$16,$I21,IF(OR(Periods!$Q$16=$I$17,Periods!$Q$16=$I$18),$I23,IF(Periods!$Q$16=$I$19,$I24,IF(Periods!$Q$16=$I$20,$I25,IF(Periods!$Q$16=$I$21,$I26,""))))) -> 0 | R20: =IF(OR(Q20="",Q20=0),"",MAX(R$15:R19)+1) ->  | S20: 0 | AF20: 90 | AG20: =MAX(AG$15:AG19)+1 -> 5 | AH20: =MAX(AH$15:AH19)+1 -> 5 | AI20: =IF(SUMIFS(Mrkting!$A:$A,Mrkting!$K:$K,AH20)=0,"",INDEX(Mrkting!$L:$L,SUMIFS(Mrkting!$A:$A,Mrkting!$K:$K,AH20))) ->  | AJ20: =IF(OR(AI20="",AI20=0),"",MAX(AJ$15:AJ19)+1) ->  | AK20: 0 | AP20: =MAX(AP$15:AP19)+1 -> 5 | AQ20: =SUMIFS(Periods!$11:$11,Periods!$2:$2,AP20) -> 2021-11-01 | AR20: =IF(OR(AQ20="",AQ20=0),"",MAX(AR$15:AR19)+1) -> 5 | AS20: 0 | AU20: калькуляция | AV20: =MAX(AV$15:AV19)+1 -> 5 | AW20: =IF(OR(AU20=0,AU20=""),0,IF(COUNTIF(AU$15:AU$100000,AU20)=1,0,1)) -> 0 | BZ20: * | CA20: Мастер | CB20: =MAX(CB$15:CB19)+1 -> 5 | CC20: 0 | CU20: PL | CV20: =MAX(CV$15:CV19)+1 -> 5 | CW20: 0
A21: =ROW() -> 21 | I21: год текущий | J21: =MAX(J$15:J20)+1 -> 6 | K21: 0 | Q21: =IF(Periods!$Q$16=$I$16,$I22,IF(OR(Periods!$Q$16=$I$17,Periods!$Q$16=$I$18),$I24,IF(Periods!$Q$16=$I$19,$I25,IF(Periods!$Q$16=$I$20,$I26,IF(Periods!$Q$16=$I$21,$I27,""))))) -> 0 | R21: =IF(OR(Q21="",Q21=0),"",MAX(R$15:R20)+1) ->  | S21: 0 | AF21: 360 | AG21: =MAX(AG$15:AG20)+1 -> 6 | AH21: =MAX(AH$15:AH20)+1 -> 6 | AI21: =IF(SUMIFS(Mrkting!$A:$A,Mrkting!$K:$K,AH21)=0,"",INDEX(Mrkting!$L:$L,SUMIFS(Mrkting!$A:$A,Mrkting!$K:$K,AH21))) ->  | AJ21: =IF(OR(AI21="",AI21=0),"",MAX(AJ$15:AJ20)+1) ->  | AK21: 0 | AP21: =MAX(AP$15:AP20)+1 -> 6 | AQ21: =SUMIFS(Periods!$11:$11,Periods!$2:$2,AP21) -> 2021-12-01 | AR21: =IF(OR(AQ21="",AQ21=0),"",MAX(AR$15:AR20)+1) -> 6 | AS21: 0 | BZ21: * | CA21: Главный бухгалтер | CB21: =MAX(CB$15:CB20)+1 -> 6 | CC21: 0 | CU21: CF(+) | CV21: =MAX(CV$15:CV20)+1 -> 6 | CW21: 0
A22: =ROW() -> 22 | I22: год календ. | J22: =MAX(J$15:J21)+1 -> 7 | K22: 0 | Q22: =IF(Periods!$Q$16=$I$16,$I23,IF(OR(Periods!$Q$16=$I$17,Periods!$Q$16=$I$18),$I25,IF(Periods!$Q$16=$I$19,$I26,IF(Periods!$Q$16=$I$20,$I27,IF(Periods!$Q$16=$I$21,$I28,""))))) -> 0 | R22: =IF(OR(Q22="",Q22=0),"",MAX(R$15:R21)+1) ->  | S22: 0 | AF22: 360 | AG22: =MAX(AG$15:AG21)+1 -> 7 | AH22: =MAX(AH$15:AH21)+1 -> 7 | AI22: =IF(SUMIFS(Mrkting!$A:$A,Mrkting!$K:$K,AH22)=0,"",INDEX(Mrkting!$L:$L,SUMIFS(Mrkting!$A:$A,Mrkting!$K:$K,AH22))) ->  | AJ22: =IF(OR(AI22="",AI22=0),"",MAX(AJ$15:AJ21)+1) ->  | AK22: 0 | AP22: =MAX(AP$15:AP21)+1 -> 7 | AQ22: =SUMIFS(Periods!$11:$11,Periods!$2:$2,AP22) -> 2022-01-01 | AR22: =IF(OR(AQ22="",AQ22=0),"",MAX(AR$15:AR21)+1) -> 7 | AS22: 0 | BZ22: * | CA22: ИТ-специалисты | CB22: =MAX(CB$15:CB21)+1 -> 7 | CC22: 0 | CU22: CF(-) | CV22: =MAX(CV$15:CV21)+1 -> 7 | CW22: 0
A23: =ROW() -> 23 | AH23: =MAX(AH$15:AH22)+1 -> 8 | AI23: =IF(SUMIFS(Mrkting!$A:$A,Mrkting!$K:$K,AH23)=0,"",INDEX(Mrkting!$L:$L,SUMIFS(Mrkting!$A:$A,Mrkting!$K:$K,AH23))) ->  | AJ23: =IF(OR(AI23="",AI23=0),"",MAX(AJ$15:AJ22)+1) ->  | AK23: =IF(OR(AI23=0,AI23=""),0,IF(COUNTIF(AI$15:AI$100000,AI23)=1,0,1)) -> 0 | AP23: =MAX(AP$15:AP22)+1 -> 8 | AQ23: =SUMIFS(Periods!$11:$11,Periods!$2:$2,AP23) -> 2022-02-01 | AR23: =IF(OR(AQ23="",AQ23=0),"",MAX(AR$15:AR22)+1) -> 8 | AS23: =IF(OR(AQ23=0,AQ23=""),0,IF(COUNTIF(AQ$15:AQ$100000,AQ23)=1,0,1)) -> 0 | BZ23: * | CA23: Финансовые менеджеры | CB23: =MAX(CB$15:CB22)+1 -> 8 | CC23: 0 | CU23: CF | CV23: =MAX(CV$15:CV22)+1 -> 8 | CW23: 0
A24: =ROW() -> 24 | AH24: =MAX(AH$15:AH23)+1 -> 9 | AI24: =IF(SUMIFS(Mrkting!$A:$A,Mrkting!$K:$K,AH24)=0,"",INDEX(Mrkting!$L:$L,SUMIFS(Mrkting!$A:$A,Mrkting!$K:$K,AH24))) ->  | AJ24: =IF(OR(AI24="",AI24=0),"",MAX(AJ$15:AJ23)+1) ->  | AK24: 0 | AP24: =MAX(AP$15:AP23)+1 -> 9 | AQ24: =SUMIFS(Periods!$11:$11,Periods!$2:$2,AP24) -> 2022-03-01 | AR24: =IF(OR(AQ24="",AQ24=0),"",MAX(AR$15:AR23)+1) -> 9 | AS24: 0 | BZ24: * | CA24: Бухгалтера | CB24: =MAX(CB$15:CB23)+1 -> 9 | CC24: 0 | CU24: BS | CV24: =MAX(CV$15:CV23)+1 -> 9 | CW24: 0
A25: =ROW() -> 25 | AH25: =MAX(AH$15:AH24)+1 -> 10 | AI25: =IF(SUMIFS(Mrkting!$A:$A,Mrkting!$K:$K,AH25)=0,"",INDEX(Mrkting!$L:$L,SUMIFS(Mrkting!$A:$A,Mrkting!$K:$K,AH25))) ->  | AJ25: =IF(OR(AI25="",AI25=0),"",MAX(AJ$15:AJ24)+1) ->  | AK25: 0 | AP25: =MAX(AP$15:AP24)+1 -> 10 | AQ25: =SUMIFS(Periods!$11:$11,Periods!$2:$2,AP25) -> 2022-04-01 | AR25: =IF(OR(AQ25="",AQ25=0),"",MAX(AR$15:AR24)+1) -> 10 | AS25: 0 | BZ25: * | CA25: Прочие сотрудники | CB25: =MAX(CB$15:CB24)+1 -> 10 | CC25: 0 | CU25: BS(+) | CV25: =MAX(CV$15:CV24)+1 -> 10 | CW25: 0
A26: =ROW() -> 26 | AH26: =MAX(AH$15:AH25)+1 -> 11 | AI26: =IF(SUMIFS(Mrkting!$A:$A,Mrkting!$K:$K,AH26)=0,"",INDEX(Mrkting!$L:$L,SUMIFS(Mrkting!$A:$A,Mrkting!$K:$K,AH26))) ->  | AJ26: =IF(OR(AI26="",AI26=0),"",MAX(AJ$15:AJ25)+1) ->  | AK26: 0 | AP26: =MAX(AP$15:AP25)+1 -> 11 | AQ26: =SUMIFS(Periods!$11:$11,Periods!$2:$2,AP26) -> 2022-05-01 | AR26: =IF(OR(AQ26="",AQ26=0),"",MAX(AR$15:AR25)+1) -> 11 | AS26: 0 | CU26: BS(-) | CV26: =MAX(CV$15:CV25)+1 -> 11 | CW26: 0
A27: =ROW() -> 27 | AH27: =MAX(AH$15:AH26)+1 -> 12 | AI27: =IF(SUMIFS(Mrkting!$A:$A,Mrkting!$K:$K,AH27)=0,"",INDEX(Mrkting!$L:$L,SUMIFS(Mrkting!$A:$A,Mrkting!$K:$K,AH27))) ->  | AJ27: =IF(OR(AI27="",AI27=0),"",MAX(AJ$15:AJ26)+1) ->  | AK27: 0 | AP27: =MAX(AP$15:AP26)+1 -> 12 | AQ27: =SUMIFS(Periods!$11:$11,Periods!$2:$2,AP27) -> 2022-06-01 | AR27: =IF(OR(AQ27="",AQ27=0),"",MAX(AR$15:AR26)+1) -> 12 | AS27: 0 | CU27: SF(+) | CV27: =MAX(CV$15:CV26)+1 -> 12 | CW27: 0
A28: =ROW() -> 28 | AH28: =MAX(AH$15:AH27)+1 -> 13 | AI28: =IF(SUMIFS(Mrkting!$A:$A,Mrkting!$K:$K,AH28)=0,"",INDEX(Mrkting!$L:$L,SUMIFS(Mrkting!$A:$A,Mrkting!$K:$K,AH28))) ->  | AJ28: =IF(OR(AI28="",AI28=0),"",MAX(AJ$15:AJ27)+1) ->  | AK28: 0 | AP28: =MAX(AP$15:AP27)+1 -> 13 | AQ28: =SUMIFS(Periods!$11:$11,Periods!$2:$2,AP28) -> 2022-07-01 | AR28: =IF(OR(AQ28="",AQ28=0),"",MAX(AR$15:AR27)+1) -> 13 | AS28: 0 | CU28: SF(-) | CV28: =MAX(CV$15:CV27)+1 -> 13 | CW28: 0
A29: =ROW() -> 29 | AH29: =MAX(AH$15:AH28)+1 -> 14 | AI29: =IF(SUMIFS(Mrkting!$A:$A,Mrkting!$K:$K,AH29)=0,"",INDEX(Mrkting!$L:$L,SUMIFS(Mrkting!$A:$A,Mrkting!$K:$K,AH29))) ->  | AJ29: =IF(OR(AI29="",AI29=0),"",MAX(AJ$15:AJ28)+1) ->  | AK29: =IF(OR(AI29=0,AI29=""),0,IF(COUNTIF(AI$15:AI$100000,AI29)=1,0,1)) -> 0 | AP29: =MAX(AP$15:AP28)+1 -> 14 | AQ29: =SUMIFS(Periods!$11:$11,Periods!$2:$2,AP29) -> 2022-08-01 | AR29: =IF(OR(AQ29="",AQ29=0),"",MAX(AR$15:AR28)+1) -> 14 | AS29: 0 | CU29: SF | CV29: =MAX(CV$15:CV28)+1 -> 14 | CW29: 0
A30: =ROW() -> 30 | AH30: =MAX(AH$15:AH29)+1 -> 15 | AI30: =IF(SUMIFS(Mrkting!$A:$A,Mrkting!$K:$K,AH30)=0,"",INDEX(Mrkting!$L:$L,SUMIFS(Mrkting!$A:$A,Mrkting!$K:$K,AH30))) ->  | AJ30: =IF(OR(AI30="",AI30=0),"",MAX(AJ$15:AJ29)+1) ->  | AK30: =IF(OR(AI30=0,AI30=""),0,IF(COUNTIF(AI$15:AI$100000,AI30)=1,0,1)) -> 0 | AP30: =MAX(AP$15:AP29)+1 -> 15 | AQ30: =SUMIFS(Periods!$11:$11,Periods!$2:$2,AP30) -> 2022-09-01 | AR30: =IF(OR(AQ30="",AQ30=0),"",MAX(AR$15:AR29)+1) -> 15 | AS30: 0
A31: =ROW() -> 31 | AP31: =MAX(AP$15:AP30)+1 -> 16 | AQ31: =SUMIFS(Periods!$11:$11,Periods!$2:$2,AP31) -> 2022-10-01 | AR31: =IF(OR(AQ31="",AQ31=0),"",MAX(AR$15:AR30)+1) -> 16 | AS31: =IF(OR(AQ31=0,AQ31=""),0,IF(COUNTIF(AQ$15:AQ$100000,AQ31)=1,0,1)) -> 0
A32: =ROW() -> 32 | AP32: =MAX(AP$15:AP31)+1 -> 17 | AQ32: =SUMIFS(Periods!$11:$11,Periods!$2:$2,AP32) -> 2022-11-01 | AR32: =IF(OR(AQ32="",AQ32=0),"",MAX(AR$15:AR31)+1) -> 17 | AS32: 0
A33: =ROW() -> 33 | AP33: =MAX(AP$15:AP32)+1 -> 18 | AQ33: =SUMIFS(Periods!$11:$11,Periods!$2:$2,AP33) -> 2022-12-01 | AR33: =IF(OR(AQ33="",AQ33=0),"",MAX(AR$15:AR32)+1) -> 18 | AS33: 0
A34: =ROW() -> 34 | AP34: =MAX(AP$15:AP33)+1 -> 19 | AQ34: =SUMIFS(Periods!$11:$11,Periods!$2:$2,AP34) -> 2023-01-01 | AR34: =IF(OR(AQ34="",AQ34=0),"",MAX(AR$15:AR33)+1) -> 19 | AS34: 0
A35: =ROW() -> 35 | AP35: =MAX(AP$15:AP34)+1 -> 20 | AQ35: =SUMIFS(Periods!$11:$11,Periods!$2:$2,AP35) -> 2023-02-01 | AR35: =IF(OR(AQ35="",AQ35=0),"",MAX(AR$15:AR34)+1) -> 20 | AS35: 0
A36: =ROW() -> 36 | AP36: =MAX(AP$15:AP35)+1 -> 21 | AQ36: =SUMIFS(Periods!$11:$11,Periods!$2:$2,AP36) -> 2023-03-01 | AR36: =IF(OR(AQ36="",AQ36=0),"",MAX(AR$15:AR35)+1) -> 21 | AS36: 0
A37: =ROW() -> 37 | AP37: =MAX(AP$15:AP36)+1 -> 22 | AQ37: =SUMIFS(Periods!$11:$11,Periods!$2:$2,AP37) -> 2023-04-01 | AR37: =IF(OR(AQ37="",AQ37=0),"",MAX(AR$15:AR36)+1) -> 22 | AS37: 0
A38: =ROW() -> 38 | AP38: =MAX(AP$15:AP37)+1 -> 23 | AQ38: =SUMIFS(Periods!$11:$11,Periods!$2:$2,AP38) -> 2023-05-01 | AR38: =IF(OR(AQ38="",AQ38=0),"",MAX(AR$15:AR37)+1) -> 23 | AS38: 0
A39: =ROW() -> 39 | AP39: =MAX(AP$15:AP38)+1 -> 24 | AQ39: =SUMIFS(Periods!$11:$11,Periods!$2:$2,AP39) -> 2023-06-01 | AR39: =IF(OR(AQ39="",AQ39=0),"",MAX(AR$15:AR38)+1) -> 24 | AS39: 0
A40: =ROW() -> 40 | AP40: =MAX(AP$15:AP39)+1 -> 25 | AQ40: =SUMIFS(Periods!$11:$11,Periods!$2:$2,AP40) -> 2023-07-01 | AR40: =IF(OR(AQ40="",AQ40=0),"",MAX(AR$15:AR39)+1) -> 25 | AS40: 0
A41: =ROW() -> 41 | AP41: =MAX(AP$15:AP40)+1 -> 26 | AQ41: =SUMIFS(Periods!$11:$11,Periods!$2:$2,AP41) -> 2023-08-01 | AR41: =IF(OR(AQ41="",AQ41=0),"",MAX(AR$15:AR40)+1) -> 26 | AS41: 0
A42: =ROW() -> 42 | AP42: =MAX(AP$15:AP41)+1 -> 27 | AQ42: =SUMIFS(Periods!$11:$11,Periods!$2:$2,AP42) -> 2023-09-01 | AR42: =IF(OR(AQ42="",AQ42=0),"",MAX(AR$15:AR41)+1) -> 27 | AS42: 0
A43: =ROW() -> 43 | I43: разработка финмоделей: https://mngmnt.ru/ | AP43: =MAX(AP$15:AP42)+1 -> 28 | AQ43: =SUMIFS(Periods!$11:$11,Periods!$2:$2,AP43) -> 2023-10-01 | AR43: =IF(OR(AQ43="",AQ43=0),"",MAX(AR$15:AR42)+1) -> 28 | AS43: 0
A44: =ROW() -> 44 | AP44: =MAX(AP$15:AP43)+1 -> 29 | AQ44: =SUMIFS(Periods!$11:$11,Periods!$2:$2,AP44) -> 2023-11-01 | AR44: =IF(OR(AQ44="",AQ44=0),"",MAX(AR$15:AR43)+1) -> 29 | AS44: 0
A45: =ROW() -> 45 | AP45: =MAX(AP$15:AP44)+1 -> 30 | AQ45: =SUMIFS(Periods!$11:$11,Periods!$2:$2,AP45) -> 2023-12-01 | AR45: =IF(OR(AQ45="",AQ45=0),"",MAX(AR$15:AR44)+1) -> 30 | AS45: 0
A46: =ROW() -> 46 | AP46: =MAX(AP$15:AP45)+1 -> 31 | AQ46: =SUMIFS(Periods!$11:$11,Periods!$2:$2,AP46) -> 2024-01-01 | AR46: =IF(OR(AQ46="",AQ46=0),"",MAX(AR$15:AR45)+1) -> 31 | AS46: 0
A47: =ROW() -> 47 | AP47: =MAX(AP$15:AP46)+1 -> 32 | AQ47: =SUMIFS(Periods!$11:$11,Periods!$2:$2,AP47) -> 2024-02-01 | AR47: =IF(OR(AQ47="",AQ47=0),"",MAX(AR$15:AR46)+1) -> 32 | AS47: 0
A48: =ROW() -> 48 | AP48: =MAX(AP$15:AP47)+1 -> 33 | AQ48: =SUMIFS(Periods!$11:$11,Periods!$2:$2,AP48) -> 2024-03-01 | AR48: =IF(OR(AQ48="",AQ48=0),"",MAX(AR$15:AR47)+1) -> 33 | AS48: 0
A49: =ROW() -> 49 | AP49: =MAX(AP$15:AP48)+1 -> 34 | AQ49: =SUMIFS(Periods!$11:$11,Periods!$2:$2,AP49) -> 2024-04-01 | AR49: =IF(OR(AQ49="",AQ49=0),"",MAX(AR$15:AR48)+1) -> 34 | AS49: 0
A50: =ROW() -> 50 | AP50: =MAX(AP$15:AP49)+1 -> 35 | AQ50: =SUMIFS(Periods!$11:$11,Periods!$2:$2,AP50) -> 2024-05-01 | AR50: =IF(OR(AQ50="",AQ50=0),"",MAX(AR$15:AR49)+1) -> 35 | AS50: 0
A51: =ROW() -> 51 | AP51: =MAX(AP$15:AP50)+1 -> 36 | AQ51: =SUMIFS(Periods!$11:$11,Periods!$2:$2,AP51) -> 2024-06-01 | AR51: =IF(OR(AQ51="",AQ51=0),"",MAX(AR$15:AR50)+1) -> 36 | AS51: 0
A52: =ROW() -> 52 | AP52: =MAX(AP$15:AP51)+1 -> 37 | AQ52: =SUMIFS(Periods!$11:$11,Periods!$2:$2,AP52) -> 2024-07-01 | AR52: =IF(OR(AQ52="",AQ52=0),"",MAX(AR$15:AR51)+1) -> 37 | AS52: 0
A53: =ROW() -> 53 | AP53: =MAX(AP$15:AP52)+1 -> 38 | AQ53: =SUMIFS(Periods!$11:$11,Periods!$2:$2,AP53) -> 2024-08-01 | AR53: =IF(OR(AQ53="",AQ53=0),"",MAX(AR$15:AR52)+1) -> 38 | AS53: 0
A54: =ROW() -> 54 | AP54: =MAX(AP$15:AP53)+1 -> 39 | AQ54: =SUMIFS(Periods!$11:$11,Periods!$2:$2,AP54) -> 2024-09-01 | AR54: =IF(OR(AQ54="",AQ54=0),"",MAX(AR$15:AR53)+1) -> 39 | AS54: 0
A55: =ROW() -> 55 | AP55: =MAX(AP$15:AP54)+1 -> 40 | AQ55: =SUMIFS(Periods!$11:$11,Periods!$2:$2,AP55) -> 2024-10-01 | AR55: =IF(OR(AQ55="",AQ55=0),"",MAX(AR$15:AR54)+1) -> 40 | AS55: 0
A56: =ROW() -> 56 | AP56: =MAX(AP$15:AP55)+1 -> 41 | AQ56: =SUMIFS(Periods!$11:$11,Periods!$2:$2,AP56) -> 2024-11-01 | AR56: =IF(OR(AQ56="",AQ56=0),"",MAX(AR$15:AR55)+1) -> 41 | AS56: 0
A57: =ROW() -> 57 | AP57: =MAX(AP$15:AP56)+1 -> 42 | AQ57: =SUMIFS(Periods!$11:$11,Periods!$2:$2,AP57) -> 2024-12-01 | AR57: =IF(OR(AQ57="",AQ57=0),"",MAX(AR$15:AR56)+1) -> 42 | AS57: 0
A58: =ROW() -> 58 | AP58: =MAX(AP$15:AP57)+1 -> 43 | AQ58: =SUMIFS(Periods!$11:$11,Periods!$2:$2,AP58) -> 2025-01-01 | AR58: =IF(OR(AQ58="",AQ58=0),"",MAX(AR$15:AR57)+1) -> 43 | AS58: 0
A59: =ROW() -> 59 | AP59: =MAX(AP$15:AP58)+1 -> 44 | AQ59: =SUMIFS(Periods!$11:$11,Periods!$2:$2,AP59) -> 2025-02-01 | AR59: =IF(OR(AQ59="",AQ59=0),"",MAX(AR$15:AR58)+1) -> 44 | AS59: 0
A60: =ROW() -> 60 | AP60: =MAX(AP$15:AP59)+1 -> 45 | AQ60: =SUMIFS(Periods!$11:$11,Periods!$2:$2,AP60) -> 2025-03-01 | AR60: =IF(OR(AQ60="",AQ60=0),"",MAX(AR$15:AR59)+1) -> 45 | AS60: 0
A61: =ROW() -> 61 | AP61: =MAX(AP$15:AP60)+1 -> 46 | AQ61: =SUMIFS(Periods!$11:$11,Periods!$2:$2,AP61) -> 2025-04-01 | AR61: =IF(OR(AQ61="",AQ61=0),"",MAX(AR$15:AR60)+1) -> 46 | AS61: 0
A62: =ROW() -> 62 | AP62: =MAX(AP$15:AP61)+1 -> 47 | AQ62: =SUMIFS(Periods!$11:$11,Periods!$2:$2,AP62) -> 2025-05-01 | AR62: =IF(OR(AQ62="",AQ62=0),"",MAX(AR$15:AR61)+1) -> 47 | AS62: 0
A63: =ROW() -> 63 | AP63: =MAX(AP$15:AP62)+1 -> 48 | AQ63: =SUMIFS(Periods!$11:$11,Periods!$2:$2,AP63) -> 2025-06-01 | AR63: =IF(OR(AQ63="",AQ63=0),"",MAX(AR$15:AR62)+1) -> 48 | AS63: 0
A64: =ROW() -> 64 | AP64: =MAX(AP$15:AP63)+1 -> 49 | AQ64: =SUMIFS(Periods!$11:$11,Periods!$2:$2,AP64) -> 2025-07-01 | AR64: =IF(OR(AQ64="",AQ64=0),"",MAX(AR$15:AR63)+1) -> 49 | AS64: 0
A65: =ROW() -> 65 | AP65: =MAX(AP$15:AP64)+1 -> 50 | AQ65: =SUMIFS(Periods!$11:$11,Periods!$2:$2,AP65) -> 2025-08-01 | AR65: =IF(OR(AQ65="",AQ65=0),"",MAX(AR$15:AR64)+1) -> 50 | AS65: 0
A66: =ROW() -> 66 | AP66: =MAX(AP$15:AP65)+1 -> 51 | AQ66: =SUMIFS(Periods!$11:$11,Periods!$2:$2,AP66) -> 2025-09-01 | AR66: =IF(OR(AQ66="",AQ66=0),"",MAX(AR$15:AR65)+1) -> 51 | AS66: 0
A67: =ROW() -> 67 | AP67: =MAX(AP$15:AP66)+1 -> 52 | AQ67: =SUMIFS(Periods!$11:$11,Periods!$2:$2,AP67) -> 2025-10-01 | AR67: =IF(OR(AQ67="",AQ67=0),"",MAX(AR$15:AR66)+1) -> 52 | AS67: 0
A68: =ROW() -> 68 | AP68: =MAX(AP$15:AP67)+1 -> 53 | AQ68: =SUMIFS(Periods!$11:$11,Periods!$2:$2,AP68) -> 2025-11-01 | AR68: =IF(OR(AQ68="",AQ68=0),"",MAX(AR$15:AR67)+1) -> 53 | AS68: 0
A69: =ROW() -> 69 | AP69: =MAX(AP$15:AP68)+1 -> 54 | AQ69: =SUMIFS(Periods!$11:$11,Periods!$2:$2,AP69) -> 2025-12-01 | AR69: =IF(OR(AQ69="",AQ69=0),"",MAX(AR$15:AR68)+1) -> 54 | AS69: 0
A70: =ROW() -> 70 | AP70: =MAX(AP$15:AP69)+1 -> 55 | AQ70: =SUMIFS(Periods!$11:$11,Periods!$2:$2,AP70) -> 2026-01-01 | AR70: =IF(OR(AQ70="",AQ70=0),"",MAX(AR$15:AR69)+1) -> 55 | AS70: 0
AP71: =MAX(AP$15:AP70)+1 -> 56 | AQ71: =SUMIFS(Periods!$11:$11,Periods!$2:$2,AP71) -> 2026-02-01 | AR71: =IF(OR(AQ71="",AQ71=0),"",MAX(AR$15:AR70)+1) -> 56 | AS71: 0
AP72: =MAX(AP$15:AP71)+1 -> 57 | AQ72: =SUMIFS(Periods!$11:$11,Periods!$2:$2,AP72) -> 2026-03-01 | AR72: =IF(OR(AQ72="",AQ72=0),"",MAX(AR$15:AR71)+1) -> 57 | AS72: 0
AP73: =MAX(AP$15:AP72)+1 -> 58 | AQ73: =SUMIFS(Periods!$11:$11,Periods!$2:$2,AP73) -> 2026-04-01 | AR73: =IF(OR(AQ73="",AQ73=0),"",MAX(AR$15:AR72)+1) -> 58 | AS73: 0
AP74: =MAX(AP$15:AP73)+1 -> 59 | AQ74: =SUMIFS(Periods!$11:$11,Periods!$2:$2,AP74) -> 2026-05-01 | AR74: =IF(OR(AQ74="",AQ74=0),"",MAX(AR$15:AR73)+1) -> 59 | AS74: 0
AP75: =MAX(AP$15:AP74)+1 -> 60 | AQ75: =SUMIFS(Periods!$11:$11,Periods!$2:$2,AP75) -> 2026-06-01 | AR75: =IF(OR(AQ75="",AQ75=0),"",MAX(AR$15:AR74)+1) -> 60 | AS75: 0
AP76: =MAX(AP$15:AP75)+1 -> 61 | AQ76: =SUMIFS(Periods!$11:$11,Periods!$2:$2,AP76) -> 2026-07-01 | AR76: =IF(OR(AQ76="",AQ76=0),"",MAX(AR$15:AR75)+1) -> 61 | AS76: 0
AP77: =MAX(AP$15:AP76)+1 -> 62 | AQ77: =SUMIFS(Periods!$11:$11,Periods!$2:$2,AP77) -> 2026-08-01 | AR77: =IF(OR(AQ77="",AQ77=0),"",MAX(AR$15:AR76)+1) -> 62 | AS77: 0
AP78: =MAX(AP$15:AP77)+1 -> 63 | AQ78: =SUMIFS(Periods!$11:$11,Periods!$2:$2,AP78) -> 2026-09-01 | AR78: =IF(OR(AQ78="",AQ78=0),"",MAX(AR$15:AR77)+1) -> 63 | AS78: 0
AP79: =MAX(AP$15:AP78)+1 -> 64 | AQ79: =SUMIFS(Periods!$11:$11,Periods!$2:$2,AP79) -> 2026-10-01 | AR79: =IF(OR(AQ79="",AQ79=0),"",MAX(AR$15:AR78)+1) -> 64 | AS79: 0
AP80: =MAX(AP$15:AP79)+1 -> 65 | AQ80: =SUMIFS(Periods!$11:$11,Periods!$2:$2,AP80) -> 2026-11-01 | AR80: =IF(OR(AQ80="",AQ80=0),"",MAX(AR$15:AR79)+1) -> 65 | AS80: 0
AP81: =MAX(AP$15:AP80)+1 -> 66 | AQ81: =SUMIFS(Periods!$11:$11,Periods!$2:$2,AP81) -> 2026-12-01 | AR81: =IF(OR(AQ81="",AQ81=0),"",MAX(AR$15:AR80)+1) -> 66 | AS81: 0
AP82: =MAX(AP$15:AP81)+1 -> 67 | AQ82: =SUMIFS(Periods!$11:$11,Periods!$2:$2,AP82) -> 2027-01-01 | AR82: =IF(OR(AQ82="",AQ82=0),"",MAX(AR$15:AR81)+1) -> 67 | AS82: 0
AP83: =MAX(AP$15:AP82)+1 -> 68 | AQ83: =SUMIFS(Periods!$11:$11,Periods!$2:$2,AP83) -> 2027-02-01 | AR83: =IF(OR(AQ83="",AQ83=0),"",MAX(AR$15:AR82)+1) -> 68 | AS83: 0
AP84: =MAX(AP$15:AP83)+1 -> 69 | AQ84: =SUMIFS(Periods!$11:$11,Periods!$2:$2,AP84) -> 2027-03-01 | AR84: =IF(OR(AQ84="",AQ84=0),"",MAX(AR$15:AR83)+1) -> 69 | AS84: 0
AP85: =MAX(AP$15:AP84)+1 -> 70 | AQ85: =SUMIFS(Periods!$11:$11,Periods!$2:$2,AP85) -> 2027-04-01 | AR85: =IF(OR(AQ85="",AQ85=0),"",MAX(AR$15:AR84)+1) -> 70 | AS85: 0
AP86: =MAX(AP$15:AP85)+1 -> 71 | AQ86: =SUMIFS(Periods!$11:$11,Periods!$2:$2,AP86) -> 2027-05-01 | AR86: =IF(OR(AQ86="",AQ86=0),"",MAX(AR$15:AR85)+1) -> 71 | AS86: 0
AP87: =MAX(AP$15:AP86)+1 -> 72 | AQ87: =SUMIFS(Periods!$11:$11,Periods!$2:$2,AP87) -> 2027-06-01 | AR87: =IF(OR(AQ87="",AQ87=0),"",MAX(AR$15:AR86)+1) -> 72 | AS87: 0
AP88: =MAX(AP$15:AP87)+1 -> 73 | AQ88: =SUMIFS(Periods!$11:$11,Periods!$2:$2,AP88) -> 2027-07-01 | AR88: =IF(OR(AQ88="",AQ88=0),"",MAX(AR$15:AR87)+1) -> 73 | AS88: 0
AP89: =MAX(AP$15:AP88)+1 -> 74 | AQ89: =SUMIFS(Periods!$11:$11,Periods!$2:$2,AP89) -> 2027-08-01 | AR89: =IF(OR(AQ89="",AQ89=0),"",MAX(AR$15:AR88)+1) -> 74 | AS89: 0
AP90: =MAX(AP$15:AP89)+1 -> 75 | AQ90: =SUMIFS(Periods!$11:$11,Periods!$2:$2,AP90) -> 2027-09-01 | AR90: =IF(OR(AQ90="",AQ90=0),"",MAX(AR$15:AR89)+1) -> 75 | AS90: 0
AP91: =MAX(AP$15:AP90)+1 -> 76 | AQ91: =SUMIFS(Periods!$11:$11,Periods!$2:$2,AP91) -> 2027-10-01 | AR91: =IF(OR(AQ91="",AQ91=0),"",MAX(AR$15:AR90)+1) -> 76 | AS91: 0
AP92: =MAX(AP$15:AP91)+1 -> 77 | AQ92: =SUMIFS(Periods!$11:$11,Periods!$2:$2,AP92) -> 2027-11-01 | AR92: =IF(OR(AQ92="",AQ92=0),"",MAX(AR$15:AR91)+1) -> 77 | AS92: 0
AP93: =MAX(AP$15:AP92)+1 -> 78 | AQ93: =SUMIFS(Periods!$11:$11,Periods!$2:$2,AP93) -> 2027-12-01 | AR93: =IF(OR(AQ93="",AQ93=0),"",MAX(AR$15:AR92)+1) -> 78 | AS93: 0
AP94: =MAX(AP$15:AP93)+1 -> 79 | AQ94: =SUMIFS(Periods!$11:$11,Periods!$2:$2,AP94) -> 2028-01-01 | AR94: =IF(OR(AQ94="",AQ94=0),"",MAX(AR$15:AR93)+1) -> 79 | AS94: 0
AP95: =MAX(AP$15:AP94)+1 -> 80 | AQ95: =SUMIFS(Periods!$11:$11,Periods!$2:$2,AP95) -> 2028-02-01 | AR95: =IF(OR(AQ95="",AQ95=0),"",MAX(AR$15:AR94)+1) -> 80 | AS95: =IF(OR(AQ95=0,AQ95=""),0,IF(COUNTIF(AQ$15:AQ$100000,AQ95)=1,0,1)) -> 0
AP96: =MAX(AP$15:AP95)+1 -> 81 | AQ96: =SUMIFS(Periods!$11:$11,Periods!$2:$2,AP96) -> 2028-03-01 | AR96: =IF(OR(AQ96="",AQ96=0),"",MAX(AR$15:AR95)+1) -> 81 | AS96: 0
AP97: =MAX(AP$15:AP96)+1 -> 82 | AQ97: =SUMIFS(Periods!$11:$11,Periods!$2:$2,AP97) -> 2028-04-01 | AR97: =IF(OR(AQ97="",AQ97=0),"",MAX(AR$15:AR96)+1) -> 82 | AS97: 0
AP98: =MAX(AP$15:AP97)+1 -> 83 | AQ98: =SUMIFS(Periods!$11:$11,Periods!$2:$2,AP98) -> 2028-05-01 | AR98: =IF(OR(AQ98="",AQ98=0),"",MAX(AR$15:AR97)+1) -> 83 | AS98: 0
AP99: =MAX(AP$15:AP98)+1 -> 84 | AQ99: =SUMIFS(Periods!$11:$11,Periods!$2:$2,AP99) -> 2028-06-01 | AR99: =IF(OR(AQ99="",AQ99=0),"",MAX(AR$15:AR98)+1) -> 84 | AS99: 0
AP100: =MAX(AP$15:AP99)+1 -> 85 | AQ100: =SUMIFS(Periods!$11:$11,Periods!$2:$2,AP100) -> 2028-07-01 | AR100: =IF(OR(AQ100="",AQ100=0),"",MAX(AR$15:AR99)+1) -> 85 | AS100: 0
AP101: =MAX(AP$15:AP100)+1 -> 86 | AQ101: =SUMIFS(Periods!$11:$11,Periods!$2:$2,AP101) -> 2028-08-01 | AR101: =IF(OR(AQ101="",AQ101=0),"",MAX(AR$15:AR100)+1) -> 86 | AS101: 0
AP102: =MAX(AP$15:AP101)+1 -> 87 | AQ102: =SUMIFS(Periods!$11:$11,Periods!$2:$2,AP102) -> 2028-09-01 | AR102: =IF(OR(AQ102="",AQ102=0),"",MAX(AR$15:AR101)+1) -> 87 | AS102: 0
AP103: =MAX(AP$15:AP102)+1 -> 88 | AQ103: =SUMIFS(Periods!$11:$11,Periods!$2:$2,AP103) -> 2028-10-01 | AR103: =IF(OR(AQ103="",AQ103=0),"",MAX(AR$15:AR102)+1) -> 88 | AS103: 0
AP104: =MAX(AP$15:AP103)+1 -> 89 | AQ104: =SUMIFS(Periods!$11:$11,Periods!$2:$2,AP104) -> 2028-11-01 | AR104: =IF(OR(AQ104="",AQ104=0),"",MAX(AR$15:AR103)+1) -> 89 | AS104: 0
AP105: =MAX(AP$15:AP104)+1 -> 90 | AQ105: =SUMIFS(Periods!$11:$11,Periods!$2:$2,AP105) -> 2028-12-01 | AR105: =IF(OR(AQ105="",AQ105=0),"",MAX(AR$15:AR104)+1) -> 90 | AS105: 0
AP106: =MAX(AP$15:AP105)+1 -> 91 | AQ106: =SUMIFS(Periods!$11:$11,Periods!$2:$2,AP106) -> 2029-01-01 | AR106: =IF(OR(AQ106="",AQ106=0),"",MAX(AR$15:AR105)+1) -> 91 | AS106: 0
AP107: =MAX(AP$15:AP106)+1 -> 92 | AQ107: =SUMIFS(Periods!$11:$11,Periods!$2:$2,AP107) -> 2029-02-01 | AR107: =IF(OR(AQ107="",AQ107=0),"",MAX(AR$15:AR106)+1) -> 92 | AS107: 0
AP108: =MAX(AP$15:AP107)+1 -> 93 | AQ108: =SUMIFS(Periods!$11:$11,Periods!$2:$2,AP108) -> 2029-03-01 | AR108: =IF(OR(AQ108="",AQ108=0),"",MAX(AR$15:AR107)+1) -> 93 | AS108: 0
AP109: =MAX(AP$15:AP108)+1 -> 94 | AQ109: =SUMIFS(Periods!$11:$11,Periods!$2:$2,AP109) -> 2029-04-01 | AR109: =IF(OR(AQ109="",AQ109=0),"",MAX(AR$15:AR108)+1) -> 94 | AS109: 0
AP110: =MAX(AP$15:AP109)+1 -> 95 | AQ110: =SUMIFS(Periods!$11:$11,Periods!$2:$2,AP110) -> 2029-05-01 | AR110: =IF(OR(AQ110="",AQ110=0),"",MAX(AR$15:AR109)+1) -> 95 | AS110: 0
AP111: =MAX(AP$15:AP110)+1 -> 96 | AQ111: =SUMIFS(Periods!$11:$11,Periods!$2:$2,AP111) -> 2029-06-01 | AR111: =IF(OR(AQ111="",AQ111=0),"",MAX(AR$15:AR110)+1) -> 96 | AS111: 0
AP112: =MAX(AP$15:AP111)+1 -> 97 | AQ112: =SUMIFS(Periods!$11:$11,Periods!$2:$2,AP112) -> 2029-07-01 | AR112: =IF(OR(AQ112="",AQ112=0),"",MAX(AR$15:AR111)+1) -> 97 | AS112: 0
AP113: =MAX(AP$15:AP112)+1 -> 98 | AQ113: =SUMIFS(Periods!$11:$11,Periods!$2:$2,AP113) -> 2029-08-01 | AR113: =IF(OR(AQ113="",AQ113=0),"",MAX(AR$15:AR112)+1) -> 98 | AS113: 0
AP114: =MAX(AP$15:AP113)+1 -> 99 | AQ114: =SUMIFS(Periods!$11:$11,Periods!$2:$2,AP114) -> 2029-09-01 | AR114: =IF(OR(AQ114="",AQ114=0),"",MAX(AR$15:AR113)+1) -> 99 | AS114: 0
AP115: =MAX(AP$15:AP114)+1 -> 100 | AQ115: =SUMIFS(Periods!$11:$11,Periods!$2:$2,AP115) -> 2029-10-01 | AR115: =IF(OR(AQ115="",AQ115=0),"",MAX(AR$15:AR114)+1) -> 100 | AS115: 0
AP116: =MAX(AP$15:AP115)+1 -> 101 | AQ116: =SUMIFS(Periods!$11:$11,Periods!$2:$2,AP116) -> 2029-11-01 | AR116: =IF(OR(AQ116="",AQ116=0),"",MAX(AR$15:AR115)+1) -> 101 | AS116: 0
AP117: =MAX(AP$15:AP116)+1 -> 102 | AQ117: =SUMIFS(Periods!$11:$11,Periods!$2:$2,AP117) -> 2029-12-01 | AR117: =IF(OR(AQ117="",AQ117=0),"",MAX(AR$15:AR116)+1) -> 102 | AS117: 0
AP118: =MAX(AP$15:AP117)+1 -> 103 | AQ118: =SUMIFS(Periods!$11:$11,Periods!$2:$2,AP118) -> 2030-01-01 | AR118: =IF(OR(AQ118="",AQ118=0),"",MAX(AR$15:AR117)+1) -> 103 | AS118: 0
AP119: =MAX(AP$15:AP118)+1 -> 104 | AQ119: =SUMIFS(Periods!$11:$11,Periods!$2:$2,AP119) -> 2030-02-01 | AR119: =IF(OR(AQ119="",AQ119=0),"",MAX(AR$15:AR118)+1) -> 104 | AS119: 0
AP120: =MAX(AP$15:AP119)+1 -> 105 | AQ120: =SUMIFS(Periods!$11:$11,Periods!$2:$2,AP120) -> 2030-03-01 | AR120: =IF(OR(AQ120="",AQ120=0),"",MAX(AR$15:AR119)+1) -> 105 | AS120: 0
AP121: =MAX(AP$15:AP120)+1 -> 106 | AQ121: =SUMIFS(Periods!$11:$11,Periods!$2:$2,AP121) -> 2030-04-01 | AR121: =IF(OR(AQ121="",AQ121=0),"",MAX(AR$15:AR120)+1) -> 106 | AS121: 0
AP122: =MAX(AP$15:AP121)+1 -> 107 | AQ122: =SUMIFS(Periods!$11:$11,Periods!$2:$2,AP122) -> 2030-05-01 | AR122: =IF(OR(AQ122="",AQ122=0),"",MAX(AR$15:AR121)+1) -> 107 | AS122: 0
AP123: =MAX(AP$15:AP122)+1 -> 108 | AQ123: =SUMIFS(Periods!$11:$11,Periods!$2:$2,AP123) -> 2030-06-01 | AR123: =IF(OR(AQ123="",AQ123=0),"",MAX(AR$15:AR122)+1) -> 108 | AS123: 0
AP124: =MAX(AP$15:AP123)+1 -> 109 | AQ124: =SUMIFS(Periods!$11:$11,Periods!$2:$2,AP124) -> 2030-07-01 | AR124: =IF(OR(AQ124="",AQ124=0),"",MAX(AR$15:AR123)+1) -> 109 | AS124: 0
AP125: =MAX(AP$15:AP124)+1 -> 110 | AQ125: =SUMIFS(Periods!$11:$11,Periods!$2:$2,AP125) -> 2030-08-01 | AR125: =IF(OR(AQ125="",AQ125=0),"",MAX(AR$15:AR124)+1) -> 110 | AS125: 0
AP126: =MAX(AP$15:AP125)+1 -> 111 | AQ126: =SUMIFS(Periods!$11:$11,Periods!$2:$2,AP126) -> 2030-09-01 | AR126: =IF(OR(AQ126="",AQ126=0),"",MAX(AR$15:AR125)+1) -> 111 | AS126: 0
AP127: =MAX(AP$15:AP126)+1 -> 112 | AQ127: =SUMIFS(Periods!$11:$11,Periods!$2:$2,AP127) -> 2030-10-01 | AR127: =IF(OR(AQ127="",AQ127=0),"",MAX(AR$15:AR126)+1) -> 112 | AS127: 0
AP128: =MAX(AP$15:AP127)+1 -> 113 | AQ128: =SUMIFS(Periods!$11:$11,Periods!$2:$2,AP128) -> 2030-11-01 | AR128: =IF(OR(AQ128="",AQ128=0),"",MAX(AR$15:AR127)+1) -> 113 | AS128: 0
AP129: =MAX(AP$15:AP128)+1 -> 114 | AQ129: =SUMIFS(Periods!$11:$11,Periods!$2:$2,AP129) -> 2030-12-01 | AR129: =IF(OR(AQ129="",AQ129=0),"",MAX(AR$15:AR128)+1) -> 114 | AS129: 0
AP130: =MAX(AP$15:AP129)+1 -> 115 | AQ130: =SUMIFS(Periods!$11:$11,Periods!$2:$2,AP130) -> 2031-01-01 | AR130: =IF(OR(AQ130="",AQ130=0),"",MAX(AR$15:AR129)+1) -> 115 | AS130: 0
AP131: =MAX(AP$15:AP130)+1 -> 116 | AQ131: =SUMIFS(Periods!$11:$11,Periods!$2:$2,AP131) -> 2031-02-01 | AR131: =IF(OR(AQ131="",AQ131=0),"",MAX(AR$15:AR130)+1) -> 116 | AS131: 0
AP132: =MAX(AP$15:AP131)+1 -> 117 | AQ132: =SUMIFS(Periods!$11:$11,Periods!$2:$2,AP132) -> 2031-03-01 | AR132: =IF(OR(AQ132="",AQ132=0),"",MAX(AR$15:AR131)+1) -> 117 | AS132: 0
AP133: =MAX(AP$15:AP132)+1 -> 118 | AQ133: =SUMIFS(Periods!$11:$11,Periods!$2:$2,AP133) -> 2031-04-01 | AR133: =IF(OR(AQ133="",AQ133=0),"",MAX(AR$15:AR132)+1) -> 118 | AS133: 0
AP134: =MAX(AP$15:AP133)+1 -> 119 | AQ134: =SUMIFS(Periods!$11:$11,Periods!$2:$2,AP134) -> 2031-05-01 | AR134: =IF(OR(AQ134="",AQ134=0),"",MAX(AR$15:AR133)+1) -> 119 | AS134: 0
AP135: =MAX(AP$15:AP134)+1 -> 120 | AQ135: =SUMIFS(Periods!$11:$11,Periods!$2:$2,AP135) -> 2031-06-01 | AR135: =IF(OR(AQ135="",AQ135=0),"",MAX(AR$15:AR134)+1) -> 120 | AS135: 0
AP136: =MAX(AP$15:AP135)+1 -> 121 | AQ136: =SUMIFS(Periods!$11:$11,Periods!$2:$2,AP136) -> 00:00:00 | AR136: =IF(OR(AQ136="",AQ136=0),"",MAX(AR$15:AR135)+1) ->  | AS136: 0
AP137: =MAX(AP$15:AP136)+1 -> 122 | AQ137: =SUMIFS(Periods!$11:$11,Periods!$2:$2,AP137) -> 00:00:00 | AR137: =IF(OR(AQ137="",AQ137=0),"",MAX(AR$15:AR136)+1) ->  | AS137: 0
AP138: =MAX(AP$15:AP137)+1 -> 123 | AQ138: =SUMIFS(Periods!$11:$11,Periods!$2:$2,AP138) -> 00:00:00 | AR138: =IF(OR(AQ138="",AQ138=0),"",MAX(AR$15:AR137)+1) ->  | AS138: 0
AP139: =MAX(AP$15:AP138)+1 -> 124 | AQ139: =SUMIFS(Periods!$11:$11,Periods!$2:$2,AP139) -> 00:00:00 | AR139: =IF(OR(AQ139="",AQ139=0),"",MAX(AR$15:AR138)+1) ->  | AS139: 0
AP140: =MAX(AP$15:AP139)+1 -> 125 | AQ140: =SUMIFS(Periods!$11:$11,Periods!$2:$2,AP140) -> 00:00:00 | AR140: =IF(OR(AQ140="",AQ140=0),"",MAX(AR$15:AR139)+1) ->  | AS140: 0
AP141: =MAX(AP$15:AP140)+1 -> 126 | AQ141: =SUMIFS(Periods!$11:$11,Periods!$2:$2,AP141) -> 00:00:00 | AR141: =IF(OR(AQ141="",AQ141=0),"",MAX(AR$15:AR140)+1) ->  | AS141: 0
AP142: =MAX(AP$15:AP141)+1 -> 127 | AQ142: =SUMIFS(Periods!$11:$11,Periods!$2:$2,AP142) -> 00:00:00 | AR142: =IF(OR(AQ142="",AQ142=0),"",MAX(AR$15:AR141)+1) ->  | AS142: 0
AP143: =MAX(AP$15:AP142)+1 -> 128 | AQ143: =SUMIFS(Periods!$11:$11,Periods!$2:$2,AP143) -> 00:00:00 | AR143: =IF(OR(AQ143="",AQ143=0),"",MAX(AR$15:AR142)+1) ->  | AS143: 0
AP144: =MAX(AP$15:AP143)+1 -> 129 | AQ144: =SUMIFS(Periods!$11:$11,Periods!$2:$2,AP144) -> 00:00:00 | AR144: =IF(OR(AQ144="",AQ144=0),"",MAX(AR$15:AR143)+1) ->  | AS144: 0
AP145: =MAX(AP$15:AP144)+1 -> 130 | AQ145: =SUMIFS(Periods!$11:$11,Periods!$2:$2,AP145) -> 00:00:00 | AR145: =IF(OR(AQ145="",AQ145=0),"",MAX(AR$15:AR144)+1) ->  | AS145: 0
AP146: =MAX(AP$15:AP145)+1 -> 131 | AQ146: =SUMIFS(Periods!$11:$11,Periods!$2:$2,AP146) -> 00:00:00 | AR146: =IF(OR(AQ146="",AQ146=0),"",MAX(AR$15:AR145)+1) ->  | AS146: 0
AP147: =MAX(AP$15:AP146)+1 -> 132 | AQ147: =SUMIFS(Periods!$11:$11,Periods!$2:$2,AP147) -> 00:00:00 | AR147: =IF(OR(AQ147="",AQ147=0),"",MAX(AR$15:AR146)+1) ->  | AS147: 0
AP148: =MAX(AP$15:AP147)+1 -> 133 | AQ148: =SUMIFS(Periods!$11:$11,Periods!$2:$2,AP148) -> 00:00:00 | AR148: =IF(OR(AQ148="",AQ148=0),"",MAX(AR$15:AR147)+1) ->  | AS148: 0
AP149: =MAX(AP$15:AP148)+1 -> 134 | AQ149: =SUMIFS(Periods!$11:$11,Periods!$2:$2,AP149) -> 00:00:00 | AR149: =IF(OR(AQ149="",AQ149=0),"",MAX(AR$15:AR148)+1) ->  | AS149: 0
AP150: =MAX(AP$15:AP149)+1 -> 135 | AQ150: =SUMIFS(Periods!$11:$11,Periods!$2:$2,AP150) -> 00:00:00 | AR150: =IF(OR(AQ150="",AQ150=0),"",MAX(AR$15:AR149)+1) ->  | AS150: 0
AP151: =MAX(AP$15:AP150)+1 -> 136 | AQ151: =SUMIFS(Periods!$11:$11,Periods!$2:$2,AP151) -> 00:00:00 | AR151: =IF(OR(AQ151="",AQ151=0),"",MAX(AR$15:AR150)+1) ->  | AS151: 0
AP152: =MAX(AP$15:AP151)+1 -> 137 | AQ152: =SUMIFS(Periods!$11:$11,Periods!$2:$2,AP152) -> 00:00:00 | AR152: =IF(OR(AQ152="",AQ152=0),"",MAX(AR$15:AR151)+1) ->  | AS152: 0
AP153: =MAX(AP$15:AP152)+1 -> 138 | AQ153: =SUMIFS(Periods!$11:$11,Periods!$2:$2,AP153) -> 00:00:00 | AR153: =IF(OR(AQ153="",AQ153=0),"",MAX(AR$15:AR152)+1) ->  | AS153: 0
AP154: =MAX(AP$15:AP153)+1 -> 139 | AQ154: =SUMIFS(Periods!$11:$11,Periods!$2:$2,AP154) -> 00:00:00 | AR154: =IF(OR(AQ154="",AQ154=0),"",MAX(AR$15:AR153)+1) ->  | AS154: 0
AP155: =MAX(AP$15:AP154)+1 -> 140 | AQ155: =SUMIFS(Periods!$11:$11,Periods!$2:$2,AP155) -> 00:00:00 | AR155: =IF(OR(AQ155="",AQ155=0),"",MAX(AR$15:AR154)+1) ->  | AS155: 0
AP156: =MAX(AP$15:AP155)+1 -> 141 | AQ156: =SUMIFS(Periods!$11:$11,Periods!$2:$2,AP156) -> 00:00:00 | AR156: =IF(OR(AQ156="",AQ156=0),"",MAX(AR$15:AR155)+1) ->  | AS156: 0
AP157: =MAX(AP$15:AP156)+1 -> 142 | AQ157: =SUMIFS(Periods!$11:$11,Periods!$2:$2,AP157) -> 00:00:00 | AR157: =IF(OR(AQ157="",AQ157=0),"",MAX(AR$15:AR156)+1) ->  | AS157: 0
AP158: =MAX(AP$15:AP157)+1 -> 143 | AQ158: =SUMIFS(Periods!$11:$11,Periods!$2:$2,AP158) -> 00:00:00 | AR158: =IF(OR(AQ158="",AQ158=0),"",MAX(AR$15:AR157)+1) ->  | AS158: 0
AP159: =MAX(AP$15:AP158)+1 -> 144 | AQ159: =SUMIFS(Periods!$11:$11,Periods!$2:$2,AP159) -> 00:00:00 | AR159: =IF(OR(AQ159="",AQ159=0),"",MAX(AR$15:AR158)+1) ->  | AS159: =IF(OR(AQ159=0,AQ159=""),0,IF(COUNTIF(AQ$15:AQ$100000,AQ159)=1,0,1)) -> 0
AP160: =MAX(AP$15:AP159)+1 -> 145 | AQ160: =SUMIFS(Periods!$11:$11,Periods!$2:$2,AP160) -> 00:00:00 | AR160: =IF(OR(AQ160="",AQ160=0),"",MAX(AR$15:AR159)+1) ->  | AS160: 0
AP161: =MAX(AP$15:AP160)+1 -> 146 | AQ161: =SUMIFS(Periods!$11:$11,Periods!$2:$2,AP161) -> 00:00:00 | AR161: =IF(OR(AQ161="",AQ161=0),"",MAX(AR$15:AR160)+1) ->  | AS161: 0
AP162: =MAX(AP$15:AP161)+1 -> 147 | AQ162: =SUMIFS(Periods!$11:$11,Periods!$2:$2,AP162) -> 00:00:00 | AR162: =IF(OR(AQ162="",AQ162=0),"",MAX(AR$15:AR161)+1) ->  | AS162: 0
AP163: =MAX(AP$15:AP162)+1 -> 148 | AQ163: =SUMIFS(Periods!$11:$11,Periods!$2:$2,AP163) -> 00:00:00 | AR163: =IF(OR(AQ163="",AQ163=0),"",MAX(AR$15:AR162)+1) ->  | AS163: 0
AP164: =MAX(AP$15:AP163)+1 -> 149 | AQ164: =SUMIFS(Periods!$11:$11,Periods!$2:$2,AP164) -> 00:00:00 | AR164: =IF(OR(AQ164="",AQ164=0),"",MAX(AR$15:AR163)+1) ->  | AS164: 0
AP165: =MAX(AP$15:AP164)+1 -> 150 | AQ165: =SUMIFS(Periods!$11:$11,Periods!$2:$2,AP165) -> 00:00:00 | AR165: =IF(OR(AQ165="",AQ165=0),"",MAX(AR$15:AR164)+1) ->  | AS165: 0
AP166: =MAX(AP$15:AP165)+1 -> 151 | AQ166: =SUMIFS(Periods!$11:$11,Periods!$2:$2,AP166) -> 00:00:00 | AR166: =IF(OR(AQ166="",AQ166=0),"",MAX(AR$15:AR165)+1) ->  | AS166: 0
AP167: =MAX(AP$15:AP166)+1 -> 152 | AQ167: =SUMIFS(Periods!$11:$11,Periods!$2:$2,AP167) -> 00:00:00 | AR167: =IF(OR(AQ167="",AQ167=0),"",MAX(AR$15:AR166)+1) ->  | AS167: 0
AP168: =MAX(AP$15:AP167)+1 -> 153 | AQ168: =SUMIFS(Periods!$11:$11,Periods!$2:$2,AP168) -> 00:00:00 | AR168: =IF(OR(AQ168="",AQ168=0),"",MAX(AR$15:AR167)+1) ->  | AS168: 0
AP169: =MAX(AP$15:AP168)+1 -> 154 | AQ169: =SUMIFS(Periods!$11:$11,Periods!$2:$2,AP169) -> 00:00:00 | AR169: =IF(OR(AQ169="",AQ169=0),"",MAX(AR$15:AR168)+1) ->  | AS169: 0
AP170: =MAX(AP$15:AP169)+1 -> 155 | AQ170: =SUMIFS(Periods!$11:$11,Periods!$2:$2,AP170) -> 00:00:00 | AR170: =IF(OR(AQ170="",AQ170=0),"",MAX(AR$15:AR169)+1) ->  | AS170: 0
AP171: =MAX(AP$15:AP170)+1 -> 156 | AQ171: =SUMIFS(Periods!$11:$11,Periods!$2:$2,AP171) -> 00:00:00 | AR171: =IF(OR(AQ171="",AQ171=0),"",MAX(AR$15:AR170)+1) ->  | AS171: 0
AP172: =MAX(AP$15:AP171)+1 -> 157 | AQ172: =SUMIFS(Periods!$11:$11,Periods!$2:$2,AP172) -> 00:00:00 | AR172: =IF(OR(AQ172="",AQ172=0),"",MAX(AR$15:AR171)+1) ->  | AS172: 0
AP173: =MAX(AP$15:AP172)+1 -> 158 | AQ173: =SUMIFS(Periods!$11:$11,Periods!$2:$2,AP173) -> 00:00:00 | AR173: =IF(OR(AQ173="",AQ173=0),"",MAX(AR$15:AR172)+1) ->  | AS173: 0
AP174: =MAX(AP$15:AP173)+1 -> 159 | AQ174: =SUMIFS(Periods!$11:$11,Periods!$2:$2,AP174) -> 00:00:00 | AR174: =IF(OR(AQ174="",AQ174=0),"",MAX(AR$15:AR173)+1) ->  | AS174: 0
AP175: =MAX(AP$15:AP174)+1 -> 160 | AQ175: =SUMIFS(Periods!$11:$11,Periods!$2:$2,AP175) -> 00:00:00 | AR175: =IF(OR(AQ175="",AQ175=0),"",MAX(AR$15:AR174)+1) ->  | AS175: 0
AP176: =MAX(AP$15:AP175)+1 -> 161 | AQ176: =SUMIFS(Periods!$11:$11,Periods!$2:$2,AP176) -> 00:00:00 | AR176: =IF(OR(AQ176="",AQ176=0),"",MAX(AR$15:AR175)+1) ->  | AS176: 0
AP177: =MAX(AP$15:AP176)+1 -> 162 | AQ177: =SUMIFS(Periods!$11:$11,Periods!$2:$2,AP177) -> 00:00:00 | AR177: =IF(OR(AQ177="",AQ177=0),"",MAX(AR$15:AR176)+1) ->  | AS177: 0
AP178: =MAX(AP$15:AP177)+1 -> 163 | AQ178: =SUMIFS(Periods!$11:$11,Periods!$2:$2,AP178) -> 00:00:00 | AR178: =IF(OR(AQ178="",AQ178=0),"",MAX(AR$15:AR177)+1) ->  | AS178: 0
AP179: =MAX(AP$15:AP178)+1 -> 164 | AQ179: =SUMIFS(Periods!$11:$11,Periods!$2:$2,AP179) -> 00:00:00 | AR179: =IF(OR(AQ179="",AQ179=0),"",MAX(AR$15:AR178)+1) ->  | AS179: 0
AP180: =MAX(AP$15:AP179)+1 -> 165 | AQ180: =SUMIFS(Periods!$11:$11,Periods!$2:$2,AP180) -> 00:00:00 | AR180: =IF(OR(AQ180="",AQ180=0),"",MAX(AR$15:AR179)+1) ->  | AS180: 0
AP181: =MAX(AP$15:AP180)+1 -> 166 | AQ181: =SUMIFS(Periods!$11:$11,Periods!$2:$2,AP181) -> 00:00:00 | AR181: =IF(OR(AQ181="",AQ181=0),"",MAX(AR$15:AR180)+1) ->  | AS181: 0
AP182: =MAX(AP$15:AP181)+1 -> 167 | AQ182: =SUMIFS(Periods!$11:$11,Periods!$2:$2,AP182) -> 00:00:00 | AR182: =IF(OR(AQ182="",AQ182=0),"",MAX(AR$15:AR181)+1) ->  | AS182: 0
AP183: =MAX(AP$15:AP182)+1 -> 168 | AQ183: =SUMIFS(Periods!$11:$11,Periods!$2:$2,AP183) -> 00:00:00 | AR183: =IF(OR(AQ183="",AQ183=0),"",MAX(AR$15:AR182)+1) ->  | AS183: 0
AP184: =MAX(AP$15:AP183)+1 -> 169 | AQ184: =SUMIFS(Periods!$11:$11,Periods!$2:$2,AP184) -> 00:00:00 | AR184: =IF(OR(AQ184="",AQ184=0),"",MAX(AR$15:AR183)+1) ->  | AS184: 0
AP185: =MAX(AP$15:AP184)+1 -> 170 | AQ185: =SUMIFS(Periods!$11:$11,Periods!$2:$2,AP185) -> 00:00:00 | AR185: =IF(OR(AQ185="",AQ185=0),"",MAX(AR$15:AR184)+1) ->  | AS185: 0
AP186: =MAX(AP$15:AP185)+1 -> 171 | AQ186: =SUMIFS(Periods!$11:$11,Periods!$2:$2,AP186) -> 00:00:00 | AR186: =IF(OR(AQ186="",AQ186=0),"",MAX(AR$15:AR185)+1) ->  | AS186: 0
AP187: =MAX(AP$15:AP186)+1 -> 172 | AQ187: =SUMIFS(Periods!$11:$11,Periods!$2:$2,AP187) -> 00:00:00 | AR187: =IF(OR(AQ187="",AQ187=0),"",MAX(AR$15:AR186)+1) ->  | AS187: 0
AP188: =MAX(AP$15:AP187)+1 -> 173 | AQ188: =SUMIFS(Periods!$11:$11,Periods!$2:$2,AP188) -> 00:00:00 | AR188: =IF(OR(AQ188="",AQ188=0),"",MAX(AR$15:AR187)+1) ->  | AS188: 0
AP189: =MAX(AP$15:AP188)+1 -> 174 | AQ189: =SUMIFS(Periods!$11:$11,Periods!$2:$2,AP189) -> 00:00:00 | AR189: =IF(OR(AQ189="",AQ189=0),"",MAX(AR$15:AR188)+1) ->  | AS189: 0
AP190: =MAX(AP$15:AP189)+1 -> 175 | AQ190: =SUMIFS(Periods!$11:$11,Periods!$2:$2,AP190) -> 00:00:00 | AR190: =IF(OR(AQ190="",AQ190=0),"",MAX(AR$15:AR189)+1) ->  | AS190: 0
AP191: =MAX(AP$15:AP190)+1 -> 176 | AQ191: =SUMIFS(Periods!$11:$11,Periods!$2:$2,AP191) -> 00:00:00 | AR191: =IF(OR(AQ191="",AQ191=0),"",MAX(AR$15:AR190)+1) ->  | AS191: 0
AP192: =MAX(AP$15:AP191)+1 -> 177 | AQ192: =SUMIFS(Periods!$11:$11,Periods!$2:$2,AP192) -> 00:00:00 | AR192: =IF(OR(AQ192="",AQ192=0),"",MAX(AR$15:AR191)+1) ->  | AS192: 0
AP193: =MAX(AP$15:AP192)+1 -> 178 | AQ193: =SUMIFS(Periods!$11:$11,Periods!$2:$2,AP193) -> 00:00:00 | AR193: =IF(OR(AQ193="",AQ193=0),"",MAX(AR$15:AR192)+1) ->  | AS193: 0
AP194: =MAX(AP$15:AP193)+1 -> 179 | AQ194: =SUMIFS(Periods!$11:$11,Periods!$2:$2,AP194) -> 00:00:00 | AR194: =IF(OR(AQ194="",AQ194=0),"",MAX(AR$15:AR193)+1) ->  | AS194: 0
AP195: =MAX(AP$15:AP194)+1 -> 180 | AQ195: =SUMIFS(Periods!$11:$11,Periods!$2:$2,AP195) -> 00:00:00 | AR195: =IF(OR(AQ195="",AQ195=0),"",MAX(AR$15:AR194)+1) ->  | AS195: 0
AP196: =MAX(AP$15:AP195)+1 -> 181 | AQ196: =SUMIFS(Periods!$11:$11,Periods!$2:$2,AP196) -> 00:00:00 | AR196: =IF(OR(AQ196="",AQ196=0),"",MAX(AR$15:AR195)+1) ->  | AS196: 0
AP197: =MAX(AP$15:AP196)+1 -> 182 | AQ197: =SUMIFS(Periods!$11:$11,Periods!$2:$2,AP197) -> 00:00:00 | AR197: =IF(OR(AQ197="",AQ197=0),"",MAX(AR$15:AR196)+1) ->  | AS197: 0
AP198: =MAX(AP$15:AP197)+1 -> 183 | AQ198: =SUMIFS(Periods!$11:$11,Periods!$2:$2,AP198) -> 00:00:00 | AR198: =IF(OR(AQ198="",AQ198=0),"",MAX(AR$15:AR197)+1) ->  | AS198: 0
AP199: =MAX(AP$15:AP198)+1 -> 184 | AQ199: =SUMIFS(Periods!$11:$11,Periods!$2:$2,AP199) -> 00:00:00 | AR199: =IF(OR(AQ199="",AQ199=0),"",MAX(AR$15:AR198)+1) ->  | AS199: 0
AP200: =MAX(AP$15:AP199)+1 -> 185 | AQ200: =SUMIFS(Periods!$11:$11,Periods!$2:$2,AP200) -> 00:00:00 | AR200: =IF(OR(AQ200="",AQ200=0),"",MAX(AR$15:AR199)+1) ->  | AS200: 0
AP201: =MAX(AP$15:AP200)+1 -> 186 | AQ201: =SUMIFS(Periods!$11:$11,Periods!$2:$2,AP201) -> 00:00:00 | AR201: =IF(OR(AQ201="",AQ201=0),"",MAX(AR$15:AR200)+1) ->  | AS201: 0
AP202: =MAX(AP$15:AP201)+1 -> 187 | AQ202: =SUMIFS(Periods!$11:$11,Periods!$2:$2,AP202) -> 00:00:00 | AR202: =IF(OR(AQ202="",AQ202=0),"",MAX(AR$15:AR201)+1) ->  | AS202: 0
AP203: =MAX(AP$15:AP202)+1 -> 188 | AQ203: =SUMIFS(Periods!$11:$11,Periods!$2:$2,AP203) -> 00:00:00 | AR203: =IF(OR(AQ203="",AQ203=0),"",MAX(AR$15:AR202)+1) ->  | AS203: 0
AP204: =MAX(AP$15:AP203)+1 -> 189 | AQ204: =SUMIFS(Periods!$11:$11,Periods!$2:$2,AP204) -> 00:00:00 | AR204: =IF(OR(AQ204="",AQ204=0),"",MAX(AR$15:AR203)+1) ->  | AS204: 0
AP205: =MAX(AP$15:AP204)+1 -> 190 | AQ205: =SUMIFS(Periods!$11:$11,Periods!$2:$2,AP205) -> 00:00:00 | AR205: =IF(OR(AQ205="",AQ205=0),"",MAX(AR$15:AR204)+1) ->  | AS205: 0
AP206: =MAX(AP$15:AP205)+1 -> 191 | AQ206: =SUMIFS(Periods!$11:$11,Periods!$2:$2,AP206) -> 00:00:00 | AR206: =IF(OR(AQ206="",AQ206=0),"",MAX(AR$15:AR205)+1) ->  | AS206: 0
AP207: =MAX(AP$15:AP206)+1 -> 192 | AQ207: =SUMIFS(Periods!$11:$11,Periods!$2:$2,AP207) -> 00:00:00 | AR207: =IF(OR(AQ207="",AQ207=0),"",MAX(AR$15:AR206)+1) ->  | AS207: 0
AP208: =MAX(AP$15:AP207)+1 -> 193 | AQ208: =SUMIFS(Periods!$11:$11,Periods!$2:$2,AP208) -> 00:00:00 | AR208: =IF(OR(AQ208="",AQ208=0),"",MAX(AR$15:AR207)+1) ->  | AS208: 0
... 207 more rows

Sheet Macro
Y1: номер столбца: | AA1: 27 | AB1: 28 | AC1: 29 | AD1: 30 | AE1: 31 | AF1: 32 | AG1: 33 | AH1: 34 | AI1: 35 | AJ1: 36 | AK1: 37 | AL1: 38 | AM1: 39 | AN1: 40 | AO1: 41 | AP1: 42 | AQ1: 43 | AR1: 44 | AS1: 45 | AT1: 46 | AU1: 47 | AV1: 48 | AW1: 49 | AX1: 50 | AY1: 51 | AZ1: 52 | BA1: 53 | BB1: 54 | BC1: 55 | BD1: 56 | BE1: 57 | BF1: 58 | BG1: 59 | BH1: 60 | BI1: 61 | BJ1: 62 | BK1: 63 | BL1: 64 | BM1: 65 | BN1: 66 | BO1: 67 | BP1: 68 | BQ1: 69 | BR1: 70 | BS1: 71 | BT1: 72 | BU1: 73 | BV1: 74 | BW1: 75 | BX1: 76 | BY1: 77 | BZ1: 78 | CA1: 79 | CB1: 80 | CC1: 81 | CD1: 82 | CE1: 83 | CF1: 84 | CG1: 85 | CH1: 86 | CI1: 87 | CJ1: 88 | CK1: 89 | CL1: 90 | CM1: 91 | CN1: 92 | CO1: 93 | CP1: 94 | CQ1: 95 | CR1: 96 | CS1: 97 | CT1: 98 | CU1: 99 | CV1: 100 | CW1: 101 | CX1: 102 | CY1: 103 | CZ1: 104 | DA1: 105 | DB1: 106 | DC1: 107 | DD1: 108 | DE1: 109 | DF1: 110 | DG1: 111 | DH1: 112 | DI1: 113 | DJ1: 114 | DK1: 115 | DL1: 116 | DM1: 117 | DN1: 118 | DO1: 119 | DP1: 120 | DQ1: 121 | DR1: 122 | DS1: 123 | DT1: 124 | DU1: 125 | DV1: 126 | DW1: 127 | DX1: 128 | DY1: 129 | DZ1: 130 | EA1: 131 | EB1: 132 | EC1: 133 | ED1: 134 | EE1: 135 | EF1: 136 | EG1: 137 | EH1: 138 | EI1: 139 | EJ1: 140 | EK1: 141 | EL1: 142 | EM1: 143 | EN1: 144 | EO1: 145 | EP1: 146 | EQ1: 147 | ER1: 148 | ES1: 149 | ET1: 150 | EU1: 151 | EV1: 152 | EW1: 153 | EX1: 154 | EY1: 155 | EZ1: 156 | FA1: 157 | FB1: 158 | FC1: 159
Y2: номер периода модели: | AA2: 1 | AB2: 2 | AC2: 3 | AD2: 4 | AE2: 5 | AF2: 6 | AG2: 7 | AH2: 8 | AI2: 9 | AJ2: 10 | AK2: 11 | AL2: 12 | AM2: 13 | AN2: 14 | AO2: 15 | AP2: 16 | AQ2: 17 | AR2: 18 | AS2: 19 | AT2: 20 | AU2: 21 | AV2: 22 | AW2: 23 | AX2: 24 | AY2: 25 | AZ2: 26 | BA2: 27 | BB2: 28 | BC2: 29 | BD2: 30 | BE2: 31 | BF2: 32 | BG2: 33 | BH2: 34 | BI2: 35 | BJ2: 36 | BK2: 37 | BL2: 38 | BM2: 39 | BN2: 40 | BO2: 41 | BP2: 42 | BQ2: 43 | BR2: 44 | BS2: 45 | BT2: 46 | BU2: 47 | BV2: 48 | BW2: 49 | BX2: 50 | BY2: 51 | BZ2: 52 | CA2: 53 | CB2: 54 | CC2: 55 | CD2: 56 | CE2: 57 | CF2: 58 | CG2: 59 | CH2: 60 | CI2: 61 | CJ2: 62 | CK2: 63 | CL2: 64 | CM2: 65 | CN2: 66 | CO2: 67 | CP2: 68 | CQ2: 69 | CR2: 70 | CS2: 71 | CT2: 72 | CU2: 73 | CV2: 74 | CW2: 75 | CX2: 76 | CY2: 77 | CZ2: 78 | DA2: 79 | DB2: 80 | DC2: 81 | DD2: 82 | DE2: 83 | DF2: 84 | DG2: 85 | DH2: 86 | DI2: 87 | DJ2: 88 | DK2: 89 | DL2: 90 | DM2: 91 | DN2: 92 | DO2: 93 | DP2: 94 | DQ2: 95 | DR2: 96 | DS2: 97 | DT2: 98 | DU2: 99 | DV2: 100 | DW2: 101 | DX2: 102 | DY2: 103 | DZ2: 104 | EA2: 105 | EB2: 106 | EC2: 107 | ED2: 108 | EE2: 109 | EF2: 110 | EG2: 111 | EH2: 112 | EI2: 113 | EJ2: 114 | EK2: 115 | EL2: 116 | EM2: 117 | EN2: 118 | EO2: 119 | EP2: 120 | EQ2: 121 | ER2: 122 | ES2: 123 | ET2: 124 | EU2: 125 | EV2: 126 | EW2: 127 | EX2: 128 | EY2: 129 | EZ2: 130 | FA2: 131 | FB2: 132 | FC2: 133
Y3: номер факт-периода:
Y4: номер план-периода: | AA4: 1 | AB4: 2 | AC4: 3 | AD4: 4 | AE4: 5 | AF4: 6 | AG4: 7 | AH4: 8 | AI4: 9 | AJ4: 10 | AK4: 11 | AL4: 12 | AM4: 13 | AN4: 14 | AO4: 15 | AP4: 16 | AQ4: 17 | AR4: 18 | AS4: 19 | AT4: 20 | AU4: 21 | AV4: 22 | AW4: 23 | AX4: 24 | AY4: 25 | AZ4: 26 | BA4: 27 | BB4: 28 | BC4: 29 | BD4: 30 | BE4: 31 | BF4: 32 | BG4: 33 | BH4: 34 | BI4: 35 | BJ4: 36 | BK4: 37 | BL4: 38 | BM4: 39 | BN4: 40 | BO4: 41 | BP4: 42 | BQ4: 43 | BR4: 44 | BS4: 45 | BT4: 46 | BU4: 47 | BV4: 48 | BW4: 49 | BX4: 50 | BY4: 51 | BZ4: 52 | CA4: 53 | CB4: 54 | CC4: 55 | CD4: 56 | CE4: 57 | CF4: 58 | CG4: 59 | CH4: 60 | CI4: 61 | CJ4: 62 | CK4: 63 | CL4: 64 | CM4: 65 | CN4: 66 | CO4: 67 | CP4: 68 | CQ4: 69 | CR4: 70 | CS4: 71 | CT4: 72 | CU4: 73 | CV4: 74 | CW4: 75 | CX4: 76 | CY4: 77 | CZ4: 78 | DA4: 79 | DB4: 80 | DC4: 81 | DD4: 82 | DE4: 83 | DF4: 84 | DG4: 85 | DH4: 86 | DI4: 87 | DJ4: 88 | DK4: 89 | DL4: 90 | DM4: 91 | DN4: 92 | DO4: 93 | DP4: 94 | DQ4: 95 | DR4: 96 | DS4: 97 | DT4: 98 | DU4: 99 | DV4: 100 | DW4: 101 | DX4: 102 | DY4: 103 | DZ4: 104 | EA4: 105 | EB4: 106 | EC4: 107 | ED4: 108 | EE4: 109 | EF4: 110 | EG4: 111 | EH4: 112 | EI4: 113 | EJ4: 114 | EK4: 115 | EL4: 116 | EM4: 117 | EN4: 118 | EO4: 119 | EP4: 120
Y5: число даты начала: | AA5: 1 | AB5: 1 | AC5: 1 | AD5: 1 | AE5: 1 | AF5: 1 | AG5: 1 | AH5: 1 | AI5: 1 | AJ5: 1 | AK5: 1 | AL5: 1 | AM5: 1 | AN5: 1 | AO5: 1 | AP5: 1 | AQ5: 1 | AR5: 1 | AS5: 1 | AT5: 1 | AU5: 1 | AV5: 1 | AW5: 1 | AX5: 1 | AY5: 1 | AZ5: 1 | BA5: 1 | BB5: 1 | BC5: 1 | BD5: 1 | BE5: 1 | BF5: 1 | BG5: 1 | BH5: 1 | BI5: 1 | BJ5: 1 | BK5: 1 | BL5: 1 | BM5: 1 | BN5: 1 | BO5: 1 | BP5: 1 | BQ5: 1 | BR5: 1 | BS5: 1 | BT5: 1 | BU5: 1 | BV5: 1 | BW5: 1 | BX5: 1 | BY5: 1 | BZ5: 1 | CA5: 1 | CB5: 1 | CC5: 1 | CD5: 1 | CE5: 1 | CF5: 1 | CG5: 1 | CH5: 1 | CI5: 1 | CJ5: 1 | CK5: 1 | CL5: 1 | CM5: 1 | CN5: 1 | CO5: 1 | CP5: 1 | CQ5: 1 | CR5: 1 | CS5: 1 | CT5: 1 | CU5: 1 | CV5: 1 | CW5: 1 | CX5: 1 | CY5: 1 | CZ5: 1 | DA5: 1 | DB5: 1 | DC5: 1 | DD5: 1 | DE5: 1 | DF5: 1 | DG5: 1 | DH5: 1 | DI5: 1 | DJ5: 1 | DK5: 1 | DL5: 1 | DM5: 1 | DN5: 1 | DO5: 1 | DP5: 1 | DQ5: 1 | DR5: 1 | DS5: 1 | DT5: 1 | DU5: 1 | DV5: 1 | DW5: 1 | DX5: 1 | DY5: 1 | DZ5: 1 | EA5: 1 | EB5: 1 | EC5: 1 | ED5: 1 | EE5: 1 | EF5: 1 | EG5: 1 | EH5: 1 | EI5: 1 | EJ5: 1 | EK5: 1 | EL5: 1 | EM5: 1 | EN5: 1 | EO5: 1 | EP5: 1
Y6: номер месяца даты начала: | AA6: 7 | AB6: 8 | AC6: 9 | AD6: 10 | AE6: 11 | AF6: 12 | AG6: 1 | AH6: 2 | AI6: 3 | AJ6: 4 | AK6: 5 | AL6: 6 | AM6: 7 | AN6: 8 | AO6: 9 | AP6: 10 | AQ6: 11 | AR6: 12 | AS6: 1 | AT6: 2 | AU6: 3 | AV6: 4 | AW6: 5 | AX6: 6 | AY6: 7 | AZ6: 8 | BA6: 9 | BB6: 10 | BC6: 11 | BD6: 12 | BE6: 1 | BF6: 2 | BG6: 3 | BH6: 4 | BI6: 5 | BJ6: 6 | BK6: 7 | BL6: 8 | BM6: 9 | BN6: 10 | BO6: 11 | BP6: 12 | BQ6: 1 | BR6: 2 | BS6: 3 | BT6: 4 | BU6: 5 | BV6: 6 | BW6: 7 | BX6: 8 | BY6: 9 | BZ6: 10 | CA6: 11 | CB6: 12 | CC6: 1 | CD6: 2 | CE6: 3 | CF6: 4 | CG6: 5 | CH6: 6 | CI6: 7 | CJ6: 8 | CK6: 9 | CL6: 10 | CM6: 11 | CN6: 12 | CO6: 1 | CP6: 2 | CQ6: 3 | CR6: 4 | CS6: 5 | CT6: 6 | CU6: 7 | CV6: 8 | CW6: 9 | CX6: 10 | CY6: 11 | CZ6: 12 | DA6: 1 | DB6: 2 | DC6: 3 | DD6: 4 | DE6: 5 | DF6: 6 | DG6: 7 | DH6: 8 | DI6: 9 | DJ6: 10 | DK6: 11 | DL6: 12 | DM6: 1 | DN6: 2 | DO6: 3 | DP6: 4 | DQ6: 5 | DR6: 6 | DS6: 7 | DT6: 8 | DU6: 9 | DV6: 10 | DW6: 11 | DX6: 12 | DY6: 1 | DZ6: 2 | EA6: 3 | EB6: 4 | EC6: 5 | ED6: 6 | EE6: 7 | EF6: 8 | EG6: 9 | EH6: 10 | EI6: 11 | EJ6: 12 | EK6: 1 | EL6: 2 | EM6: 3 | EN6: 4 | EO6: 5 | EP6: 6
Y7: год даты начала: | AA7: 21 | AB7: 21 | AC7: 21 | AD7: 21 | AE7: 21 | AF7: 21 | AG7: 22 | AH7: 22 | AI7: 22 | AJ7: 22 | AK7: 22 | AL7: 22 | AM7: 22 | AN7: 22 | AO7: 22 | AP7: 22 | AQ7: 22 | AR7: 22 | AS7: 23 | AT7: 23 | AU7: 23 | AV7: 23 | AW7: 23 | AX7: 23 | AY7: 23 | AZ7: 23 | BA7: 23 | BB7: 23 | BC7: 23 | BD7: 23 | BE7: 24 | BF7: 24 | BG7: 24 | BH7: 24 | BI7: 24 | BJ7: 24 | BK7: 24 | BL7: 24 | BM7: 24 | BN7: 24 | BO7: 24 | BP7: 24 | BQ7: 25 | BR7: 25 | BS7: 25 | BT7: 25 | BU7: 25 | BV7: 25 | BW7: 25 | BX7: 25 | BY7: 25 | BZ7: 25 | CA7: 25 | CB7: 25 | CC7: 26 | CD7: 26 | CE7: 26 | CF7: 26 | CG7: 26 | CH7: 26 | CI7: 26 | CJ7: 26 | CK7: 26 | CL7: 26 | CM7: 26 | CN7: 26 | CO7: 27 | CP7: 27 | CQ7: 27 | CR7: 27 | CS7: 27 | CT7: 27 | CU7: 27 | CV7: 27 | CW7: 27 | CX7: 27 | CY7: 27 | CZ7: 27 | DA7: 28 | DB7: 28 | DC7: 28 | DD7: 28 | DE7: 28 | DF7: 28 | DG7: 28 | DH7: 28 | DI7: 28 | DJ7: 28 | DK7: 28 | DL7: 28 | DM7: 29 | DN7: 29 | DO7: 29 | DP7: 29 | DQ7: 29 | DR7: 29 | DS7: 29 | DT7: 29 | DU7: 29 | DV7: 29 | DW7: 29 | DX7: 29 | DY7: 30 | DZ7: 30 | EA7: 30 | EB7: 30 | EC7: 30 | ED7: 30 | EE7: 30 | EF7: 30 | EG7: 30 | EH7: 30 | EI7: 30 | EJ7: 30 | EK7: 31 | EL7: 31 | EM7: 31 | EN7: 31 | EO7: 31 | EP7: 31
Y8: число даты окончания: | AA8: 31 | AB8: 31 | AC8: 30 | AD8: 31 | AE8: 30 | AF8: 31 | AG8: 31 | AH8: 28 | AI8: 31 | AJ8: 30 | AK8: 31 | AL8: 30 | AM8: 31 | AN8: 31 | AO8: 30 | AP8: 31 | AQ8: 30 | AR8: 31 | AS8: 31 | AT8: 28 | AU8: 31 | AV8: 30 | AW8: 31 | AX8: 30 | AY8: 31 | AZ8: 31 | BA8: 30 | BB8: 31 | BC8: 30 | BD8: 31 | BE8: 31 | BF8: 29 | BG8: 31 | BH8: 30 | BI8: 31 | BJ8: 30 | BK8: 31 | BL8: 31 | BM8: 30 | BN8: 31 | BO8: 30 | BP8: 31 | BQ8: 31 | BR8: 28 | BS8: 31 | BT8: 30 | BU8: 31 | BV8: 30 | BW8: 31 | BX8: 31 | BY8: 30 | BZ8: 31 | CA8: 30 | CB8: 31 | CC8: 31 | CD8: 28 | CE8: 31 | CF8: 30 | CG8: 31 | CH8: 30 | CI8: 31 | CJ8: 31 | CK8: 30 | CL8: 31 | CM8: 30 | CN8: 31 | CO8: 31 | CP8: 28 | CQ8: 31 | CR8: 30 | CS8: 31 | CT8: 30 | CU8: 31 | CV8: 31 | CW8: 30 | CX8: 31 | CY8: 30 | CZ8: 31 | DA8: 31 | DB8: 29 | DC8: 31 | DD8: 30 | DE8: 31 | DF8: 30 | DG8: 31 | DH8: 31 | DI8: 30 | DJ8: 31 | DK8: 30 | DL8: 31 | DM8: 31 | DN8: 28 | DO8: 31 | DP8: 30 | DQ8: 31 | DR8: 30 | DS8: 31 | DT8: 31 | DU8: 30 | DV8: 31 | DW8: 30 | DX8: 31 | DY8: 31 | DZ8: 28 | EA8: 31 | EB8: 30 | EC8: 31 | ED8: 30 | EE8: 31 | EF8: 31 | EG8: 30 | EH8: 31 | EI8: 30 | EJ8: 31 | EK8: 31 | EL8: 28 | EM8: 31 | EN8: 30 | EO8: 31 | EP8: 30
Y9: номер месяца даты окончания: | AA9: 7 | AB9: 8 | AC9: 9 | AD9: 10 | AE9: 11 | AF9: 12 | AG9: 1 | AH9: 2 | AI9: 3 | AJ9: 4 | AK9: 5 | AL9: 6 | AM9: 7 | AN9: 8 | AO9: 9 | AP9: 10 | AQ9: 11 | AR9: 12 | AS9: 1 | AT9: 2 | AU9: 3 | AV9: 4 | AW9: 5 | AX9: 6 | AY9: 7 | AZ9: 8 | BA9: 9 | BB9: 10 | BC9: 11 | BD9: 12 | BE9: 1 | BF9: 2 | BG9: 3 | BH9: 4 | BI9: 5 | BJ9: 6 | BK9: 7 | BL9: 8 | BM9: 9 | BN9: 10 | BO9: 11 | BP9: 12 | BQ9: 1 | BR9: 2 | BS9: 3 | BT9: 4 | BU9: 5 | BV9: 6 | BW9: 7 | BX9: 8 | BY9: 9 | BZ9: 10 | CA9: 11 | CB9: 12 | CC9: 1 | CD9: 2 | CE9: 3 | CF9: 4 | CG9: 5 | CH9: 6 | CI9: 7 | CJ9: 8 | CK9: 9 | CL9: 10 | CM9: 11 | CN9: 12 | CO9: 1 | CP9: 2 | CQ9: 3 | CR9: 4 | CS9: 5 | CT9: 6 | CU9: 7 | CV9: 8 | CW9: 9 | CX9: 10 | CY9: 11 | CZ9: 12 | DA9: 1 | DB9: 2 | DC9: 3 | DD9: 4 | DE9: 5 | DF9: 6 | DG9: 7 | DH9: 8 | DI9: 9 | DJ9: 10 | DK9: 11 | DL9: 12 | DM9: 1 | DN9: 2 | DO9: 3 | DP9: 4 | DQ9: 5 | DR9: 6 | DS9: 7 | DT9: 8 | DU9: 9 | DV9: 10 | DW9: 11 | DX9: 12 | DY9: 1 | DZ9: 2 | EA9: 3 | EB9: 4 | EC9: 5 | ED9: 6 | EE9: 7 | EF9: 8 | EG9: 9 | EH9: 10 | EI9: 11 | EJ9: 12 | EK9: 1 | EL9: 2 | EM9: 3 | EN9: 4 | EO9: 5 | EP9: 6
Y10: год даты окончания: | AA10: 21 | AB10: 21 | AC10: 21 | AD10: 21 | AE10: 21 | AF10: 21 | AG10: 22 | AH10: 22 | AI10: 22 | AJ10: 22 | AK10: 22 | AL10: 22 | AM10: 22 | AN10: 22 | AO10: 22 | AP10: 22 | AQ10: 22 | AR10: 22 | AS10: 23 | AT10: 23 | AU10: 23 | AV10: 23 | AW10: 23 | AX10: 23 | AY10: 23 | AZ10: 23 | BA10: 23 | BB10: 23 | BC10: 23 | BD10: 23 | BE10: 24 | BF10: 24 | BG10: 24 | BH10: 24 | BI10: 24 | BJ10: 24 | BK10: 24 | BL10: 24 | BM10: 24 | BN10: 24 | BO10: 24 | BP10: 24 | BQ10: 25 | BR10: 25 | BS10: 25 | BT10: 25 | BU10: 25 | BV10: 25 | BW10: 25 | BX10: 25 | BY10: 25 | BZ10: 25 | CA10: 25 | CB10: 25 | CC10: 26 | CD10: 26 | CE10: 26 | CF10: 26 | CG10: 26 | CH10: 26 | CI10: 26 | CJ10: 26 | CK10: 26 | CL10: 26 | CM10: 26 | CN10: 26 | CO10: 27 | CP10: 27 | CQ10: 27 | CR10: 27 | CS10: 27 | CT10: 27 | CU10: 27 | CV10: 27 | CW10: 27 | CX10: 27 | CY10: 27 | CZ10: 27 | DA10: 28 | DB10: 28 | DC10: 28 | DD10: 28 | DE10: 28 | DF10: 28 | DG10: 28 | DH10: 28 | DI10: 28 | DJ10: 28 | DK10: 28 | DL10: 28 | DM10: 29 | DN10: 29 | DO10: 29 | DP10: 29 | DQ10: 29 | DR10: 29 | DS10: 29 | DT10: 29 | DU10: 29 | DV10: 29 | DW10: 29 | DX10: 29 | DY10: 30 | DZ10: 30 | EA10: 30 | EB10: 30 | EC10: 30 | ED10: 30 | EE10: 30 | EF10: 30 | EG10: 30 | EH10: 30 | EI10: 30 | EJ10: 30 | EK10: 31 | EL10: 31 | EM10: 31 | EN10: 31 | EO10: 31 | EP10: 31
F11: Macro | I11: Макропоказатели внешней среды | X11: 2021-07-01 | AA11: 2021-07-01 | AB11: 2021-08-01 | AC11: 2021-09-01 | AD11: 2021-10-01 | AE11: 2021-11-01 | AF11: 2021-12-01 | AG11: 2022-01-01 | AH11: 2022-02-01 | AI11: 2022-03-01 | AJ11: 2022-04-01 | AK11: 2022-05-01 | AL11: 2022-06-01 | AM11: 2022-07-01 | AN11: 2022-08-01 | AO11: 2022-09-01 | AP11: 2022-10-01 | AQ11: 2022-11-01 | AR11: 2022-12-01 | AS11: 2023-01-01 | AT11: 2023-02-01 | AU11: 2023-03-01 | AV11: 2023-04-01 | AW11: 2023-05-01 | AX11: 2023-06-01 | AY11: 2023-07-01 | AZ11: 2023-08-01 | BA11: 2023-09-01 | BB11: 2023-10-01 | BC11: 2023-11-01 | BD11: 2023-12-01 | BE11: 2024-01-01 | BF11: 2024-02-01 | BG11: 2024-03-01 | BH11: 2024-04-01 | BI11: 2024-05-01 | BJ11: 2024-06-01 | BK11: 2024-07-01 | BL11: 2024-08-01 | BM11: 2024-09-01 | BN11: 2024-10-01 | BO11: 2024-11-01 | BP11: 2024-12-01 | BQ11: 2025-01-01 | BR11: 2025-02-01 | BS11: 2025-03-01 | BT11: 2025-04-01 | BU11: 2025-05-01 | BV11: 2025-06-01 | BW11: 2025-07-01 | BX11: 2025-08-01 | BY11: 2025-09-01 | BZ11: 2025-10-01 | CA11: 2025-11-01 | CB11: 2025-12-01 | CC11: 2026-01-01 | CD11: 2026-02-01 | CE11: 2026-03-01 | CF11: 2026-04-01 | CG11: 2026-05-01 | CH11: 2026-06-01 | CI11: 2026-07-01 | CJ11: 2026-08-01 | CK11: 2026-09-01 | CL11: 2026-10-01 | CM11: 2026-11-01 | CN11: 2026-12-01 | CO11: 2027-01-01 | CP11: 2027-02-01 | CQ11: 2027-03-01 | CR11: 2027-04-01 | CS11: 2027-05-01 | CT11: 2027-06-01 | CU11: 2027-07-01 | CV11: 2027-08-01 | CW11: 2027-09-01 | CX11: 2027-10-01 | CY11: 2027-11-01 | CZ11: 2027-12-01 | DA11: 2028-01-01 | DB11: 2028-02-01 | DC11: 2028-03-01 | DD11: 2028-04-01 | DE11: 2028-05-01 | DF11: 2028-06-01 | DG11: 2028-07-01 | DH11: 2028-08-01 | DI11: 2028-09-01 | DJ11: 2028-10-01 | DK11: 2028-11-01 | DL11: 2028-12-01 | DM11: 2029-01-01 | DN11: 2029-02-01 | DO11: 2029-03-01 | DP11: 2029-04-01 | DQ11: 2029-05-01 | DR11: 2029-06-01 | DS11: 2029-07-01 | DT11: 2029-08-01 | DU11: 2029-09-01 | DV11: 2029-10-01 | DW11: 2029-11-01 | DX11: 2029-12-01 | DY11: 2030-01-01 | DZ11: 2030-02-01 | EA11: 2030-03-01 | EB11: 2030-04-01 | EC11: 2030-05-01 | ED11: 2030-06-01 | EE11: 2030-07-01 | EF11: 2030-08-01 | EG11: 2030-09-01 | EH11: 2030-10-01 | EI11: 2030-11-01 | EJ11: 2030-12-01 | EK11: 2031-01-01 | EL11: 2031-02-01 | EM11: 2031-03-01 | EN11: 2031-04-01 | EO11: 2031-05-01 | EP11: 2031-06-01
H12: тип листа | Q12: расчетный | X12: 2031-06-30 | AA12: 2021-07-31 | AB12: 2021-08-31 | AC12: 2021-09-30 | AD12: 2021-10-31 | AE12: 2021-11-30 | AF12: 2021-12-31 | AG12: 2022-01-31 | AH12: 2022-02-28 | AI12: 2022-03-31 | AJ12: 2022-04-30 | AK12: 2022-05-31 | AL12: 2022-06-30 | AM12: 2022-07-31 | AN12: 2022-08-31 | AO12: 2022-09-30 | AP12: 2022-10-31 | AQ12: 2022-11-30 | AR12: 2022-12-31 | AS12: 2023-01-31 | AT12: 2023-02-28 | AU12: 2023-03-31 | AV12: 2023-04-30 | AW12: 2023-05-31 | AX12: 2023-06-30 | AY12: 2023-07-31 | AZ12: 2023-08-31 | BA12: 2023-09-30 | BB12: 2023-10-31 | BC12: 2023-11-30 | BD12: 2023-12-31 | BE12: 2024-01-31 | BF12: 2024-02-29 | BG12: 2024-03-31 | BH12: 2024-04-30 | BI12: 2024-05-31 | BJ12: 2024-06-30 | BK12: 2024-07-31 | BL12: 2024-08-31 | BM12: 2024-09-30 | BN12: 2024-10-31 | BO12: 2024-11-30 | BP12: 2024-12-31 | BQ12: 2025-01-31 | BR12: 2025-02-28 | BS12: 2025-03-31 | BT12: 2025-04-30 | BU12: 2025-05-31 | BV12: 2025-06-30 | BW12: 2025-07-31 | BX12: 2025-08-31 | BY12: 2025-09-30 | BZ12: 2025-10-31 | CA12: 2025-11-30 | CB12: 2025-12-31 | CC12: 2026-01-31 | CD12: 2026-02-28 | CE12: 2026-03-31 | CF12: 2026-04-30 | CG12: 2026-05-31 | CH12: 2026-06-30 | CI12: 2026-07-31 | CJ12: 2026-08-31 | CK12: 2026-09-30 | CL12: 2026-10-31 | CM12: 2026-11-30 | CN12: 2026-12-31 | CO12: 2027-01-31 | CP12: 2027-02-28 | CQ12: 2027-03-31 | CR12: 2027-04-30 | CS12: 2027-05-31 | CT12: 2027-06-30 | CU12: 2027-07-31 | CV12: 2027-08-31 | CW12: 2027-09-30 | CX12: 2027-10-31 | CY12: 2027-11-30 | CZ12: 2027-12-31 | DA12: 2028-01-31 | DB12: 2028-02-29 | DC12: 2028-03-31 | DD12: 2028-04-30 | DE12: 2028-05-31 | DF12: 2028-06-30 | DG12: 2028-07-31 | DH12: 2028-08-31 | DI12: 2028-09-30 | DJ12: 2028-10-31 | DK12: 2028-11-30 | DL12: 2028-12-31 | DM12: 2029-01-31 | DN12: 2029-02-28 | DO12: 2029-03-31 | DP12: 2029-04-30 | DQ12: 2029-05-31 | DR12: 2029-06-30 | DS12: 2029-07-31 | DT12: 2029-08-31 | DU12: 2029-09-30 | DV12: 2029-10-31 | DW12: 2029-11-30 | DX12: 2029-12-31 | DY12: 2030-01-31 | DZ12: 2030-02-28 | EA12: 2030-03-31 | EB12: 2030-04-30 | EC12: 2030-05-31 | ED12: 2030-06-30 | EE12: 2030-07-31 | EF12: 2030-08-31 | EG12: 2030-09-30 | EH12: 2030-10-31 | EI12: 2030-11-30 | EJ12: 2030-12-31 | EK12: 2031-01-31 | EL12: 2031-02-28 | EM12: 2031-03-31 | EN12: 2031-04-30 | EO12: 2031-05-31 | EP12: 2031-06-30
H13: показатель | M13: ед.изм. | Q13: значение | X13: итого | AA13: 2021-07-01 | AB13: 2021-08-01 | AC13: 2021-09-01 | AD13: 2021-10-01 | AE13: 2021-11-01 | AF13: 2021-12-01 | AG13: 2022-01-01 | AH13: 2022-02-01 | AI13: 2022-03-01 | AJ13: 2022-04-01 | AK13: 2022-05-01 | AL13: 2022-06-01 | AM13: 2022-07-01 | AN13: 2022-08-01 | AO13: 2022-09-01 | AP13: 2022-10-01 | AQ13: 2022-11-01 | AR13: 2022-12-01 | AS13: 2023-01-01 | AT13: 2023-02-01 | AU13: 2023-03-01 | AV13: 2023-04-01 | AW13: 2023-05-01 | AX13: 2023-06-01 | AY13: 2023-07-01 | AZ13: 2023-08-01 | BA13: 2023-09-01 | BB13: 2023-10-01 | BC13: 2023-11-01 | BD13: 2023-12-01 | BE13: 2024-01-01 | BF13: 2024-02-01 | BG13: 2024-03-01 | BH13: 2024-04-01 | BI13: 2024-05-01 | BJ13: 2024-06-01 | BK13: 2024-07-01 | BL13: 2024-08-01 | BM13: 2024-09-01 | BN13: 2024-10-01 | BO13: 2024-11-01 | BP13: 2024-12-01 | BQ13: 2025-01-01 | BR13: 2025-02-01 | BS13: 2025-03-01 | BT13: 2025-04-01 | BU13: 2025-05-01 | BV13: 2025-06-01 | BW13: 2025-07-01 | BX13: 2025-08-01 | BY13: 2025-09-01 | BZ13: 2025-10-01 | CA13: 2025-11-01 | CB13: 2025-12-01 | CC13: 2026-01-01 | CD13: 2026-02-01 | CE13: 2026-03-01 | CF13: 2026-04-01 | CG13: 2026-05-01 | CH13: 2026-06-01 | CI13: 2026-07-01 | CJ13: 2026-08-01 | CK13: 2026-09-01 | CL13: 2026-10-01 | CM13: 2026-11-01 | CN13: 2026-12-01 | CO13: 2027-01-01 | CP13: 2027-02-01 | CQ13: 2027-03-01 | CR13: 2027-04-01 | CS13: 2027-05-01 | CT13: 2027-06-01 | CU13: 2027-07-01 | CV13: 2027-08-01 | CW13: 2027-09-01 | CX13: 2027-10-01 | CY13: 2027-11-01 | CZ13: 2027-12-01 | DA13: 2028-01-01 | DB13: 2028-02-01 | DC13: 2028-03-01 | DD13: 2028-04-01 | DE13: 2028-05-01 | DF13: 2028-06-01 | DG13: 2028-07-01 | DH13: 2028-08-01 | DI13: 2028-09-01 | DJ13: 2028-10-01 | DK13: 2028-11-01 | DL13: 2028-12-01 | DM13: 2029-01-01 | DN13: 2029-02-01 | DO13: 2029-03-01 | DP13: 2029-04-01 | DQ13: 2029-05-01 | DR13: 2029-06-01 | DS13: 2029-07-01 | DT13: 2029-08-01 | DU13: 2029-09-01 | DV13: 2029-10-01 | DW13: 2029-11-01 | DX13: 2029-12-01 | DY13: 2030-01-01 | DZ13: 2030-02-01 | EA13: 2030-03-01 | EB13: 2030-04-01 | EC13: 2030-05-01 | ED13: 2030-06-01 | EE13: 2030-07-01 | EF13: 2030-08-01 | EG13: 2030-09-01 | EH13: 2030-10-01 | EI13: 2030-11-01 | EJ13: 2030-12-01 | EK13: 2031-01-01 | EL13: 2031-02-01 | EM13: 2031-03-01 | EN13: 2031-04-01 | EO13: 2031-05-01 | EP13: 2031-06-01
D14: 0 | E14: 0 | F14: 0 | G14: 0 | S14: 0 | T14: 0
A15: 15 | H15: разработка финмоделей: https://mngmnt.ru/
A16: 16 | G16: 0 | H16: Параметры рабочего дня сотрудника
A17: 17 | G17: 0 | H17: Параметры рабочего дня сотрудника | I17: Время одной смены рабочего дня | M17: кол-во часов | P17: * | Q17: 8 | S17: 0
A18: 18 | G18: 0 | H18: Параметры рабочего дня сотрудника | I18: Количество рабочих дней в месяце | M18: р.дней/мес. | P18: * | Q18: 20 | S18: 0
A19: 19 | G19: 0 | H19: Параметры рабочего дня сотрудника | I19: Количество рабочих дней в расчетном периоде | M19: р.дней/расч.пер. | Q19: 20 | S19: 0
A20: 20 | G20: 0 | H20: Параметры рабочего дня сотрудника | I20: Количество рабочих часов в расчетном периоде | M20: р.часов/расч.пер. | Q20: 160 | S20: 0
A21: 21
A22: 22 | G22: 0 | H22: Система налогообложения | AA22: ОСНО | AB22: ОСНО | AC22: ОСНО | AD22: ОСНО | AE22: ОСНО | AF22: ОСНО | AG22: ОСНО | AH22: ОСНО | AI22: ОСНО | AJ22: ОСНО | AK22: ОСНО | AL22: ОСНО | AM22: ОСНО | AN22: ОСНО | AO22: ОСНО | AP22: ОСНО | AQ22: ОСНО | AR22: ОСНО | AS22: ОСНО | AT22: ОСНО | AU22: ОСНО | AV22: ОСНО | AW22: ОСНО | AX22: ОСНО | AY22: ОСНО | AZ22: ОСНО | BA22: ОСНО | BB22: ОСНО | BC22: ОСНО | BD22: ОСНО | BE22: ОСНО | BF22: ОСНО | BG22: ОСНО | BH22: ОСНО | BI22: ОСНО | BJ22: ОСНО | BK22: ОСНО | BL22: ОСНО | BM22: ОСНО | BN22: ОСНО | BO22: ОСНО | BP22: ОСНО | BQ22: ОСНО | BR22: ОСНО | BS22: ОСНО | BT22: ОСНО | BU22: ОСНО | BV22: ОСНО | BW22: ОСНО | BX22: ОСНО | BY22: ОСНО | BZ22: ОСНО | CA22: ОСНО | CB22: ОСНО | CC22: ОСНО | CD22: ОСНО | CE22: ОСНО | CF22: ОСНО | CG22: ОСНО | CH22: ОСНО | CI22: ОСНО | CJ22: ОСНО | CK22: ОСНО | CL22: ОСНО | CM22: ОСНО | CN22: ОСНО | CO22: ОСНО | CP22: ОСНО | CQ22: ОСНО | CR22: ОСНО | CS22: ОСНО | CT22: ОСНО | CU22: ОСНО | CV22: ОСНО | CW22: ОСНО | CX22: ОСНО | CY22: ОСНО | CZ22: ОСНО | DA22: ОСНО | DB22: ОСНО | DC22: ОСНО | DD22: ОСНО | DE22: ОСНО | DF22: ОСНО | DG22: ОСНО | DH22: ОСНО | DI22: ОСНО | DJ22: ОСНО | DK22: ОСНО | DL22: ОСНО | DM22: ОСНО | DN22: ОСНО | DO22: ОСНО | DP22: ОСНО | DQ22: ОСНО | DR22: ОСНО | DS22: ОСНО | DT22: ОСНО | DU22: ОСНО | DV22: ОСНО | DW22: ОСНО | DX22: ОСНО | DY22: ОСНО | DZ22: ОСНО | EA22: ОСНО | EB22: ОСНО | EC22: ОСНО | ED22: ОСНО | EE22: ОСНО | EF22: ОСНО | EG22: ОСНО | EH22: ОСНО | EI22: ОСНО | EJ22: ОСНО | EK22: ОСНО | EL22: ОСНО | EM22: ОСНО | EN22: ОСНО | EO22: ОСНО | EP22: ОСНО
A23: 23 | G23: 0 | H23: Система налогообложения | I23: Единое значение для всех периодов расчета | M23: вып.список | P23: * | Q23: ОСНО | R23: ^ | S23: 0
A24: 24 | G24: 0 | H24: Система налогообложения | I24: Вручную для каждого периода расчетов | M24: вып.список | Y24: *
A25: 25 | G25: 0 | H25: Система налогообложения | I25: г | J25: 2021 | M25: вып.список | P25: * | R25: ^ | S25: 0
A26: 26 | G26: 0 | H26: Система налогообложения | I26: г | J26: 2022 | M26: вып.список | P26: * | R26: ^ | S26: 0
A27: 27 | G27: 0 | H27: Система налогообложения | I27: г | J27: 2023 | M27: вып.список | P27: * | R27: ^ | S27: 0
A28: 28 | G28: 0 | H28: Система налогообложения | I28: г | J28: 2024 | M28: вып.список | P28: * | R28: ^ | S28: 0
A29: 29 | L29: пустая строка
A30: 30
A31: 31 | G31: 0 | H31: Ставки налога на прибыль
A32: 32 | G32: 0 | H32: Ставки налога на прибыль | I32: ОСНО | M32: % | P32: * | Q32: 0.2 | S32: 0
A33: 33 | G33: 0 | H33: Ставки налога на прибыль | I33: УСН(6%) | M33: % | P33: * | Q33: 0.06 | S33: 0
A34: 34 | G34: 0 | H34: Ставки налога на прибыль | I34: УСН(6%) | J34: ограничения суммы НП на вычет соцсборов | M34: % | P34: * | Q34: 0.5 | S34: 0
A35: 35 | G35: 0 | H35: Ставки налога на прибыль | I35: УСН(15%) | M35: % | P35: * | Q35: 0.15 | S35: 0
A36: 36 | G36: 0 | H36: Ставки налога на прибыль | I36: УСН(15%) | J36: минимальный процент от дохода | M36: % | P36: * | Q36: 0.01 | S36: 0
A37: 37 | G37: 0 | H37: Ставки налога на прибыль | I37: ТОСЭР | M37: %
A38: 38 | G38: 0 | H38: Ставки налога на прибыль | I38: г | J38: 5 | M38: % | P38: * | Q38: 0 | S38: 0
A39: 39 | G39: 0 | H39: Ставки налога на прибыль | I39: г | J39: 10 | M39: % | P39: * | Q39: 0.12 | S39: 0
A40: 40 | L40: пустая строка
A41: 41
A42: 42 | G42: 0 | H42: Ставки НДС
A43: 43 | G43: 0 | H43: Ставки НДС | I43: ОСНО | M43: % | P43: * | Q43: 0.2 | S43: 0
A44: 44 | G44: 0 | H44: Ставки НДС | I44: УСН(6%) | M44: % | P44: * | Q44: 0 | S44: 0
A45: 45 | G45: 0 | H45: Ставки НДС | I45: УСН(15%) | M45: % | P45: * | Q45: 0 | S45: 0
A46: 46 | G46: 0 | H46: Ставки НДС | I46: ТОСЭР | M46: %
A47: 47 | G47: 0 | H47: Ставки НДС | I47: г | J47: 5 | M47: % | P47: * | Q47: 0.2 | S47: 0
A48: 48 | G48: 0 | H48: Ставки НДС | I48: г | J48: 10 | M48: % | P48: * | Q48: 0.2 | S48: 0
A49: 49 | L49: пустая строка
A50: 50
A51: 51 | G51: 0 | H51: Ставки соцсборов
A52: 52 | G52: 0 | H52: Ставки соцсборов | I52: ОСНО | M52: % | P52: * | Q52: 0.3 | S52: 0
A53: 53 | G53: 0 | H53: Ставки соцсборов | I53: УСН(6%) | M53: % | P53: * | Q53: 0.3 | S53: 0
A54: 54 | G54: 0 | H54: Ставки соцсборов | I54: УСН(15%) | M54: % | P54: * | Q54: 0.3 | S54: 0
A55: 55 | G55: 0 | H55: Ставки соцсборов | I55: ТОСЭР | M55: %
A56: 56 | G56: 0 | H56: Ставки соцсборов | I56: г | J56: 5 | M56: % | P56: * | Q56: 0.076 | S56: 0
A57: 57 | G57: 0 | H57: Ставки соцсборов | I57: г | J57: 10 | M57: % | P57: * | Q57: 0.076 | S57: 0
A58: 58 | L58: пустая строка
A59: 59
A60: 60 | G60: 0 | H60: Ставки земельного налога | AA60: 0.015 | AB60: 0.015 | AC60: 0.015 | AD60: 0.015 | AE60: 0.015 | AF60: 0.015 | AG60: 0.015 | AH60: 0.015 | AI60: 0.015 | AJ60: 0.015 | AK60: 0.015 | AL60: 0.015 | AM60: 0.015 | AN60: 0.015 | AO60: 0.015 | AP60: 0.015 | AQ60: 0.015 | AR60: 0.015 | AS60: 0.015 | AT60: 0.015 | AU60: 0.015 | AV60: 0.015 | AW60: 0.015 | AX60: 0.015 | AY60: 0.015 | AZ60: 0.015 | BA60: 0.015 | BB60: 0.015 | BC60: 0.015 | BD60: 0.015 | BE60: 0.015 | BF60: 0.015 | BG60: 0.015 | BH60: 0.015 | BI60: 0.015 | BJ60: 0.015 | BK60: 0.015 | BL60: 0.015 | BM60: 0.015 | BN60: 0.015 | BO60: 0.015 | BP60: 0.015 | BQ60: 0.015 | BR60: 0.015 | BS60: 0.015 | BT60: 0.015 | BU60: 0.015 | BV60: 0.015 | BW60: 0.015 | BX60: 0.015 | BY60: 0.015 | BZ60: 0.015 | CA60: 0.015 | CB60: 0.015 | CC60: 0.015 | CD60: 0.015 | CE60: 0.015 | CF60: 0.015 | CG60: 0.015 | CH60: 0.015 | CI60: 0.015 | CJ60: 0.015 | CK60: 0.015 | CL60: 0.015 | CM60: 0.015 | CN60: 0.015 | CO60: 0.015 | CP60: 0.015 | CQ60: 0.015 | CR60: 0.015 | CS60: 0.015 | CT60: 0.015 | CU60: 0.015 | CV60: 0.015 | CW60: 0.015 | CX60: 0.015 | CY60: 0.015 | CZ60: 0.015 | DA60: 0.015 | DB60: 0.015 | DC60: 0.015 | DD60: 0.015 | DE60: 0.015 | DF60: 0.015 | DG60: 0.015 | DH60: 0.015 | DI60: 0.015 | DJ60: 0.015 | DK60: 0.015 | DL60: 0.015 | DM60: 0.015 | DN60: 0.015 | DO60: 0.015 | DP60: 0.015 | DQ60: 0.015 | DR60: 0.015 | DS60: 0.015 | DT60: 0.015 | DU60: 0.015 | DV60: 0.015 | DW60: 0.015 | DX60: 0.015 | DY60: 0.015 | DZ60: 0.015 | EA60: 0.015 | EB60: 0.015 | EC60: 0.015 | ED60: 0.015 | EE60: 0.015 | EF60: 0.015 | EG60: 0.015 | EH60: 0.015 | EI60: 0.015 | EJ60: 0.015 | EK60: 0.015 | EL60: 0.015 | EM60: 0.015 | EN60: 0.015 | EO60: 0.015 | EP60: 0.015 | EQ60: 0.015 | ER60: 0.015 | ES60: 0.015 | ET60: 0.015 | EU60: 0.015 | EV60: 0.015 | EW60: 0.015 | EX60: 0.015 | EY60: 0.015 | EZ60: 0.015 | FA60: 0.015 | FB60: 0.015 | FC60: 0.015
A61: 61 | G61: 0 | H61: Ставки земельного налога | I61: ОСНО | M61: % | P61: * | Q61: 0.015 | S61: 0
A62: 62 | G62: 0 | H62: Ставки земельного налога | I62: УСН(6%) | M62: % | P62: * | Q62: 0.015 | S62: 0
A63: 63 | G63: 0 | H63: Ставки земельного налога | I63: УСН(15%) | M63: % | P63: * | Q63: 0.015 | S63: 0
A64: 64 | G64: 0 | H64: Ставки земельного налога | I64: ТОСЭР | M64: %
A65: 65 | G65: 0 | H65: Ставки земельного налога | I65: г | J65: 5 | M65: % | P65: * | Q65: 0 | S65: 0
A66: 66 | G66: 0 | H66: Ставки земельного налога | I66: г | J66: 20 | M66: % | P66: * | Q66: 0 | S66: 0
A67: 67 | L67: пустая строка
A68: 68
A69: 69 | G69: 0 | H69: Ставки налога на имущество | AA69: 0.015 | AB69: 0.015 | AC69: 0.015 | AD69: 0.015 | AE69: 0.015 | AF69: 0.015 | AG69: 0.015 | AH69: 0.015 | AI69: 0.015 | AJ69: 0.015 | AK69: 0.015 | AL69: 0.015 | AM69: 0.015 | AN69: 0.015 | AO69: 0.015 | AP69: 0.015 | AQ69: 0.015 | AR69: 0.015 | AS69: 0.015 | AT69: 0.015 | AU69: 0.015 | AV69: 0.015 | AW69: 0.015 | AX69: 0.015 | AY69: 0.015 | AZ69: 0.015 | BA69: 0.015 | BB69: 0.015 | BC69: 0.015 | BD69: 0.015 | BE69: 0.015 | BF69: 0.015 | BG69: 0.015 | BH69: 0.015 | BI69: 0.015 | BJ69: 0.015 | BK69: 0.015 | BL69: 0.015 | BM69: 0.015 | BN69: 0.015 | BO69: 0.015 | BP69: 0.015 | BQ69: 0.015 | BR69: 0.015 | BS69: 0.015 | BT69: 0.015 | BU69: 0.015 | BV69: 0.015 | BW69: 0.015 | BX69: 0.015 | BY69: 0.015 | BZ69: 0.015 | CA69: 0.015 | CB69: 0.015 | CC69: 0.015 | CD69: 0.015 | CE69: 0.015 | CF69: 0.015 | CG69: 0.015 | CH69: 0.015 | CI69: 0.015 | CJ69: 0.015 | CK69: 0.015 | CL69: 0.015 | CM69: 0.015 | CN69: 0.015 | CO69: 0.015 | CP69: 0.015 | CQ69: 0.015 | CR69: 0.015 | CS69: 0.015 | CT69: 0.015 | CU69: 0.015 | CV69: 0.015 | CW69: 0.015 | CX69: 0.015 | CY69: 0.015 | CZ69: 0.015 | DA69: 0.015 | DB69: 0.015 | DC69: 0.015 | DD69: 0.015 | DE69: 0.015 | DF69: 0.015 | DG69: 0.015 | DH69: 0.015 | DI69: 0.015 | DJ69: 0.015 | DK69: 0.015 | DL69: 0.015 | DM69: 0.015 | DN69: 0.015 | DO69: 0.015 | DP69: 0.015 | DQ69: 0.015 | DR69: 0.015 | DS69: 0.015 | DT69: 0.015 | DU69: 0.015 | DV69: 0.015 | DW69: 0.015 | DX69: 0.015 | DY69: 0.015 | DZ69: 0.015 | EA69: 0.015 | EB69: 0.015 | EC69: 0.015 | ED69: 0.015 | EE69: 0.015 | EF69: 0.015 | EG69: 0.015 | EH69: 0.015 | EI69: 0.015 | EJ69: 0.015 | EK69: 0.015 | EL69: 0.015 | EM69: 0.015 | EN69: 0.015 | EO69: 0.015 | EP69: 0.015 | EQ69: 0.015 | ER69: 0.015 | ES69: 0.015 | ET69: 0.015 | EU69: 0.015 | EV69: 0.015 | EW69: 0.015 | EX69: 0.015 | EY69: 0.015 | EZ69: 0.015 | FA69: 0.015 | FB69: 0.015 | FC69: 0.015
A70: 70 | G70: 0 | H70: Ставки налога на имущество | I70: ОСНО | M70: % | P70: * | Q70: 0.015 | S70: 0
A71: 71 | G71: 0 | H71: Ставки налога на имущество | I71: УСН(6%) | M71: % | P71: * | Q71: 0.015 | S71: 0
A72: 72 | G72: 0 | H72: Ставки налога на имущество | I72: УСН(15%) | M72: % | P72: * | Q72: 0.015 | S72: 0
A73: 73 | G73: 0 | H73: Ставки налога на имущество | I73: ТОСЭР | M73: %
A74: 74 | G74: 0 | H74: Ставки налога на имущество | I74: г | J74: 5 | M74: % | P74: * | Q74: 0 | S74: 0
A75: 75 | G75: 0 | H75: Ставки налога на имущество | I75: г | J75: 20 | M75: % | P75: * | Q75: 0 | S75: 0
A76: 76 | L76: пустая строка
A77: 77
A78: 78 | G78: 0 | H78: Ставки транспортного налога | AA78: 0.0045 | AB78: 0.0045 | AC78: 0.0045 | AD78: 0.0045 | AE78: 0.0045 | AF78: 0.0045 | AG78: 0.0045 | AH78: 0.0045 | AI78: 0.0045 | AJ78: 0.0045 | AK78: 0.0045 | AL78: 0.0045 | AM78: 0.0045 | AN78: 0.0045 | AO78: 0.0045 | AP78: 0.0045 | AQ78: 0.0045 | AR78: 0.0045 | AS78: 0.0045 | AT78: 0.0045 | AU78: 0.0045 | AV78: 0.0045 | AW78: 0.0045 | AX78: 0.0045 | AY78: 0.0045 | AZ78: 0.0045 | BA78: 0.0045 | BB78: 0.0045 | BC78: 0.0045 | BD78: 0.0045 | BE78: 0.0045 | BF78: 0.0045 | BG78: 0.0045 | BH78: 0.0045 | BI78: 0.0045 | BJ78: 0.0045 | BK78: 0.0045 | BL78: 0.0045 | BM78: 0.0045 | BN78: 0.0045 | BO78: 0.0045 | BP78: 0.0045 | BQ78: 0.0045 | BR78: 0.0045 | BS78: 0.0045 | BT78: 0.0045 | BU78: 0.0045 | BV78: 0.0045 | BW78: 0.0045 | BX78: 0.0045 | BY78: 0.0045 | BZ78: 0.0045 | CA78: 0.0045 | CB78: 0.0045 | CC78: 0.0045 | CD78: 0.0045 | CE78: 0.0045 | CF78: 0.0045 | CG78: 0.0045 | CH78: 0.0045 | CI78: 0.0045 | CJ78: 0.0045 | CK78: 0.0045 | CL78: 0.0045 | CM78: 0.0045 | CN78: 0.0045 | CO78: 0.0045 | CP78: 0.0045 | CQ78: 0.0045 | CR78: 0.0045 | CS78: 0.0045 | CT78: 0.0045 | CU78: 0.0045 | CV78: 0.0045 | CW78: 0.0045 | CX78: 0.0045 | CY78: 0.0045 | CZ78: 0.0045 | DA78: 0.0045 | DB78: 0.0045 | DC78: 0.0045 | DD78: 0.0045 | DE78: 0.0045 | DF78: 0.0045 | DG78: 0.0045 | DH78: 0.0045 | DI78: 0.0045 | DJ78: 0.0045 | DK78: 0.0045 | DL78: 0.0045 | DM78: 0.0045 | DN78: 0.0045 | DO78: 0.0045 | DP78: 0.0045 | DQ78: 0.0045 | DR78: 0.0045 | DS78: 0.0045 | DT78: 0.0045 | DU78: 0.0045 | DV78: 0.0045 | DW78: 0.0045 | DX78: 0.0045 | DY78: 0.0045 | DZ78: 0.0045 | EA78: 0.0045 | EB78: 0.0045 | EC78: 0.0045 | ED78: 0.0045 | EE78: 0.0045 | EF78: 0.0045 | EG78: 0.0045 | EH78: 0.0045 | EI78: 0.0045 | EJ78: 0.0045 | EK78: 0.0045 | EL78: 0.0045 | EM78: 0.0045 | EN78: 0.0045 | EO78: 0.0045 | EP78: 0.0045 | EQ78: 0.0045 | ER78: 0.0045 | ES78: 0.0045 | ET78: 0.0045 | EU78: 0.0045 | EV78: 0.0045 | EW78: 0.0045 | EX78: 0.0045 | EY78: 0.0045 | EZ78: 0.0045 | FA78: 0.0045 | FB78: 0.0045 | FC78: 0.0045
A79: 79 | G79: 0 | H79: Ставки транспортного налога | I79: ОСНО | M79: % | P79: * | Q79: 0.0045 | S79: 0
A80: 80 | G80: 0 | H80: Ставки транспортного налога | I80: УСН(6%) | M80: % | P80: * | Q80: 0.0045 | S80: 0
A81: 81 | G81: 0 | H81: Ставки транспортного налога | I81: УСН(15%) | M81: % | P81: * | Q81: 0.0045 | S81: 0
A82: 82 | G82: 0 | H82: Ставки транспортного налога | I82: ТОСЭР | M82: %
A83: 83 | G83: 0 | H83: Ставки транспортного налога | I83: г | J83: 5 | M83: % | P83: * | Q83: 0 | S83: 0
A84: 84 | G84: 0 | H84: Ставки транспортного налога | I84: г | J84: 20 | M84: % | P84: * | Q84: 0 | S84: 0
A85: 85 | L85: пустая строка
A86: 86
A87: 87 | G87: 0 | H87: НДС к возмещению по капзатратам
A88: 88 | G88: 0 | H88: НДС к возмещению по капзатратам | I88: кол-во месяцев на возмещение НДС | M88: кол-во мес. | P88: * | Q88: 7 | S88: 0
H91: разработка финмоделей: https://mngmnt.ru/

Sheet Items
I1: =COLUMN() -> 9 | M1: =COLUMN() -> 13 | Q1: =COLUMN() -> 17 | AD1: =COLUMN() -> 30 | AH1: =COLUMN() -> 34 | AL1: =COLUMN() -> 38 | AN1: =COLUMN() -> 40 | AQ1: =COLUMN() -> 43 | AU1: =COLUMN() -> 47 | AY1: =COLUMN() -> 51 | BC1: =COLUMN() -> 55 | BG1: =COLUMN() -> 59 | BK1: =COLUMN() -> 63 | BO1: =COLUMN() -> 67 | BS1: =COLUMN() -> 71
I2: =LEFT(ADDRESS(1,COLUMN(),4),LEN(ADDRESS(1,COLUMN(),4))-1) -> I | M2: =LEFT(ADDRESS(1,COLUMN(),4),LEN(ADDRESS(1,COLUMN(),4))-1) -> M | Q2: =LEFT(ADDRESS(1,COLUMN(),4),LEN(ADDRESS(1,COLUMN(),4))-1) -> Q | AD2: =LEFT(ADDRESS(1,COLUMN(),4),LEN(ADDRESS(1,COLUMN(),4))-1) -> AD | AH2: =LEFT(ADDRESS(1,COLUMN(),4),LEN(ADDRESS(1,COLUMN(),4))-1) -> AH | AL2: =LEFT(ADDRESS(1,COLUMN(),4),LEN(ADDRESS(1,COLUMN(),4))-1) -> AL | AN2: =LEFT(ADDRESS(1,COLUMN(),4),LEN(ADDRESS(1,COLUMN(),4))-1) -> AN | AQ2: =LEFT(ADDRESS(1,COLUMN(),4),LEN(ADDRESS(1,COLUMN(),4))-1) -> AQ | AU2: =LEFT(ADDRESS(1,COLUMN(),4),LEN(ADDRESS(1,COLUMN(),4))-1) -> AU | AY2: =LEFT(ADDRESS(1,COLUMN(),4),LEN(ADDRESS(1,COLUMN(),4))-1) -> AY | BC2: =LEFT(ADDRESS(1,COLUMN(),4),LEN(ADDRESS(1,COLUMN(),4))-1) -> BC | BG2: =LEFT(ADDRESS(1,COLUMN(),4),LEN(ADDRESS(1,COLUMN(),4))-1) -> BG | BK2: =LEFT(ADDRESS(1,COLUMN(),4),LEN(ADDRESS(1,COLUMN(),4))-1) -> BK | BO2: =LEFT(ADDRESS(1,COLUMN(),4),LEN(ADDRESS(1,COLUMN(),4))-1) -> BO | BS2: =LEFT(ADDRESS(1,COLUMN(),4),LEN(ADDRESS(1,COLUMN(),4))-1) -> BS
F11: =INDIRECT("START!I30") -> Items | I11: =INDIRECT("START!K30") -> Справочники статей доходов и расходов и т.д.
I12: =START!$I$32 -> Mrkting | M12: =START!$I$32 -> Mrkting | Q12: =START!$I$32 -> Mrkting | AD12: =START!$I$34 -> Sales | AH12: =START!$I$34 -> Sales | AL12: =START!$I$35 -> Prdction | AN12: =START!$I$35 -> Prdction | AQ12: =START!$I$35 -> Prdction | AU12: =START!$I$33 -> CapEx | AY12: =START!$I$33 -> CapEx | BC12: =START!$I$37 -> Exp | BG12: =START!$I$36 -> HR | BK12: =START!$I$54 -> Calc | BO12: =START!$I$54 -> Calc | BS12: =START!$I$54 -> Calc
I13: Капитальные затраты маркетинга | M13: Прямые переменные расходы маркетинга | Q13: Прямые постоянные расходы маркетинга | AD13: Прямые переменные коммерческие расходы | AH13: Прямые постоянные расходы отдела продаж | AL13: Прямые производственные расходы | AN13: ед.изм. | AQ13: Постоянные производственные расходы | AU13: Капзатраты разовые амортизируемые | AY13: Капзатраты переменные амортизируемые | BC13: Постоянные расходы | BG13: Расходы на персонал | BK13: Статьи Баланса | BO13: Статьи отчета о прибылях и убытках | BS13: Статьи отчета о ДДС
D14: =INDIRECT("Cntrl!M17") -> 0 | E14: =SUM($F14:$PM14) -> 0 | F14: =IFERROR(_xlfn.SHEET($A$1)-SUMIFS(Cntrl!O$15:O$100000,Cntrl!I$15:I$100000,$F$11),1) -> 0 | I14: =IF(OR(I13=0,I13=""),1,IF(COUNTIF(13:13,I13)=1,0,1)) -> 0 | K14: =SUM(K$15:K$100000) -> 0 | M14: =IF(OR(M13=0,M13=""),1,IF(COUNTIF(13:13,M13)=1,0,1)) -> 0 | O14: =SUM(O$15:O$100000) -> 0 | Q14: =IF(OR(Q13=0,Q13=""),1,IF(COUNTIF(13:13,Q13)=1,0,1)) -> 0 | S14: =SUM(S$15:S$100000) -> 0 | AD14: =IF(OR(AD13=0,AD13=""),1,IF(COUNTIF(13:13,AD13)=1,0,1)) -> 0 | AF14: =SUM(AF$15:AF$100000) -> 0 | AH14: =IF(OR(AH13=0,AH13=""),1,IF(COUNTIF(13:13,AH13)=1,0,1)) -> 0 | AJ14: =SUM(AJ$15:AJ$100000) -> 0 | AL14: =IF(OR(AL13=0,AL13=""),1,IF(COUNTIF(13:13,AL13)=1,0,1)) -> 0 | AN14: =IF(OR(AN13=0,AN13=""),1,IF(COUNTIF(13:13,AN13)=1,0,1)) -> 0 | AO14: =SUM(AO$15:AO$100000) -> 0 | AQ14: =IF(OR(AQ13=0,AQ13=""),1,IF(COUNTIF(13:13,AQ13)=1,0,1)) -> 0 | AS14: =SUM(AS$15:AS$100000) -> 0 | AU14: =IF(OR(AU13=0,AU13=""),1,IF(COUNTIF(13:13,AU13)=1,0,1)) -> 0 | AW14: =SUM(AW$15:AW$100000) -> 0 | AY14: =IF(OR(AY13=0,AY13=""),1,IF(COUNTIF(13:13,AY13)=1,0,1)) -> 0 | BA14: =SUM(BA$15:BA$100000) -> 0 | BC14: =IF(OR(BC13=0,BC13=""),1,IF(COUNTIF(13:13,BC13)=1,0,1)) -> 0 | BE14: =SUM(BE$15:BE$100000) -> 0 | BG14: =IF(OR(BG13=0,BG13=""),1,IF(COUNTIF(13:13,BG13)=1,0,1)) -> 0 | BI14: =SUM(BI$15:BI$100000) -> 0 | BK14: =IF(OR(BK13=0,BK13=""),1,IF(COUNTIF(13:13,BK13)=1,0,1)) -> 0 | BM14: =SUM(BM$15:BM$100000) -> 0 | BO14: =IF(OR(BO13=0,BO13=""),1,IF(COUNTIF(13:13,BO13)=1,0,1)) -> 0 | BQ14: =SUM(BQ$15:BQ$100000) -> 0 | BS14: =IF(OR(BS13=0,BS13=""),1,IF(COUNTIF(13:13,BS13)=1,0,1)) -> 0 | BU14: =SUM(BU$15:BU$100000) -> 0
A15: =ROW() -> 15 | I15: =$F$11&"!"&I$2&$A16&":"&I$2&($A15+MAX(J$15:J$100000)) -> Items!I16:I18 | M15: =$F$11&"!"&M$2&$A16&":"&M$2&($A15+MAX(N$15:N$100000)) -> Items!M16:M18 | Q15: =$F$11&"!"&Q$2&$A16&":"&Q$2&($A15+MAX(R$15:R$100000)) -> Items!Q16:Q17 | AD15: =$F$11&"!"&AD$2&$A16&":"&AD$2&($A15+MAX(AE$15:AE$100000)) -> Items!AD16:AD18 | AH15: =$F$11&"!"&AH$2&$A16&":"&AH$2&($A15+MAX(AI$15:AI$100000)) -> Items!AH16:AH17 | AL15: =$F$11&"!"&AL$2&$A16&":"&AL$2&($A15+MAX(AM$15:AM$100000)) -> Items!AL16:AL18 | AN15: =$F$11&"!"&AN$2&$A16&":"&AN$2&($A15+MAX(AO$15:AO$100000)) -> Items!AN16:AN15 | AQ15: =$F$11&"!"&AQ$2&$A16&":"&AQ$2&($A15+MAX(AR$15:AR$100000)) -> Items!AQ16:AQ17 | AU15: =$F$11&"!"&AU$2&$A16&":"&AU$2&($A15+MAX(AV$15:AV$100000)) -> Items!AU16:AU25 | AY15: =$F$11&"!"&AY$2&$A16&":"&AY$2&($A15+MAX(AZ$15:AZ$100000)) -> Items!AY16:AY25 | BC15: =$F$11&"!"&BC$2&$A16&":"&BC$2&($A15+MAX(BD$15:BD$100000)) -> Items!BC16:BC22 | BG15: =$F$11&"!"&BG$2&$A16&":"&BG$2&($A15+MAX(BH$15:BH$100000)) -> Items!BG16:BG20 | BK15: =$F$11&"!"&BK$2&$A16&":"&BK$2&($A15+MAX(BL$15:BL$100000)) -> Items!BK16:BK46 | BO15: =$F$11&"!"&BO$2&$A16&":"&BO$2&($A15+MAX(BP$15:BP$100000)) -> Items!BO16:BO35 | BS15: =$F$11&"!"&BS$2&$A16&":"&BS$2&($A15+MAX(BT$15:BT$100000)) -> Items!BS16:BS42
A16: =ROW() -> 16 | H16: * | I16: Подготовка рекламных материалов | J16: =MAX(J$15:J15)+1 -> 1 | K16: =IF(OR(I16=0,I16=""),0,IF(COUNTIF(I$15:I$100000,I16)=1,0,1)) -> 0 | L16: * | M16: Представительские расходы | N16: =MAX(N$15:N15)+1 -> 1 | O16: =IF(OR(M16=0,M16=""),0,IF(COUNTIF(M$15:M$100000,M16)=1,0,1)) -> 0 | Q16: ФОТ сотрудников маркетинга | R16: =MAX(R$15:R15)+1 -> 1 | S16: =IF(OR(Q16=0,Q16=""),0,IF(COUNTIF(Q$15:Q$100000,Q16)=1,0,1)) -> 0 | AC16: * | AD16: Представительские расходы | AE16: =MAX(AE$15:AE15)+1 -> 1 | AF16: =IF(OR(AD16=0,AD16=""),0,IF(COUNTIF(AD$15:AD$100000,AD16)=1,0,1)) -> 0 | AH16: ФОТ продавцов-консультантов | AI16: =MAX(AI$15:AI15)+1 -> 1 | AJ16: =IF(OR(AH16=0,AH16=""),0,IF(COUNTIF(AH$15:AH$100000,AH16)=1,0,1)) -> 0 | AK16: * | AL16: Готовые очки | AM16: =MAX(AM$15:AM15)+1 -> 1 | AN16: шт | AO16: =IF(OR(AL16=0,AL16=""),0,IF(COUNTIF(AL$15:AL$100000,AL16)=1,0,1)) -> 0 | AQ16: ФОТ врачей и медиков-консультантов | AR16: =MAX(AR$15:AR15)+1 -> 1 | AS16: =IF(OR(AQ16=0,AQ16=""),0,IF(COUNTIF(AQ$15:AQ$100000,AQ16)=1,0,1)) -> 0 | AT16: * | AU16: Оформление юрлица | AV16: =MAX(AV$15:AV15)+1 -> 1 | AW16: =IF(OR(AU16=0,AU16=""),0,IF(COUNTIF(AU$15:AU$100000,AU16)=1,0,1)) -> 0 | AX16: * | AY16: Ремонтные работы (250кв.м.) | AZ16: =MAX(AZ$15:AZ15)+1 -> 1 | BA16: =IF(OR(AY16=0,AY16=""),0,IF(COUNTIF(AY$15:AY$100000,AY16)=1,0,1)) -> 0 | BB16: * | BC16: Аутсорсинг бухгалтерии | BD16: =MAX(BD$15:BD15)+1 -> 1 | BE16: =IF(OR(BC16=0,BC16=""),0,IF(COUNTIF(BC$15:BC$100000,BC16)=1,0,1)) -> 0 | BF16: * | BG16: Аренда офиса | BH16: =MAX(BH$15:BH15)+1 -> 1 | BI16: =IF(OR(BG16=0,BG16=""),0,IF(COUNTIF(BG$15:BG$100000,BG16)=1,0,1)) -> 0 | BJ16: * | BK16: Дебиторская задолженность | BL16: =MAX(BL$15:BL15)+1 -> 1 | BM16: =IF(OR(BK16=0,BK16=""),0,IF(COUNTIF(BK$15:BK$100000,BK16)=1,0,1)) -> 0 | BN16: * | BO16: Выручка | BP16: =MAX(BP$15:BP15)+1 -> 1 | BQ16: =IF(OR(BO16=0,BO16=""),0,IF(COUNTIF(BO$15:BO$100000,BO16)=1,0,1)) -> 0 | BR16: * | BS16: Финпоток проекта без финансирования (CF) | BT16: =MAX(BT$15:BT15)+1 -> 1 | BU16: =IF(OR(BS16=0,BS16=""),0,IF(COUNTIF(BS$15:BS$100000,BS16)=1,0,1)) -> 0
A17: =ROW() -> 17 | H17: * | I17: Съемка видео-роликов | J17: =MAX(J$15:J16)+1 -> 2 | K17: =IF(OR(I17=0,I17=""),0,IF(COUNTIF(I$15:I$100000,I17)=1,0,1)) -> 0 | L17: * | M17: Командировочные расходы | N17: =MAX(N$15:N16)+1 -> 2 | O17: =IF(OR(M17=0,M17=""),0,IF(COUNTIF(M$15:M$100000,M17)=1,0,1)) -> 0 | P17: * | Q17: Прочие расходы маркетинга | R17: =MAX(R$15:R16)+1 -> 2 | S17: =IF(OR(Q17=0,Q17=""),0,IF(COUNTIF(Q$15:Q$100000,Q17)=1,0,1)) -> 0 | AC17: * | AD17: Средства личной гигиены | AE17: =MAX(AE$15:AE16)+1 -> 2 | AF17: =IF(OR(AD17=0,AD17=""),0,IF(COUNTIF(AD$15:AD$100000,AD17)=1,0,1)) -> 0 | AG17: * | AH17: Прочие расходы отдела продаж | AI17: =MAX(AI$15:AI16)+1 -> 2 | AJ17: =IF(OR(AH17=0,AH17=""),0,IF(COUNTIF(AH$15:AH$100000,AH17)=1,0,1)) -> 0 | AK17: * | AL17: Оправы | AM17: =MAX(AM$15:AM16)+1 -> 2 | AN17: шт | AO17: =IF(OR(AL17=0,AL17=""),0,IF(COUNTIF(AL$15:AL$100000,AL17)=1,0,1)) -> 0 | AP17: * | AQ17: Прочие производственные расходы | AR17: =MAX(AR$15:AR16)+1 -> 2 | AS17: =IF(OR(AQ17=0,AQ17=""),0,IF(COUNTIF(AQ$15:AQ$100000,AQ17)=1,0,1)) -> 0 | AT17: * | AU17: Юридические расходы | AV17: =MAX(AV$15:AV16)+1 -> 2 | AW17: =IF(OR(AU17=0,AU17=""),0,IF(COUNTIF(AU$15:AU$100000,AU17)=1,0,1)) -> 0 | AX17: * | AY17: Рабочее место офтальмолога | AZ17: =MAX(AZ$15:AZ16)+1 -> 2 | BA17: =IF(OR(AY17=0,AY17=""),0,IF(COUNTIF(AY$15:AY$100000,AY17)=1,0,1)) -> 0 | BB17: * | BC17: Юридические расходы | BD17: =MAX(BD$15:BD16)+1 -> 2 | BE17: 0 | BF17: * | BG17: Расходы на организацию рабочего места | BH17: =MAX(BH$15:BH16)+1 -> 2 | BI17: =IF(OR(BG17=0,BG17=""),0,IF(COUNTIF(BG$15:BG$100000,BG17)=1,0,1)) -> 0 | BJ17: * | BK17: Авансы полученные | BL17: =MAX(BL$15:BL16)+1 -> 2 | BM17: 0 | BN17: * | BO17: Себестоимость | BP17: =MAX(BP$15:BP16)+1 -> 2 | BQ17: 0 | BR17: * | BS17: Финпоток проекта нарастающим итогом | BT17: =MAX(BT$15:BT16)+1 -> 2 | BU17: 0
A18: =ROW() -> 18 | H18: * | I18: Аутсорсинг внешних исполнителей | J18: =MAX(J$15:J17)+1 -> 3 | K18: =IF(OR(I18=0,I18=""),0,IF(COUNTIF(I$15:I$100000,I18)=1,0,1)) -> 0 | L18: * | M18: Расходы на поддержание конверсии | N18: =MAX(N$15:N17)+1 -> 3 | O18: =IF(OR(M18=0,M18=""),0,IF(COUNTIF(M$15:M$100000,M18)=1,0,1)) -> 0 | AC18: * | AD18: Прочие расходники | AE18: =MAX(AE$15:AE17)+1 -> 3 | AF18: =IF(OR(AD18=0,AD18=""),0,IF(COUNTIF(AD$15:AD$100000,AD18)=1,0,1)) -> 0 | AK18: * | AL18: Прочие расходники и аксессуары | AM18: =MAX(AM$15:AM17)+1 -> 3 | AN18: шт | AO18: =IF(OR(AL18=0,AL18=""),0,IF(COUNTIF(AL$15:AL$100000,AL18)=1,0,1)) -> 0 | AT18: * | AU18: Разработка логотипа и дизайна | AV18: =MAX(AV$15:AV17)+1 -> 3 | AW18: =IF(OR(AU18=0,AU18=""),0,IF(COUNTIF(AU$15:AU$100000,AU18)=1,0,1)) -> 0 | AX18: * | AY18: Локальная мастерская | AZ18: =MAX(AZ$15:AZ17)+1 -> 3 | BA18: =IF(OR(AY18=0,AY18=""),0,IF(COUNTIF(AY$15:AY$100000,AY18)=1,0,1)) -> 0 | BB18: * | BC18: Расходы на лицензии, ПО и т.п. | BD18: =MAX(BD$15:BD17)+1 -> 3 | BE18: 0 | BF18: * | BG18: Расходы на оргтехнику | BH18: =MAX(BH$15:BH17)+1 -> 3 | BI18: =IF(OR(BG18=0,BG18=""),0,IF(COUNTIF(BG$15:BG$100000,BG18)=1,0,1)) -> 0 | BJ18: * | BK18: Поступление запасов | BL18: =MAX(BL$15:BL17)+1 -> 3 | BM18: 0 | BN18: * | BO18: Валовая прибыль | BP18: =MAX(BP$15:BP17)+1 -> 3 | BQ18: 0 | BR18: * | BS18: Свободный положительный финпоток проекта | BT18: =MAX(BT$15:BT17)+1 -> 3 | BU18: 0
A19: =ROW() -> 19 | AT19: * | AU19: Заключение контрактов с поставщиками | AV19: =MAX(AV$15:AV18)+1 -> 4 | AW19: =IF(OR(AU19=0,AU19=""),0,IF(COUNTIF(AU$15:AU$100000,AU19)=1,0,1)) -> 0 | AX19: * | AY19: Торговое оборудование | AZ19: =MAX(AZ$15:AZ18)+1 -> 4 | BA19: =IF(OR(AY19=0,AY19=""),0,IF(COUNTIF(AY$15:AY$100000,AY19)=1,0,1)) -> 0 | BB19: * | BC19: Банковские расходы | BD19: =MAX(BD$15:BD18)+1 -> 4 | BE19: 0 | BF19: * | BG19: Канцелярские расходы | BH19: =MAX(BH$15:BH18)+1 -> 4 | BI19: =IF(OR(BG19=0,BG19=""),0,IF(COUNTIF(BG$15:BG$100000,BG19)=1,0,1)) -> 0 | BJ19: * | BK19: Списание запасов на незавершенное пр-во | BL19: =MAX(BL$15:BL18)+1 -> 4 | BM19: 0 | BN19: * | BO19: НДС начисленный | BP19: =MAX(BP$15:BP18)+1 -> 4 | BQ19: 0 | BR19: * | BS19: Свободный отрицательный финпоток проекта | BT19: =MAX(BT$15:BT18)+1 -> 4 | BU19: 0
A20: =ROW() -> 20 | AT20: * | AU20: Оборудование для сетевой мастерской | AV20: =MAX(AV$15:AV19)+1 -> 5 | AW20: 0 | AX20: * | AY20: Охранная и пожарная сигнализации | AZ20: =MAX(AZ$15:AZ19)+1 -> 5 | BA20: 0 | BB20: * | BC20: Расходы на уборку-охрану | BD20: =MAX(BD$15:BD19)+1 -> 5 | BE20: 0 | BF20: * | BG20: Прочие расходы на персонал | BH20: =MAX(BH$15:BH19)+1 -> 5 | BI20: =IF(OR(BG20=0,BG20=""),0,IF(COUNTIF(BG$15:BG$100000,BG20)=1,0,1)) -> 0 | BJ20: * | BK20: Запасы | BL20: =MAX(BL$15:BL19)+1 -> 5 | BM20: 0 | BN20: * | BO20: НДС к возмещению | BP20: =MAX(BP$15:BP19)+1 -> 5 | BQ20: 0 | BR20: * | BS20: Свободный финпоток (FCF) | BT20: =MAX(BT$15:BT19)+1 -> 5 | BU20: 0
A21: =ROW() -> 21 | AT21: * | AU21: Лицензирование | AV21: =MAX(AV$15:AV20)+1 -> 6 | AW21: 0 | AX21: * | AY21: Оргтехника, кассовая техника и ПО | AZ21: =MAX(AZ$15:AZ20)+1 -> 6 | BA21: 0 | BB21: * | BC21: Постоянный расход - 6 | BD21: =MAX(BD$15:BD20)+1 -> 6 | BE21: 0 | BJ21: * | BK21: Незавершенное производство | BL21: =MAX(BL$15:BL20)+1 -> 6 | BM21: 0 | BN21: * | BO21: Прямые расходы | BP21: =MAX(BP$15:BP20)+1 -> 6 | BQ21: 0 | BR21: * | BS21: Кассовый разрыв | BT21: =MAX(BT$15:BT20)+1 -> 6 | BU21: 0
A22: =ROW() -> 22 | AT22: * | AU22: ="Разовые капзатраты - "&AV22 -> Разовые капзатраты - 7 | AV22: =MAX(AV$15:AV21)+1 -> 7 | AW22: 0 | AX22: * | AY22: Спецоборудование по 3D-подбору очков | AZ22: =MAX(AZ$15:AZ21)+1 -> 7 | BA22: 0 | BB22: * | BC22: Постоянный расход - 7 | BD22: =MAX(BD$15:BD21)+1 -> 7 | BE22: 0 | BJ22: * | BK22: Авансы выданные | BL22: =MAX(BL$15:BL21)+1 -> 7 | BM22: 0 | BN22: * | BO22: Маржинальная прибыль | BP22: =MAX(BP$15:BP21)+1 -> 7 | BQ22: 0 | BR22: * | BS22: Поступление финансирования от Учредителей | BT22: =MAX(BT$15:BT21)+1 -> 7 | BU22: 0
A23: =ROW() -> 23 | AT23: * | AU23: ="Разовые капзатраты - "&AV23 -> Разовые капзатраты - 8 | AV23: =MAX(AV$15:AV22)+1 -> 8 | AW23: 0 | AX23: * | AY23: ="Переменные капзатраты - "&AZ23 -> Переменные капзатраты - 8 | AZ23: =MAX(AZ$15:AZ22)+1 -> 8 | BA23: 0 | BJ23: * | BK23: Кредиторская задолженность | BL23: =MAX(BL$15:BL22)+1 -> 8 | BM23: 0 | BN23: * | BO23: Управленческие расходы | BP23: =MAX(BP$15:BP22)+1 -> 8 | BQ23: 0 | BR23: * | BS23: Финпоток проекта для кредиторов | BT23: =MAX(BT$15:BT22)+1 -> 8 | BU23: 0
A24: =ROW() -> 24 | AT24: * | AU24: ="Разовые капзатраты - "&AV24 -> Разовые капзатраты - 9 | AV24: =MAX(AV$15:AV23)+1 -> 9 | AW24: 0 | AX24: * | AY24: ="Переменные капзатраты - "&AZ24 -> Переменные капзатраты - 9 | AZ24: =MAX(AZ$15:AZ23)+1 -> 9 | BA24: 0 | BJ24: * | BK24: Задолженность перед персоналом | BL24: =MAX(BL$15:BL23)+1 -> 9 | BM24: 0 | BN24: * | BO24: ФОТ управленческого персонала | BP24: =MAX(BP$15:BP23)+1 -> 9 | BQ24: 0 | BR24: * | BS24: Финпоток проекта для кредиторов нараст. итогом | BT24: =MAX(BT$15:BT23)+1 -> 9 | BU24: 0
A25: =ROW() -> 25 | AT25: * | AU25: ="Разовые капзатраты - "&AV25 -> Разовые капзатраты - 10 | AV25: =MAX(AV$15:AV24)+1 -> 10 | AW25: 0 | AX25: * | AY25: ="Переменные капзатраты - "&AZ25 -> Переменные капзатраты - 10 | AZ25: =MAX(AZ$15:AZ24)+1 -> 10 | BA25: 0 | BJ25: * | BK25: Задолженность по соцсборам | BL25: =MAX(BL$15:BL24)+1 -> 10 | BM25: 0 | BN25: * | BO25: EBITDA | BP25: =MAX(BP$15:BP24)+1 -> 10 | BQ25: 0 | BR25: * | BS25: Свободный полож. финпоток для кредиторов | BT25: =MAX(BT$15:BT24)+1 -> 10 | BU25: 0
A26: =ROW() -> 26 | BJ26: * | BK26: АКТИВЫ | BL26: =MAX(BL$15:BL25)+1 -> 11 | BM26: =IF(OR(BK26=0,BK26=""),0,IF(COUNTIF(BK$15:BK$100000,BK26)=1,0,1)) -> 0 | BN26: * | BO26: Капзатраты | BP26: =MAX(BP$15:BP25)+1 -> 11 | BQ26: =IF(OR(BO26=0,BO26=""),0,IF(COUNTIF(BO$15:BO$100000,BO26)=1,0,1)) -> 0 | BR26: * | BS26: Свободный отриц. финпоток для кредиторов | BT26: =MAX(BT$15:BT25)+1 -> 11 | BU26: 0
A27: =ROW() -> 27 | BJ27: * | BK27: ПАССИВЫ | BL27: =MAX(BL$15:BL26)+1 -> 12 | BM27: 0 | BN27: * | BO27: НДС к возмещению по капзатратам | BP27: =MAX(BP$15:BP26)+1 -> 12 | BQ27: 0 | BR27: * | BS27: Свободный финпоток для кредиторов | BT27: =MAX(BT$15:BT26)+1 -> 12 | BU27: 0
A28: =ROW() -> 28 | BJ28: * | BK28: Денежные средства | BL28: =MAX(BL$15:BL27)+1 -> 13 | BM28: 0 | BN28: * | BO28: Амортизация | BP28: =MAX(BP$15:BP27)+1 -> 13 | BQ28: 0 | BR28: * | BS28: Кассовый разрыв проекта для кредиторов | BT28: =MAX(BT$15:BT27)+1 -> 13 | BU28: 0
A29: =ROW() -> 29 | BJ29: * | BK29: Собственный капитал | BL29: =MAX(BL$15:BL28)+1 -> 14 | BM29: 0 | BN29: * | BO29: EBIT | BP29: =MAX(BP$15:BP28)+1 -> 14 | BQ29: 0 | BR29: * | BS29: Поступление кредита | BT29: =MAX(BT$15:BT28)+1 -> 14 | BU29: 0
A30: =ROW() -> 30 | BJ30: * | BK30: Промежуточный баланс-контроль | BL30: =MAX(BL$15:BL29)+1 -> 15 | BM30: 0 | BN30: * | BO30: Прочие доходы | BP30: =MAX(BP$15:BP29)+1 -> 15 | BQ30: 0 | BR30: * | BS30: Возврат кредита | BT30: =MAX(BT$15:BT29)+1 -> 15 | BU30: 0
A31: =ROW() -> 31 | BJ31: * | BK31: Задолженность по прямым расходам | BL31: =MAX(BL$15:BL30)+1 -> 16 | BM31: 0 | BN31: * | BO31: Проценты начисленные | BP31: =MAX(BP$15:BP30)+1 -> 16 | BQ31: 0 | BR31: * | BS31: Оплата процентов по кредиту | BT31: =MAX(BT$15:BT30)+1 -> 16 | BU31: 0
A32: =ROW() -> 32 | BJ32: * | BK32: Задолженность по управленческим расходам | BL32: =MAX(BL$15:BL31)+1 -> 17 | BM32: =IF(OR(BK32=0,BK32=""),0,IF(COUNTIF(BK$15:BK$100000,BK32)=1,0,1)) -> 0 | BN32: * | BO32: Прибыль до налога на прибыль | BP32: =MAX(BP$15:BP31)+1 -> 17 | BQ32: 0 | BR32: * | BS32: Финпоток проекта с учетом финансирования | BT32: =MAX(BT$15:BT31)+1 -> 17 | BU32: 0
A33: =ROW() -> 33 | BJ33: * | BK33: Задолженность по капзатратам | BL33: =MAX(BL$15:BL32)+1 -> 18 | BM33: 0 | BN33: * | BO33: Налог на прибыль | BP33: =MAX(BP$15:BP32)+1 -> 18 | BQ33: 0 | BR33: * | BS33: Финпоток проекта с уч. финансир. нараст. итогом | BT33: =MAX(BT$15:BT32)+1 -> 18 | BU33: 0
A34: =ROW() -> 34 | BJ34: * | BK34: Внеоборотные активы | BL34: =MAX(BL$15:BL33)+1 -> 19 | BM34: 0 | BN34: * | BO34: Чистая прибыль | BP34: =MAX(BP$15:BP33)+1 -> 19 | BQ34: 0 | BR34: * | BS34: Осаточный кассовый разрыв | BT34: =MAX(BT$15:BT33)+1 -> 19 | BU34: 0
A35: =ROW() -> 35 | BJ35: * | BK35: ДЗ по возмещению НДС с капзатрат | BL35: =MAX(BL$15:BL34)+1 -> 20 | BM35: 0 | BN35: * | BO35: Проценты начисленные по кредиту | BP35: =MAX(BP$15:BP34)+1 -> 20 | BQ35: 0 | BR35: * | BS35: Итоговый финпоток | BT35: =MAX(BT$15:BT34)+1 -> 20 | BU35: =IF(OR(BS35=0,BS35=""),0,IF(COUNTIF(BS$15:BS$100000,BS35)=1,0,1)) -> 0
A36: =ROW() -> 36 | BJ36: * | BK36: Задолженность по налогам | BL36: =MAX(BL$15:BL35)+1 -> 21 | BM36: 0 | BR36: * | BS36: Итоговый финпоток нараст. итогом | BT36: =MAX(BT$15:BT35)+1 -> 21 | BU36: 0
A37: =ROW() -> 37 | BJ37: * | BK37: Задолженность по НДС | BL37: =MAX(BL$15:BL36)+1 -> 22 | BM37: 0 | BR37: * | BS37: Итоговый кассовый разрыв | BT37: =MAX(BT$15:BT36)+1 -> 22 | BU37: 0
A38: =ROW() -> 38 | BJ38: * | BK38: Задолженность по НП | BL38: =MAX(BL$15:BL37)+1 -> 23 | BM38: 0 | BR38: * | BS38: Финпоток по операционной деятельности | BT38: =MAX(BT$15:BT37)+1 -> 23 | BU38: 0
A39: =ROW() -> 39 | BJ39: * | BK39: Остаток долга по кредиту | BL39: =MAX(BL$15:BL38)+1 -> 24 | BM39: 0 | BR39: * | BS39: Финпоток по основной деятельности | BT39: =MAX(BT$15:BT38)+1 -> 24 | BU39: 0
A40: =ROW() -> 40 | BJ40: * | BK40: Задолженность по выплате %% по кредиту | BL40: =MAX(BL$15:BL39)+1 -> 25 | BM40: 0 | BR40: * | BS40: Финпоток по финансовой деятельности | BT40: =MAX(BT$15:BT39)+1 -> 25 | BU40: 0
A41: =ROW() -> 41 | BJ41: * | BK41: Вложения Учредителей в капитал | BL41: =MAX(BL$15:BL40)+1 -> 26 | BM41: 0 | BR41: * | BS41: Поступление ДС | BT41: =MAX(BT$15:BT40)+1 -> 26 | BU41: 0
A42: =ROW() -> 42 | BJ42: * | BK42: БАЛАНС | BL42: =MAX(BL$15:BL41)+1 -> 27 | BM42: 0 | BR42: * | BS42: Итоговый свободный финпоток (Total FCF) | BT42: =MAX(BT$15:BT41)+1 -> 27 | BU42: 0
A43: =ROW() -> 43 | BJ43: * | BL43: =MAX(BL$15:BL42)+1 -> 28 | BM43: 0
A44: =ROW() -> 44 | BJ44: * | BL44: =MAX(BL$15:BL43)+1 -> 29 | BM44: 0
A45: =ROW() -> 45 | BJ45: * | BL45: =MAX(BL$15:BL44)+1 -> 30 | BM45: 0
A46: =ROW() -> 46 | BJ46: * | BL46: =MAX(BL$15:BL45)+1 -> 31 | BM46: 0
A47: =ROW() -> 47
A48: =ROW() -> 48
A49: =ROW() -> 49
A50: =ROW() -> 50
A51: =ROW() -> 51
A52: =ROW() -> 52
A53: =ROW() -> 53
A54: =ROW() -> 54
A55: =ROW() -> 55
A56: =ROW() -> 56
A57: =ROW() -> 57
A58: =ROW() -> 58
A59: =ROW() -> 59
A60: =ROW() -> 60
A61: =ROW() -> 61
A62: =ROW() -> 62
A63: =ROW() -> 63
A64: =ROW() -> 64
A65: =ROW() -> 65
A66: =ROW() -> 66
A67: =ROW() -> 67
A68: =ROW() -> 68
A69: =ROW() -> 69
A70: =ROW() -> 70

Sheet KPI
I1: 9
I2: I
F11: KPI | I11: Справочники ключевых показателей эффективности
I13: Список показателей эффективности | Q13: Формулы расчета показателей
D14: 0 | E14: 0 | F14: 0 | I14: 0 | K14: 0
A15: 15 | I15: KPI!I16:I92
A16: 16 | I16: Срок окупаемости по чистой прибыли | J16: 1 | K16: 0
A17: 17 | I17: Точка безубыточности по чистой прибыли | J17: 2 | K17: 0
A18: 18 | I18: Срок окупаемости по финпотоку (PBP) | J18: 3 | K18: 0
A19: 19 | I19: Точка безубыточности по финпотоку | J19: 4 | K19: 0
A20: 20 | I20: IRR проекта | J20: 5 | K20: 0
A21: 21 | I21: NPV(Учредителя) | J21: 6 | K21: 0
A22: 22 | I22: IRR для кредиторов | J22: 7 | K22: 0
A23: 23 | I23: NPV(Кредиторов) | J23: 8 | K23: 0
A24: 24 | I24: Рентабельность | J24: 9 | K24: 0
A25: 25 | I25: WACC | J25: 10 | K25: 0
A26: 26 | I26: NPV(WACC) | J26: 11 | K26: 0
A27: 27 | I27: ROI | J27: 12 | K27: 0
A28: 28 | I28: Дисконтированный срок окупаемости (DPBP) | J28: 13 | K28: 0
A29: 29 | I29: Коэффициент текущей ликвидности (L1) | J29: 14 | K29: 0 | Q29: Отношение оборотных активов к краткосрочным обязательствам
A30: 30 | I30: Коэффициент промежуточного покрытия (L2) | J30: 15 | K30: 0 | Q30: Отношение суммы активов А1 и А2 к краткосрочным обязательствам
A31: 31 | I31: Коэффициент абсолютной ликвидности (L3) | J31: 16 | K31: 0 | Q31: Отношение суммы активов А1 к краткосрочным обязательствам
A32: 32 | I32: Коэффициент общей платежеспособности (L4) | J32: 17 | K32: 0 | Q32: Отношение всех активов ко всем обязательствам
A33: 33 | I33: Коэфф. платежеспособности по тек. обяз. (L5) | J33: 18 | K33: 0 | Q33: Отношение среднемесячной выручки к краткосрочным обязательствам
A34: 34 | J34: 19 | K34: 0
A35: 35 | I35: Оценка стоимости бизнеса/компании | J35: 20 | K35: 0
A36: 36 | J36: 21 | K36: 0
A37: 37 | J37: 22 | K37: 0
A38: 38 | J38: 23 | K38: 0
A39: 39 | I39: Терминальная стоимость (TV) | J39: 24 | K39: 0
A40: 40 | I40: NPV(TV) | J40: 25 | K40: 0
A41: 41 | I41: CFADS | J41: 26 | K41: 0
A42: 42 | I42: Выплаты долга [Debt (Principals+Interests)] | J42: 27 | K42: 0
A43: 43 | I43: Выплаты тела кредитов (Principals) | J43: 28 | K43: 0
A44: 44 | I44: Выплаты %% (Interests) | J44: 29 | K44: 0
A45: 45 | I45: Коэф. покрытия выплат долга (DSCR) | J45: 30 | K45: 0
A46: 46 | I46: Коэф. покрытия процентов (ICR) | J46: 31 | K46: 0
A47: 47 | I47: CF(EBIT) | J47: 32 | K47: 0
A48: 48 | I48: Наиболее ликвидные активы (А1) | J48: 33 | K48: 0
A49: 49 | I49: Денежные средства | J49: 34 | K49: 0
A50: 50 | I50: Финансовые вложения | J50: 35 | K50: 0
A51: 51 | I51: Быстро реализуемые активы (А2) | J51: 36 | K51: 0
A52: 52 | I52: Незавершенное производство | J52: 37 | K52: 0
A53: 53 | I53: Дебиторская задолженность | J53: 38 | K53: 0
A54: 54 | I54: Авансы выданные | J54: 39 | K54: 0
A55: 55 | I55: Медленно реализуемые активы (А3) | J55: 40 | K55: 0
A56: 56 | I56: Запасы | J56: 41 | K56: 0
A57: 57 | I57: Трудно реализуемые активы (А4) | J57: 42 | K57: 0
A58: 58 | I58: Внеоборотные активы | J58: 43 | K58: 0
A59: 59 | I59: Наиболее срочные обязательства (П1) | J59: 44 | K59: 0
A60: 60 | I60: Овердрафт | J60: 45 | K60: 0
A61: 61 | I61: Кредиторская задолженность | J61: 46 | K61: 0
A62: 62 | I62: Краткосрочные обязательства (П2) | J62: 47 | K62: 0
A63: 63 | I63: Прочие краткосрочные обязательства | J63: 48 | K63: 0
A64: 64 | I64: Долгосрочные обязательства (П3) | J64: 49 | K64: 0
A65: 65 | I65: Долгосрочные кредиты | J65: 50 | K65: 0
A66: 66 | I66: Постоянные пассивы (П4) | J66: 51 | K66: 0
A67: 67 | I67: Собственный капитал | J67: 52 | K67: 0
A68: 68 | I68: Собственные оборотные средства (СОС) | J68: 53 | K68: 0 | Q68: Разность собственного капитала и внеоборотных активов
A69: 69 | I69: Коэффициент финансовой устойчивости (S1) | J69: 54 | K69: 0 | Q69: Отношение суммы собственного капитала и долгосрочных обязательств к активам
A70: 70 | I70: Коэффициент автономии (независимости) (S2) | J70: 55 | K70: 0 | Q70: Отношение собственного капитала к активам
I71: Коэфф. обеспеч-ти собств. об. средствами (S3) | J71: 56 | K71: 0 | Q71: Отношение объема СОС к оборотным активам
I72: Коэффициент финансового рычага (S4) | J72: 57 | K72: 0 | Q72: Отношение собственного капитала к заемному капиталу
I73: Рентабельность продаж (Return On Sales) (R1) | J73: 58 | K73: 0 | Q73: Отношение валовой прибыли к выручке
I74: Рентабельность активов (Return On Assets) (R2) | J74: 59 | K74: 0 | Q74: Отношение среднемесячной чистой прибыли за период к уровню активов на конец периода
I75: Рентаб-сть собств. капитала (Return On Equity) (R3) | J75: 60 | K75: 0 | Q75: Отношение среднемесячной чистой прибыли за период к уровню собственного капитала на конец периода
I76: Рент. инвестиций (Return On Invested Capital) (R4) | J76: 61 | K76: 0 | Q76: Отношение среднемес. EBITDA за период к уровню инвестиций (собств.+долгосроч.) на конец периода
I77: Рент. об. капитала (Return On Working Capital) (R5) | J77: 62 | K77: 0 | Q77: Отношение среднемес. марж. прибыли за период к уровню оборотного капитала на конец периода
I78: Оборачиваемость запасов и незавершенки | J78: 63 | K78: 0
I79: Период оборач-сти запасов и незавершенки (P1) | J79: 64 | K79: 0
I80: Оборачиваемость дебиторской задолженности | J80: 65 | K80: 0
I81: Период оборач-ти дебит. задолженности (P2) | J81: 66 | K81: 0
I82: Оборачиваемость кредиторской задолженности | J82: 67 | K82: 0
I83: Период оборач-ти кредит. задолженности (P3) | J83: 68 | K83: 0
I84: Финансовый цикл (P4) | J84: 69 | K84: 0
I85: ТЕМПЫ РОСТА АКТИВОВ [T(A)] | J85: 70 | K85: 0
I86: ТЕМПЫ РОСТА ВЫРУЧКИ [T(R)] | J86: 71 | K86: 0
I87: ТЕМПЫ РОСТА ЧИСТОЙ ПРИБЫЛИ [T(E)] | J87: 72 | K87: 0
J88: 73 | K88: 0
J89: 74 | K89: 0
J90: 75 | K90: 0
J91: 76 | K91: 0
J92: 77 | K92: 0

Sheet Mrkting
Y1: номер столбца: | AA1: 27 | AB1: 28 | AC1: 29 | AD1: 30 | AE1: 31 | AF1: 32 | AG1: 33 | AH1: 34 | AI1: 35 | AJ1: 36 | AK1: 37 | AL1: 38 | AM1: 39 | AN1: 40 | AO1: 41 | AP1: 42 | AQ1: 43 | AR1: 44 | AS1: 45 | AT1: 46 | AU1: 47 | AV1: 48 | AW1: 49 | AX1: 50 | AY1: 51 | AZ1: 52 | BA1: 53 | BB1: 54 | BC1: 55 | BD1: 56 | BE1: 57 | BF1: 58 | BG1: 59 | BH1: 60 | BI1: 61 | BJ1: 62 | BK1: 63 | BL1: 64 | BM1: 65 | BN1: 66 | BO1: 67 | BP1: 68 | BQ1: 69 | BR1: 70 | BS1: 71 | BT1: 72 | BU1: 73 | BV1: 74 | BW1: 75 | BX1: 76 | BY1: 77 | BZ1: 78 | CA1: 79 | CB1: 80 | CC1: 81 | CD1: 82 | CE1: 83 | CF1: 84 | CG1: 85 | CH1: 86 | CI1: 87 | CJ1: 88 | CK1: 89 | CL1: 90 | CM1: 91 | CN1: 92 | CO1: 93 | CP1: 94 | CQ1: 95 | CR1: 96 | CS1: 97 | CT1: 98 | CU1: 99 | CV1: 100 | CW1: 101 | CX1: 102 | CY1: 103 | CZ1: 104 | DA1: 105 | DB1: 106 | DC1: 107 | DD1: 108 | DE1: 109 | DF1: 110 | DG1: 111 | DH1: 112 | DI1: 113 | DJ1: 114 | DK1: 115 | DL1: 116 | DM1: 117 | DN1: 118 | DO1: 119 | DP1: 120 | DQ1: 121 | DR1: 122 | DS1: 123 | DT1: 124 | DU1: 125 | DV1: 126 | DW1: 127 | DX1: 128 | DY1: 129 | DZ1: 130 | EA1: 131 | EB1: 132 | EC1: 133 | ED1: 134 | EE1: 135 | EF1: 136 | EG1: 137 | EH1: 138 | EI1: 139 | EJ1: 140 | EK1: 141 | EL1: 142 | EM1: 143 | EN1: 144 | EO1: 145 | EP1: 146 | EQ1: 147 | ER1: 148 | ES1: 149 | ET1: 150 | EU1: 151 | EV1: 152 | EW1: 153 | EX1: 154 | EY1: 155 | EZ1: 156 | FA1: 157 | FB1: 158 | FC1: 159
Y2: номер периода модели: | AA2: 1 | AB2: 2 | AC2: 3 | AD2: 4 | AE2: 5 | AF2: 6 | AG2: 7 | AH2: 8 | AI2: 9 | AJ2: 10 | AK2: 11 | AL2: 12 | AM2: 13 | AN2: 14 | AO2: 15 | AP2: 16 | AQ2: 17 | AR2: 18 | AS2: 19 | AT2: 20 | AU2: 21 | AV2: 22 | AW2: 23 | AX2: 24 | AY2: 25 | AZ2: 26 | BA2: 27 | BB2: 28 | BC2: 29 | BD2: 30 | BE2: 31 | BF2: 32 | BG2: 33 | BH2: 34 | BI2: 35 | BJ2: 36 | BK2: 37 | BL2: 38 | BM2: 39 | BN2: 40 | BO2: 41 | BP2: 42 | BQ2: 43 | BR2: 44 | BS2: 45 | BT2: 46 | BU2: 47 | BV2: 48 | BW2: 49 | BX2: 50 | BY2: 51 | BZ2: 52 | CA2: 53 | CB2: 54 | CC2: 55 | CD2: 56 | CE2: 57 | CF2: 58 | CG2: 59 | CH2: 60 | CI2: 61 | CJ2: 62 | CK2: 63 | CL2: 64 | CM2: 65 | CN2: 66 | CO2: 67 | CP2: 68 | CQ2: 69 | CR2: 70 | CS2: 71 | CT2: 72 | CU2: 73 | CV2: 74 | CW2: 75 | CX2: 76 | CY2: 77 | CZ2: 78 | DA2: 79 | DB2: 80 | DC2: 81 | DD2: 82 | DE2: 83 | DF2: 84 | DG2: 85 | DH2: 86 | DI2: 87 | DJ2: 88 | DK2: 89 | DL2: 90 | DM2: 91 | DN2: 92 | DO2: 93 | DP2: 94 | DQ2: 95 | DR2: 96 | DS2: 97 | DT2: 98 | DU2: 99 | DV2: 100 | DW2: 101 | DX2: 102 | DY2: 103 | DZ2: 104 | EA2: 105 | EB2: 106 | EC2: 107 | ED2: 108 | EE2: 109 | EF2: 110 | EG2: 111 | EH2: 112 | EI2: 113 | EJ2: 114 | EK2: 115 | EL2: 116 | EM2: 117 | EN2: 118 | EO2: 119 | EP2: 120 | EQ2: 121 | ER2: 122 | ES2: 123 | ET2: 124 | EU2: 125 | EV2: 126 | EW2: 127 | EX2: 128 | EY2: 129 | EZ2: 130 | FA2: 131 | FB2: 132 | FC2: 133
Y3: номер факт-периода:
Y4: номер план-периода: | AA4: 1 | AB4: 2 | AC4: 3 | AD4: 4 | AE4: 5 | AF4: 6 | AG4: 7 | AH4: 8 | AI4: 9 | AJ4: 10 | AK4: 11 | AL4: 12 | AM4: 13 | AN4: 14 | AO4: 15 | AP4: 16 | AQ4: 17 | AR4: 18 | AS4: 19 | AT4: 20 | AU4: 21 | AV4: 22 | AW4: 23 | AX4: 24 | AY4: 25 | AZ4: 26 | BA4: 27 | BB4: 28 | BC4: 29 | BD4: 30 | BE4: 31 | BF4: 32 | BG4: 33 | BH4: 34 | BI4: 35 | BJ4: 36 | BK4: 37 | BL4: 38 | BM4: 39 | BN4: 40 | BO4: 41 | BP4: 42 | BQ4: 43 | BR4: 44 | BS4: 45 | BT4: 46 | BU4: 47 | BV4: 48 | BW4: 49 | BX4: 50 | BY4: 51 | BZ4: 52 | CA4: 53 | CB4: 54 | CC4: 55 | CD4: 56 | CE4: 57 | CF4: 58 | CG4: 59 | CH4: 60 | CI4: 61 | CJ4: 62 | CK4: 63 | CL4: 64 | CM4: 65 | CN4: 66 | CO4: 67 | CP4: 68 | CQ4: 69 | CR4: 70 | CS4: 71 | CT4: 72 | CU4: 73 | CV4: 74 | CW4: 75 | CX4: 76 | CY4: 77 | CZ4: 78 | DA4: 79 | DB4: 80 | DC4: 81 | DD4: 82 | DE4: 83 | DF4: 84 | DG4: 85 | DH4: 86 | DI4: 87 | DJ4: 88 | DK4: 89 | DL4: 90 | DM4: 91 | DN4: 92 | DO4: 93 | DP4: 94 | DQ4: 95 | DR4: 96 | DS4: 97 | DT4: 98 | DU4: 99 | DV4: 100 | DW4: 101 | DX4: 102 | DY4: 103 | DZ4: 104 | EA4: 105 | EB4: 106 | EC4: 107 | ED4: 108 | EE4: 109 | EF4: 110 | EG4: 111 | EH4: 112 | EI4: 113 | EJ4: 114 | EK4: 115 | EL4: 116 | EM4: 117 | EN4: 118 | EO4: 119 | EP4: 120
Y5: число даты начала: | AA5: 1 | AB5: 1 | AC5: 1 | AD5: 1 | AE5: 1 | AF5: 1 | AG5: 1 | AH5: 1 | AI5: 1 | AJ5: 1 | AK5: 1 | AL5: 1 | AM5: 1 | AN5: 1 | AO5: 1 | AP5: 1 | AQ5: 1 | AR5: 1 | AS5: 1 | AT5: 1 | AU5: 1 | AV5: 1 | AW5: 1 | AX5: 1 | AY5: 1 | AZ5: 1 | BA5: 1 | BB5: 1 | BC5: 1 | BD5: 1 | BE5: 1 | BF5: 1 | BG5: 1 | BH5: 1 | BI5: 1 | BJ5: 1 | BK5: 1 | BL5: 1 | BM5: 1 | BN5: 1 | BO5: 1 | BP5: 1 | BQ5: 1 | BR5: 1 | BS5: 1 | BT5: 1 | BU5: 1 | BV5: 1 | BW5: 1 | BX5: 1 | BY5: 1 | BZ5: 1 | CA5: 1 | CB5: 1 | CC5: 1 | CD5: 1 | CE5: 1 | CF5: 1 | CG5: 1 | CH5: 1 | CI5: 1 | CJ5: 1 | CK5: 1 | CL5: 1 | CM5: 1 | CN5: 1 | CO5: 1 | CP5: 1 | CQ5: 1 | CR5: 1 | CS5: 1 | CT5: 1 | CU5: 1 | CV5: 1 | CW5: 1 | CX5: 1 | CY5: 1 | CZ5: 1 | DA5: 1 | DB5: 1 | DC5: 1 | DD5: 1 | DE5: 1 | DF5: 1 | DG5: 1 | DH5: 1 | DI5: 1 | DJ5: 1 | DK5: 1 | DL5: 1 | DM5: 1 | DN5: 1 | DO5: 1 | DP5: 1 | DQ5: 1 | DR5: 1 | DS5: 1 | DT5: 1 | DU5: 1 | DV5: 1 | DW5: 1 | DX5: 1 | DY5: 1 | DZ5: 1 | EA5: 1 | EB5: 1 | EC5: 1 | ED5: 1 | EE5: 1 | EF5: 1 | EG5: 1 | EH5: 1 | EI5: 1 | EJ5: 1 | EK5: 1 | EL5: 1 | EM5: 1 | EN5: 1 | EO5: 1 | EP5: 1
Y6: номер месяца даты начала: | AA6: 7 | AB6: 8 | AC6: 9 | AD6: 10 | AE6: 11 | AF6: 12 | AG6: 1 | AH6: 2 | AI6: 3 | AJ6: 4 | AK6: 5 | AL6: 6 | AM6: 7 | AN6: 8 | AO6: 9 | AP6: 10 | AQ6: 11 | AR6: 12 | AS6: 1 | AT6: 2 | AU6: 3 | AV6: 4 | AW6: 5 | AX6: 6 | AY6: 7 | AZ6: 8 | BA6: 9 | BB6: 10 | BC6: 11 | BD6: 12 | BE6: 1 | BF6: 2 | BG6: 3 | BH6: 4 | BI6: 5 | BJ6: 6 | BK6: 7 | BL6: 8 | BM6: 9 | BN6: 10 | BO6: 11 | BP6: 12 | BQ6: 1 | BR6: 2 | BS6: 3 | BT6: 4 | BU6: 5 | BV6: 6 | BW6: 7 | BX6: 8 | BY6: 9 | BZ6: 10 | CA6: 11 | CB6: 12 | CC6: 1 | CD6: 2 | CE6: 3 | CF6: 4 | CG6: 5 | CH6: 6 | CI6: 7 | CJ6: 8 | CK6: 9 | CL6: 10 | CM6: 11 | CN6: 12 | CO6: 1 | CP6: 2 | CQ6: 3 | CR6: 4 | CS6: 5 | CT6: 6 | CU6: 7 | CV6: 8 | CW6: 9 | CX6: 10 | CY6: 11 | CZ6: 12 | DA6: 1 | DB6: 2 | DC6: 3 | DD6: 4 | DE6: 5 | DF6: 6 | DG6: 7 | DH6: 8 | DI6: 9 | DJ6: 10 | DK6: 11 | DL6: 12 | DM6: 1 | DN6: 2 | DO6: 3 | DP6: 4 | DQ6: 5 | DR6: 6 | DS6: 7 | DT6: 8 | DU6: 9 | DV6: 10 | DW6: 11 | DX6: 12 | DY6: 1 | DZ6: 2 | EA6: 3 | EB6: 4 | EC6: 5 | ED6: 6 | EE6: 7 | EF6: 8 | EG6: 9 | EH6: 10 | EI6: 11 | EJ6: 12 | EK6: 1 | EL6: 2 | EM6: 3 | EN6: 4 | EO6: 5 | EP6: 6
Y7: год даты начала: | AA7: 21 | AB7: 21 | AC7: 21 | AD7: 21 | AE7: 21 | AF7: 21 | AG7: 22 | AH7: 22 | AI7: 22 | AJ7: 22 | AK7: 22 | AL7: 22 | AM7: 22 | AN7: 22 | AO7: 22 | AP7: 22 | AQ7: 22 | AR7: 22 | AS7: 23 | AT7: 23 | AU7: 23 | AV7: 23 | AW7: 23 | AX7: 23 | AY7: 23 | AZ7: 23 | BA7: 23 | BB7: 23 | BC7: 23 | BD7: 23 | BE7: 24 | BF7: 24 | BG7: 24 | BH7: 24 | BI7: 24 | BJ7: 24 | BK7: 24 | BL7: 24 | BM7: 24 | BN7: 24 | BO7: 24 | BP7: 24 | BQ7: 25 | BR7: 25 | BS7: 25 | BT7: 25 | BU7: 25 | BV7: 25 | BW7: 25 | BX7: 25 | BY7: 25 | BZ7: 25 | CA7: 25 | CB7: 25 | CC7: 26 | CD7: 26 | CE7: 26 | CF7: 26 | CG7: 26 | CH7: 26 | CI7: 26 | CJ7: 26 | CK7: 26 | CL7: 26 | CM7: 26 | CN7: 26 | CO7: 27 | CP7: 27 | CQ7: 27 | CR7: 27 | CS7: 27 | CT7: 27 | CU7: 27 | CV7: 27 | CW7: 27 | CX7: 27 | CY7: 27 | CZ7: 27 | DA7: 28 | DB7: 28 | DC7: 28 | DD7: 28 | DE7: 28 | DF7: 28 | DG7: 28 | DH7: 28 | DI7: 28 | DJ7: 28 | DK7: 28 | DL7: 28 | DM7: 29 | DN7: 29 | DO7: 29 | DP7: 29 | DQ7: 29 | DR7: 29 | DS7: 29 | DT7: 29 | DU7: 29 | DV7: 29 | DW7: 29 | DX7: 29 | DY7: 30 | DZ7: 30 | EA7: 30 | EB7: 30 | EC7: 30 | ED7: 30 | EE7: 30 | EF7: 30 | EG7: 30 | EH7: 30 | EI7: 30 | EJ7: 30 | EK7: 31 | EL7: 31 | EM7: 31 | EN7: 31 | EO7: 31 | EP7: 31
Y8: число даты окончания: | AA8: 31 | AB8: 31 | AC8: 30 | AD8: 31 | AE8: 30 | AF8: 31 | AG8: 31 | AH8: 28 | AI8: 31 | AJ8: 30 | AK8: 31 | AL8: 30 | AM8: 31 | AN8: 31 | AO8: 30 | AP8: 31 | AQ8: 30 | AR8: 31 | AS8: 31 | AT8: 28 | AU8: 31 | AV8: 30 | AW8: 31 | AX8: 30 | AY8: 31 | AZ8: 31 | BA8: 30 | BB8: 31 | BC8: 30 | BD8: 31 | BE8: 31 | BF8: 29 | BG8: 31 | BH8: 30 | BI8: 31 | BJ8: 30 | BK8: 31 | BL8: 31 | BM8: 30 | BN8: 31 | BO8: 30 | BP8: 31 | BQ8: 31 | BR8: 28 | BS8: 31 | BT8: 30 | BU8: 31 | BV8: 30 | BW8: 31 | BX8: 31 | BY8: 30 | BZ8: 31 | CA8: 30 | CB8: 31 | CC8: 31 | CD8: 28 | CE8: 31 | CF8: 30 | CG8: 31 | CH8: 30 | CI8: 31 | CJ8: 31 | CK8: 30 | CL8: 31 | CM8: 30 | CN8: 31 | CO8: 31 | CP8: 28 | CQ8: 31 | CR8: 30 | CS8: 31 | CT8: 30 | CU8: 31 | CV8: 31 | CW8: 30 | CX8: 31 | CY8: 30 | CZ8: 31 | DA8: 31 | DB8: 29 | DC8: 31 | DD8: 30 | DE8: 31 | DF8: 30 | DG8: 31 | DH8: 31 | DI8: 30 | DJ8: 31 | DK8: 30 | DL8: 31 | DM8: 31 | DN8: 28 | DO8: 31 | DP8: 30 | DQ8: 31 | DR8: 30 | DS8: 31 | DT8: 31 | DU8: 30 | DV8: 31 | DW8: 30 | DX8: 31 | DY8: 31 | DZ8: 28 | EA8: 31 | EB8: 30 | EC8: 31 | ED8: 30 | EE8: 31 | EF8: 31 | EG8: 30 | EH8: 31 | EI8: 30 | EJ8: 31 | EK8: 31 | EL8: 28 | EM8: 31 | EN8: 30 | EO8: 31 | EP8: 30
Y9: номер месяца даты окончания: | AA9: 7 | AB9: 8 | AC9: 9 | AD9: 10 | AE9: 11 | AF9: 12 | AG9: 1 | AH9: 2 | AI9: 3 | AJ9: 4 | AK9: 5 | AL9: 6 | AM9: 7 | AN9: 8 | AO9: 9 | AP9: 10 | AQ9: 11 | AR9: 12 | AS9: 1 | AT9: 2 | AU9: 3 | AV9: 4 | AW9: 5 | AX9: 6 | AY9: 7 | AZ9: 8 | BA9: 9 | BB9: 10 | BC9: 11 | BD9: 12 | BE9: 1 | BF9: 2 | BG9: 3 | BH9: 4 | BI9: 5 | BJ9: 6 | BK9: 7 | BL9: 8 | BM9: 9 | BN9: 10 | BO9: 11 | BP9: 12 | BQ9: 1 | BR9: 2 | BS9: 3 | BT9: 4 | BU9: 5 | BV9: 6 | BW9: 7 | BX9: 8 | BY9: 9 | BZ9: 10 | CA9: 11 | CB9: 12 | CC9: 1 | CD9: 2 | CE9: 3 | CF9: 4 | CG9: 5 | CH9: 6 | CI9: 7 | CJ9: 8 | CK9: 9 | CL9: 10 | CM9: 11 | CN9: 12 | CO9: 1 | CP9: 2 | CQ9: 3 | CR9: 4 | CS9: 5 | CT9: 6 | CU9: 7 | CV9: 8 | CW9: 9 | CX9: 10 | CY9: 11 | CZ9: 12 | DA9: 1 | DB9: 2 | DC9: 3 | DD9: 4 | DE9: 5 | DF9: 6 | DG9: 7 | DH9: 8 | DI9: 9 | DJ9: 10 | DK9: 11 | DL9: 12 | DM9: 1 | DN9: 2 | DO9: 3 | DP9: 4 | DQ9: 5 | DR9: 6 | DS9: 7 | DT9: 8 | DU9: 9 | DV9: 10 | DW9: 11 | DX9: 12 | DY9: 1 | DZ9: 2 | EA9: 3 | EB9: 4 | EC9: 5 | ED9: 6 | EE9: 7 | EF9: 8 | EG9: 9 | EH9: 10 | EI9: 11 | EJ9: 12 | EK9: 1 | EL9: 2 | EM9: 3 | EN9: 4 | EO9: 5 | EP9: 6
Y10: год даты окончания: | AA10: 21 | AB10: 21 | AC10: 21 | AD10: 21 | AE10: 21 | AF10: 21 | AG10: 22 | AH10: 22 | AI10: 22 | AJ10: 22 | AK10: 22 | AL10: 22 | AM10: 22 | AN10: 22 | AO10: 22 | AP10: 22 | AQ10: 22 | AR10: 22 | AS10: 23 | AT10: 23 | AU10: 23 | AV10: 23 | AW10: 23 | AX10: 23 | AY10: 23 | AZ10: 23 | BA10: 23 | BB10: 23 | BC10: 23 | BD10: 23 | BE10: 24 | BF10: 24 | BG10: 24 | BH10: 24 | BI10: 24 | BJ10: 24 | BK10: 24 | BL10: 24 | BM10: 24 | BN10: 24 | BO10: 24 | BP10: 24 | BQ10: 25 | BR10: 25 | BS10: 25 | BT10: 25 | BU10: 25 | BV10: 25 | BW10: 25 | BX10: 25 | BY10: 25 | BZ10: 25 | CA10: 25 | CB10: 25 | CC10: 26 | CD10: 26 | CE10: 26 | CF10: 26 | CG10: 26 | CH10: 26 | CI10: 26 | CJ10: 26 | CK10: 26 | CL10: 26 | CM10: 26 | CN10: 26 | CO10: 27 | CP10: 27 | CQ10: 27 | CR10: 27 | CS10: 27 | CT10: 27 | CU10: 27 | CV10: 27 | CW10: 27 | CX10: 27 | CY10: 27 | CZ10: 27 | DA10: 28 | DB10: 28 | DC10: 28 | DD10: 28 | DE10: 28 | DF10: 28 | DG10: 28 | DH10: 28 | DI10: 28 | DJ10: 28 | DK10: 28 | DL10: 28 | DM10: 29 | DN10: 29 | DO10: 29 | DP10: 29 | DQ10: 29 | DR10: 29 | DS10: 29 | DT10: 29 | DU10: 29 | DV10: 29 | DW10: 29 | DX10: 29 | DY10: 30 | DZ10: 30 | EA10: 30 | EB10: 30 | EC10: 30 | ED10: 30 | EE10: 30 | EF10: 30 | EG10: 30 | EH10: 30 | EI10: 30 | EJ10: 30 | EK10: 31 | EL10: 31 | EM10: 31 | EN10: 31 | EO10: 31 | EP10: 31
F11: Mrkting | I11: Маркетинг. Параметры рынков сбыта и каналов привлечения клиентов | Q11: все включает НДС | X11: 2021-07-01 | AA11: 2021-07-01 | AB11: 2021-08-01 | AC11: 2021-09-01 | AD11: 2021-10-01 | AE11: 2021-11-01 | AF11: 2021-12-01 | AG11: 2022-01-01 | AH11: 2022-02-01 | AI11: 2022-03-01 | AJ11: 2022-04-01 | AK11: 2022-05-01 | AL11: 2022-06-01 | AM11: 2022-07-01 | AN11: 2022-08-01 | AO11: 2022-09-01 | AP11: 2022-10-01 | AQ11: 2022-11-01 | AR11: 2022-12-01 | AS11: 2023-01-01 | AT11: 2023-02-01 | AU11: 2023-03-01 | AV11: 2023-04-01 | AW11: 2023-05-01 | AX11: 2023-06-01 | AY11: 2023-07-01 | AZ11: 2023-08-01 | BA11: 2023-09-01 | BB11: 2023-10-01 | BC11: 2023-11-01 | BD11: 2023-12-01 | BE11: 2024-01-01 | BF11: 2024-02-01 | BG11: 2024-03-01 | BH11: 2024-04-01 | BI11: 2024-05-01 | BJ11: 2024-06-01 | BK11: 2024-07-01 | BL11: 2024-08-01 | BM11: 2024-09-01 | BN11: 2024-10-01 | BO11: 2024-11-01 | BP11: 2024-12-01 | BQ11: 2025-01-01 | BR11: 2025-02-01 | BS11: 2025-03-01 | BT11: 2025-04-01 | BU11: 2025-05-01 | BV11: 2025-06-01 | BW11: 2025-07-01 | BX11: 2025-08-01 | BY11: 2025-09-01 | BZ11: 2025-10-01 | CA11: 2025-11-01 | CB11: 2025-12-01 | CC11: 2026-01-01 | CD11: 2026-02-01 | CE11: 2026-03-01 | CF11: 2026-04-01 | CG11: 2026-05-01 | CH11: 2026-06-01 | CI11: 2026-07-01 | CJ11: 2026-08-01 | CK11: 2026-09-01 | CL11: 2026-10-01 | CM11: 2026-11-01 | CN11: 2026-12-01 | CO11: 2027-01-01 | CP11: 2027-02-01 | CQ11: 2027-03-01 | CR11: 2027-04-01 | CS11: 2027-05-01 | CT11: 2027-06-01 | CU11: 2027-07-01 | CV11: 2027-08-01 | CW11: 2027-09-01 | CX11: 2027-10-01 | CY11: 2027-11-01 | CZ11: 2027-12-01 | DA11: 2028-01-01 | DB11: 2028-02-01 | DC11: 2028-03-01 | DD11: 2028-04-01 | DE11: 2028-05-01 | DF11: 2028-06-01 | DG11: 2028-07-01 | DH11: 2028-08-01 | DI11: 2028-09-01 | DJ11: 2028-10-01 | DK11: 2028-11-01 | DL11: 2028-12-01 | DM11: 2029-01-01 | DN11: 2029-02-01 | DO11: 2029-03-01 | DP11: 2029-04-01 | DQ11: 2029-05-01 | DR11: 2029-06-01 | DS11: 2029-07-01 | DT11: 2029-08-01 | DU11: 2029-09-01 | DV11: 2029-10-01 | DW11: 2029-11-01 | DX11: 2029-12-01 | DY11: 2030-01-01 | DZ11: 2030-02-01 | EA11: 2030-03-01 | EB11: 2030-04-01 | EC11: 2030-05-01 | ED11: 2030-06-01 | EE11: 2030-07-01 | EF11: 2030-08-01 | EG11: 2030-09-01 | EH11: 2030-10-01 | EI11: 2030-11-01 | EJ11: 2030-12-01 | EK11: 2031-01-01 | EL11: 2031-02-01 | EM11: 2031-03-01 | EN11: 2031-04-01 | EO11: 2031-05-01 | EP11: 2031-06-01
H12: тип листа | Q12: расчетный | X12: 2031-06-30 | AA12: 2021-07-31 | AB12: 2021-08-31 | AC12: 2021-09-30 | AD12: 2021-10-31 | AE12: 2021-11-30 | AF12: 2021-12-31 | AG12: 2022-01-31 | AH12: 2022-02-28 | AI12: 2022-03-31 | AJ12: 2022-04-30 | AK12: 2022-05-31 | AL12: 2022-06-30 | AM12: 2022-07-31 | AN12: 2022-08-31 | AO12: 2022-09-30 | AP12: 2022-10-31 | AQ12: 2022-11-30 | AR12: 2022-12-31 | AS12: 2023-01-31 | AT12: 2023-02-28 | AU12: 2023-03-31 | AV12: 2023-04-30 | AW12: 2023-05-31 | AX12: 2023-06-30 | AY12: 2023-07-31 | AZ12: 2023-08-31 | BA12: 2023-09-30 | BB12: 2023-10-31 | BC12: 2023-11-30 | BD12: 2023-12-31 | BE12: 2024-01-31 | BF12: 2024-02-29 | BG12: 2024-03-31 | BH12: 2024-04-30 | BI12: 2024-05-31 | BJ12: 2024-06-30 | BK12: 2024-07-31 | BL12: 2024-08-31 | BM12: 2024-09-30 | BN12: 2024-10-31 | BO12: 2024-11-30 | BP12: 2024-12-31 | BQ12: 2025-01-31 | BR12: 2025-02-28 | BS12: 2025-03-31 | BT12: 2025-04-30 | BU12: 2025-05-31 | BV12: 2025-06-30 | BW12: 2025-07-31 | BX12: 2025-08-31 | BY12: 2025-09-30 | BZ12: 2025-10-31 | CA12: 2025-11-30 | CB12: 2025-12-31 | CC12: 2026-01-31 | CD12: 2026-02-28 | CE12: 2026-03-31 | CF12: 2026-04-30 | CG12: 2026-05-31 | CH12: 2026-06-30 | CI12: 2026-07-31 | CJ12: 2026-08-31 | CK12: 2026-09-30 | CL12: 2026-10-31 | CM12: 2026-11-30 | CN12: 2026-12-31 | CO12: 2027-01-31 | CP12: 2027-02-28 | CQ12: 2027-03-31 | CR12: 2027-04-30 | CS12: 2027-05-31 | CT12: 2027-06-30 | CU12: 2027-07-31 | CV12: 2027-08-31 | CW12: 2027-09-30 | CX12: 2027-10-31 | CY12: 2027-11-30 | CZ12: 2027-12-31 | DA12: 2028-01-31 | DB12: 2028-02-29 | DC12: 2028-03-31 | DD12: 2028-04-30 | DE12: 2028-05-31 | DF12: 2028-06-30 | DG12: 2028-07-31 | DH12: 2028-08-31 | DI12: 2028-09-30 | DJ12: 2028-10-31 | DK12: 2028-11-30 | DL12: 2028-12-31 | DM12: 2029-01-31 | DN12: 2029-02-28 | DO12: 2029-03-31 | DP12: 2029-04-30 | DQ12: 2029-05-31 | DR12: 2029-06-30 | DS12: 2029-07-31 | DT12: 2029-08-31 | DU12: 2029-09-30 | DV12: 2029-10-31 | DW12: 2029-11-30 | DX12: 2029-12-31 | DY12: 2030-01-31 | DZ12: 2030-02-28 | EA12: 2030-03-31 | EB12: 2030-04-30 | EC12: 2030-05-31 | ED12: 2030-06-30 | EE12: 2030-07-31 | EF12: 2030-08-31 | EG12: 2030-09-30 | EH12: 2030-10-31 | EI12: 2030-11-30 | EJ12: 2030-12-31 | EK12: 2031-01-31 | EL12: 2031-02-28 | EM12: 2031-03-31 | EN12: 2031-04-30 | EO12: 2031-05-31 | EP12: 2031-06-30
H13: показатель | M13: ед.изм. | Q13: значение | X13: итого | AA13: 2021-07-01 | AB13: 2021-08-01 | AC13: 2021-09-01 | AD13: 2021-10-01 | AE13: 2021-11-01 | AF13: 2021-12-01 | AG13: 2022-01-01 | AH13: 2022-02-01 | AI13: 2022-03-01 | AJ13: 2022-04-01 | AK13: 2022-05-01 | AL13: 2022-06-01 | AM13: 2022-07-01 | AN13: 2022-08-01 | AO13: 2022-09-01 | AP13: 2022-10-01 | AQ13: 2022-11-01 | AR13: 2022-12-01 | AS13: 2023-01-01 | AT13: 2023-02-01 | AU13: 2023-03-01 | AV13: 2023-04-01 | AW13: 2023-05-01 | AX13: 2023-06-01 | AY13: 2023-07-01 | AZ13: 2023-08-01 | BA13: 2023-09-01 | BB13: 2023-10-01 | BC13: 2023-11-01 | BD13: 2023-12-01 | BE13: 2024-01-01 | BF13: 2024-02-01 | BG13: 2024-03-01 | BH13: 2024-04-01 | BI13: 2024-05-01 | BJ13: 2024-06-01 | BK13: 2024-07-01 | BL13: 2024-08-01 | BM13: 2024-09-01 | BN13: 2024-10-01 | BO13: 2024-11-01 | BP13: 2024-12-01 | BQ13: 2025-01-01 | BR13: 2025-02-01 | BS13: 2025-03-01 | BT13: 2025-04-01 | BU13: 2025-05-01 | BV13: 2025-06-01 | BW13: 2025-07-01 | BX13: 2025-08-01 | BY13: 2025-09-01 | BZ13: 2025-10-01 | CA13: 2025-11-01 | CB13: 2025-12-01 | CC13: 2026-01-01 | CD13: 2026-02-01 | CE13: 2026-03-01 | CF13: 2026-04-01 | CG13: 2026-05-01 | CH13: 2026-06-01 | CI13: 2026-07-01 | CJ13: 2026-08-01 | CK13: 2026-09-01 | CL13: 2026-10-01 | CM13: 2026-11-01 | CN13: 2026-12-01 | CO13: 2027-01-01 | CP13: 2027-02-01 | CQ13: 2027-03-01 | CR13: 2027-04-01 | CS13: 2027-05-01 | CT13: 2027-06-01 | CU13: 2027-07-01 | CV13: 2027-08-01 | CW13: 2027-09-01 | CX13: 2027-10-01 | CY13: 2027-11-01 | CZ13: 2027-12-01 | DA13: 2028-01-01 | DB13: 2028-02-01 | DC13: 2028-03-01 | DD13: 2028-04-01 | DE13: 2028-05-01 | DF13: 2028-06-01 | DG13: 2028-07-01 | DH13: 2028-08-01 | DI13: 2028-09-01 | DJ13: 2028-10-01 | DK13: 2028-11-01 | DL13: 2028-12-01 | DM13: 2029-01-01 | DN13: 2029-02-01 | DO13: 2029-03-01 | DP13: 2029-04-01 | DQ13: 2029-05-01 | DR13: 2029-06-01 | DS13: 2029-07-01 | DT13: 2029-08-01 | DU13: 2029-09-01 | DV13: 2029-10-01 | DW13: 2029-11-01 | DX13: 2029-12-01 | DY13: 2030-01-01 | DZ13: 2030-02-01 | EA13: 2030-03-01 | EB13: 2030-04-01 | EC13: 2030-05-01 | ED13: 2030-06-01 | EE13: 2030-07-01 | EF13: 2030-08-01 | EG13: 2030-09-01 | EH13: 2030-10-01 | EI13: 2030-11-01 | EJ13: 2030-12-01 | EK13: 2031-01-01 | EL13: 2031-02-01 | EM13: 2031-03-01 | EN13: 2031-04-01 | EO13: 2031-05-01 | EP13: 2031-06-01
D14: 0 | E14: 0 | F14: 0 | G14: 0 | S14: 0 | T14: 0
A15: 15 | H15: разработка финмоделей: https://mngmnt.ru/ | Y15: обратный порядок периодизации | AA15: 133 | AB15: 132 | AC15: 131 | AD15: 130 | AE15: 129 | AF15: 128 | AG15: 127 | AH15: 126 | AI15: 125 | AJ15: 124 | AK15: 123 | AL15: 122 | AM15: 121 | AN15: 120 | AO15: 119 | AP15: 118 | AQ15: 117 | AR15: 116 | AS15: 115 | AT15: 114 | AU15: 113 | AV15: 112 | AW15: 111 | AX15: 110 | AY15: 109 | AZ15: 108 | BA15: 107 | BB15: 106 | BC15: 105 | BD15: 104 | BE15: 103 | BF15: 102 | BG15: 101 | BH15: 100 | BI15: 99 | BJ15: 98 | BK15: 97 | BL15: 96 | BM15: 95 | BN15: 94 | BO15: 93 | BP15: 92 | BQ15: 91 | BR15: 90 | BS15: 89 | BT15: 88 | BU15: 87 | BV15: 86 | BW15: 85 | BX15: 84 | BY15: 83 | BZ15: 82 | CA15: 81 | CB15: 80 | CC15: 79 | CD15: 78 | CE15: 77 | CF15: 76 | CG15: 75 | CH15: 74 | CI15: 73 | CJ15: 72 | CK15: 71 | CL15: 70 | CM15: 69 | CN15: 68 | CO15: 67 | CP15: 66 | CQ15: 65 | CR15: 64 | CS15: 63 | CT15: 62 | CU15: 61 | CV15: 60 | CW15: 59 | CX15: 58 | CY15: 57 | CZ15: 56 | DA15: 55 | DB15: 54 | DC15: 53 | DD15: 52 | DE15: 51 | DF15: 50 | DG15: 49 | DH15: 48 | DI15: 47 | DJ15: 46 | DK15: 45 | DL15: 44 | DM15: 43 | DN15: 42 | DO15: 41 | DP15: 40 | DQ15: 39 | DR15: 38 | DS15: 37 | DT15: 36 | DU15: 35 | DV15: 34 | DW15: 33 | DX15: 32 | DY15: 31 | DZ15: 30 | EA15: 29 | EB15: 28 | EC15: 27 | ED15: 26 | EE15: 25 | EF15: 24 | EG15: 23 | EH15: 22 | EI15: 21 | EJ15: 20 | EK15: 19 | EL15: 18 | EM15: 17 | EN15: 16 | EO15: 15 | EP15: 14 | EQ15: 13 | ER15: 12 | ES15: 11 | ET15: 10 | EU15: 9 | EV15: 8 | EW15: 7 | EX15: 6 | EY15: 5 | EZ15: 4 | FA15: 3 | FB15: 2 | FC15: 1
A16: 16 | G16: 0 | H16: Метод расчета потока клиентов/заказчиков | K16: 1 | L16: Street - Уличный трафик вдоль салонов
A17: 17 | G17: 0 | H17: Метод расчета потока клиентов/заказчиков | I17: Сеть салонов - Поток посетителей | L17: начало 1 маркетингового блока
A18: 18
A19: 19 | G19: 0 | H19: Поток запусков создания салонов оптики | L19: 1 | M19: кол-во салонов | Q19: запуски процесса | X19: 65 | AA19: 0 | AB19: 1 | AC19: 2 | AD19: 0 | AE19: 3 | AF19: 0 | AG19: 0 | AH19: 4 | AI19: 0 | AJ19: 0 | AK19: 0 | AL19: 5 | AM19: 0 | AN19: 0 | AO19: 0 | AP19: 0 | AQ19: 5 | AR19: 0 | AS19: 0 | AT19: 0 | AU19: 0 | AV19: 0 | AW19: 5 | AX19: 0 | AY19: 0 | AZ19: 0 | BA19: 0 | BB19: 0 | BC19: 0 | BD19: 5 | BE19: 0 | BF19: 0 | BG19: 0 | BH19: 0 | BI19: 0 | BJ19: 0 | BK19: 0 | BL19: 5 | BM19: 0 | BN19: 0 | BO19: 0 | BP19: 0 | BQ19: 0 | BR19: 0 | BS19: 0 | BT19: 0 | BU19: 5 | BV19: 0 | BW19: 0 | BX19: 0 | BY19: 0 | BZ19: 0 | CA19: 0 | CB19: 0 | CC19: 0 | CD19: 0 | CE19: 5 | CF19: 0 | CG19: 0 | CH19: 0 | CI19: 0 | CJ19: 0 | CK19: 0 | CL19: 0 | CM19: 0 | CN19: 0 | CO19: 0 | CP19: 5 | CQ19: 0 | CR19: 0 | CS19: 0 | CT19: 0 | CU19: 0 | CV19: 0 | CW19: 0 | CX19: 0 | CY19: 0 | CZ19: 0 | DA19: 0 | DB19: 5 | DC19: 0 | DD19: 0 | DE19: 0 | DF19: 0 | DG19: 0 | DH19: 0 | DI19: 0 | DJ19: 0 | DK19: 0 | DL19: 0 | DM19: 0 | DN19: 0 | DO19: 5 | DP19: 0 | DQ19: 0 | DR19: 0 | DS19: 0 | DT19: 0 | DU19: 0 | DV19: 0 | DW19: 0 | DX19: 0 | DY19: 0 | DZ19: 0 | EA19: 0 | EB19: 0 | EC19: 5 | ED19: 0 | EE19: 0 | EF19: 0 | EG19: 0 | EH19: 0 | EI19: 0 | EJ19: 0 | EK19: 0 | EL19: 0 | EM19: 0 | EN19: 0 | EO19: 0 | EP19: 0 | EQ19: 0 | ER19: 0 | ES19: 0 | ET19: 0 | EU19: 0 | EV19: 0 | EW19: 0 | EX19: 0 | EY19: 0 | EZ19: 0 | FA19: 0 | FB19: 0 | FC19: 0
A20: 20 | G20: 0 | H20: дата старта | I20: Начальная дата старта запусков создания | M20: дата из списка | P20: * | Q20: 2021-08-01 | R20: ^ | S20: 0 | Y20: идентификаторы запуска | AA20: 0 | AB20: 1 | AC20: 1 | AD20: 0 | AE20: 1 | AF20: 0 | AG20: 0 | AH20: 1 | AI20: 0 | AJ20: 0 | AK20: 0 | AL20: 1 | AM20: 0 | AN20: 0 | AO20: 0 | AP20: 0 | AQ20: 1 | AR20: 0 | AS20: 0 | AT20: 0 | AU20: 0 | AV20: 0 | AW20: 1 | AX20: 0 | AY20: 0 | AZ20: 0 | BA20: 0 | BB20: 0 | BC20: 0 | BD20: 1 | BE20: 0 | BF20: 0 | BG20: 0 | BH20: 0 | BI20: 0 | BJ20: 0 | BK20: 0 | BL20: 1 | BM20: 0 | BN20: 0 | BO20: 0 | BP20: 0 | BQ20: 0 | BR20: 0 | BS20: 0 | BT20: 0 | BU20: 1 | BV20: 0 | BW20: 0 | BX20: 0 | BY20: 0 | BZ20: 0 | CA20: 0 | CB20: 0 | CC20: 0 | CD20: 0 | CE20: 1 | CF20: 0 | CG20: 0 | CH20: 0 | CI20: 0 | CJ20: 0 | CK20: 0 | CL20: 0 | CM20: 0 | CN20: 0 | CO20: 0 | CP20: 1 | CQ20: 0 | CR20: 0 | CS20: 0 | CT20: 0 | CU20: 0 | CV20: 0 | CW20: 0 | CX20: 0 | CY20: 0 | CZ20: 0 | DA20: 0 | DB20: 1 | DC20: 0 | DD20: 0 | DE20: 0 | DF20: 0 | DG20: 0 | DH20: 0 | DI20: 0 | DJ20: 0 | DK20: 0 | DL20: 0 | DM20: 0 | DN20: 0 | DO20: 1 | DP20: 0 | DQ20: 0 | DR20: 0 | DS20: 0 | DT20: 0 | DU20: 0 | DV20: 0 | DW20: 0 | DX20: 0 | DY20: 0 | DZ20: 0 | EA20: 0 | EB20: 0 | EC20: 1 | ED20: 0 | EE20: 0 | EF20: 0 | EG20: 0 | EH20: 0 | EI20: 0 | EJ20: 0 | EK20: 0 | EL20: 0 | EM20: 0 | EN20: 0 | EO20: 0 | EP20: 0 | EQ20: 0 | ER20: 0 | ES20: 0 | ET20: 0 | EU20: 0 | EV20: 0 | EW20: 0 | EX20: 0 | EY20: 0 | EZ20: 0 | FA20: 0 | FB20: 0 | FC20: 0
A21: 21 | G21: 0 | H21: Поток запусков создания салонов оптики | I21: номер соответствующего периода расчетов | M21: номер периода | Q21: 2 | S21: 0 | T21: 0
A22: 22 | G22: 0 | H22: дата старта | I22: Конечная дата активности по запуску создания | M22: дата из списка | P22: * | R22: ^ | S22: 0
A23: 23 | G23: 0 | H23: Поток запусков создания салонов оптики | I23: номер соответствующего периода расчетов | M23: номер периода | Q23: 120 | S23: 0 | T23: 0
A24: 24 | G24: 0 | H24: Поток запусков создания салонов оптики | I24: Задание потока запусков создания вручную | M24: кол-во салонов | X24: 0 | Y24: *
A25: 25 | G25: 0 | H25: Поток запусков создания салонов оптики | I25: Задание потока запусков создания через прогрессии
A26: 26 | G26: 0 | H26: Поток запусков создания салонов оптики | I26: Задание потока запусков создания через прогрессии | J26: Начальная частота запусков создания | M26: кол-во периодов | P26: * | Q26: 1 | S26: 0
A27: 27 | G27: 0 | H27: Поток запусков создания салонов оптики | I27: Задание потока запусков создания через прогрессии | J27: Лин. коэфф. изменения частоты создания | M27: кол-во периодов | P27: * | Q27: 1 | S27: 0
A28: 28 | G28: 0 | H28: дата старта | I28: Задание потока запусков создания через прогрессии | J28: Кол-во запусков создания в 1-ый период | M28: кол-во салонов | P28: * | Q28: 1 | S28: 0
A29: 29 | G29: 0 | H29: Поток запусков создания салонов оптики | I29: Задание потока запусков создания через прогрессии | J29: Лин. коэфф. изменения кол-ва запусков создания | M29: кол-во салонов | P29: * | Q29: 1 | S29: 0
A30: 30 | G30: 0 | H30: дата старта | I30: Задание потока запусков создания через прогрессии | J30: Максимальное кол-во новых запусков за период | M30: кол-во салонов | P30: * | Q30: 5 | S30: 0
A31: 31
A32: 32 | G32: 0 | H32: Расчет максим. целевого трафика за период | M32: трафик/период | Q32: 875 | T32: 0
A33: 33 | G33: 0 | H33: Расчет максим. целевого трафика за период | I33: Кол-во рабочих дней в периоде | M33: кол-во дней | P33: * | Q33: 25 | S33: 0
A34: 34 | G34: 0 | H34: Расчет максим. целевого трафика за период | I34: Поправка на конкурентов | M34: % | P34: * | Q34: 0.2 | S34: 0
A35: 35 | G35: 0 | H35: Расчет максим. целевого трафика за период | I35: Коэффициент лояльности | M35: % | P35: * | Q35: 0.7 | S35: 0
A36: 36 | G36: 0 | H36: Расчет максим. целевого трафика за период | I36: Доля людей, которым требуются услуги сети | M36: % | P36: * | Q36: 0.5 | S36: 0
A37: 37 | G37: 0 | H37: Расчет максим. целевого трафика за период | I37: Ежедневный трафик | M37: кол-во чел | P37: M | Q37: 500 | S37: 0
A38: 38
A39: 39 | G39: 0 | H39: Динамика выхода салона на максим. трафик | M39: трафик/салон | Q39: процесс | X39: 99850 | AA39: 0 | AB39: 0 | AC39: 0 | AD39: 0 | AE39: 400 | AF39: 400 | AG39: 600 | AH39: 600 | AI39: 800 | AJ39: 800 | AK39: 875 | AL39: 875 | AM39: 875 | AN39: 875 | AO39: 875 | AP39: 875 | AQ39: 875 | AR39: 875 | AS39: 875 | AT39: 875 | AU39: 875 | AV39: 875 | AW39: 875 | AX39: 875 | AY39: 875 | AZ39: 875 | BA39: 875 | BB39: 875 | BC39: 875 | BD39: 875 | BE39: 875 | BF39: 875 | BG39: 875 | BH39: 875 | BI39: 875 | BJ39: 875 | BK39: 875 | BL39: 875 | BM39: 875 | BN39: 875 | BO39: 875 | BP39: 875 | BQ39: 875 | BR39: 875 | BS39: 875 | BT39: 875 | BU39: 875 | BV39: 875 | BW39: 875 | BX39: 875 | BY39: 875 | BZ39: 875 | CA39: 875 | CB39: 875 | CC39: 875 | CD39: 875 | CE39: 875 | CF39: 875 | CG39: 875 | CH39: 875 | CI39: 875 | CJ39: 875 | CK39: 875 | CL39: 875 | CM39: 875 | CN39: 875 | CO39: 875 | CP39: 875 | CQ39: 875 | CR39: 875 | CS39: 875 | CT39: 875 | CU39: 875 | CV39: 875 | CW39: 875 | CX39: 875 | CY39: 875 | CZ39: 875 | DA39: 875 | DB39: 875 | DC39: 875 | DD39: 875 | DE39: 875 | DF39: 875 | DG39: 875 | DH39: 875 | DI39: 875 | DJ39: 875 | DK39: 875 | DL39: 875 | DM39: 875 | DN39: 875 | DO39: 875 | DP39: 875 | DQ39: 875 | DR39: 875 | DS39: 875 | DT39: 875 | DU39: 875 | DV39: 875 | DW39: 875 | DX39: 875 | DY39: 875 | DZ39: 875 | EA39: 875 | EB39: 875 | EC39: 875 | ED39: 875 | EE39: 875 | EF39: 875 | EG39: 875 | EH39: 875 | EI39: 875 | EJ39: 875 | EK39: 875 | EL39: 875 | EM39: 875 | EN39: 875 | EO39: 875 | EP39: 875 | EQ39: 0 | ER39: 0 | ES39: 0 | ET39: 0 | EU39: 0 | EV39: 0 | EW39: 0 | EX39: 0 | EY39: 0 | EZ39: 0 | FA39: 0 | FB39: 0 | FC39: 0
A40: 40 | G40: 0 | H40: Динамика выхода салона на максим. трафик | I40: Стартовый период с запуска создания | M40: номер периода | P40: * | Q40: 5 | S40: 0
A41: 41 | G41: 0 | H41: Динамика выхода салона на максим. трафик | I41: Финишный период с запуска создания | M41: номер периода | P41: * | S41: 0
A42: 42 | G42: 0 | H42: Динамика выхода салона на максим. трафик | I42: Вручную для каждого периода расчетов | M42: трафик/салон | X42: 0 | Y42: *
A43: 43 | G43: 0 | H43: тип прогрессии | I43: Через прогрессию | P43: * | Q43: линейная | R43: ^ | S43: 0
A44: 44 | G44: 0 | H44: Динамика выхода салона на максим. трафик | I44: Значение в стартовый период | M44: трафик/салон | P44: M | Q44: 400 | S44: 0
A45: 45 | G45: 0 | H45: Динамика выхода салона на максим. трафик | I45: Коэффициент прироста | M45: трафик/салон | P45: M | Q45: 200 | S45: 0
A46: 46 | G46: 0 | H46: Динамика выхода салона на максим. трафик | I46: Частота приростов | M46: кол-во периодов | P46: M | Q46: 2 | S46: 0
A47: 47 | G47: 0 | H47: Динамика выхода салона на максим. трафик | I47: Обратное распределение трафика | M47: трафик/салон | X47: 99850 | AA47: 0 | AB47: 0 | AC47: 0 | AD47: 0 | AE47: 0 | AF47: 0 | AG47: 0 | AH47: 0 | AI47: 0 | AJ47: 0 | AK47: 0 | AL47: 0 | AM47: 0 | AN47: 875 | AO47: 875 | AP47: 875 | AQ47: 875 | AR47: 875 | AS47: 875 | AT47: 875 | AU47: 875 | AV47: 875 | AW47: 875 | AX47: 875 | AY47: 875 | AZ47: 875 | BA47: 875 | BB47: 875 | BC47: 875 | BD47: 875 | BE47: 875 | BF47: 875 | BG47: 875 | BH47: 875 | BI47: 875 | BJ47: 875 | BK47: 875 | BL47: 875 | BM47: 875 | BN47: 875 | BO47: 875 | BP47: 875 | BQ47: 875 | BR47: 875 | BS47: 875 | BT47: 875 | BU47: 875 | BV47: 875 | BW47: 875 | BX47: 875 | BY47: 875 | BZ47: 875 | CA47: 875 | CB47: 875 | CC47: 875 | CD47: 875 | CE47: 875 | CF47: 875 | CG47: 875 | CH47: 875 | CI47: 875 | CJ47: 875 | CK47: 875 | CL47: 875 | CM47: 875 | CN47: 875 | CO47: 875 | CP47: 875 | CQ47: 875 | CR47: 875 | CS47: 875 | CT47: 875 | CU47: 875 | CV47: 875 | CW47: 875 | CX47: 875 | CY47: 875 | CZ47: 875 | DA47: 875 | DB47: 875 | DC47: 875 | DD47: 875 | DE47: 875 | DF47: 875 | DG47: 875 | DH47: 875 | DI47: 875 | DJ47: 875 | DK47: 875 | DL47: 875 | DM47: 875 | DN47: 875 | DO47: 875 | DP47: 875 | DQ47: 875 | DR47: 875 | DS47: 875 | DT47: 875 | DU47: 875 | DV47: 875 | DW47: 875 | DX47: 875 | DY47: 875 | DZ47: 875 | EA47: 875 | EB47: 875 | EC47: 875 | ED47: 875 | EE47: 875 | EF47: 875 | EG47: 875 | EH47: 875 | EI47: 875 | EJ47: 875 | EK47: 875 | EL47: 875 | EM47: 875 | EN47: 875 | EO47: 875 | EP47: 875 | EQ47: 875 | ER47: 875 | ES47: 875 | ET47: 800 | EU47: 800 | EV47: 600 | EW47: 600 | EX47: 400 | EY47: 400 | EZ47: 0 | FA47: 0 | FB47: 0 | FC47: 0
A48: 48 | G48: 0 | H48: Динамика выхода салона на максим. трафик | I48: Процентное распределние трафика | M48: % | T48: 0 | X48: 1 | AA48: 0 | AB48: 0 | AC48: 0 | AD48: 0 | AE48: 0.004006009014 | AF48: 0.004006009014 | AG48: 0.00600901352 | AH48: 0.00600901352 | AI48: 0.008012018027 | AJ48: 0.008012018027 | AK48: 0.008763144717 | AL48: 0.008763144717 | AM48: 0.008763144717 | AN48: 0.008763144717 | AO48: 0.008763144717 | AP48: 0.008763144717 | AQ48: 0.008763144717 | AR48: 0.008763144717 | AS48: 0.008763144717 | AT48: 0.008763144717 | AU48: 0.008763144717 | AV48: 0.008763144717 | AW48: 0.008763144717 | AX48: 0.008763144717 | AY48: 0.008763144717 | AZ48: 0.008763144717 | BA48: 0.008763144717 | BB48: 0.008763144717 | BC48: 0.008763144717 | BD48: 0.008763144717 | BE48: 0.008763144717 | BF48: 0.008763144717 | BG48: 0.008763144717 | BH48: 0.008763144717 | BI48: 0.008763144717 | BJ48: 0.008763144717 | BK48: 0.008763144717 | BL48: 0.008763144717 | BM48: 0.008763144717 | BN48: 0.008763144717 | BO48: 0.008763144717 | BP48: 0.008763144717 | BQ48: 0.008763144717 | BR48: 0.008763144717 | BS48: 0.008763144717 | BT48: 0.008763144717 | BU48: 0.008763144717 | BV48: 0.008763144717 | BW48: 0.008763144717 | BX48: 0.008763144717 | BY48: 0.008763144717 | BZ48: 0.008763144717 | CA48: 0.008763144717 | CB48: 0.008763144717 | CC48: 0.008763144717 | CD48: 0.008763144717 | CE48: 0.008763144717 | CF48: 0.008763144717 | CG48: 0.008763144717 | CH48: 0.008763144717 | CI48: 0.008763144717 | CJ48: 0.008763144717 | CK48: 0.008763144717 | CL48: 0.008763144717 | CM48: 0.008763144717 | CN48: 0.008763144717 | CO48: 0.008763144717 | CP48: 0.008763144717 | CQ48: 0.008763144717 | CR48: 0.008763144717 | CS48: 0.008763144717 | CT48: 0.008763144717 | CU48: 0.008763144717 | CV48: 0.008763144717 | CW48: 0.008763144717 | CX48: 0.008763144717 | CY48: 0.008763144717 | CZ48: 0.008763144717 | DA48: 0.008763144717 | DB48: 0.008763144717 | DC48: 0.008763144717 | DD48: 0.008763144717 | DE48: 0.008763144717 | DF48: 0.008763144717 | DG48: 0.008763144717 | DH48: 0.008763144717 | DI48: 0.008763144717 | DJ48: 0.008763144717 | DK48: 0.008763144717 | DL48: 0.008763144717 | DM48: 0.008763144717 | DN48: 0.008763144717 | DO48: 0.008763144717 | DP48: 0.008763144717 | DQ48: 0.008763144717 | DR48: 0.008763144717 | DS48: 0.008763144717 | DT48: 0.008763144717 | DU48: 0.008763144717 | DV48: 0.008763144717 | DW48: 0.008763144717 | DX48: 0.008763144717 | DY48: 0.008763144717 | DZ48: 0.008763144717 | EA48: 0.008763144717 | EB48: 0.008763144717 | EC48: 0.008763144717 | ED48: 0.008763144717 | EE48: 0.008763144717 | EF48: 0.008763144717 | EG48: 0.008763144717 | EH48: 0.008763144717 | EI48: 0.008763144717 | EJ48: 0.008763144717 | EK48: 0.008763144717 | EL48: 0.008763144717 | EM48: 0.008763144717 | EN48: 0.008763144717 | EO48: 0.008763144717 | EP48: 0.008763144717 | EQ48: 0 | ER48: 0 | ES48: 0 | ET48: 0 | EU48: 0 | EV48: 0 | EW48: 0 | EX48: 0 | EY48: 0 | EZ48: 0 | FA48: 0 | FB48: 0 | FC48: 0
A49: 49
A50: 50 | G50: 0 | H50: Учет влияния сезонности | M50: за 100% берется максимальный трафик за период
A51: 51 | G51: 0 | H51: Учет влияния сезонности | I51: Номера месяцев года
A52: 52 | G52: 0 | H52: Учет влияния сезонности | I52: Номера месяцев года | J52: 1 | M52: % | P52: * | Q52: 0.5 | S52: 0
A53: 53 | G53: 0 | H53: Учет влияния сезонности | I53: Номера месяцев года | J53: 2 | M53: % | P53: * | Q53: 0.7 | S53: 0
A54: 54 | G54: 0 | H54: Учет влияния сезонности | I54: Номера месяцев года | J54: 3 | M54: % | P54: * | Q54: 1 | S54: 0
A55: 55 | G55: 0 | H55: Учет влияния сезонности | I55: Номера месяцев года | J55: 4 | M55: % | P55: * | Q55: 0.9 | S55: 0
A56: 56 | G56: 0 | H56: Учет влияния сезонности | I56: Номера месяцев года | J56: 5 | M56: % | P56: * | Q56: 0.8 | S56: 0
A57: 57 | G57: 0 | H57: Учет влияния сезонности | I57: Номера месяцев года | J57: 6 | M57: % | P57: * | Q57: 0.9 | S57: 0
A58: 58 | G58: 0 | H58: Учет влияния сезонности | I58: Номера месяцев года | J58: 7 | M58: % | P58: * | Q58: 0.95 | S58: 0
A59: 59 | G59: 0 | H59: Учет влияния сезонности | I59: Номера месяцев года | J59: 8 | M59: % | P59: * | Q59: 1 | S59: 0
A60: 60 | G60: 0 | H60: Учет влияния сезонности | I60: Номера месяцев года | J60: 9 | M60: % | P60: * | Q60: 1 | S60: 0
A61: 61 | G61: 0 | H61: Учет влияния сезонности | I61: Номера месяцев года | J61: 10 | M61: % | P61: * | Q61: 0.9 | S61: 0
A62: 62 | G62: 0 | H62: Учет влияния сезонности | I62: Номера месяцев года | J62: 11 | M62: % | P62: * | Q62: 0.7 | S62: 0
A63: 63 | G63: 0 | H63: Учет влияния сезонности | I63: Номера месяцев года | J63: 12 | M63: % | P63: * | Q63: 1 | S63: 0
A64: 64
A65: 65 | G65: 0 | H65: Трафик | L65: 1 | M65: кол-во потенциальных посетителей | X65: 3439015 | AA65: 0 | AB65: 0 | AC65: 0 | AD65: 0 | AE65: 0 | AF65: 400 | AG65: 600 | AH65: 980 | AI65: 3000 | AJ65: 2880 | AK65: 3360 | AL65: 5287.5 | AM65: 6293.75 | AN65: 7425 | AO65: 7650 | AP65: 9405 | AQ65: 7315 | AR65: 11750 | AS65: 5875 | AT65: 8925 | AU65: 14750 | AV65: 13612.5 | AW65: 12900 | AX65: 14512.5 | AY65: 16268.75 | AZ65: 17125 | BA65: 19500 | BB65: 17550 | BC65: 14350 | BD65: 20500 | BE65: 10750 | BF65: 15050 | BG65: 21875 | BH65: 21487.5 | BI65: 19100 | BJ65: 22387.5 | BK65: 23631.25 | BL65: 25875 | BM65: 25875 | BN65: 23625 | BO65: 18375 | BP65: 28250 | BQ65: 14125 | BR65: 20475 | BS65: 29250 | BT65: 27225 | BU65: 24200 | BV65: 27562.5 | BW65: 29093.75 | BX65: 30625 | BY65: 32625 | BZ65: 29362.5 | CA65: 23537.5 | CB65: 33625 | CC65: 17312.5 | CD65: 24237.5 | CE65: 35000 | CF65: 31500 | CG65: 28000 | CH65: 31500 | CI65: 35150 | CJ65: 37000 | CK65: 38000 | CL65: 34200 | CM65: 27300 | CN65: 39000 | CO65: 19687.5 | CP65: 27562.5 | CQ65: 39375 | CR65: 35437.5 | CS65: 31500 | CT65: 37237.5 | CU65: 39306.25 | CV65: 42375 | CW65: 42375 | CX65: 39037.5 | CY65: 30362.5 | CZ65: 43750 | DA65: 21875 | DB65: 30625 | DC65: 43750 | DD65: 39375 | DE65: 35000 | DF65: 41175 | DG65: 43462.5 | DH65: 46750 | DI65: 46750 | DJ65: 42975 | DK65: 33425 | DL65: 48125 | DM65: 24062.5 | DN65: 33687.5 | DO65: 48125 | DP65: 43312.5 | DQ65: 38500 | DR65: 43312.5 | DS65: 47618.75 | DT65: 50125 | DU65: 51125 | DV65: 46012.5 | DW65: 36487.5 | DX65: 52125 | DY65: 26250 | DZ65: 36750 | EA65: 52500 | EB65: 47250 | EC65: 42000 | ED65: 47250 | EE65: 49875 | EF65: 52500 | EG65: 54500 | EH65: 49050 | EI65: 38850 | EJ65: 55500 | EK65: 28250 | EL65: 39550 | EM65: 56875 | EN65: 51187.5 | EO65: 45500 | EP65: 51187.5 | EQ65: 0 | ER65: 0 | ES65: 0 | ET65: 0 | EU65: 0 | EV65: 0 | EW65: 0 | EX65: 0 | EY65: 0 | EZ65: 0 | FA65: 0 | FB65: 0 | FC65: 0
A66: 66
A67: 67 | G67: 0 | H67: Конверсия в посетителя | L67: 1 | M67: % | X67: 0.09994998568 | AA67: 0 | AB67: 0.05 | AC67: 0.05 | AD67: 0.06 | AE67: 0.06 | AF67: 0.07 | AG67: 0.07 | AH67: 0.08 | AI67: 0.08 | AJ67: 0.09 | AK67: 0.09 | AL67: 0.1 | AM67: 0.1 | AN67: 0.1 | AO67: 0.1 | AP67: 0.1 | AQ67: 0.1 | AR67: 0.1 | AS67: 0.1 | AT67: 0.1 | AU67: 0.1 | AV67: 0.1 | AW67: 0.1 | AX67: 0.1 | AY67: 0.1 | AZ67: 0.1 | BA67: 0.1 | BB67: 0.1 | BC67: 0.1 | BD67: 0.1 | BE67: 0.1 | BF67: 0.1 | BG67: 0.1 | BH67: 0.1 | BI67: 0.1 | BJ67: 0.1 | BK67: 0.1 | BL67: 0.1 | BM67: 0.1 | BN67: 0.1 | BO67: 0.1 | BP67: 0.1 | BQ67: 0.1 | BR67: 0.1 | BS67: 0.1 | BT67: 0.1 | BU67: 0.1 | BV67: 0.1 | BW67: 0.1 | BX67: 0.1 | BY67: 0.1 | BZ67: 0.1 | CA67: 0.1 | CB67: 0.1 | CC67: 0.1 | CD67: 0.1 | CE67: 0.1 | CF67: 0.1 | CG67: 0.1 | CH67: 0.1 | CI67: 0.1 | CJ67: 0.1 | CK67: 0.1 | CL67: 0.1 | CM67: 0.1 | CN67: 0.1 | CO67: 0.1 | CP67: 0.1 | CQ67: 0.1 | CR67: 0.1 | CS67: 0.1 | CT67: 0.1 | CU67: 0.1 | CV67: 0.1 | CW67: 0.1 | CX67: 0.1 | CY67: 0.1 | CZ67: 0.1 | DA67: 0.1 | DB67: 0.1 | DC67: 0.1 | DD67: 0.1 | DE67: 0.1 | DF67: 0.1 | DG67: 0.1 | DH67: 0.1 | DI67: 0.1 | DJ67: 0.1 | DK67: 0.1 | DL67: 0.1 | DM67: 0.1 | DN67: 0.1 | DO67: 0.1 | DP67: 0.1 | DQ67: 0.1 | DR67: 0.1 | DS67: 0.1 | DT67: 0.1 | DU67: 0.1 | DV67: 0.1 | DW67: 0.1 | DX67: 0.1 | DY67: 0.1 | DZ67: 0.1 | EA67: 0.1 | EB67: 0.1 | EC67: 0.1 | ED67: 0.1 | EE67: 0.1 | EF67: 0.1 | EG67: 0.1 | EH67: 0.1 | EI67: 0.1 | EJ67: 0.1 | EK67: 0.1 | EL67: 0.1 | EM67: 0.1 | EN67: 0.1 | EO67: 0.1 | EP67: 0.1 | EQ67: 0 | ER67: 0 | ES67: 0 | ET67: 0 | EU67: 0 | EV67: 0 | EW67: 0 | EX67: 0 | EY67: 0 | EZ67: 0 | FA67: 0 | FB67: 0 | FC67: 0
A68: 68 | G68: 0 | H68: Конверсия в посетителя | I68: Единое значение для всех периодов расчета | M68: % | P68: * | S68: 0
A69: 69 | G69: 0 | H69: Конверсия в посетителя | I69: Вручную для каждого периода расчетов | M69: % | X69: 0 | Y69: *
A70: 70 | G70: 0 | H70: тип прогрессии | I70: Через прогрессию | P70: * | Q70: линейная | R70: ^ | S70: 0
A71: 71 | G71: 0 | H71: Конверсия в посетителя | I71: Значение в стартовый период | M71: % | P71: * | Q71: 0.05 | S71: 0
A72: 72 | G72: 0 | H72: Конверсия в посетителя | I72: Коэффициент прироста | M72: % | P72: * | Q72: 0.01 | S72: 0
A73: 73 | G73: 0 | H73: Конверсия в посетителя | I73: Частота приростов | M73: кол-во периодов | P73: * | Q73: 2 | S73: 0
A74: 74 | G74: 0 | H74: Конверсия в посетителя | I74: Максимальное значение | M74: % | P74: * | Q74: 0.1 | S74: 0
A75: 75
A76: 76 | G76: 0 | H76: Валовый поток посетителей | L76: 1 | M76: кол-во посетителей | T76: 0 | X76: 343729.5 | AA76: 0 | AB76: 0 | AC76: 0 | AD76: 0 | AE76: 0 | AF76: 28 | AG76: 42 | AH76: 78.4 | AI76: 240 | AJ76: 259.2 | AK76: 302.4 | AL76: 528.75 | AM76: 629.375 | AN76: 742.5 | AO76: 765 | AP76: 940.5 | AQ76: 731.5 | AR76: 1175 | AS76: 587.5 | AT76: 892.5 | AU76: 1475 | AV76: 1361.25 | AW76: 1290 | AX76: 1451.25 | AY76: 1626.875 | AZ76: 1712.5 | BA76: 1950 | BB76: 1755 | BC76: 1435 | BD76: 2050 | BE76: 1075 | BF76: 1505 | BG76: 2187.5 | BH76: 2148.75 | BI76: 1910 | BJ76: 2238.75 | BK76: 2363.125 | BL76: 2587.5 | BM76: 2587.5 | BN76: 2362.5 | BO76: 1837.5 | BP76: 2825 | BQ76: 1412.5 | BR76: 2047.5 | BS76: 2925 | BT76: 2722.5 | BU76: 2420 | BV76: 2756.25 | BW76: 2909.375 | BX76: 3062.5 | BY76: 3262.5 | BZ76: 2936.25 | CA76: 2353.75 | CB76: 3362.5 | CC76: 1731.25 | CD76: 2423.75 | CE76: 3500 | CF76: 3150 | CG76: 2800 | CH76: 3150 | CI76: 3515 | CJ76: 3700 | CK76: 3800 | CL76: 3420 | CM76: 2730 | CN76: 3900 | CO76: 1968.75 | CP76: 2756.25 | CQ76: 3937.5 | CR76: 3543.75 | CS76: 3150 | CT76: 3723.75 | CU76: 3930.625 | CV76: 4237.5 | CW76: 4237.5 | CX76: 3903.75 | CY76: 3036.25 | CZ76: 4375 | DA76: 2187.5 | DB76: 3062.5 | DC76: 4375 | DD76: 3937.5 | DE76: 3500 | DF76: 4117.5 | DG76: 4346.25 | DH76: 4675 | DI76: 4675 | DJ76: 4297.5 | DK76: 3342.5 | DL76: 4812.5 | DM76: 2406.25 | DN76: 3368.75 | DO76: 4812.5 | DP76: 4331.25 | DQ76: 3850 | DR76: 4331.25 | DS76: 4761.875 | DT76: 5012.5 | DU76: 5112.5 | DV76: 4601.25 | DW76: 3648.75 | DX76: 5212.5 | DY76: 2625 | DZ76: 3675 | EA76: 5250 | EB76: 4725 | EC76: 4200 | ED76: 4725 | EE76: 4987.5 | EF76: 5250 | EG76: 5450 | EH76: 4905 | EI76: 3885 | EJ76: 5550 | EK76: 2825 | EL76: 3955 | EM76: 5687.5 | EN76: 5118.75 | EO76: 4550 | EP76: 5118.75 | EQ76: 0 | ER76: 0 | ES76: 0 | ET76: 0 | EU76: 0 | EV76: 0 | EW76: 0 | EX76: 0 | EY76: 0 | EZ76: 0 | FA76: 0 | FB76: 0 | FC76: 0
A77: 77 | G77: 0 | H77: Валовый поток посетителей | I77: Очки | L77: 1 | M77: шт | T77: 0 | X77: 257797.125 | AA77: 0 | AB77: 0 | AC77: 0 | AD77: 0 | AE77: 0 | AF77: 21 | AG77: 31.5 | AH77: 58.8 | AI77: 180 | AJ77: 194.4 | AK77: 226.8 | AL77: 396.5625 | AM77: 472.03125 | AN77: 556.875 | AO77: 573.75 | AP77: 705.375 | AQ77: 548.625 | AR77: 881.25 | AS77: 440.625 | AT77: 669.375 | AU77: 1106.25 | AV77: 1020.9375 | AW77: 967.5 | AX77: 1088.4375 | AY77: 1220.15625 | AZ77: 1284.375 | BA77: 1462.5 | BB77: 1316.25 | BC77: 1076.25 | BD77: 1537.5 | BE77: 806.25 | BF77: 1128.75 | BG77: 1640.625 | BH77: 1611.5625 | BI77: 1432.5 | BJ77: 1679.0625 | BK77: 1772.34375 | BL77: 1940.625 | BM77: 1940.625 | BN77: 1771.875 | BO77: 1378.125 | BP77: 2118.75 | BQ77: 1059.375 | BR77: 1535.625 | BS77: 2193.75 | BT77: 2041.875 | BU77: 1815 | BV77: 2067.1875 | BW77: 2182.03125 | BX77: 2296.875 | BY77: 2446.875 | BZ77: 2202.1875 | CA77: 1765.3125 | CB77: 2521.875 | CC77: 1298.4375 | CD77: 1817.8125 | CE77: 2625 | CF77: 2362.5 | CG77: 2100 | CH77: 2362.5 | CI77: 2636.25 | CJ77: 2775 | CK77: 2850 | CL77: 2565 | CM77: 2047.5 | CN77: 2925 | CO77: 1476.5625 | CP77: 2067.1875 | CQ77: 2953.125 | CR77: 2657.8125 | CS77: 2362.5 | CT77: 2792.8125 | CU77: 2947.96875 | CV77: 3178.125 | CW77: 3178.125 | CX77: 2927.8125 | CY77: 2277.1875 | CZ77: 3281.25 | DA77: 1640.625 | DB77: 2296.875 | DC77: 3281.25 | DD77: 2953.125 | DE77: 2625 | DF77: 3088.125 | DG77: 3259.6875 | DH77: 3506.25 | DI77: 3506.25 | DJ77: 3223.125 | DK77: 2506.875 | DL77: 3609.375 | DM77: 1804.6875 | DN77: 2526.5625 | DO77: 3609.375 | DP77: 3248.4375 | DQ77: 2887.5 | DR77: 3248.4375 | DS77: 3571.40625 | DT77: 3759.375 | DU77: 3834.375 | DV77: 3450.9375 | DW77: 2736.5625 | DX77: 3909.375 | DY77: 1968.75 | DZ77: 2756.25 | EA77: 3937.5 | EB77: 3543.75 | EC77: 3150 | ED77: 3543.75 | EE77: 3740.625 | EF77: 3937.5 | EG77: 4087.5 | EH77: 3678.75 | EI77: 2913.75 | EJ77: 4162.5 | EK77: 2118.75 | EL77: 2966.25 | EM77: 4265.625 | EN77: 3839.0625 | EO77: 3412.5 | EP77: 3839.0625 | EQ77: 0 | ER77: 0 | ES77: 0 | ET77: 0 | EU77: 0 | EV77: 0 | EW77: 0 | EX77: 0 | EY77: 0 | EZ77: 0 | FA77: 0 | FB77: 0 | FC77: 0
A78: 78 | G78: 0 | H78: Валовый поток посетителей | I78: Профилактика | L78: 1 | M78: шт | T78: 0 | X78: 68745.9 | AA78: 0 | AB78: 0 | AC78: 0 | AD78: 0 | AE78: 0 | AF78: 5.6 | AG78: 8.4 | AH78: 15.68 | AI78: 48 | AJ78: 51.84 | AK78: 60.48 | AL78: 105.75 | AM78: 125.875 | AN78: 148.5 | AO78: 153 | AP78: 188.1 | AQ78: 146.3 | AR78: 235 | AS78: 117.5 | AT78: 178.5 | AU78: 295 | AV78: 272.25 | AW78: 258 | AX78: 290.25 | AY78: 325.375 | AZ78: 342.5 | BA78: 390 | BB78: 351 | BC78: 287 | BD78: 410 | BE78: 215 | BF78: 301 | BG78: 437.5 | BH78: 429.75 | BI78: 382 | BJ78: 447.75 | BK78: 472.625 | BL78: 517.5 | BM78: 517.5 | BN78: 472.5 | BO78: 367.5 | BP78: 565 | BQ78: 282.5 | BR78: 409.5 | BS78: 585 | BT78: 544.5 | BU78: 484 | BV78: 551.25 | BW78: 581.875 | BX78: 612.5 | BY78: 652.5 | BZ78: 587.25 | CA78: 470.75 | CB78: 672.5 | CC78: 346.25 | CD78: 484.75 | CE78: 700 | CF78: 630 | CG78: 560 | CH78: 630 | CI78: 703 | CJ78: 740 | CK78: 760 | CL78: 684 | CM78: 546 | CN78: 780 | CO78: 393.75 | CP78: 551.25 | CQ78: 787.5 | CR78: 708.75 | CS78: 630 | CT78: 744.75 | CU78: 786.125 | CV78: 847.5 | CW78: 847.5 | CX78: 780.75 | CY78: 607.25 | CZ78: 875 | DA78: 437.5 | DB78: 612.5 | DC78: 875 | DD78: 787.5 | DE78: 700 | DF78: 823.5 | DG78: 869.25 | DH78: 935 | DI78: 935 | DJ78: 859.5 | DK78: 668.5 | DL78: 962.5 | DM78: 481.25 | DN78: 673.75 | DO78: 962.5 | DP78: 866.25 | DQ78: 770 | DR78: 866.25 | DS78: 952.375 | DT78: 1002.5 | DU78: 1022.5 | DV78: 920.25 | DW78: 729.75 | DX78: 1042.5 | DY78: 525 | DZ78: 735 | EA78: 1050 | EB78: 945 | EC78: 840 | ED78: 945 | EE78: 997.5 | EF78: 1050 | EG78: 1090 | EH78: 981 | EI78: 777 | EJ78: 1110 | EK78: 565 | EL78: 791 | EM78: 1137.5 | EN78: 1023.75 | EO78: 910 | EP78: 1023.75 | EQ78: 0 | ER78: 0 | ES78: 0 | ET78: 0 | EU78: 0 | EV78: 0 | EW78: 0 | EX78: 0 | EY78: 0 | EZ78: 0 | FA78: 0 | FB78: 0 | FC78: 0
A79: 79 | G79: 0 | H79: Валовый поток посетителей | I79: Аксессуары | L79: 1 | M79: шт | T79: 0 | X79: 17186.475 | AA79: 0 | AB79: 0 | AC79: 0 | AD79: 0 | AE79: 0 | AF79: 1.4 | AG79: 2.1 | AH79: 3.92 | AI79: 12 | AJ79: 12.96 | AK79: 15.12 | AL79: 26.4375 | AM79: 31.46875 | AN79: 37.125 | AO79: 38.25 | AP79: 47.025 | AQ79: 36.575 | AR79: 58.75 | AS79: 29.375 | AT79: 44.625 | AU79: 73.75 | AV79: 68.0625 | AW79: 64.5 | AX79: 72.5625 | AY79: 81.34375 | AZ79: 85.625 | BA79: 97.5 | BB79: 87.75 | BC79: 71.75 | BD79: 102.5 | BE79: 53.75 | BF79: 75.25 | BG79: 109.375 | BH79: 107.4375 | BI79: 95.5 | BJ79: 111.9375 | BK79: 118.15625 | BL79: 129.375 | BM79: 129.375 | BN79: 118.125 | BO79: 91.875 | BP79: 141.25 | BQ79: 70.625 | BR79: 102.375 | BS79: 146.25 | BT79: 136.125 | BU79: 121 | BV79: 137.8125 | BW79: 145.46875 | BX79: 153.125 | BY79: 163.125 | BZ79: 146.8125 | CA79: 117.6875 | CB79: 168.125 | CC79: 86.5625 | CD79: 121.1875 | CE79: 175 | CF79: 157.5 | CG79: 140 | CH79: 157.5 | CI79: 175.75 | CJ79: 185 | CK79: 190 | CL79: 171 | CM79: 136.5 | CN79: 195 | CO79: 98.4375 | CP79: 137.8125 | CQ79: 196.875 | CR79: 177.1875 | CS79: 157.5 | CT79: 186.1875 | CU79: 196.53125 | CV79: 211.875 | CW79: 211.875 | CX79: 195.1875 | CY79: 151.8125 | CZ79: 218.75 | DA79: 109.375 | DB79: 153.125 | DC79: 218.75 | DD79: 196.875 | DE79: 175 | DF79: 205.875 | DG79: 217.3125 | DH79: 233.75 | DI79: 233.75 | DJ79: 214.875 | DK79: 167.125 | DL79: 240.625 | DM79: 120.3125 | DN79: 168.4375 | DO79: 240.625 | DP79: 216.5625 | DQ79: 192.5 | DR79: 216.5625 | DS79: 238.09375 | DT79: 250.625 | DU79: 255.625 | DV79: 230.0625 | DW79: 182.4375 | DX79: 260.625 | DY79: 131.25 | DZ79: 183.75 | EA79: 262.5 | EB79: 236.25 | EC79: 210 | ED79: 236.25 | EE79: 249.375 | EF79: 262.5 | EG79: 272.5 | EH79: 245.25 | EI79: 194.25 | EJ79: 277.5 | EK79: 141.25 | EL79: 197.75 | EM79: 284.375 | EN79: 255.9375 | EO79: 227.5 | EP79: 255.9375 | EQ79: 0 | ER79: 0 | ES79: 0 | ET79: 0 | EU79: 0 | EV79: 0 | EW79: 0 | EX79: 0 | EY79: 0 | EZ79: 0 | FA79: 0 | FB79: 0 | FC79: 0
A80: 80 | L80: пустая строка
A81: 81
A82: 82 | G82: 0 | H82: Долевое распределние потока по продукции | T82: 0
A83: 83 | G83: 0 | H83: продукция | I83: Расчет формулой разности: 100%-сумму() | M83: % | P83: * | Q83: Очки | R83: ^ | S83: 0 | T83: 0 | X83: 0.75 | AA83: 0.75 | AB83: 0.75 | AC83: 0.75 | AD83: 0.75 | AE83: 0.75 | AF83: 0.75 | AG83: 0.75 | AH83: 0.75 | AI83: 0.75 | AJ83: 0.75 | AK83: 0.75 | AL83: 0.75 | AM83: 0.75 | AN83: 0.75 | AO83: 0.75 | AP83: 0.75 | AQ83: 0.75 | AR83: 0.75 | AS83: 0.75 | AT83: 0.75 | AU83: 0.75 | AV83: 0.75 | AW83: 0.75 | AX83: 0.75 | AY83: 0.75 | AZ83: 0.75 | BA83: 0.75 | BB83: 0.75 | BC83: 0.75 | BD83: 0.75 | BE83: 0.75 | BF83: 0.75 | BG83: 0.75 | BH83: 0.75 | BI83: 0.75 | BJ83: 0.75 | BK83: 0.75 | BL83: 0.75 | BM83: 0.75 | BN83: 0.75 | BO83: 0.75 | BP83: 0.75 | BQ83: 0.75 | BR83: 0.75 | BS83: 0.75 | BT83: 0.75 | BU83: 0.75 | BV83: 0.75 | BW83: 0.75 | BX83: 0.75 | BY83: 0.75 | BZ83: 0.75 | CA83: 0.75 | CB83: 0.75 | CC83: 0.75 | CD83: 0.75 | CE83: 0.75 | CF83: 0.75 | CG83: 0.75 | CH83: 0.75 | CI83: 0.75 | CJ83: 0.75 | CK83: 0.75 | CL83: 0.75 | CM83: 0.75 | CN83: 0.75 | CO83: 0.75 | CP83: 0.75 | CQ83: 0.75 | CR83: 0.75 | CS83: 0.75 | CT83: 0.75 | CU83: 0.75 | CV83: 0.75 | CW83: 0.75 | CX83: 0.75 | CY83: 0.75 | CZ83: 0.75 | DA83: 0.75 | DB83: 0.75 | DC83: 0.75 | DD83: 0.75 | DE83: 0.75 | DF83: 0.75 | DG83: 0.75 | DH83: 0.75 | DI83: 0.75 | DJ83: 0.75 | DK83: 0.75 | DL83: 0.75 | DM83: 0.75 | DN83: 0.75 | DO83: 0.75 | DP83: 0.75 | DQ83: 0.75 | DR83: 0.75 | DS83: 0.75 | DT83: 0.75 | DU83: 0.75 | DV83: 0.75 | DW83: 0.75 | DX83: 0.75 | DY83: 0.75 | DZ83: 0.75 | EA83: 0.75 | EB83: 0.75 | EC83: 0.75 | ED83: 0.75 | EE83: 0.75 | EF83: 0.75 | EG83: 0.75 | EH83: 0.75 | EI83: 0.75 | EJ83: 0.75 | EK83: 0.75 | EL83: 0.75 | EM83: 0.75 | EN83: 0.75 | EO83: 0.75 | EP83: 0.75 | EQ83: 0.75 | ER83: 0.75 | ES83: 0.75 | ET83: 0.75 | EU83: 0.75 | EV83: 0.75 | EW83: 0.75 | EX83: 0.75 | EY83: 0.75 | EZ83: 0.75 | FA83: 0.75 | FB83: 0.75 | FC83: 0.75
A84: 84 | G84: 0 | H84: продукция | I84: Вручную для каждого периода расчетов | M84: % | P84: * | Q84: Профилактика | R84: ^ | S84: 0 | T84: 0 | X84: 0.2 | Y84: * | AA84: 0.2 | AB84: 0.2 | AC84: 0.2 | AD84: 0.2 | AE84: 0.2 | AF84: 0.2 | AG84: 0.2 | AH84: 0.2 | AI84: 0.2 | AJ84: 0.2 | AK84: 0.2 | AL84: 0.2 | AM84: 0.2 | AN84: 0.2 | AO84: 0.2 | AP84: 0.2 | AQ84: 0.2 | AR84: 0.2 | AS84: 0.2 | AT84: 0.2 | AU84: 0.2 | AV84: 0.2 | AW84: 0.2 | AX84: 0.2 | AY84: 0.2 | AZ84: 0.2 | BA84: 0.2 | BB84: 0.2 | BC84: 0.2 | BD84: 0.2 | BE84: 0.2 | BF84: 0.2 | BG84: 0.2 | BH84: 0.2 | BI84: 0.2 | BJ84: 0.2 | BK84: 0.2 | BL84: 0.2 | BM84: 0.2 | BN84: 0.2 | BO84: 0.2 | BP84: 0.2 | BQ84: 0.2 | BR84: 0.2 | BS84: 0.2 | BT84: 0.2 | BU84: 0.2 | BV84: 0.2 | BW84: 0.2 | BX84: 0.2 | BY84: 0.2 | BZ84: 0.2 | CA84: 0.2 | CB84: 0.2 | CC84: 0.2 | CD84: 0.2 | CE84: 0.2 | CF84: 0.2 | CG84: 0.2 | CH84: 0.2 | CI84: 0.2 | CJ84: 0.2 | CK84: 0.2 | CL84: 0.2 | CM84: 0.2 | CN84: 0.2 | CO84: 0.2 | CP84: 0.2 | CQ84: 0.2 | CR84: 0.2 | CS84: 0.2 | CT84: 0.2 | CU84: 0.2 | CV84: 0.2 | CW84: 0.2 | CX84: 0.2 | CY84: 0.2 | CZ84: 0.2 | DA84: 0.2 | DB84: 0.2 | DC84: 0.2 | DD84: 0.2 | DE84: 0.2 | DF84: 0.2 | DG84: 0.2 | DH84: 0.2 | DI84: 0.2 | DJ84: 0.2 | DK84: 0.2 | DL84: 0.2 | DM84: 0.2 | DN84: 0.2 | DO84: 0.2 | DP84: 0.2 | DQ84: 0.2 | DR84: 0.2 | DS84: 0.2 | DT84: 0.2 | DU84: 0.2 | DV84: 0.2 | DW84: 0.2 | DX84: 0.2 | DY84: 0.2 | DZ84: 0.2 | EA84: 0.2 | EB84: 0.2 | EC84: 0.2 | ED84: 0.2 | EE84: 0.2 | EF84: 0.2 | EG84: 0.2 | EH84: 0.2 | EI84: 0.2 | EJ84: 0.2 | EK84: 0.2 | EL84: 0.2 | EM84: 0.2 | EN84: 0.2 | EO84: 0.2 | EP84: 0.2 | EQ84: 0.2 | ER84: 0.2 | ES84: 0.2 | ET84: 0.2 | EU84: 0.2 | EV84: 0.2 | EW84: 0.2 | EX84: 0.2 | EY84: 0.2 | EZ84: 0.2 | FA84: 0.2 | FB84: 0.2 | FC84: 0.2
A85: 85 | G85: 0 | H85: продукция | I85: Вручную для каждого периода расчетов | M85: % | P85: * | Q85: Аксессуары | R85: ^ | S85: 0 | T85: 0 | X85: 0.05 | Y85: * | AA85: 0.05 | AB85: 0.05 | AC85: 0.05 | AD85: 0.05 | AE85: 0.05 | AF85: 0.05 | AG85: 0.05 | AH85: 0.05 | AI85: 0.05 | AJ85: 0.05 | AK85: 0.05 | AL85: 0.05 | AM85: 0.05 | AN85: 0.05 | AO85: 0.05 | AP85: 0.05 | AQ85: 0.05 | AR85: 0.05 | AS85: 0.05 | AT85: 0.05 | AU85: 0.05 | AV85: 0.05 | AW85: 0.05 | AX85: 0.05 | AY85: 0.05 | AZ85: 0.05 | BA85: 0.05 | BB85: 0.05 | BC85: 0.05 | BD85: 0.05 | BE85: 0.05 | BF85: 0.05 | BG85: 0.05 | BH85: 0.05 | BI85: 0.05 | BJ85: 0.05 | BK85: 0.05 | BL85: 0.05 | BM85: 0.05 | BN85: 0.05 | BO85: 0.05 | BP85: 0.05 | BQ85: 0.05 | BR85: 0.05 | BS85: 0.05 | BT85: 0.05 | BU85: 0.05 | BV85: 0.05 | BW85: 0.05 | BX85: 0.05 | BY85: 0.05 | BZ85: 0.05 | CA85: 0.05 | CB85: 0.05 | CC85: 0.05 | CD85: 0.05 | CE85: 0.05 | CF85: 0.05 | CG85: 0.05 | CH85: 0.05 | CI85: 0.05 | CJ85: 0.05 | CK85: 0.05 | CL85: 0.05 | CM85: 0.05 | CN85: 0.05 | CO85: 0.05 | CP85: 0.05 | CQ85: 0.05 | CR85: 0.05 | CS85: 0.05 | CT85: 0.05 | CU85: 0.05 | CV85: 0.05 | CW85: 0.05 | CX85: 0.05 | CY85: 0.05 | CZ85: 0.05 | DA85: 0.05 | DB85: 0.05 | DC85: 0.05 | DD85: 0.05 | DE85: 0.05 | DF85: 0.05 | DG85: 0.05 | DH85: 0.05 | DI85: 0.05 | DJ85: 0.05 | DK85: 0.05 | DL85: 0.05 | DM85: 0.05 | DN85: 0.05 | DO85: 0.05 | DP85: 0.05 | DQ85: 0.05 | DR85: 0.05 | DS85: 0.05 | DT85: 0.05 | DU85: 0.05 | DV85: 0.05 | DW85: 0.05 | DX85: 0.05 | DY85: 0.05 | DZ85: 0.05 | EA85: 0.05 | EB85: 0.05 | EC85: 0.05 | ED85: 0.05 | EE85: 0.05 | EF85: 0.05 | EG85: 0.05 | EH85: 0.05 | EI85: 0.05 | EJ85: 0.05 | EK85: 0.05 | EL85: 0.05 | EM85: 0.05 | EN85: 0.05 | EO85: 0.05 | EP85: 0.05 | EQ85: 0.05 | ER85: 0.05 | ES85: 0.05 | ET85: 0.05 | EU85: 0.05 | EV85: 0.05 | EW85: 0.05 | EX85: 0.05 | EY85: 0.05 | EZ85: 0.05 | FA85: 0.05 | FB85: 0.05 | FC85: 0.05
A86: 86 | L86: пустая строка
A87: 87
A88: 88 | G88: 0 | H88: Базовый прайс-лист продукции | M88: руб./посетитель | X88: 9639.981468 | AA88: 7935 | AB88: 7935 | AC88: 7935 | AD88: 7935 | AE88: 7935 | AF88: 7935 | AG88: 8093.7 | AH88: 8093.7 | AI88: 8093.7 | AJ88: 8093.7 | AK88: 8093.7 | AL88: 8093.7 | AM88: 8255.574 | AN88: 8255.574 | AO88: 8255.574 | AP88: 8255.574 | AQ88: 8255.574 | AR88: 8255.574 | AS88: 8420.68548 | AT88: 8420.68548 | AU88: 8420.68548 | AV88: 8420.68548 | AW88: 8420.68548 | AX88: 8420.68548 | AY88: 8589.09919 | AZ88: 8589.09919 | BA88: 8589.09919 | BB88: 8589.09919 | BC88: 8589.09919 | BD88: 8589.09919 | BE88: 8760.881173 | BF88: 8760.881173 | BG88: 8760.881173 | BH88: 8760.881173 | BI88: 8760.881173 | BJ88: 8760.881173 | BK88: 8936.098797 | BL88: 8936.098797 | BM88: 8936.098797 | BN88: 8936.098797 | BO88: 8936.098797 | BP88: 8936.098797 | BQ88: 9114.820773 | BR88: 9114.820773 | BS88: 9114.820773 | BT88: 9114.820773 | BU88: 9114.820773 | BV88: 9114.820773 | BW88: 9297.117188 | BX88: 9297.117188 | BY88: 9297.117188 | BZ88: 9297.117188 | CA88: 9297.117188 | CB88: 9297.117188 | CC88: 9483.059532 | CD88: 9483.059532 | CE88: 9483.059532 | CF88: 9483.059532 | CG88: 9483.059532 | CH88: 9483.059532 | CI88: 9672.720723 | CJ88: 9672.720723 | CK88: 9672.720723 | CL88: 9672.720723 | CM88: 9672.720723 | CN88: 9672.720723 | CO88: 9866.175137 | CP88: 9866.175137 | CQ88: 9866.175137 | CR88: 9866.175137 | CS88: 9866.175137 | CT88: 9866.175137 | CU88: 10063.49864 | CV88: 10063.49864 | CW88: 10063.49864 | CX88: 10063.49864 | CY88: 10063.49864 | CZ88: 10063.49864 | DA88: 10264.76861 | DB88: 10264.76861 | DC88: 10264.76861 | DD88: 10264.76861 | DE88: 10264.76861 | DF88: 10264.76861 | DG88: 10470.06398 | DH88: 10470.06398 | DI88: 10470.06398 | DJ88: 10470.06398 | DK88: 10470.06398 | DL88: 10470.06398 | DM88: 10679.46526 | DN88: 10679.46526 | DO88: 10679.46526 | DP88: 10679.46526 | DQ88: 10679.46526 | DR88: 10679.46526 | DS88: 10893.05457 | DT88: 10893.05457 | DU88: 10893.05457 | DV88: 10893.05457 | DW88: 10893.05457 | DX88: 10893.05457 | DY88: 11110.91566 | DZ88: 11110.91566 | EA88: 11110.91566 | EB88: 11110.91566 | EC88: 11110.91566 | ED88: 11110.91566 | EE88: 11333.13397 | EF88: 11333.13397 | EG88: 11333.13397 | EH88: 11333.13397 | EI88: 11333.13397 | EJ88: 11333.13397 | EK88: 11559.79665 | EL88: 11559.79665 | EM88: 11559.79665 | EN88: 11559.79665 | EO88: 11559.79665 | EP88: 11559.79665 | EQ88: 0 | ER88: 0 | ES88: 0 | ET88: 0 | EU88: 0 | EV88: 0 | EW88: 0 | EX88: 0 | EY88: 0 | EZ88: 0 | FA88: 0 | FB88: 0 | FC88: 0
A89: 89 | G89: 0 | H89: Базовый прайс-лист продукции | I89: Очки | M89: руб./шт | P89: M | Q89: 10000 | S89: 0 | X89: 12148.6849 | AA89: 10000 | AB89: 10000 | AC89: 10000 | AD89: 10000 | AE89: 10000 | AF89: 10000 | AG89: 10200 | AH89: 10200 | AI89: 10200 | AJ89: 10200 | AK89: 10200 | AL89: 10200 | AM89: 10404 | AN89: 10404 | AO89: 10404 | AP89: 10404 | AQ89: 10404 | AR89: 10404 | AS89: 10612.08 | AT89: 10612.08 | AU89: 10612.08 | AV89: 10612.08 | AW89: 10612.08 | AX89: 10612.08 | AY89: 10824.3216 | AZ89: 10824.3216 | BA89: 10824.3216 | BB89: 10824.3216 | BC89: 10824.3216 | BD89: 10824.3216 | BE89: 11040.80803 | BF89: 11040.80803 | BG89: 11040.80803 | BH89: 11040.80803 | BI89: 11040.80803 | BJ89: 11040.80803 | BK89: 11261.62419 | BL89: 11261.62419 | BM89: 11261.62419 | BN89: 11261.62419 | BO89: 11261.62419 | BP89: 11261.62419 | BQ89: 11486.85668 | BR89: 11486.85668 | BS89: 11486.85668 | BT89: 11486.85668 | BU89: 11486.85668 | BV89: 11486.85668 | BW89: 11716.59381 | BX89: 11716.59381 | BY89: 11716.59381 | BZ89: 11716.59381 | CA89: 11716.59381 | CB89: 11716.59381 | CC89: 11950.92569 | CD89: 11950.92569 | CE89: 11950.92569 | CF89: 11950.92569 | CG89: 11950.92569 | CH89: 11950.92569 | CI89: 12189.9442 | CJ89: 12189.9442 | CK89: 12189.9442 | CL89: 12189.9442 | CM89: 12189.9442 | CN89: 12189.9442 | CO89: 12433.74308 | CP89: 12433.74308 | CQ89: 12433.74308 | CR89: 12433.74308 | CS89: 12433.74308 | CT89: 12433.74308 | CU89: 12682.41795 | CV89: 12682.41795 | CW89: 12682.41795 | CX89: 12682.41795 | CY89: 12682.41795 | CZ89: 12682.41795 | DA89: 12936.0663 | DB89: 12936.0663 | DC89: 12936.0663 | DD89: 12936.0663 | DE89: 12936.0663 | DF89: 12936.0663 | DG89: 13194.78763 | DH89: 13194.78763 | DI89: 13194.78763 | DJ89: 13194.78763 | DK89: 13194.78763 | DL89: 13194.78763 | DM89: 13458.68338 | DN89: 13458.68338 | DO89: 13458.68338 | DP89: 13458.68338 | DQ89: 13458.68338 | DR89: 13458.68338 | DS89: 13727.85705 | DT89: 13727.85705 | DU89: 13727.85705 | DV89: 13727.85705 | DW89: 13727.85705 | DX89: 13727.85705 | DY89: 14002.41419 | DZ89: 14002.41419 | EA89: 14002.41419 | EB89: 14002.41419 | EC89: 14002.41419 | ED89: 14002.41419 | EE89: 14282.46248 | EF89: 14282.46248 | EG89: 14282.46248 | EH89: 14282.46248 | EI89: 14282.46248 | EJ89: 14282.46248 | EK89: 14568.11173 | EL89: 14568.11173 | EM89: 14568.11173 | EN89: 14568.11173 | EO89: 14568.11173 | EP89: 14568.11173 | EQ89: 0 | ER89: 0 | ES89: 0 | ET89: 0 | EU89: 0 | EV89: 0 | EW89: 0 | EX89: 0 | EY89: 0 | EZ89: 0 | FA89: 0 | FB89: 0 | FC89: 0
A90: 90 | G90: 0 | H90: Базовый прайс-лист продукции | I90: Профилактика | M90: руб./шт | P90: M | Q90: 2000 | S90: 0 | X90: 2429.73698 | AA90: 2000 | AB90: 2000 | AC90: 2000 | AD90: 2000 | AE90: 2000 | AF90: 2000 | AG90: 2040 | AH90: 2040 | AI90: 2040 | AJ90: 2040 | AK90: 2040 | AL90: 2040 | AM90: 2080.8 | AN90: 2080.8 | AO90: 2080.8 | AP90: 2080.8 | AQ90: 2080.8 | AR90: 2080.8 | AS90: 2122.416 | AT90: 2122.416 | AU90: 2122.416 | AV90: 2122.416 | AW90: 2122.416 | AX90: 2122.416 | AY90: 2164.86432 | AZ90: 2164.86432 | BA90: 2164.86432 | BB90: 2164.86432 | BC90: 2164.86432 | BD90: 2164.86432 | BE90: 2208.161606 | BF90: 2208.161606 | BG90: 2208.161606 | BH90: 2208.161606 | BI90: 2208.161606 | BJ90: 2208.161606 | BK90: 2252.324839 | BL90: 2252.324839 | BM90: 2252.324839 | BN90: 2252.324839 | BO90: 2252.324839 | BP90: 2252.324839 | BQ90: 2297.371335 | BR90: 2297.371335 | BS90: 2297.371335 | BT90: 2297.371335 | BU90: 2297.371335 | BV90: 2297.371335 | BW90: 2343.318762 | BX90: 2343.318762 | BY90: 2343.318762 | BZ90: 2343.318762 | CA90: 2343.318762 | CB90: 2343.318762 | CC90: 2390.185137 | CD90: 2390.185137 | CE90: 2390.185137 | CF90: 2390.185137 | CG90: 2390.185137 | CH90: 2390.185137 | CI90: 2437.98884 | CJ90: 2437.98884 | CK90: 2437.98884 | CL90: 2437.98884 | CM90: 2437.98884 | CN90: 2437.98884 | CO90: 2486.748617 | CP90: 2486.748617 | CQ90: 2486.748617 | CR90: 2486.748617 | CS90: 2486.748617 | CT90: 2486.748617 | CU90: 2536.483589 | CV90: 2536.483589 | CW90: 2536.483589 | CX90: 2536.483589 | CY90: 2536.483589 | CZ90: 2536.483589 | DA90: 2587.213261 | DB90: 2587.213261 | DC90: 2587.213261 | DD90: 2587.213261 | DE90: 2587.213261 | DF90: 2587.213261 | DG90: 2638.957526 | DH90: 2638.957526 | DI90: 2638.957526 | DJ90: 2638.957526 | DK90: 2638.957526 | DL90: 2638.957526 | DM90: 2691.736677 | DN90: 2691.736677 | DO90: 2691.736677 | DP90: 2691.736677 | DQ90: 2691.736677 | DR90: 2691.736677 | DS90: 2745.57141 | DT90: 2745.57141 | DU90: 2745.57141 | DV90: 2745.57141 | DW90: 2745.57141 | DX90: 2745.57141 | DY90: 2800.482838 | DZ90: 2800.482838 | EA90: 2800.482838 | EB90: 2800.482838 | EC90: 2800.482838 | ED90: 2800.482838 | EE90: 2856.492495 | EF90: 2856.492495 | EG90: 2856.492495 | EH90: 2856.492495 | EI90: 2856.492495 | EJ90: 2856.492495 | EK90: 2913.622345 | EL90: 2913.622345 | EM90: 2913.622345 | EN90: 2913.622345 | EO90: 2913.622345 | EP90: 2913.622345 | EQ90: 0 | ER90: 0 | ES90: 0 | ET90: 0 | EU90: 0 | EV90: 0 | EW90: 0 | EX90: 0 | EY90: 0 | EZ90: 0 | FA90: 0 | FB90: 0 | FC90: 0
A91: 91 | G91: 0 | H91: Базовый прайс-лист продукции | I91: Аксессуары | M91: руб./шт | P91: M | Q91: 700 | S91: 0 | X91: 850.407943 | AA91: 700 | AB91: 700 | AC91: 700 | AD91: 700 | AE91: 700 | AF91: 700 | AG91: 714 | AH91: 714 | AI91: 714 | AJ91: 714 | AK91: 714 | AL91: 714 | AM91: 728.28 | AN91: 728.28 | AO91: 728.28 | AP91: 728.28 | AQ91: 728.28 | AR91: 728.28 | AS91: 742.8456 | AT91: 742.8456 | AU91: 742.8456 | AV91: 742.8456 | AW91: 742.8456 | AX91: 742.8456 | AY91: 757.702512 | AZ91: 757.702512 | BA91: 757.702512 | BB91: 757.702512 | BC91: 757.702512 | BD91: 757.702512 | BE91: 772.8565622 | BF91: 772.8565622 | BG91: 772.8565622 | BH91: 772.8565622 | BI91: 772.8565622 | BJ91: 772.8565622 | BK91: 788.3136935 | BL91: 788.3136935 | BM91: 788.3136935 | BN91: 788.3136935 | BO91: 788.3136935 | BP91: 788.3136935 | BQ91: 804.0799674 | BR91: 804.0799674 | BS91: 804.0799674 | BT91: 804.0799674 | BU91: 804.0799674 | BV91: 804.0799674 | BW91: 820.1615667 | BX91: 820.1615667 | BY91: 820.1615667 | BZ91: 820.1615667 | CA91: 820.1615667 | CB91: 820.1615667 | CC91: 836.564798 | CD91: 836.564798 | CE91: 836.564798 | CF91: 836.564798 | CG91: 836.564798 | CH91: 836.564798 | CI91: 853.296094 | CJ91: 853.296094 | CK91: 853.296094 | CL91: 853.296094 | CM91: 853.296094 | CN91: 853.296094 | CO91: 870.3620159 | CP91: 870.3620159 | CQ91: 870.3620159 | CR91: 870.3620159 | CS91: 870.3620159 | CT91: 870.3620159 | CU91: 887.7692562 | CV91: 887.7692562 | CW91: 887.7692562 | CX91: 887.7692562 | CY91: 887.7692562 | CZ91: 887.7692562 | DA91: 905.5246413 | DB91: 905.5246413 | DC91: 905.5246413 | DD91: 905.5246413 | DE91: 905.5246413 | DF91: 905.5246413 | DG91: 923.6351341 | DH91: 923.6351341 | DI91: 923.6351341 | DJ91: 923.6351341 | DK91: 923.6351341 | DL91: 923.6351341 | DM91: 942.1078368 | DN91: 942.1078368 | DO91: 942.1078368 | DP91: 942.1078368 | DQ91: 942.1078368 | DR91: 942.1078368 | DS91: 960.9499936 | DT91: 960.9499936 | DU91: 960.9499936 | DV91: 960.9499936 | DW91: 960.9499936 | DX91: 960.9499936 | DY91: 980.1689934 | DZ91: 980.1689934 | EA91: 980.1689934 | EB91: 980.1689934 | EC91: 980.1689934 | ED91: 980.1689934 | EE91: 999.7723733 | EF91: 999.7723733 | EG91: 999.7723733 | EH91: 999.7723733 | EI91: 999.7723733 | EJ91: 999.7723733 | EK91: 1019.767821 | EL91: 1019.767821 | EM91: 1019.767821 | EN91: 1019.767821 | EO91: 1019.767821 | EP91: 1019.767821 | EQ91: 0 | ER91: 0 | ES91: 0 | ET91: 0 | EU91: 0 | EV91: 0 | EW91: 0 | EX91: 0 | EY91: 0 | EZ91: 0 | FA91: 0 | FB91: 0 | FC91: 0
A92: 92 | L92: пустая строка
A93: 93 | G93: 0 | H93: Индексация прайс-листа
A94: 94 | G94: 0 | H94: Индексация прайс-листа | I94: Процент индексации/прироста | M94: % | P94: M | Q94: 0.02 | S94: 0
A95: 95 | G95: 0 | H95: Индексация прайс-листа | I95: Частота индексации | M95: кол-во периодов | P95: * | Q95: 6 | S95: 0
A96: 96
A97: 97 | G97: 0 | H97: Общий оборот (GMV) | L97: 1 | M97: руб. | T97: 0 | X97: 3498203024 | AA97: 0 | AB97: 0 | AC97: 0 | AD97: 0 | AE97: 0 | AF97: 222180 | AG97: 339935.4 | AH97: 634546.08 | AI97: 1942488 | AJ97: 2097887.04 | AK97: 2447534.88 | AL97: 4279543.875 | AM97: 5195851.886 | AN97: 6129763.695 | AO97: 6315514.11 | AP97: 7764367.347 | AQ97: 6038952.381 | AR97: 9700299.45 | AS97: 4947152.719 | AT97: 7515461.791 | AU97: 12420511.08 | AV97: 11462658.11 | AW97: 10862684.27 | AX97: 12220519.8 | AY97: 13973390.74 | AZ97: 14708832.36 | BA97: 16748743.42 | BB97: 15073869.08 | BC97: 12325357.34 | BD97: 17607653.34 | BE97: 9417947.261 | BF97: 13185126.17 | BG97: 19164427.57 | BH97: 18824943.42 | BI97: 16733283.04 | BJ97: 19613422.73 | BK97: 21117118.47 | BL97: 23122155.64 | BM97: 23122155.64 | BN97: 21111533.41 | BO97: 16420081.54 | BP97: 25244479.1 | BQ97: 12874684.34 | BR97: 18662595.53 | BS97: 26660850.76 | BT97: 24815099.55 | BU97: 22057866.27 | BV97: 25122724.76 | BW97: 27048800.32 | BX97: 28472421.39 | BY97: 30331844.83 | BZ97: 27298660.34 | CA97: 21883089.58 | CB97: 31261556.55 | CC97: 16417546.81 | CD97: 22984565.54 | CE97: 33190708.36 | CF97: 29871637.53 | CG97: 26552566.69 | CH97: 29871637.53 | CI97: 33999613.34 | CJ97: 35789066.67 | CK97: 36756338.75 | CL97: 33080704.87 | CM97: 26406527.57 | CN97: 37723610.82 | CO97: 19424032.3 | CP97: 27193645.22 | CQ97: 38848064.6 | CR97: 34963258.14 | CS97: 31078451.68 | CT97: 36739169.67 | CU97: 39555839.34 | CV97: 42644075.49 | CW97: 42644075.49 | CX97: 39285382.82 | CY97: 30555297.75 | CZ97: 44027806.55 | DA97: 22454181.34 | DB97: 31435853.88 | DC97: 44908362.68 | DD97: 40417526.41 | DE97: 35926690.14 | DF97: 42265184.76 | DG97: 45505515.59 | DH97: 48947549.13 | DI97: 48947549.13 | DJ97: 44995099.98 | DK97: 34996188.87 | DL97: 50387182.93 | DM97: 25697463.29 | DN97: 35976448.61 | DO97: 51394926.59 | DP97: 46255433.93 | DQ97: 41115941.27 | DR97: 46255433.93 | DS97: 51871364.23 | DT97: 54601436.03 | DU97: 55690741.49 | DV97: 50121667.34 | DW97: 39746032.86 | DX97: 56780046.95 | DY97: 29166153.61 | DZ97: 40832615.06 | EA97: 58332307.22 | EB97: 52499076.5 | EC97: 46665845.78 | ED97: 52499076.5 | EE97: 56524005.7 | EF97: 59498953.37 | EG97: 61765580.16 | EH97: 55589022.15 | EI97: 44029225.49 | EJ97: 62898893.56 | EK97: 32656425.55 | EL97: 45718995.77 | EM97: 65746343.47 | EN97: 59171709.12 | EO97: 52597074.78 | EP97: 59171709.12 | EQ97: 0 | ER97: 0 | ES97: 0 | ET97: 0 | EU97: 0 | EV97: 0 | EW97: 0 | EX97: 0 | EY97: 0 | EZ97: 0 | FA97: 0 | FB97: 0 | FC97: 0
A98: 98 | G98: 0 | H98: Общий оборот (GMV) | I98: Очки | L98: 1 | M98: руб. | X98: 3306430080 | AA98: 0 | AB98: 0 | AC98: 0 | AD98: 0 | AE98: 0 | AF98: 210000 | AG98: 321300 | AH98: 599760 | AI98: 1836000 | AJ98: 1982880 | AK98: 2313360 | AL98: 4044937.5 | AM98: 4911013.125 | AN98: 5793727.5 | AO98: 5969295 | AP98: 7338721.5 | AQ98: 5707894.5 | AR98: 9168525 | AS98: 4675947.75 | AT98: 7103461.05 | AU98: 11739613.5 | AV98: 10834270.43 | AW98: 10267187.4 | AX98: 11550585.82 | AY98: 13207363.65 | AZ98: 13902488.05 | BA98: 15830570.34 | BB98: 14247513.31 | BC98: 11649676.12 | BD98: 16642394.46 | BE98: 8901651.476 | BF98: 12462312.07 | BG98: 18113825.68 | BH98: 17792952.19 | BI98: 15815957.51 | BJ98: 18538206.74 | BK98: 19959469.25 | BL98: 21854589.45 | BM98: 21854589.45 | BN98: 19954190.37 | BO98: 15519925.84 | BP98: 23860566.26 | BQ98: 12168888.79 | BR98: 17639504.28 | BS98: 25199291.83 | BT98: 23454725.48 | BU98: 20848644.87 | BV98: 23745486.54 | BW98: 25565973.84 | BX98: 26911551.41 | BY98: 28669040.48 | BZ98: 25802136.43 | CA98: 20683449.51 | CB98: 29547785.01 | CC98: 15517530.07 | CD98: 21724542.1 | CE98: 31371179.93 | CF98: 28234061.93 | CG98: 25096943.94 | CH98: 28234061.93 | CI98: 32135740.4 | CJ98: 33827095.15 | CK98: 34741340.97 | CL98: 31267206.87 | CM98: 24958910.75 | CN98: 35655586.78 | CO98: 18359198.77 | CP98: 25702878.28 | CQ98: 36718397.54 | CR98: 33046557.79 | CS98: 29374718.04 | CT98: 34725113.11 | CU98: 37387371.78 | CV98: 40306309.53 | CW98: 40306309.53 | CX98: 37131741.79 | CY98: 28880243.62 | CZ98: 41614183.88 | DA98: 21223233.78 | DB98: 29712527.29 | DC98: 42446467.56 | DD98: 38201820.81 | DE98: 33957174.05 | DF98: 39948189.76 | DG98: 43010884.3 | DH98: 46264224.13 | DI98: 46264224.13 | DJ98: 42528449.88 | DK98: 33077683.24 | DL98: 47624936.6 | DM98: 24288717.67 | DN98: 34004204.74 | DO98: 48577435.34 | DP98: 43719691.8 | DQ98: 38861948.27 | DR98: 43719691.8 | DS98: 49027754.47 | DT98: 51608162.6 | DU98: 52637751.88 | DV98: 47373976.69 | DW98: 37567138.81 | DX98: 53667341.16 | DY98: 27567252.94 | DZ98: 38594154.12 | EA98: 55134505.88 | EB98: 49621055.29 | EC98: 44107604.7 | ED98: 49621055.29 | EE98: 53425336.2 | EF98: 56237196 | EG98: 58379565.37 | EH98: 52541608.83 | EI98: 41615525.04 | EJ98: 59450750.06 | EK98: 30866186.72 | EL98: 43212661.41 | EM98: 62142101.58 | EN98: 55927891.42 | EO98: 49713681.26 | EP98: 55927891.42 | EQ98: 0 | ER98: 0 | ES98: 0 | ET98: 0 | EU98: 0 | EV98: 0 | EW98: 0 | EX98: 0 | EY98: 0 | EZ98: 0 | FA98: 0 | FB98: 0 | FC98: 0
A99: 99 | G99: 0 | H99: Общий оборот (GMV) | I99: Профилактика | L99: 1 | M99: руб. | X99: 176342937.6 | AA99: 0 | AB99: 0 | AC99: 0 | AD99: 0 | AE99: 0 | AF99: 11200 | AG99: 17136 | AH99: 31987.2 | AI99: 97920 | AJ99: 105753.6 | AK99: 123379.2 | AL99: 215730 | AM99: 261920.7 | AN99: 308998.8 | AO99: 318362.4 | AP99: 391398.48 | AQ99: 304421.04 | AR99: 488988 | AS99: 249383.88 | AT99: 378851.256 | AU99: 626112.72 | AV99: 577827.756 | AW99: 547583.328 | AX99: 616031.244 | AY99: 704392.7281 | AZ99: 741466.0296 | BA99: 844297.0848 | BB99: 759867.3763 | BC99: 621316.0598 | BD99: 887594.3712 | BE99: 474754.7454 | BF99: 664656.6435 | BG99: 966070.7028 | BH99: 948957.4504 | BI99: 843517.7336 | BJ99: 988704.3593 | BK99: 1064505.027 | BL99: 1165578.104 | BM99: 1165578.104 | BN99: 1064223.486 | BO99: 827729.3782 | BP99: 1272563.534 | BQ99: 649007.4022 | BR99: 940773.5618 | BS99: 1343962.231 | BT99: 1250918.692 | BU99: 1111927.726 | BV99: 1266425.949 | BW99: 1363518.605 | BX99: 1435282.742 | BY99: 1529015.492 | BZ99: 1376113.943 | CA99: 1103117.307 | CB99: 1575881.867 | CC99: 827601.6038 | CD99: 1158642.245 | CE99: 1673129.596 | CF99: 1505816.636 | CG99: 1338503.677 | CH99: 1505816.636 | CI99: 1713906.155 | CJ99: 1804111.742 | CK99: 1852871.518 | CL99: 1667584.367 | CM99: 1331141.907 | CN99: 1901631.295 | CO99: 979157.2679 | CP99: 1370820.175 | CQ99: 1958314.536 | CR99: 1762483.082 | CS99: 1566651.629 | CT99: 1852006.032 | CU99: 1993993.162 | CV99: 2149669.842 | CW99: 2149669.842 | CX99: 1980359.562 | CY99: 1540279.659 | CZ99: 2219423.14 | DA99: 1131905.802 | DB99: 1584668.122 | DC99: 2263811.603 | DD99: 2037430.443 | DE99: 1811049.283 | DF99: 2130570.12 | DG99: 2293913.83 | DH99: 2467425.287 | DI99: 2467425.287 | DJ99: 2268183.994 | DK99: 1764143.106 | DL99: 2539996.619 | DM99: 1295398.276 | DN99: 1813557.586 | DO99: 2590796.551 | DP99: 2331716.896 | DQ99: 2072637.241 | DR99: 2331716.896 | DS99: 2614813.572 | DT99: 2752435.339 | DU99: 2807346.767 | DV99: 2526612.09 | DW99: 2003580.737 | DX99: 2862258.195 | DY99: 1470253.49 | DZ99: 2058354.886 | EA99: 2940506.98 | EB99: 2646456.282 | EC99: 2352405.584 | ED99: 2646456.282 | EE99: 2849351.264 | EF99: 2999317.12 | EG99: 3113576.82 | EH99: 2802219.138 | EI99: 2219494.669 | EJ99: 3170706.67 | EK99: 1646196.625 | EL99: 2304675.275 | EM99: 3314245.418 | EN99: 2982820.876 | EO99: 2651396.334 | EP99: 2982820.876 | EQ99: 0 | ER99: 0 | ES99: 0 | ET99: 0 | EU99: 0 | EV99: 0 | EW99: 0 | EX99: 0 | EY99: 0 | EZ99: 0 | FA99: 0 | FB99: 0 | FC99: 0
A100: 100 | G100: 0 | H100: Общий оборот (GMV) | I100: Аксессуары | L100: 1 | M100: руб. | X100: 15430007.04 | AA100: 0 | AB100: 0 | AC100: 0 | AD100: 0 | AE100: 0 | AF100: 980 | AG100: 1499.4 | AH100: 2798.88 | AI100: 8568 | AJ100: 9253.44 | AK100: 10795.68 | AL100: 18876.375 | AM100: 22918.06125 | AN100: 27037.395 | AO100: 27856.71 | AP100: 34247.367 | AQ100: 26636.841 | AR100: 42786.45 | AS100: 21821.0895 | AT100: 33149.4849 | AU100: 54784.863 | AV100: 50559.92865 | AW100: 47913.5412 | AX100: 53902.73385 | AY100: 61634.36371 | AZ100: 64878.27759 | BA100: 73875.99492 | BB100: 66488.39543 | BC100: 54365.15524 | BD100: 77664.50748 | BE100: 41541.04022 | BF100: 58157.45631 | BG100: 84531.1865 | BH100: 83033.77691 | BI100: 73807.80169 | BJ100: 86511.63144 | BK100: 93144.18985 | BL100: 101988.0841 | BM100: 101988.0841 | BN100: 93119.55504 | BO100: 72426.32059 | BP100: 111349.3092 | BQ100: 56788.14769 | BR100: 82317.68666 | BS100: 117596.6952 | BT100: 109455.3856 | BU100: 97293.67605 | BV100: 110812.2705 | BW100: 119307.8779 | BX100: 125587.2399 | BY100: 133788.8556 | BZ100: 120409.97 | CA100: 96522.76438 | CB100: 137889.6634 | CC100: 72415.14033 | CD100: 101381.1965 | CE100: 146398.8397 | CF100: 131758.9557 | CG100: 117119.0717 | CH100: 131758.9557 | CI100: 149966.7885 | CJ100: 157859.7774 | CK100: 162126.2579 | CL100: 145913.6321 | CM100: 116474.9168 | CN100: 166392.7383 | CO100: 85676.26094 | CP100: 119946.7653 | CQ100: 171352.5219 | CR100: 154217.2697 | CS100: 137082.0175 | CT100: 162050.5278 | CU100: 174474.4016 | CV100: 188096.1112 | CW100: 188096.1112 | CX100: 173281.4617 | CY100: 134774.4702 | CZ100: 194199.5248 | DA100: 99041.75764 | DB100: 138658.4607 | DC100: 198083.5153 | DD100: 178275.1638 | DE100: 158466.8122 | DF100: 186424.8855 | DG100: 200717.4601 | DH100: 215899.7126 | DI100: 215899.7126 | DJ100: 198466.0994 | DK100: 154362.5218 | DL100: 222249.7042 | DM100: 113347.3491 | DN100: 158686.2888 | DO100: 226694.6982 | DP100: 204025.2284 | DQ100: 181355.7586 | DR100: 204025.2284 | DS100: 228796.1875 | DT100: 240838.0921 | DU100: 245642.8421 | DV100: 221078.5579 | DW100: 175313.3145 | DX100: 250447.5921 | DY100: 128647.1804 | DZ100: 180106.0525 | EA100: 257294.3608 | EB100: 231564.9247 | EC100: 205835.4886 | ED100: 231564.9247 | EE100: 249318.2356 | EF100: 262440.248 | EG100: 272437.9717 | EH100: 245194.1746 | EI100: 194205.7835 | EJ100: 277436.8336 | EK100: 144042.2047 | EL100: 201659.0866 | EM100: 289996.474 | EN100: 260996.8266 | EO100: 231997.1792 | EP100: 260996.8266 | EQ100: 0 | ER100: 0 | ES100: 0 | ET100: 0 | EU100: 0 | EV100: 0 | EW100: 0 | EX100: 0 | EY100: 0 | EZ100: 0 | FA100: 0 | FB100: 0 | FC100: 0
A101: 101 | L101: пустая строка
A102: 102
A103: 103 | G103: 0 | H103: Доля продаж со скидками
A104: 104 | G104: 0 | H104: продукция | I104: Вручную для каждого периода расчетов | M104: % | Q104: Очки | S104: 0 | T104: 0 | X104: 0.2 | Y104: * | AA104: 0.2 | AB104: 0.2 | AC104: 0.2 | AD104: 0.2 | AE104: 0.2 | AF104: 0.2 | AG104: 0.2 | AH104: 0.2 | AI104: 0.2 | AJ104: 0.2 | AK104: 0.2 | AL104: 0.2 | AM104: 0.2 | AN104: 0.2 | AO104: 0.2 | AP104: 0.2 | AQ104: 0.2 | AR104: 0.2 | AS104: 0.2 | AT104: 0.2 | AU104: 0.2 | AV104: 0.2 | AW104: 0.2 | AX104: 0.2 | AY104: 0.2 | AZ104: 0.2 | BA104: 0.2 | BB104: 0.2 | BC104: 0.2 | BD104: 0.2 | BE104: 0.2 | BF104: 0.2 | BG104: 0.2 | BH104: 0.2 | BI104: 0.2 | BJ104: 0.2 | BK104: 0.2 | BL104: 0.2 | BM104: 0.2 | BN104: 0.2 | BO104: 0.2 | BP104: 0.2 | BQ104: 0.2 | BR104: 0.2 | BS104: 0.2 | BT104: 0.2 | BU104: 0.2 | BV104: 0.2 | BW104: 0.2 | BX104: 0.2 | BY104: 0.2 | BZ104: 0.2 | CA104: 0.2 | CB104: 0.2 | CC104: 0.2 | CD104: 0.2 | CE104: 0.2 | CF104: 0.2 | CG104: 0.2 | CH104: 0.2 | CI104: 0.2 | CJ104: 0.2 | CK104: 0.2 | CL104: 0.2 | CM104: 0.2 | CN104: 0.2 | CO104: 0.2 | CP104: 0.2 | CQ104: 0.2 | CR104: 0.2 | CS104: 0.2 | CT104: 0.2 | CU104: 0.2 | CV104: 0.2 | CW104: 0.2 | CX104: 0.2 | CY104: 0.2 | CZ104: 0.2 | DA104: 0.2 | DB104: 0.2 | DC104: 0.2 | DD104: 0.2 | DE104: 0.2 | DF104: 0.2 | DG104: 0.2 | DH104: 0.2 | DI104: 0.2 | DJ104: 0.2 | DK104: 0.2 | DL104: 0.2 | DM104: 0.2 | DN104: 0.2 | DO104: 0.2 | DP104: 0.2 | DQ104: 0.2 | DR104: 0.2 | DS104: 0.2 | DT104: 0.2 | DU104: 0.2 | DV104: 0.2 | DW104: 0.2 | DX104: 0.2 | DY104: 0.2 | DZ104: 0.2 | EA104: 0.2 | EB104: 0.2 | EC104: 0.2 | ED104: 0.2 | EE104: 0.2 | EF104: 0.2 | EG104: 0.2 | EH104: 0.2 | EI104: 0.2 | EJ104: 0.2 | EK104: 0.2 | EL104: 0.2 | EM104: 0.2 | EN104: 0.2 | EO104: 0.2 | EP104: 0.2 | EQ104: 0.2 | ER104: 0.2 | ES104: 0.2 | ET104: 0.2 | EU104: 0.2 | EV104: 0.2 | EW104: 0.2 | EX104: 0.2 | EY104: 0.2 | EZ104: 0.2 | FA104: 0.2 | FB104: 0.2 | FC104: 0.2
A105: 105 | G105: 0 | H105: продукция | I105: Вручную для каждого периода расчетов | M105: % | Q105: Профилактика | S105: 0 | T105: 0 | X105: 0.3 | Y105: * | AA105: 0.3 | AB105: 0.3 | AC105: 0.3 | AD105: 0.3 | AE105: 0.3 | AF105: 0.3 | AG105: 0.3 | AH105: 0.3 | AI105: 0.3 | AJ105: 0.3 | AK105: 0.3 | AL105: 0.3 | AM105: 0.3 | AN105: 0.3 | AO105: 0.3 | AP105: 0.3 | AQ105: 0.3 | AR105: 0.3 | AS105: 0.3 | AT105: 0.3 | AU105: 0.3 | AV105: 0.3 | AW105: 0.3 | AX105: 0.3 | AY105: 0.3 | AZ105: 0.3 | BA105: 0.3 | BB105: 0.3 | BC105: 0.3 | BD105: 0.3 | BE105: 0.3 | BF105: 0.3 | BG105: 0.3 | BH105: 0.3 | BI105: 0.3 | BJ105: 0.3 | BK105: 0.3 | BL105: 0.3 | BM105: 0.3 | BN105: 0.3 | BO105: 0.3 | BP105: 0.3 | BQ105: 0.3 | BR105: 0.3 | BS105: 0.3 | BT105: 0.3 | BU105: 0.3 | BV105: 0.3 | BW105: 0.3 | BX105: 0.3 | BY105: 0.3 | BZ105: 0.3 | CA105: 0.3 | CB105: 0.3 | CC105: 0.3 | CD105: 0.3 | CE105: 0.3 | CF105: 0.3 | CG105: 0.3 | CH105: 0.3 | CI105: 0.3 | CJ105: 0.3 | CK105: 0.3 | CL105: 0.3 | CM105: 0.3 | CN105: 0.3 | CO105: 0.3 | CP105: 0.3 | CQ105: 0.3 | CR105: 0.3 | CS105: 0.3 | CT105: 0.3 | CU105: 0.3 | CV105: 0.3 | CW105: 0.3 | CX105: 0.3 | CY105: 0.3 | CZ105: 0.3 | DA105: 0.3 | DB105: 0.3 | DC105: 0.3 | DD105: 0.3 | DE105: 0.3 | DF105: 0.3 | DG105: 0.3 | DH105: 0.3 | DI105: 0.3 | DJ105: 0.3 | DK105: 0.3 | DL105: 0.3 | DM105: 0.3 | DN105: 0.3 | DO105: 0.3 | DP105: 0.3 | DQ105: 0.3 | DR105: 0.3 | DS105: 0.3 | DT105: 0.3 | DU105: 0.3 | DV105: 0.3 | DW105: 0.3 | DX105: 0.3 | DY105: 0.3 | DZ105: 0.3 | EA105: 0.3 | EB105: 0.3 | EC105: 0.3 | ED105: 0.3 | EE105: 0.3 | EF105: 0.3 | EG105: 0.3 | EH105: 0.3 | EI105: 0.3 | EJ105: 0.3 | EK105: 0.3 | EL105: 0.3 | EM105: 0.3 | EN105: 0.3 | EO105: 0.3 | EP105: 0.3 | EQ105: 0.3 | ER105: 0.3 | ES105: 0.3 | ET105: 0.3 | EU105: 0.3 | EV105: 0.3 | EW105: 0.3 | EX105: 0.3 | EY105: 0.3 | EZ105: 0.3 | FA105: 0.3 | FB105: 0.3 | FC105: 0.3
A106: 106 | G106: 0 | H106: продукция | I106: Вручную для каждого периода расчетов | M106: % | Q106: Аксессуары | S106: 0 | T106: 0 | X106: 0.4 | Y106: * | AA106: 0.4 | AB106: 0.4 | AC106: 0.4 | AD106: 0.4 | AE106: 0.4 | AF106: 0.4 | AG106: 0.4 | AH106: 0.4 | AI106: 0.4 | AJ106: 0.4 | AK106: 0.4 | AL106: 0.4 | AM106: 0.4 | AN106: 0.4 | AO106: 0.4 | AP106: 0.4 | AQ106: 0.4 | AR106: 0.4 | AS106: 0.4 | AT106: 0.4 | AU106: 0.4 | AV106: 0.4 | AW106: 0.4 | AX106: 0.4 | AY106: 0.4 | AZ106: 0.4 | BA106: 0.4 | BB106: 0.4 | BC106: 0.4 | BD106: 0.4 | BE106: 0.4 | BF106: 0.4 | BG106: 0.4 | BH106: 0.4 | BI106: 0.4 | BJ106: 0.4 | BK106: 0.4 | BL106: 0.4 | BM106: 0.4 | BN106: 0.4 | BO106: 0.4 | BP106: 0.4 | BQ106: 0.4 | BR106: 0.4 | BS106: 0.4 | BT106: 0.4 | BU106: 0.4 | BV106: 0.4 | BW106: 0.4 | BX106: 0.4 | BY106: 0.4 | BZ106: 0.4 | CA106: 0.4 | CB106: 0.4 | CC106: 0.4 | CD106: 0.4 | CE106: 0.4 | CF106: 0.4 | CG106: 0.4 | CH106: 0.4 | CI106: 0.4 | CJ106: 0.4 | CK106: 0.4 | CL106: 0.4 | CM106: 0.4 | CN106: 0.4 | CO106: 0.4 | CP106: 0.4 | CQ106: 0.4 | CR106: 0.4 | CS106: 0.4 | CT106: 0.4 | CU106: 0.4 | CV106: 0.4 | CW106: 0.4 | CX106: 0.4 | CY106: 0.4 | CZ106: 0.4 | DA106: 0.4 | DB106: 0.4 | DC106: 0.4 | DD106: 0.4 | DE106: 0.4 | DF106: 0.4 | DG106: 0.4 | DH106: 0.4 | DI106: 0.4 | DJ106: 0.4 | DK106: 0.4 | DL106: 0.4 | DM106: 0.4 | DN106: 0.4 | DO106: 0.4 | DP106: 0.4 | DQ106: 0.4 | DR106: 0.4 | DS106: 0.4 | DT106: 0.4 | DU106: 0.4 | DV106: 0.4 | DW106: 0.4 | DX106: 0.4 | DY106: 0.4 | DZ106: 0.4 | EA106: 0.4 | EB106: 0.4 | EC106: 0.4 | ED106: 0.4 | EE106: 0.4 | EF106: 0.4 | EG106: 0.4 | EH106: 0.4 | EI106: 0.4 | EJ106: 0.4 | EK106: 0.4 | EL106: 0.4 | EM106: 0.4 | EN106: 0.4 | EO106: 0.4 | EP106: 0.4 | EQ106: 0.4 | ER106: 0.4 | ES106: 0.4 | ET106: 0.4 | EU106: 0.4 | EV106: 0.4 | EW106: 0.4 | EX106: 0.4 | EY106: 0.4 | EZ106: 0.4 | FA106: 0.4 | FB106: 0.4 | FC106: 0.4
A107: 107 | L107: пустая строка
A108: 108
A109: 109 | G109: 0 | H109: Средний размер скидок
A110: 110 | G110: 0 | H110: Средний размер скидок | I110: Очки | M110: % | P110: * | Q110: 0.2 | S110: 0 | X110: 0.105 | AA110: 0.2 | AB110: 0.2 | AC110: 0.2 | AD110: 0.19 | AE110: 0.19 | AF110: 0.19 | AG110: 0.18 | AH110: 0.18 | AI110: 0.18 | AJ110: 0.17 | AK110: 0.17 | AL110: 0.17 | AM110: 0.16 | AN110: 0.16 | AO110: 0.16 | AP110: 0.15 | AQ110: 0.15 | AR110: 0.15 | AS110: 0.14 | AT110: 0.14 | AU110: 0.14 | AV110: 0.13 | AW110: 0.13 | AX110: 0.13 | AY110: 0.12 | AZ110: 0.12 | BA110: 0.12 | BB110: 0.11 | BC110: 0.11 | BD110: 0.11 | BE110: 0.1 | BF110: 0.1 | BG110: 0.1 | BH110: 0.09 | BI110: 0.09 | BJ110: 0.09 | BK110: 0.08 | BL110: 0.08 | BM110: 0.08 | BN110: 0.07 | BO110: 0.07 | BP110: 0.07 | BQ110: 0.06 | BR110: 0.06 | BS110: 0.06 | BT110: 0.05 | BU110: 0.05 | BV110: 0.05 | BW110: 0.04 | BX110: 0.04 | BY110: 0.04 | BZ110: 0.03 | CA110: 0.03 | CB110: 0.03 | CC110: 0.02 | CD110: 0.02 | CE110: 0.02 | CF110: 0.01 | CG110: 0.01 | CH110: 0.01 | CI110: 0 | CJ110: 0 | CK110: 0 | CL110: 0 | CM110: 0 | CN110: 0 | CO110: 0 | CP110: 0 | CQ110: 0 | CR110: 0 | CS110: 0 | CT110: 0 | CU110: 0 | CV110: 0 | CW110: 0 | CX110: 0 | CY110: 0 | CZ110: 0 | DA110: 0 | DB110: 0 | DC110: 0 | DD110: 0 | DE110: 0 | DF110: 0 | DG110: 0 | DH110: 0 | DI110: 0 | DJ110: 0 | DK110: 0 | DL110: 0 | DM110: 0 | DN110: 0 | DO110: 0 | DP110: 0 | DQ110: 0 | DR110: 0 | DS110: 0 | DT110: 0 | DU110: 0 | DV110: 0 | DW110: 0 | DX110: 0 | DY110: 0 | DZ110: 0 | EA110: 0 | EB110: 0 | EC110: 0 | ED110: 0 | EE110: 0 | EF110: 0 | EG110: 0 | EH110: 0 | EI110: 0 | EJ110: 0 | EK110: 0 | EL110: 0 | EM110: 0 | EN110: 0 | EO110: 0 | EP110: 0 | EQ110: 0 | ER110: 0 | ES110: 0 | ET110: 0 | EU110: 0 | EV110: 0 | EW110: 0 | EX110: 0 | EY110: 0 | EZ110: 0 | FA110: 0 | FB110: 0 | FC110: 0
A111: 111 | G111: 0 | H111: Средний размер скидок | I111: Профилактика | M111: % | P111: * | Q111: 0.25 | S111: 0 | X111: 0.13 | AA111: 0.25 | AB111: 0.25 | AC111: 0.25 | AD111: 0.24 | AE111: 0.24 | AF111: 0.24 | AG111: 0.23 | AH111: 0.23 | AI111: 0.23 | AJ111: 0.22 | AK111: 0.22 | AL111: 0.22 | AM111: 0.21 | AN111: 0.21 | AO111: 0.21 | AP111: 0.2 | AQ111: 0.2 | AR111: 0.2 | AS111: 0.19 | AT111: 0.19 | AU111: 0.19 | AV111: 0.18 | AW111: 0.18 | AX111: 0.18 | AY111: 0.17 | AZ111: 0.17 | BA111: 0.17 | BB111: 0.16 | BC111: 0.16 | BD111: 0.16 | BE111: 0.15 | BF111: 0.15 | BG111: 0.15 | BH111: 0.14 | BI111: 0.14 | BJ111: 0.14 | BK111: 0.13 | BL111: 0.13 | BM111: 0.13 | BN111: 0.12 | BO111: 0.12 | BP111: 0.12 | BQ111: 0.11 | BR111: 0.11 | BS111: 0.11 | BT111: 0.1 | BU111: 0.1 | BV111: 0.1 | BW111: 0.09 | BX111: 0.09 | BY111: 0.09 | BZ111: 0.08 | CA111: 0.08 | CB111: 0.08 | CC111: 0.07 | CD111: 0.07 | CE111: 0.07 | CF111: 0.06 | CG111: 0.06 | CH111: 0.06 | CI111: 0.05 | CJ111: 0.05 | CK111: 0.05 | CL111: 0.04 | CM111: 0.04 | CN111: 0.04 | CO111: 0.03 | CP111: 0.03 | CQ111: 0.03 | CR111: 0.02 | CS111: 0.02 | CT111: 0.02 | CU111: 0.01 | CV111: 0.01 | CW111: 0.01 | CX111: 0 | CY111: 0 | CZ111: 0 | DA111: 0 | DB111: 0 | DC111: 0 | DD111: 0 | DE111: 0 | DF111: 0 | DG111: 0 | DH111: 0 | DI111: 0 | DJ111: 0 | DK111: 0 | DL111: 0 | DM111: 0 | DN111: 0 | DO111: 0 | DP111: 0 | DQ111: 0 | DR111: 0 | DS111: 0 | DT111: 0 | DU111: 0 | DV111: 0 | DW111: 0 | DX111: 0 | DY111: 0 | DZ111: 0 | EA111: 0 | EB111: 0 | EC111: 0 | ED111: 0 | EE111: 0 | EF111: 0 | EG111: 0 | EH111: 0 | EI111: 0 | EJ111: 0 | EK111: 0 | EL111: 0 | EM111: 0 | EN111: 0 | EO111: 0 | EP111: 0 | EQ111: 0 | ER111: 0 | ES111: 0 | ET111: 0 | EU111: 0 | EV111: 0 | EW111: 0 | EX111: 0 | EY111: 0 | EZ111: 0 | FA111: 0 | FB111: 0 | FC111: 0
A112: 112 | G112: 0 | H112: Средний размер скидок | I112: Аксессуары | M112: % | P112: * | Q112: 0.3 | S112: 0 | X112: 0.155 | AA112: 0.3 | AB112: 0.3 | AC112: 0.3 | AD112: 0.29 | AE112: 0.29 | AF112: 0.29 | AG112: 0.28 | AH112: 0.28 | AI112: 0.28 | AJ112: 0.27 | AK112: 0.27 | AL112: 0.27 | AM112: 0.26 | AN112: 0.26 | AO112: 0.26 | AP112: 0.25 | AQ112: 0.25 | AR112: 0.25 | AS112: 0.24 | AT112: 0.24 | AU112: 0.24 | AV112: 0.23 | AW112: 0.23 | AX112: 0.23 | AY112: 0.22 | AZ112: 0.22 | BA112: 0.22 | BB112: 0.21 | BC112: 0.21 | BD112: 0.21 | BE112: 0.2 | BF112: 0.2 | BG112: 0.2 | BH112: 0.19 | BI112: 0.19 | BJ112: 0.19 | BK112: 0.18 | BL112: 0.18 | BM112: 0.18 | BN112: 0.17 | BO112: 0.17 | BP112: 0.17 | BQ112: 0.16 | BR112: 0.16 | BS112: 0.16 | BT112: 0.15 | BU112: 0.15 | BV112: 0.15 | BW112: 0.14 | BX112: 0.14 | BY112: 0.14 | BZ112: 0.13 | CA112: 0.13 | CB112: 0.13 | CC112: 0.12 | CD112: 0.12 | CE112: 0.12 | CF112: 0.11 | CG112: 0.11 | CH112: 0.11 | CI112: 0.1 | CJ112: 0.1 | CK112: 0.1 | CL112: 0.09 | CM112: 0.09 | CN112: 0.09 | CO112: 0.08 | CP112: 0.08 | CQ112: 0.08 | CR112: 0.07 | CS112: 0.07 | CT112: 0.07 | CU112: 0.06 | CV112: 0.06 | CW112: 0.06 | CX112: 0.05 | CY112: 0.05 | CZ112: 0.05 | DA112: 0.04 | DB112: 0.04 | DC112: 0.04 | DD112: 0.03 | DE112: 0.03 | DF112: 0.03 | DG112: 0.02 | DH112: 0.02 | DI112: 0.02 | DJ112: 0.01 | DK112: 0.01 | DL112: 0.01 | DM112: 0 | DN112: 0 | DO112: 0 | DP112: 0 | DQ112: 0 | DR112: 0 | DS112: 0 | DT112: 0 | DU112: 0 | DV112: 0 | DW112: 0 | DX112: 0 | DY112: 0 | DZ112: 0 | EA112: 0 | EB112: 0 | EC112: 0 | ED112: 0 | EE112: 0 | EF112: 0 | EG112: 0 | EH112: 0 | EI112: 0 | EJ112: 0 | EK112: 0 | EL112: 0 | EM112: 0 | EN112: 0 | EO112: 0 | EP112: 0 | EQ112: 0 | ER112: 0 | ES112: 0 | ET112: 0 | EU112: 0 | EV112: 0 | EW112: 0 | EX112: 0 | EY112: 0 | EZ112: 0 | FA112: 0 | FB112: 0 | FC112: 0
A113: 113 | L113: пустая строка
A114: 114 | G114: 0 | H114: Линейные изменения размеров скидок
A115: 115 | G115: 0 | H115: Линейные изменения размеров скидок | I115: Коэффициент прироста | M115: % | P115: * | Q115: -0.01 | S115: 0
A116: 116 | G116: 0 | H116: Линейные изменения размеров скидок | I116: Частота приростов | M116: кол-во периодов | P116: * | Q116: 3 | S116: 0
A117: 117 | G117: 0 | H117: Линейные изменения размеров скидок | I117: Максимальное значение | M117: % | P117: * | Q117: 0.5 | S117: 0
A118: 118
A119: 119 | G119: 0 | H119: Маркетинговые скидки | L119: 1 | M119: руб. | T119: 0 | X119: 13712262.06 | AA119: 0 | AB119: 0 | AC119: 0 | AD119: 0 | AE119: 0 | AF119: 8900.08 | AG119: 12917.1168 | AH119: 24111.95136 | AI119: 73812.096 | AJ119: 75397.02912 | AK119: 87963.20064 | AL119: 153804.7035 | AM119: 176036.9025 | AN119: 207678.0935 | AO119: 213971.369 | AP119: 247070.2905 | AQ119: 192165.7815 | AR119: 308673.675 | AS119: 147236.2428 | AT119: 223673.7815 | AU119: 369656.9499 | AV119: 317545.2433 | AW119: 300924.4179 | AX119: 338539.9701 | AY119: 358324.5808 | AZ119: 377183.7693 | BA119: 429493.927 | BB119: 355503.952 | BC119: 290682.7186 | BD119: 415261.0266 | BE119: 202720.2763 | BF119: 283808.3868 | BG119: 412512.1901 | BH119: 366439.9195 | BI119: 325724.3728 | BJ119: 381788.1883 | BK119: 367573.5858 | BL119: 402474.1193 | BM119: 402474.1193 | BN119: 324002.8404 | BO119: 252002.2092 | BP119: 387431.9679 | BQ119: 171078.3512 | BR119: 247987.9109 | BS119: 354268.4441 | BT119: 278642.1387 | BU119: 247681.901 | BV119: 282096.38 | BW119: 248024.0342 | BX119: 261077.9307 | BY119: 278127.918 | BZ119: 194100.8717 | CA119: 155594.6962 | CB119: 222278.1374 | CC119: 82925.6807 | CD119: 116095.953 | CE119: 167647.5855 | CF119: 89370.21737 | CG119: 79440.19322 | CH119: 89370.21737 | CI119: 31707.26386 | CJ119: 33376.06722 | CK119: 34278.12309 | CL119: 25263.90315 | CM119: 20166.79989 | CN119: 28809.71412 | CO119: 11554.05576 | CP119: 16175.67807 | CQ119: 23108.11152 | CR119: 14892.98204 | CS119: 13238.20626 | CT119: 15649.45097 | CU119: 10169.36512 | CV119: 10963.31619 | CW119: 10963.31619 | CX119: 3465.629234 | CY119: 2695.489404 | CZ119: 3883.990496 | DA119: 1584.668122 | DB119: 2218.535371 | DC119: 3169.336245 | DD119: 2139.301965 | DE119: 1901.601747 | DF119: 2237.098626 | DG119: 1605.739681 | DH119: 1727.197701 | DI119: 1727.197701 | DJ119: 793.8643978 | DK119: 617.4500872 | DL119: 888.9988166 | DM119: 0 | DN119: 0 | DO119: 0 | DP119: 0 | DQ119: 0 | DR119: 0 | DS119: 0 | DT119: 0 | DU119: 0 | DV119: 0 | DW119: 0 | DX119: 0 | DY119: 0 | DZ119: 0 | EA119: 0 | EB119: 0 | EC119: 0 | ED119: 0 | EE119: 0 | EF119: 0 | EG119: 0 | EH119: 0 | EI119: 0 | EJ119: 0 | EK119: 0 | EL119: 0 | EM119: 0 | EN119: 0 | EO119: 0 | EP119: 0 | EQ119: 0 | ER119: 0 | ES119: 0 | ET119: 0 | EU119: 0 | EV119: 0 | EW119: 0 | EX119: 0 | EY119: 0 | EZ119: 0 | FA119: 0 | FB119: 0 | FC119: 0
A120: 120 | G120: 0 | H120: Маркетинговые скидки | I120: Очки | L120: 1 | M120: руб. | X120: 11525908.79 | AA120: 0 | AB120: 0 | AC120: 0 | AD120: 0 | AE120: 0 | AF120: 7980 | AG120: 11566.8 | AH120: 21591.36 | AI120: 66096 | AJ120: 67417.92 | AK120: 78654.24 | AL120: 137527.875 | AM120: 157152.42 | AN120: 185399.28 | AO120: 191017.44 | AP120: 220161.645 | AQ120: 171236.835 | AR120: 275055.75 | AS120: 130926.537 | AT120: 198896.9094 | AU120: 328709.178 | AV120: 281691.0311 | AW120: 266946.8724 | AX120: 300315.2315 | AY120: 316976.7277 | AZ120: 333659.7133 | BA120: 379933.6882 | BB120: 313445.2927 | BC120: 256292.8747 | BD120: 366132.6781 | BE120: 178033.0295 | BF120: 249246.2413 | BG120: 362276.5136 | BH120: 320273.1395 | BI120: 284687.2351 | BJ120: 333687.7213 | BK120: 319351.508 | BL120: 349673.4312 | BM120: 349673.4312 | BN120: 279358.6651 | BO120: 217278.9618 | BP120: 334047.9276 | BQ120: 146026.6655 | BR120: 211674.0514 | BS120: 302391.502 | BT120: 234547.2548 | BU120: 208486.4487 | BV120: 237454.8654 | BW120: 204527.7907 | BX120: 215292.4113 | BY120: 229352.3238 | BZ120: 154812.8186 | CA120: 124100.6971 | CB120: 177286.7101 | CC120: 62070.12028 | CD120: 86898.1684 | CE120: 125484.7197 | CF120: 56468.12387 | CG120: 50193.88788 | CH120: 56468.12387 | CI120: 0 | CJ120: 0 | CK120: 0 | CL120: 0 | CM120: 0 | CN120: 0 | CO120: 0 | CP120: 0 | CQ120: 0 | CR120: 0 | CS120: 0 | CT120: 0 | CU120: 0 | CV120: 0 | CW120: 0 | CX120: 0 | CY120: 0 | CZ120: 0 | DA120: 0 | DB120: 0 | DC120: 0 | DD120: 0 | DE120: 0 | DF120: 0 | DG120: 0 | DH120: 0 | DI120: 0 | DJ120: 0 | DK120: 0 | DL120: 0 | DM120: 0 | DN120: 0 | DO120: 0 | DP120: 0 | DQ120: 0 | DR120: 0 | DS120: 0 | DT120: 0 | DU120: 0 | DV120: 0 | DW120: 0 | DX120: 0 | DY120: 0 | DZ120: 0 | EA120: 0 | EB120: 0 | EC120: 0 | ED120: 0 | EE120: 0 | EF120: 0 | EG120: 0 | EH120: 0 | EI120: 0 | EJ120: 0 | EK120: 0 | EL120: 0 | EM120: 0 | EN120: 0 | EO120: 0 | EP120: 0 | EQ120: 0 | ER120: 0 | ES120: 0 | ET120: 0 | EU120: 0 | EV120: 0 | EW120: 0 | EX120: 0 | EY120: 0 | EZ120: 0 | FA120: 0 | FB120: 0 | FC120: 0
A121: 121 | G121: 0 | H121: Маркетинговые скидки | I121: Профилактика | L121: 1 | M121: руб. | X121: 1819695.022 | AA121: 0 | AB121: 0 | AC121: 0 | AD121: 0 | AE121: 0 | AF121: 806.4 | AG121: 1182.384 | AH121: 2207.1168 | AI121: 6756.48 | AJ121: 6979.7376 | AK121: 8143.0272 | AL121: 14238.18 | AM121: 16501.0041 | AN121: 19466.9244 | AO121: 20056.8312 | AP121: 23483.9088 | AQ121: 18265.2624 | AR121: 29339.28 | AS121: 14214.88116 | AT121: 21594.52159 | AU121: 35688.42504 | AV121: 31202.69882 | AW121: 29569.49971 | AX121: 33265.68718 | AY121: 35924.02913 | AZ121: 37814.76751 | BA121: 43059.15132 | BB121: 36473.63406 | BC121: 29823.17087 | BD121: 42604.52982 | BE121: 21363.96354 | BF121: 29909.54896 | BG121: 43473.18163 | BH121: 39856.21291 | BI121: 35427.74481 | BJ121: 41525.58309 | BK121: 41515.69605 | BL121: 45457.54605 | BM121: 45457.54605 | BN121: 38312.0455 | BO121: 29798.25761 | BP121: 45812.28722 | BQ121: 21417.24427 | BR121: 31045.52754 | BS121: 44350.75363 | BT121: 37527.56076 | BU121: 33357.83179 | BV121: 37992.77846 | BW121: 36815.00233 | BX121: 38752.63403 | BY121: 41283.41829 | BZ121: 33026.73463 | CA121: 26474.81537 | CB121: 37821.16482 | CC121: 17379.63368 | CD121: 24331.48715 | CE121: 35135.72152 | CF121: 27104.69946 | CG121: 24093.06618 | CH121: 27104.69946 | CI121: 25708.59232 | CJ121: 27061.67612 | CK121: 27793.07278 | CL121: 20011.0124 | CM121: 15973.70288 | CN121: 22819.57554 | CO121: 8812.415411 | CP121: 12337.38158 | CQ121: 17624.83082 | CR121: 10574.89849 | CS121: 9399.909771 | CT121: 11112.03619 | CU121: 5981.979485 | CV121: 6449.009525 | CW121: 6449.009525 | CX121: 0 | CY121: 0 | CZ121: 0 | DA121: 0 | DB121: 0 | DC121: 0 | DD121: 0 | DE121: 0 | DF121: 0 | DG121: 0 | DH121: 0 | DI121: 0 | DJ121: 0 | DK121: 0 | DL121: 0 | DM121: 0 | DN121: 0 | DO121: 0 | DP121: 0 | DQ121: 0 | DR121: 0 | DS121: 0 | DT121: 0 | DU121: 0 | DV121: 0 | DW121: 0 | DX121: 0 | DY121: 0 | DZ121: 0 | EA121: 0 | EB121: 0 | EC121: 0 | ED121: 0 | EE121: 0 | EF121: 0 | EG121: 0 | EH121: 0 | EI121: 0 | EJ121: 0 | EK121: 0 | EL121: 0 | EM121: 0 | EN121: 0 | EO121: 0 | EP121: 0 | EQ121: 0 | ER121: 0 | ES121: 0 | ET121: 0 | EU121: 0 | EV121: 0 | EW121: 0 | EX121: 0 | EY121: 0 | EZ121: 0 | FA121: 0 | FB121: 0 | FC121: 0
A122: 122 | G122: 0 | H122: Маркетинговые скидки | I122: Аксессуары | L122: 1 | M122: руб. | X122: 366658.2494 | AA122: 0 | AB122: 0 | AC122: 0 | AD122: 0 | AE122: 0 | AF122: 113.68 | AG122: 167.9328 | AH122: 313.47456 | AI122: 959.616 | AJ122: 999.37152 | AK122: 1165.93344 | AL122: 2038.6485 | AM122: 2383.47837 | AN122: 2811.88908 | AO122: 2897.09784 | AP122: 3424.7367 | AQ122: 2663.6841 | AR122: 4278.645 | AS122: 2094.824592 | AT122: 3182.35055 | AU122: 5259.346848 | AV122: 4651.513436 | AW122: 4408.04579 | AX122: 4959.051514 | AY122: 5423.824007 | AZ122: 5709.288428 | BA122: 6501.087553 | BB122: 5585.025216 | BC122: 4566.67304 | BD122: 6523.818628 | BE122: 3323.283218 | BF122: 4652.596505 | BG122: 6762.49492 | BH122: 6310.567045 | BI122: 5609.392929 | BJ122: 6574.883989 | BK122: 6706.381669 | BL122: 7343.142055 | BM122: 7343.142055 | BN122: 6332.129743 | BO122: 4924.9898 | BP122: 7571.753026 | BQ122: 3634.441452 | BR122: 5268.331946 | BS122: 7526.188494 | BT122: 6567.323133 | BU122: 5837.620563 | BV122: 6648.73623 | BW122: 6681.241163 | BX122: 7032.885434 | BY122: 7492.175912 | BZ122: 6261.318441 | CA122: 5019.183748 | CB122: 7170.262497 | CC122: 3475.926736 | CD122: 4866.29743 | CE122: 7027.144303 | CF122: 5797.39405 | CG122: 5153.239156 | CH122: 5797.39405 | CI122: 5998.671541 | CJ122: 6314.391096 | CK122: 6485.050314 | CL122: 5252.890755 | CM122: 4193.097006 | CN122: 5990.13858 | CO122: 2741.64035 | CP122: 3838.29649 | CQ122: 5483.2807 | CR122: 4318.083551 | CS122: 3838.29649 | CT122: 4537.414779 | CU122: 4187.385639 | CV122: 4514.306668 | CW122: 4514.306668 | CX122: 3465.629234 | CY122: 2695.489404 | CZ122: 3883.990496 | DA122: 1584.668122 | DB122: 2218.535371 | DC122: 3169.336245 | DD122: 2139.301965 | DE122: 1901.601747 | DF122: 2237.098626 | DG122: 1605.739681 | DH122: 1727.197701 | DI122: 1727.197701 | DJ122: 793.8643978 | DK122: 617.4500872 | DL122: 888.9988166 | DM122: 0 | DN122: 0 | DO122: 0 | DP122: 0 | DQ122: 0 | DR122: 0 | DS122: 0 | DT122: 0 | DU122: 0 | DV122: 0 | DW122: 0 | DX122: 0 | DY122: 0 | DZ122: 0 | EA122: 0 | EB122: 0 | EC122: 0 | ED122: 0 | EE122: 0 | EF122: 0 | EG122: 0 | EH122: 0 | EI122: 0 | EJ122: 0 | EK122: 0 | EL122: 0 | EM122: 0 | EN122: 0 | EO122: 0 | EP122: 0 | EQ122: 0 | ER122: 0 | ES122: 0 | ET122: 0 | EU122: 0 | EV122: 0 | EW122: 0 | EX122: 0 | EY122: 0 | EZ122: 0 | FA122: 0 | FB122: 0 | FC122: 0
A123: 123 | L123: пустая строка
A124: 124
A125: 125 | G125: 0 | H125: Доля скидок в общем обороте | L125: 1 | M125: % | X125: 0.003919801671 | AA125: 0 | AB125: 0 | AC125: 0 | AD125: 0 | AE125: 0 | AF125: 0.04005797101 | AG125: 0.03799873976 | AH125: 0.03799873976 | AI125: 0.03799873976 | AJ125: 0.03593950851 | AK125: 0.03593950851 | AL125: 0.03593950851 | AM125: 0.03388027725 | AN125: 0.03388027725 | AO125: 0.03388027725 | AP125: 0.031821046 | AQ125: 0.031821046 | AR125: 0.031821046 | AS125: 0.02976181474 | AT125: 0.02976181474 | AU125: 0.02976181474 | AV125: 0.02770258349 | AW125: 0.02770258349 | AX125: 0.02770258349 | AY125: 0.02564335224 | AZ125: 0.02564335224 | BA125: 0.02564335224 | BB125: 0.02358412098 | BC125: 0.02358412098 | BD125: 0.02358412098 | BE125: 0.02152488973 | BF125: 0.02152488973 | BG125: 0.02152488973 | BH125: 0.01946565848 | BI125: 0.01946565848 | BJ125: 0.01946565848 | BK125: 0.01740642722 | BL125: 0.01740642722 | BM125: 0.01740642722 | BN125: 0.01534719597 | BO125: 0.01534719597 | BP125: 0.01534719597 | BQ125: 0.01328796471 | BR125: 0.01328796471 | BS125: 0.01328796471 | BT125: 0.01122873346 | BU125: 0.01122873346 | BV125: 0.01122873346 | BW125: 0.009169502205 | BX125: 0.009169502205 | BY125: 0.009169502205 | BZ125: 0.007110270951 | CA125: 0.007110270951 | CB125: 0.007110270951 | CC125: 0.005051039698 | CD125: 0.005051039698 | CE125: 0.005051039698 | CF125: 0.002991808444 | CG125: 0.002991808444 | CH125: 0.002991808444 | CI125: 0.0009325771897 | CJ125: 0.0009325771897 | CK125: 0.0009325771897 | CL125: 0.000763705104 | CM125: 0.000763705104 | CN125: 0.000763705104 | CO125: 0.0005948330183 | CP125: 0.0005948330183 | CQ125: 0.0005948330183 | CR125: 0.0004259609326 | CS125: 0.0004259609326 | CT125: 0.0004259609326 | CU125: 0.0002570888469 | CV125: 0.0002570888469 | CW125: 0.0002570888469 | CX125: 8.821676118e-05 | CY125: 8.821676118e-05 | CZ125: 8.821676118e-05 | DA125: 7.057340895e-05 | DB125: 7.057340895e-05 | DC125: 7.057340895e-05 | DD125: 5.293005671e-05 | DE125: 5.293005671e-05 | DF125: 5.293005671e-05 | DG125: 3.528670447e-05 | DH125: 3.528670447e-05 | DI125: 3.528670447e-05 | DJ125: 1.764335224e-05 | DK125: 1.764335224e-05 | DL125: 1.764335224e-05 | DM125: 0 | DN125: 0 | DO125: 0 | DP125: 0 | DQ125: 0 | DR125: 0 | DS125: 0 | DT125: 0 | DU125: 0 | DV125: 0 | DW125: 0 | DX125: 0 | DY125: 0 | DZ125: 0 | EA125: 0 | EB125: 0 | EC125: 0 | ED125: 0 | EE125: 0 | EF125: 0 | EG125: 0 | EH125: 0 | EI125: 0 | EJ125: 0 | EK125: 0 | EL125: 0 | EM125: 0 | EN125: 0 | EO125: 0 | EP125: 0 | EQ125: 0 | ER125: 0 | ES125: 0 | ET125: 0 | EU125: 0 | EV125: 0 | EW125: 0 | EX125: 0 | EY125: 0 | EZ125: 0 | FA125: 0 | FB125: 0 | FC125: 0
A126: 126 | G126: 0 | H126: Доля скидок в общем обороте | I126: Очки | L126: 1 | M126: % | X126: 0.003485907311 | AA126: 0 | AB126: 0 | AC126: 0 | AD126: 0 | AE126: 0 | AF126: 0.038 | AG126: 0.036 | AH126: 0.036 | AI126: 0.036 | AJ126: 0.034 | AK126: 0.034 | AL126: 0.034 | AM126: 0.032 | AN126: 0.032 | AO126: 0.032 | AP126: 0.03 | AQ126: 0.03 | AR126: 0.03 | AS126: 0.028 | AT126: 0.028 | AU126: 0.028 | AV126: 0.026 | AW126: 0.026 | AX126: 0.026 | AY126: 0.024 | AZ126: 0.024 | BA126: 0.024 | BB126: 0.022 | BC126: 0.022 | BD126: 0.022 | BE126: 0.02 | BF126: 0.02 | BG126: 0.02 | BH126: 0.018 | BI126: 0.018 | BJ126: 0.018 | BK126: 0.016 | BL126: 0.016 | BM126: 0.016 | BN126: 0.014 | BO126: 0.014 | BP126: 0.014 | BQ126: 0.012 | BR126: 0.012 | BS126: 0.012 | BT126: 0.01 | BU126: 0.01 | BV126: 0.01 | BW126: 0.008 | BX126: 0.008 | BY126: 0.008 | BZ126: 0.006 | CA126: 0.006 | CB126: 0.006 | CC126: 0.004 | CD126: 0.004 | CE126: 0.004 | CF126: 0.002 | CG126: 0.002 | CH126: 0.002 | CI126: 0 | CJ126: 0 | CK126: 0 | CL126: 0 | CM126: 0 | CN126: 0 | CO126: 0 | CP126: 0 | CQ126: 0 | CR126: 0 | CS126: 0 | CT126: 0 | CU126: 0 | CV126: 0 | CW126: 0 | CX126: 0 | CY126: 0 | CZ126: 0 | DA126: 0 | DB126: 0 | DC126: 0 | DD126: 0 | DE126: 0 | DF126: 0 | DG126: 0 | DH126: 0 | DI126: 0 | DJ126: 0 | DK126: 0 | DL126: 0 | DM126: 0 | DN126: 0 | DO126: 0 | DP126: 0 | DQ126: 0 | DR126: 0 | DS126: 0 | DT126: 0 | DU126: 0 | DV126: 0 | DW126: 0 | DX126: 0 | DY126: 0 | DZ126: 0 | EA126: 0 | EB126: 0 | EC126: 0 | ED126: 0 | EE126: 0 | EF126: 0 | EG126: 0 | EH126: 0 | EI126: 0 | EJ126: 0 | EK126: 0 | EL126: 0 | EM126: 0 | EN126: 0 | EO126: 0 | EP126: 0 | EQ126: 0 | ER126: 0 | ES126: 0 | ET126: 0 | EU126: 0 | EV126: 0 | EW126: 0 | EX126: 0 | EY126: 0 | EZ126: 0 | FA126: 0 | FB126: 0 | FC126: 0
A127: 127 | G127: 0 | H127: Доля скидок в общем обороте | I127: Профилактика | L127: 1 | M127: % | X127: 0.01031906946 | AA127: 0 | AB127: 0 | AC127: 0 | AD127: 0 | AE127: 0 | AF127: 0.072 | AG127: 0.069 | AH127: 0.069 | AI127: 0.069 | AJ127: 0.066 | AK127: 0.066 | AL127: 0.066 | AM127: 0.063 | AN127: 0.063 | AO127: 0.063 | AP127: 0.06 | AQ127: 0.06 | AR127: 0.06 | AS127: 0.057 | AT127: 0.057 | AU127: 0.057 | AV127: 0.054 | AW127: 0.054 | AX127: 0.054 | AY127: 0.051 | AZ127: 0.051 | BA127: 0.051 | BB127: 0.048 | BC127: 0.048 | BD127: 0.048 | BE127: 0.045 | BF127: 0.045 | BG127: 0.045 | BH127: 0.042 | BI127: 0.042 | BJ127: 0.042 | BK127: 0.039 | BL127: 0.039 | BM127: 0.039 | BN127: 0.036 | BO127: 0.036 | BP127: 0.036 | BQ127: 0.033 | BR127: 0.033 | BS127: 0.033 | BT127: 0.03 | BU127: 0.03 | BV127: 0.03 | BW127: 0.027 | BX127: 0.027 | BY127: 0.027 | BZ127: 0.024 | CA127: 0.024 | CB127: 0.024 | CC127: 0.021 | CD127: 0.021 | CE127: 0.021 | CF127: 0.018 | CG127: 0.018 | CH127: 0.018 | CI127: 0.015 | CJ127: 0.015 | CK127: 0.015 | CL127: 0.012 | CM127: 0.012 | CN127: 0.012 | CO127: 0.009 | CP127: 0.009 | CQ127: 0.009 | CR127: 0.006 | CS127: 0.006 | CT127: 0.006 | CU127: 0.003 | CV127: 0.003 | CW127: 0.003 | CX127: 0 | CY127: 0 | CZ127: 0 | DA127: 0 | DB127: 0 | DC127: 0 | DD127: 0 | DE127: 0 | DF127: 0 | DG127: 0 | DH127: 0 | DI127: 0 | DJ127: 0 | DK127: 0 | DL127: 0 | DM127: 0 | DN127: 0 | DO127: 0 | DP127: 0 | DQ127: 0 | DR127: 0 | DS127: 0 | DT127: 0 | DU127: 0 | DV127: 0 | DW127: 0 | DX127: 0 | DY127: 0 | DZ127: 0 | EA127: 0 | EB127: 0 | EC127: 0 | ED127: 0 | EE127: 0 | EF127: 0 | EG127: 0 | EH127: 0 | EI127: 0 | EJ127: 0 | EK127: 0 | EL127: 0 | EM127: 0 | EN127: 0 | EO127: 0 | EP127: 0 | EQ127: 0 | ER127: 0 | ES127: 0 | ET127: 0 | EU127: 0 | EV127: 0 | EW127: 0 | EX127: 0 | EY127: 0 | EZ127: 0 | FA127: 0 | FB127: 0 | FC127: 0
A128: 128 | G128: 0 | H128: Доля скидок в общем обороте | I128: Аксессуары | L128: 1 | M128: % | X128: 0.02376267545 | AA128: 0 | AB128: 0 | AC128: 0 | AD128: 0 | AE128: 0 | AF128: 0.116 | AG128: 0.112 | AH128: 0.112 | AI128: 0.112 | AJ128: 0.108 | AK128: 0.108 | AL128: 0.108 | AM128: 0.104 | AN128: 0.104 | AO128: 0.104 | AP128: 0.1 | AQ128: 0.1 | AR128: 0.1 | AS128: 0.096 | AT128: 0.096 | AU128: 0.096 | AV128: 0.092 | AW128: 0.092 | AX128: 0.092 | AY128: 0.088 | AZ128: 0.088 | BA128: 0.088 | BB128: 0.084 | BC128: 0.084 | BD128: 0.084 | BE128: 0.08 | BF128: 0.08 | BG128: 0.08 | BH128: 0.076 | BI128: 0.076 | BJ128: 0.076 | BK128: 0.072 | BL128: 0.072 | BM128: 0.072 | BN128: 0.068 | BO128: 0.068 | BP128: 0.068 | BQ128: 0.064 | BR128: 0.064 | BS128: 0.064 | BT128: 0.06 | BU128: 0.06 | BV128: 0.06 | BW128: 0.056 | BX128: 0.056 | BY128: 0.056 | BZ128: 0.052 | CA128: 0.052 | CB128: 0.052 | CC128: 0.048 | CD128: 0.048 | CE128: 0.048 | CF128: 0.044 | CG128: 0.044 | CH128: 0.044 | CI128: 0.04 | CJ128: 0.04 | CK128: 0.04 | CL128: 0.036 | CM128: 0.036 | CN128: 0.036 | CO128: 0.032 | CP128: 0.032 | CQ128: 0.032 | CR128: 0.028 | CS128: 0.028 | CT128: 0.028 | CU128: 0.024 | CV128: 0.024 | CW128: 0.024 | CX128: 0.02 | CY128: 0.02 | CZ128: 0.02 | DA128: 0.016 | DB128: 0.016 | DC128: 0.016 | DD128: 0.012 | DE128: 0.012 | DF128: 0.012 | DG128: 0.008 | DH128: 0.008 | DI128: 0.008 | DJ128: 0.004 | DK128: 0.004 | DL128: 0.004 | DM128: 0 | DN128: 0 | DO128: 0 | DP128: 0 | DQ128: 0 | DR128: 0 | DS128: 0 | DT128: 0 | DU128: 0 | DV128: 0 | DW128: 0 | DX128: 0 | DY128: 0 | DZ128: 0 | EA128: 0 | EB128: 0 | EC128: 0 | ED128: 0 | EE128: 0 | EF128: 0 | EG128: 0 | EH128: 0 | EI128: 0 | EJ128: 0 | EK128: 0 | EL128: 0 | EM128: 0 | EN128: 0 | EO128: 0 | EP128: 0 | EQ128: 0 | ER128: 0 | ES128: 0 | ET128: 0 | EU128: 0 | EV128: 0 | EW128: 0 | EX128: 0 | EY128: 0 | EZ128: 0 | FA128: 0 | FB128: 0 | FC128: 0
A129: 129 | L129: пустая строка
A130: 130
A131: 131 | G131: 0 | H131: Общий оборот (GMV) с учетом скидок | L131: 1 | M131: руб. | T131: 0 | X131: 3484490762 | AA131: 0 | AB131: 0 | AC131: 0 | AD131: 0 | AE131: 0 | AF131: 213279.92 | AG131: 327018.2832 | AH131: 610434.1286 | AI131: 1868675.904 | AJ131: 2022490.011 | AK131: 2359571.679 | AL131: 4125739.172 | AM131: 5019814.984 | AN131: 5922085.602 | AO131: 6101542.741 | AP131: 7517297.056 | AQ131: 5846786.599 | AR131: 9391625.775 | AS131: 4799916.477 | AT131: 7291788.009 | AU131: 12050854.13 | AV131: 11145112.87 | AW131: 10561759.85 | AX131: 11881979.83 | AY131: 13615066.16 | AZ131: 14331648.59 | BA131: 16319249.49 | BB131: 14718365.13 | BC131: 12034674.62 | BD131: 17192392.31 | BE131: 9215226.985 | BF131: 12901317.78 | BG131: 18751915.38 | BH131: 18458503.5 | BI131: 16407558.67 | BJ131: 19231634.54 | BK131: 20749544.88 | BL131: 22719681.52 | BM131: 22719681.52 | BN131: 20787530.57 | BO131: 16168079.33 | BP131: 24857047.13 | BQ131: 12703605.99 | BR131: 18414607.62 | BS131: 26306582.32 | BT131: 24536457.42 | BU131: 21810184.37 | BV131: 24840628.37 | BW131: 26800776.29 | BX131: 28211343.46 | BY131: 30053716.91 | BZ131: 27104559.47 | CA131: 21727494.89 | CB131: 31039278.41 | CC131: 16334621.13 | CD131: 22868469.59 | CE131: 33023060.78 | CF131: 29782267.31 | CG131: 26473126.5 | CH131: 29782267.31 | CI131: 33967906.08 | CJ131: 35755690.61 | CK131: 36722060.62 | CL131: 33055440.97 | CM131: 26386360.77 | CN131: 37694801.1 | CO131: 19412478.25 | CP131: 27177469.54 | CQ131: 38824956.49 | CR131: 34948365.16 | CS131: 31065213.48 | CT131: 36723520.22 | CU131: 39545669.98 | CV131: 42633112.17 | CW131: 42633112.17 | CX131: 39281917.19 | CY131: 30552602.26 | CZ131: 44023922.56 | DA131: 22452596.67 | DB131: 31433635.34 | DC131: 44905193.34 | DD131: 40415387.11 | DE131: 35924788.54 | DF131: 42262947.66 | DG131: 45503909.85 | DH131: 48945821.93 | DI131: 48945821.93 | DJ131: 44994306.11 | DK131: 34995571.42 | DL131: 50386293.93 | DM131: 25697463.29 | DN131: 35976448.61 | DO131: 51394926.59 | DP131: 46255433.93 | DQ131: 41115941.27 | DR131: 46255433.93 | DS131: 51871364.23 | DT131: 54601436.03 | DU131: 55690741.49 | DV131: 50121667.34 | DW131: 39746032.86 | DX131: 56780046.95 | DY131: 29166153.61 | DZ131: 40832615.06 | EA131: 58332307.22 | EB131: 52499076.5 | EC131: 46665845.78 | ED131: 52499076.5 | EE131: 56524005.7 | EF131: 59498953.37 | EG131: 61765580.16 | EH131: 55589022.15 | EI131: 44029225.49 | EJ131: 62898893.56 | EK131: 32656425.55 | EL131: 45718995.77 | EM131: 65746343.47 | EN131: 59171709.12 | EO131: 52597074.78 | EP131: 59171709.12 | EQ131: 0 | ER131: 0 | ES131: 0 | ET131: 0 | EU131: 0 | EV131: 0 | EW131: 0 | EX131: 0 | EY131: 0 | EZ131: 0 | FA131: 0 | FB131: 0 | FC131: 0
A132: 132 | G132: 0 | H132: Общий оборот (GMV) с учетом скидок | I132: Очки | L132: 1 | M132: руб. | X132: 3294904171 | AA132: 0 | AB132: 0 | AC132: 0 | AD132: 0 | AE132: 0 | AF132: 202020 | AG132: 309733.2 | AH132: 578168.64 | AI132: 1769904 | AJ132: 1915462.08 | AK132: 2234705.76 | AL132: 3907409.625 | AM132: 4753860.705 | AN132: 5608328.22 | AO132: 5778277.56 | AP132: 7118559.855 | AQ132: 5536657.665 | AR132: 8893469.25 | AS132: 4545021.213 | AT132: 6904564.141 | AU132: 11410904.32 | AV132: 10552579.39 | AW132: 10000240.53 | AX132: 11250270.59 | AY132: 12890386.92 | AZ132: 13568828.34 | BA132: 15450636.65 | BB132: 13934068.01 | BC132: 11393383.25 | BD132: 16276261.78 | BE132: 8723618.446 | BF132: 12213065.82 | BG132: 17751549.16 | BH132: 17472679.05 | BI132: 15531270.27 | BJ132: 18204519.01 | BK132: 19640117.74 | BL132: 21504916.02 | BM132: 21504916.02 | BN132: 19674831.7 | BO132: 15302646.88 | BP132: 23526518.33 | BQ132: 12022862.13 | BR132: 17427830.23 | BS132: 24896900.33 | BT132: 23220178.22 | BU132: 20640158.42 | BV132: 23508031.67 | BW132: 25361446.05 | BX132: 26696259 | BY132: 28439688.16 | BZ132: 25647323.61 | CA132: 20559348.81 | CB132: 29370498.3 | CC132: 15455459.95 | CD132: 21637643.93 | CE132: 31245695.21 | CF132: 28177593.81 | CG132: 25046750.05 | CH132: 28177593.81 | CI132: 32135740.4 | CJ132: 33827095.15 | CK132: 34741340.97 | CL132: 31267206.87 | CM132: 24958910.75 | CN132: 35655586.78 | CO132: 18359198.77 | CP132: 25702878.28 | CQ132: 36718397.54 | CR132: 33046557.79 | CS132: 29374718.04 | CT132: 34725113.11 | CU132: 37387371.78 | CV132: 40306309.53 | CW132: 40306309.53 | CX132: 37131741.79 | CY132: 28880243.62 | CZ132: 41614183.88 | DA132: 21223233.78 | DB132: 29712527.29 | DC132: 42446467.56 | DD132: 38201820.81 | DE132: 33957174.05 | DF132: 39948189.76 | DG132: 43010884.3 | DH132: 46264224.13 | DI132: 46264224.13 | DJ132: 42528449.88 | DK132: 33077683.24 | DL132: 47624936.6 | DM132: 24288717.67 | DN132: 34004204.74 | DO132: 48577435.34 | DP132: 43719691.8 | DQ132: 38861948.27 | DR132: 43719691.8 | DS132: 49027754.47 | DT132: 51608162.6 | DU132: 52637751.88 | DV132: 47373976.69 | DW132: 37567138.81 | DX132: 53667341.16 | DY132: 27567252.94 | DZ132: 38594154.12 | EA132: 55134505.88 | EB132: 49621055.29 | EC132: 44107604.7 | ED132: 49621055.29 | EE132: 53425336.2 | EF132: 56237196 | EG132: 58379565.37 | EH132: 52541608.83 | EI132: 41615525.04 | EJ132: 59450750.06 | EK132: 30866186.72 | EL132: 43212661.41 | EM132: 62142101.58 | EN132: 55927891.42 | EO132: 49713681.26 | EP132: 55927891.42 | EQ132: 0 | ER132: 0 | ES132: 0 | ET132: 0 | EU132: 0 | EV132: 0 | EW132: 0 | EX132: 0 | EY132: 0 | EZ132: 0 | FA132: 0 | FB132: 0 | FC132: 0
A133: 133 | G133: 0 | H133: Общий оборот (GMV) с учетом скидок | I133: Профилактика | L133: 1 | M133: руб. | X133: 174523242.6 | AA133: 0 | AB133: 0 | AC133: 0 | AD133: 0 | AE133: 0 | AF133: 10393.6 | AG133: 15953.616 | AH133: 29780.0832 | AI133: 91163.52 | AJ133: 98773.8624 | AK133: 115236.1728 | AL133: 201491.82 | AM133: 245419.6959 | AN133: 289531.8756 | AO133: 298305.5688 | AP133: 367914.5712 | AQ133: 286155.7776 | AR133: 459648.72 | AS133: 235168.9988 | AT133: 357256.7344 | AU133: 590424.295 | AV133: 546625.0572 | AW133: 518013.8283 | AX133: 582765.5568 | AY133: 668468.699 | AZ133: 703651.2621 | BA133: 801237.9335 | BB133: 723393.7423 | BC133: 591492.889 | BD133: 844989.8414 | BE133: 453390.7818 | BF133: 634747.0946 | BG133: 922597.5212 | BH133: 909101.2374 | BI133: 808089.9888 | BJ133: 947178.7762 | BK133: 1022989.331 | BL133: 1120120.558 | BM133: 1120120.558 | BN133: 1025911.441 | BO133: 797931.1205 | BP133: 1226751.247 | BQ133: 627590.1579 | BR133: 909728.0343 | BS133: 1299611.478 | BT133: 1213391.131 | BU133: 1078569.894 | BV133: 1228433.17 | BW133: 1326703.602 | BX133: 1396530.108 | BY133: 1487732.074 | BZ133: 1343087.208 | CA133: 1076642.492 | CB133: 1538060.703 | CC133: 810221.9701 | CD133: 1134310.758 | CE133: 1637993.875 | CF133: 1478711.937 | CG133: 1314410.611 | CH133: 1478711.937 | CI133: 1688197.562 | CJ133: 1777050.065 | CK133: 1825078.446 | CL133: 1647573.354 | CM133: 1315168.204 | CN133: 1878811.72 | CO133: 970344.8525 | CP133: 1358482.793 | CQ133: 1940689.705 | CR133: 1751908.184 | CS133: 1557251.719 | CT133: 1840893.996 | CU133: 1988011.182 | CV133: 2143220.832 | CW133: 2143220.832 | CX133: 1980359.562 | CY133: 1540279.659 | CZ133: 2219423.14 | DA133: 1131905.802 | DB133: 1584668.122 | DC133: 2263811.603 | DD133: 2037430.443 | DE133: 1811049.283 | DF133: 2130570.12 | DG133: 2293913.83 | DH133: 2467425.287 | DI133: 2467425.287 | DJ133: 2268183.994 | DK133: 1764143.106 | DL133: 2539996.619 | DM133: 1295398.276 | DN133: 1813557.586 | DO133: 2590796.551 | DP133: 2331716.896 | DQ133: 2072637.241 | DR133: 2331716.896 | DS133: 2614813.572 | DT133: 2752435.339 | DU133: 2807346.767 | DV133: 2526612.09 | DW133: 2003580.737 | DX133: 2862258.195 | DY133: 1470253.49 | DZ133: 2058354.886 | EA133: 2940506.98 | EB133: 2646456.282 | EC133: 2352405.584 | ED133: 2646456.282 | EE133: 2849351.264 | EF133: 2999317.12 | EG133: 3113576.82 | EH133: 2802219.138 | EI133: 2219494.669 | EJ133: 3170706.67 | EK133: 1646196.625 | EL133: 2304675.275 | EM133: 3314245.418 | EN133: 2982820.876 | EO133: 2651396.334 | EP133: 2982820.876 | EQ133: 0 | ER133: 0 | ES133: 0 | ET133: 0 | EU133: 0 | EV133: 0 | EW133: 0 | EX133: 0 | EY133: 0 | EZ133: 0 | FA133: 0 | FB133: 0 | FC133: 0
A134: 134 | G134: 0 | H134: Общий оборот (GMV) с учетом скидок | I134: Аксессуары | L134: 1 | M134: руб. | X134: 15063348.79 | AA134: 0 | AB134: 0 | AC134: 0 | AD134: 0 | AE134: 0 | AF134: 866.32 | AG134: 1331.4672 | AH134: 2485.40544 | AI134: 7608.384 | AJ134: 8254.06848 | AK134: 9629.74656 | AL134: 16837.7265 | AM134: 20534.58288 | AN134: 24225.50592 | AO134: 24959.61216 | AP134: 30822.6303 | AQ134: 23973.1569 | AR134: 38507.805 | AS134: 19726.26491 | AT134: 29967.13435 | AU134: 49525.51615 | AV134: 45908.41521 | AW134: 43505.49541 | AX134: 48943.68234 | AY134: 56210.5397 | AZ134: 59168.98916 | BA134: 67374.90737 | BB134: 60903.37021 | BC134: 49798.4822 | BD134: 71140.68885 | BE134: 38217.757 | BF134: 53504.8598 | BG134: 77768.69158 | BH134: 76723.20986 | BI134: 68198.40877 | BJ134: 79936.74745 | BK134: 86437.80818 | BL134: 94644.94204 | BM134: 94644.94204 | BN134: 86787.4253 | BO134: 67501.33079 | BP134: 103777.5562 | BQ134: 53153.70624 | BR134: 77049.35471 | BS134: 110070.5067 | BT134: 102888.0624 | BU134: 91456.05549 | BV134: 104163.5343 | BW134: 112626.6367 | BX134: 118554.3545 | BY134: 126296.6797 | BZ134: 114148.6516 | CA134: 91503.58063 | CB134: 130719.4009 | CC134: 68939.21359 | CD134: 96514.89903 | CE134: 139371.6954 | CF134: 125961.5616 | CG134: 111965.8326 | CH134: 125961.5616 | CI134: 143968.117 | CJ134: 151545.3863 | CK134: 155641.2075 | CL134: 140660.7413 | CM134: 112281.8198 | CN134: 160402.5997 | CO134: 82934.62059 | CP134: 116108.4688 | CQ134: 165869.2412 | CR134: 149899.1861 | CS134: 133243.721 | CT134: 157513.1131 | CU134: 170287.016 | CV134: 183581.8045 | CW134: 183581.8045 | CX134: 169815.8325 | CY134: 132078.9808 | CZ134: 190315.5343 | DA134: 97457.08952 | DB134: 136439.9253 | DC134: 194914.179 | DD134: 176135.8618 | DE134: 156565.2105 | DF134: 184187.7869 | DG134: 199111.7204 | DH134: 214172.5149 | DI134: 214172.5149 | DJ134: 197672.2351 | DK134: 153745.0717 | DL134: 221360.7053 | DM134: 113347.3491 | DN134: 158686.2888 | DO134: 226694.6982 | DP134: 204025.2284 | DQ134: 181355.7586 | DR134: 204025.2284 | DS134: 228796.1875 | DT134: 240838.0921 | DU134: 245642.8421 | DV134: 221078.5579 | DW134: 175313.3145 | DX134: 250447.5921 | DY134: 128647.1804 | DZ134: 180106.0525 | EA134: 257294.3608 | EB134: 231564.9247 | EC134: 205835.4886 | ED134: 231564.9247 | EE134: 249318.2356 | EF134: 262440.248 | EG134: 272437.9717 | EH134: 245194.1746 | EI134: 194205.7835 | EJ134: 277436.8336 | EK134: 144042.2047 | EL134: 201659.0866 | EM134: 289996.474 | EN134: 260996.8266 | EO134: 231997.1792 | EP134: 260996.8266 | EQ134: 0 | ER134: 0 | ES134: 0 | ET134: 0 | EU134: 0 | EV134: 0 | EW134: 0 | EX134: 0 | EY134: 0 | EZ134: 0 | FA134: 0 | FB134: 0 | FC134: 0
A135: 135 | L135: пустая строка
A136: 136
A137: 137 | G137: 0 | H137: Подготовка рекламных материалов | L137: 1 | M137: руб. | Q137: начисление | X137: 3250000 | AA137: 0 | AB137: 0 | AC137: 40000 | AD137: 90000 | AE137: 20000 | AF137: 120000 | AG137: 30000 | AH137: 0 | AI137: 160000 | AJ137: 40000 | AK137: 0 | AL137: 0 | AM137: 200000 | AN137: 50000 | AO137: 0 | AP137: 0 | AQ137: 0 | AR137: 200000 | AS137: 50000 | AT137: 0 | AU137: 0 | AV137: 0 | AW137: 0 | AX137: 200000 | AY137: 50000 | AZ137: 0 | BA137: 0 | BB137: 0 | BC137: 0 | BD137: 0 | BE137: 200000 | BF137: 50000 | BG137: 0 | BH137: 0 | BI137: 0 | BJ137: 0 | BK137: 0 | BL137: 0 | BM137: 200000 | BN137: 50000 | BO137: 0 | BP137: 0 | BQ137: 0 | BR137: 0 | BS137: 0 | BT137: 0 | BU137: 0 | BV137: 200000 | BW137: 50000 | BX137: 0 | BY137: 0 | BZ137: 0 | CA137: 0 | CB137: 0 | CC137: 0 | CD137: 0 | CE137: 0 | CF137: 200000 | CG137: 50000 | CH137: 0 | CI137: 0 | CJ137: 0 | CK137: 0 | CL137: 0 | CM137: 0 | CN137: 0 | CO137: 0 | CP137: 0 | CQ137: 200000 | CR137: 50000 | CS137: 0 | CT137: 0 | CU137: 0 | CV137: 0 | CW137: 0 | CX137: 0 | CY137: 0 | CZ137: 0 | DA137: 0 | DB137: 0 | DC137: 200000 | DD137: 50000 | DE137: 0 | DF137: 0 | DG137: 0 | DH137: 0 | DI137: 0 | DJ137: 0 | DK137: 0 | DL137: 0 | DM137: 0 | DN137: 0 | DO137: 0 | DP137: 200000 | DQ137: 50000 | DR137: 0 | DS137: 0 | DT137: 0 | DU137: 0 | DV137: 0 | DW137: 0 | DX137: 0 | DY137: 0 | DZ137: 0 | EA137: 0 | EB137: 0 | EC137: 0 | ED137: 200000 | EE137: 50000 | EF137: 0 | EG137: 0 | EH137: 0 | EI137: 0 | EJ137: 0 | EK137: 0 | EL137: 0 | EM137: 0 | EN137: 0 | EO137: 0 | EP137: 0 | EQ137: 0 | ER137: 0 | ES137: 0 | ET137: 0 | EU137: 0 | EV137: 0 | EW137: 0 | EX137: 0 | EY137: 0 | EZ137: 0 | FA137: 0 | FB137: 0 | FC137: 0
A138: 138 | G138: 0 | H138: Подготовка рекламных материалов | I138: Распределение расхода для одного запуска | M138: руб. | Q138: процесс | T138: 0 | U138: 0 | X138: 50000 | AA138: 0 | AB138: 40000 | AC138: 10000 | AD138: 0 | AE138: 0 | AF138: 0 | AG138: 0 | AH138: 0 | AI138: 0 | AJ138: 0 | AK138: 0 | AL138: 0 | AM138: 0 | AN138: 0 | AO138: 0 | AP138: 0 | AQ138: 0 | AR138: 0 | AS138: 0 | AT138: 0 | AU138: 0 | AV138: 0 | AW138: 0 | AX138: 0 | AY138: 0 | AZ138: 0 | BA138: 0 | BB138: 0 | BC138: 0 | BD138: 0 | BE138: 0 | BF138: 0 | BG138: 0 | BH138: 0 | BI138: 0 | BJ138: 0 | BK138: 0 | BL138: 0 | BM138: 0 | BN138: 0 | BO138: 0 | BP138: 0 | BQ138: 0 | BR138: 0 | BS138: 0 | BT138: 0 | BU138: 0 | BV138: 0 | BW138: 0 | BX138: 0 | BY138: 0 | BZ138: 0 | CA138: 0 | CB138: 0 | CC138: 0 | CD138: 0 | CE138: 0 | CF138: 0 | CG138: 0 | CH138: 0 | CI138: 0 | CJ138: 0 | CK138: 0 | CL138: 0 | CM138: 0 | CN138: 0 | CO138: 0 | CP138: 0 | CQ138: 0 | CR138: 0 | CS138: 0 | CT138: 0 | CU138: 0 | CV138: 0 | CW138: 0 | CX138: 0 | CY138: 0 | CZ138: 0 | DA138: 0 | DB138: 0 | DC138: 0 | DD138: 0 | DE138: 0 | DF138: 0 | DG138: 0 | DH138: 0 | DI138: 0 | DJ138: 0 | DK138: 0 | DL138: 0 | DM138: 0 | DN138: 0 | DO138: 0 | DP138: 0 | DQ138: 0 | DR138: 0 | DS138: 0 | DT138: 0 | DU138: 0 | DV138: 0 | DW138: 0 | DX138: 0 | DY138: 0 | DZ138: 0 | EA138: 0 | EB138: 0 | EC138: 0 | ED138: 0 | EE138: 0 | EF138: 0 | EG138: 0 | EH138: 0 | EI138: 0 | EJ138: 0 | EK138: 0 | EL138: 0 | EM138: 0 | EN138: 0 | EO138: 0 | EP138: 0 | EQ138: 0 | ER138: 0 | ES138: 0 | ET138: 0 | EU138: 0 | EV138: 0 | EW138: 0 | EX138: 0 | EY138: 0 | EZ138: 0 | FA138: 0 | FB138: 0 | FC138: 0
A139: 139 | G139: 0 | H139: Подготовка рекламных материалов | I139: Распределение расхода для одного запуска | J139: Сумма расхода для одного запуска по этой статье | M139: руб. | P139: * | Q139: 50000 | S139: 0 | Y139: обратное распределение расхода | AA139: 0 | AB139: 0 | AC139: 0 | AD139: 0 | AE139: 0 | AF139: 0 | AG139: 0 | AH139: 0 | AI139: 0 | AJ139: 0 | AK139: 0 | AL139: 0 | AM139: 0 | AN139: 0 | AO139: 0 | AP139: 0 | AQ139: 0 | AR139: 0 | AS139: 0 | AT139: 0 | AU139: 0 | AV139: 0 | AW139: 0 | AX139: 0 | AY139: 0 | AZ139: 0 | BA139: 0 | BB139: 0 | BC139: 0 | BD139: 0 | BE139: 0 | BF139: 0 | BG139: 0 | BH139: 0 | BI139: 0 | BJ139: 0 | BK139: 0 | BL139: 0 | BM139: 0 | BN139: 0 | BO139: 0 | BP139: 0 | BQ139: 0 | BR139: 0 | BS139: 0 | BT139: 0 | BU139: 0 | BV139: 0 | BW139: 0 | BX139: 0 | BY139: 0 | BZ139: 0 | CA139: 0 | CB139: 0 | CC139: 0 | CD139: 0 | CE139: 0 | CF139: 0 | CG139: 0 | CH139: 0 | CI139: 0 | CJ139: 0 | CK139: 0 | CL139: 0 | CM139: 0 | CN139: 0 | CO139: 0 | CP139: 0 | CQ139: 0 | CR139: 0 | CS139: 0 | CT139: 0 | CU139: 0 | CV139: 0 | CW139: 0 | CX139: 0 | CY139: 0 | CZ139: 0 | DA139: 0 | DB139: 0 | DC139: 0 | DD139: 0 | DE139: 0 | DF139: 0 | DG139: 0 | DH139: 0 | DI139: 0 | DJ139: 0 | DK139: 0 | DL139: 0 | DM139: 0 | DN139: 0 | DO139: 0 | DP139: 0 | DQ139: 0 | DR139: 0 | DS139: 0 | DT139: 0 | DU139: 0 | DV139: 0 | DW139: 0 | DX139: 0 | DY139: 0 | DZ139: 0 | EA139: 0 | EB139: 0 | EC139: 0 | ED139: 0 | EE139: 0 | EF139: 0 | EG139: 0 | EH139: 0 | EI139: 0 | EJ139: 0 | EK139: 0 | EL139: 0 | EM139: 0 | EN139: 0 | EO139: 0 | EP139: 0 | EQ139: 0 | ER139: 0 | ES139: 0 | ET139: 0 | EU139: 0 | EV139: 0 | EW139: 0 | EX139: 0 | EY139: 0 | EZ139: 0 | FA139: 10000 | FB139: 40000 | FC139: 0
A140: 140 | G140: 0 | H140: Подготовка рекламных материалов | I140: Распределение расхода для одного запуска | J140: Процентное распределение расхода по периодам | M140: % | T140: 0 | X140: 1 | Y140: * | AB140: 0.8 | AC140: 0.2
A141: 141
A142: 142 | G142: 0 | H142: Подготовка рекламных материалов | L142: 1 | M142: руб. | Q142: оплата | X142: 3250000 | AA142: 0 | AB142: 4000 | AC142: 17000 | AD142: 48000 | AE142: 79000 | AF142: 41000 | AG142: 90000 | AH142: 37000 | AI142: 36000 | AJ142: 120000 | AK142: 28000 | AL142: 20000 | AM142: 45000 | AN142: 150000 | AO142: 35000 | AP142: 0 | AQ142: 20000 | AR142: 45000 | AS142: 150000 | AT142: 35000 | AU142: 0 | AV142: 0 | AW142: 20000 | AX142: 45000 | AY142: 150000 | AZ142: 35000 | BA142: 0 | BB142: 0 | BC142: 0 | BD142: 20000 | BE142: 45000 | BF142: 150000 | BG142: 35000 | BH142: 0 | BI142: 0 | BJ142: 0 | BK142: 0 | BL142: 20000 | BM142: 45000 | BN142: 150000 | BO142: 35000 | BP142: 0 | BQ142: 0 | BR142: 0 | BS142: 0 | BT142: 0 | BU142: 20000 | BV142: 45000 | BW142: 150000 | BX142: 35000 | BY142: 0 | BZ142: 0 | CA142: 0 | CB142: 0 | CC142: 0 | CD142: 0 | CE142: 20000 | CF142: 45000 | CG142: 150000 | CH142: 35000 | CI142: 0 | CJ142: 0 | CK142: 0 | CL142: 0 | CM142: 0 | CN142: 0 | CO142: 0 | CP142: 20000 | CQ142: 45000 | CR142: 150000 | CS142: 35000 | CT142: 0 | CU142: 0 | CV142: 0 | CW142: 0 | CX142: 0 | CY142: 0 | CZ142: 0 | DA142: 0 | DB142: 20000 | DC142: 45000 | DD142: 150000 | DE142: 35000 | DF142: 0 | DG142: 0 | DH142: 0 | DI142: 0 | DJ142: 0 | DK142: 0 | DL142: 0 | DM142: 0 | DN142: 0 | DO142: 20000 | DP142: 45000 | DQ142: 150000 | DR142: 35000 | DS142: 0 | DT142: 0 | DU142: 0 | DV142: 0 | DW142: 0 | DX142: 0 | DY142: 0 | DZ142: 0 | EA142: 0 | EB142: 0 | EC142: 20000 | ED142: 45000 | EE142: 150000 | EF142: 35000 | EG142: 0 | EH142: 0 | EI142: 0 | EJ142: 0 | EK142: 0 | EL142: 0 | EM142: 0 | EN142: 0 | EO142: 0 | EP142: 0 | EQ142: 0 | ER142: 0 | ES142: 0 | ET142: 0 | EU142: 0 | EV142: 0 | EW142: 0 | EX142: 0 | EY142: 0 | EZ142: 0 | FA142: 0 | FB142: 0 | FC142: 0
A143: 143 | G143: 0 | H143: Подготовка рекламных материалов | I143: Задаем через указание % предоплаты и сроков
A144: 144 | G144: 0 | H144: Подготовка рекламных материалов | I144: Задаем через указание % предоплаты и сроков | J144: Размер предоплаты | M144: % | P144: * | Q144: 0.3 | S144: 0
A145: 145 | G145: 0 | H145: Подготовка рекламных материалов | I145: Задаем через указание % предоплаты и сроков | J145: Период оборачиваемости предоплаты (срок) | M145: кол-во дней | P145: * | Q145: 10 | S145: 0
A146: 146 | G146: 0 | H146: Подготовка рекламных материалов | I146: Задаем через указание % предоплаты и сроков | J146: расчет в количестве периодов | M146: кол-во периодов | Q146: 0.3333333333 | S146: 0 | T146: 0
A147: 147 | G147: 0 | H147: Подготовка рекламных материалов | I147: Задаем через указание % предоплаты и сроков | J147: Размер доплаты | M147: % | Q147: 0.7 | S147: 0 | T147: 0
A148: 148 | G148: 0 | H148: Подготовка рекламных материалов | I148: Задаем через указание % предоплаты и сроков | J148: Период оборачиваемости доплат (срок) | M148: кол-во дней | P148: * | Q148: 30 | S148: 0
A149: 149 | G149: 0 | H149: Подготовка рекламных материалов | I149: Задаем через указание % предоплаты и сроков | J149: расчет в количестве периодов | M149: кол-во периодов | Q149: 1 | S149: 0 | T149: 0
A150: 150
A151: 151 | G151: 0 | H151: Подготовка рекламных материалов | L151: 1 | M151: руб. | Q151: учет | X151: 2001251.878 | AA151: 0 | AB151: 0 | AC151: 0 | AD151: 0 | AE151: 0 | AF151: 200.3004507 | AG151: 600.901352 | AH151: 701.0515774 | AI151: 1502.25338 | AJ151: 1602.403605 | AK151: 2103.154732 | AL151: 2941.912869 | AM151: 3317.476214 | AN151: 3718.077116 | AO151: 3830.746119 | AP151: 5232.849274 | AQ151: 5232.849274 | AR151: 5883.825739 | AS151: 5883.825739 | AT151: 6384.576865 | AU151: 7386.079119 | AV151: 7573.860791 | AW151: 8074.611918 | AX151: 8074.611918 | AY151: 8575.363045 | AZ151: 8575.363045 | BA151: 9764.64697 | BB151: 9764.64697 | BC151: 10265.3981 | BD151: 10265.3981 | BE151: 10766.14922 | BF151: 10766.14922 | BG151: 10953.9309 | BH151: 11955.43315 | BI151: 11955.43315 | BJ151: 12456.18428 | BK151: 12456.18428 | BL151: 12956.9354 | BM151: 12956.9354 | BN151: 13144.71708 | BO151: 13144.71708 | BP151: 14146.21933 | BQ151: 14146.21933 | BR151: 14646.97046 | BS151: 14646.97046 | BT151: 15147.72158 | BU151: 15147.72158 | BV151: 15335.50325 | BW151: 15335.50325 | BX151: 15335.50325 | BY151: 16337.00551 | BZ151: 16337.00551 | CA151: 16837.75663 | CB151: 16837.75663 | CC151: 17338.50776 | CD151: 17338.50776 | CE151: 17526.28943 | CF151: 17526.28943 | CG151: 17526.28943 | CH151: 17526.28943 | CI151: 18527.79169 | CJ151: 18527.79169 | CK151: 19028.54281 | CL151: 19028.54281 | CM151: 19529.29394 | CN151: 19529.29394 | CO151: 19717.07561 | CP151: 19717.07561 | CQ151: 19717.07561 | CR151: 19717.07561 | CS151: 19717.07561 | CT151: 20718.57787 | CU151: 20718.57787 | CV151: 21219.32899 | CW151: 21219.32899 | CX151: 21720.08012 | CY151: 21720.08012 | CZ151: 21907.86179 | DA151: 21907.86179 | DB151: 21907.86179 | DC151: 21907.86179 | DD151: 21907.86179 | DE151: 21907.86179 | DF151: 22909.36405 | DG151: 22909.36405 | DH151: 23410.11517 | DI151: 23410.11517 | DJ151: 23910.8663 | DK151: 23910.8663 | DL151: 24098.64797 | DM151: 24098.64797 | DN151: 24098.64797 | DO151: 24098.64797 | DP151: 24098.64797 | DQ151: 24098.64797 | DR151: 24098.64797 | DS151: 25100.15023 | DT151: 25100.15023 | DU151: 25600.90135 | DV151: 25600.90135 | DW151: 26101.65248 | DX151: 26101.65248 | DY151: 26289.43415 | DZ151: 26289.43415 | EA151: 26289.43415 | EB151: 26289.43415 | EC151: 26289.43415 | ED151: 26289.43415 | EE151: 26289.43415 | EF151: 26289.43415 | EG151: 27290.9364 | EH151: 27290.9364 | EI151: 27791.68753 | EJ151: 27791.68753 | EK151: 28292.43866 | EL151: 28292.43866 | EM151: 28480.22033 | EN151: 28480.22033 | EO151: 28480.22033 | EP151: 28480.22033 | EQ151: 0 | ER151: 0 | ES151: 0 | ET151: 0 | EU151: 0 | EV151: 0 | EW151: 0 | EX151: 0 | EY151: 0 | EZ151: 0 | FA151: 0 | FB151: 0 | FC151: 0
A152: 152 | G152: 0 | H152: Подготовка рекламных материалов | I152: Применяется процентное распределение трафика
A153: 153 | G153: 0 | H153: Подготовка рекламных материалов | I153: Применяется процентное распределение трафика | J153: %-ное распределение учета расходов | M153: % | Q153: процесс | T153: 0 | X153: 1 | AA153: 0 | AB153: 0 | AC153: 0 | AD153: 0 | AE153: 0.004006009014 | AF153: 0.004006009014 | AG153: 0.00600901352 | AH153: 0.00600901352 | AI153: 0.008012018027 | AJ153: 0.008012018027 | AK153: 0.008763144717 | AL153: 0.008763144717 | AM153: 0.008763144717 | AN153: 0.008763144717 | AO153: 0.008763144717 | AP153: 0.008763144717 | AQ153: 0.008763144717 | AR153: 0.008763144717 | AS153: 0.008763144717 | AT153: 0.008763144717 | AU153: 0.008763144717 | AV153: 0.008763144717 | AW153: 0.008763144717 | AX153: 0.008763144717 | AY153: 0.008763144717 | AZ153: 0.008763144717 | BA153: 0.008763144717 | BB153: 0.008763144717 | BC153: 0.008763144717 | BD153: 0.008763144717 | BE153: 0.008763144717 | BF153: 0.008763144717 | BG153: 0.008763144717 | BH153: 0.008763144717 | BI153: 0.008763144717 | BJ153: 0.008763144717 | BK153: 0.008763144717 | BL153: 0.008763144717 | BM153: 0.008763144717 | BN153: 0.008763144717 | BO153: 0.008763144717 | BP153: 0.008763144717 | BQ153: 0.008763144717 | BR153: 0.008763144717 | BS153: 0.008763144717 | BT153: 0.008763144717 | BU153: 0.008763144717 | BV153: 0.008763144717 | BW153: 0.008763144717 | BX153: 0.008763144717 | BY153: 0.008763144717 | BZ153: 0.008763144717 | CA153: 0.008763144717 | CB153: 0.008763144717 | CC153: 0.008763144717 | CD153: 0.008763144717 | CE153: 0.008763144717 | CF153: 0.008763144717 | CG153: 0.008763144717 | CH153: 0.008763144717 | CI153: 0.008763144717 | CJ153: 0.008763144717 | CK153: 0.008763144717 | CL153: 0.008763144717 | CM153: 0.008763144717 | CN153: 0.008763144717 | CO153: 0.008763144717 | CP153: 0.008763144717 | CQ153: 0.008763144717 | CR153: 0.008763144717 | CS153: 0.008763144717 | CT153: 0.008763144717 | CU153: 0.008763144717 | CV153: 0.008763144717 | CW153: 0.008763144717 | CX153: 0.008763144717 | CY153: 0.008763144717 | CZ153: 0.008763144717 | DA153: 0.008763144717 | DB153: 0.008763144717 | DC153: 0.008763144717 | DD153: 0.008763144717 | DE153: 0.008763144717 | DF153: 0.008763144717 | DG153: 0.008763144717 | DH153: 0.008763144717 | DI153: 0.008763144717 | DJ153: 0.008763144717 | DK153: 0.008763144717 | DL153: 0.008763144717 | DM153: 0.008763144717 | DN153: 0.008763144717 | DO153: 0.008763144717 | DP153: 0.008763144717 | DQ153: 0.008763144717 | DR153: 0.008763144717 | DS153: 0.008763144717 | DT153: 0.008763144717 | DU153: 0.008763144717 | DV153: 0.008763144717 | DW153: 0.008763144717 | DX153: 0.008763144717 | DY153: 0.008763144717 | DZ153: 0.008763144717 | EA153: 0.008763144717 | EB153: 0.008763144717 | EC153: 0.008763144717 | ED153: 0.008763144717 | EE153: 0.008763144717 | EF153: 0.008763144717 | EG153: 0.008763144717 | EH153: 0.008763144717 | EI153: 0.008763144717 | EJ153: 0.008763144717 | EK153: 0.008763144717 | EL153: 0.008763144717 | EM153: 0.008763144717 | EN153: 0.008763144717 | EO153: 0.008763144717 | EP153: 0.008763144717 | EQ153: 0 | ER153: 0 | ES153: 0 | ET153: 0 | EU153: 0 | EV153: 0 | EW153: 0 | EX153: 0 | EY153: 0 | EZ153: 0 | FA153: 0 | FB153: 0 | FC153: 0
A154: 154 | G154: 0 | H154: Подготовка рекламных материалов | I154: Применяется процентное распределение трафика | J154: обратный порядок распределения учета расхода | M154: руб. | T154: 0 | Y154: обратный порядок процесса | AA154: 0 | AB154: 0 | AC154: 0 | AD154: 0 | AE154: 0 | AF154: 0 | AG154: 0 | AH154: 0 | AI154: 0 | AJ154: 0 | AK154: 0 | AL154: 0 | AM154: 0 | AN154: 438.1572359 | AO154: 438.1572359 | AP154: 438.1572359 | AQ154: 438.1572359 | AR154: 438.1572359 | AS154: 438.1572359 | AT154: 438.1572359 | AU154: 438.1572359 | AV154: 438.1572359 | AW154: 438.1572359 | AX154: 438.1572359 | AY154: 438.1572359 | AZ154: 438.1572359 | BA154: 438.1572359 | BB154: 438.1572359 | BC154: 438.1572359 | BD154: 438.1572359 | BE154: 438.1572359 | BF154: 438.1572359 | BG154: 438.1572359 | BH154: 438.1572359 | BI154: 438.1572359 | BJ154: 438.1572359 | BK154: 438.1572359 | BL154: 438.1572359 | BM154: 438.1572359 | BN154: 438.1572359 | BO154: 438.1572359 | BP154: 438.1572359 | BQ154: 438.1572359 | BR154: 438.1572359 | BS154: 438.1572359 | BT154: 438.1572359 | BU154: 438.1572359 | BV154: 438.1572359 | BW154: 438.1572359 | BX154: 438.1572359 | BY154: 438.1572359 | BZ154: 438.1572359 | CA154: 438.1572359 | CB154: 438.1572359 | CC154: 438.1572359 | CD154: 438.1572359 | CE154: 438.1572359 | CF154: 438.1572359 | CG154: 438.1572359 | CH154: 438.1572359 | CI154: 438.1572359 | CJ154: 438.1572359 | CK154: 438.1572359 | CL154: 438.1572359 | CM154: 438.1572359 | CN154: 438.1572359 | CO154: 438.1572359 | CP154: 438.1572359 | CQ154: 438.1572359 | CR154: 438.1572359 | CS154: 438.1572359 | CT154: 438.1572359 | CU154: 438.1572359 | CV154: 438.1572359 | CW154: 438.1572359 | CX154: 438.1572359 | CY154: 438.1572359 | CZ154: 438.1572359 | DA154: 438.1572359 | DB154: 438.1572359 | DC154: 438.1572359 | DD154: 438.1572359 | DE154: 438.1572359 | DF154: 438.1572359 | DG154: 438.1572359 | DH154: 438.1572359 | DI154: 438.1572359 | DJ154: 438.1572359 | DK154: 438.1572359 | DL154: 438.1572359 | DM154: 438.1572359 | DN154: 438.1572359 | DO154: 438.1572359 | DP154: 438.1572359 | DQ154: 438.1572359 | DR154: 438.1572359 | DS154: 438.1572359 | DT154: 438.1572359 | DU154: 438.1572359 | DV154: 438.1572359 | DW154: 438.1572359 | DX154: 438.1572359 | DY154: 438.1572359 | DZ154: 438.1572359 | EA154: 438.1572359 | EB154: 438.1572359 | EC154: 438.1572359 | ED154: 438.1572359 | EE154: 438.1572359 | EF154: 438.1572359 | EG154: 438.1572359 | EH154: 438.1572359 | EI154: 438.1572359 | EJ154: 438.1572359 | EK154: 438.1572359 | EL154: 438.1572359 | EM154: 438.1572359 | EN154: 438.1572359 | EO154: 438.1572359 | EP154: 438.1572359 | EQ154: 438.1572359 | ER154: 438.1572359 | ES154: 438.1572359 | ET154: 400.6009014 | EU154: 400.6009014 | EV154: 300.450676 | EW154: 300.450676 | EX154: 200.3004507 | EY154: 200.3004507 | EZ154: 0 | FA154: 0 | FB154: 0 | FC154: 0
A155: 155 | L155: пустая строка
A156: 156
A157: 157 | G157: 0 | H157: Съемка видео-роликов | L157: 1 | M157: руб. | Q157: начисление | X157: 1300000 | AA157: 0 | AB157: 0 | AC157: 20000 | AD157: 40000 | AE157: 0 | AF157: 60000 | AG157: 0 | AH157: 0 | AI157: 80000 | AJ157: 0 | AK157: 0 | AL157: 0 | AM157: 100000 | AN157: 0 | AO157: 0 | AP157: 0 | AQ157: 0 | AR157: 100000 | AS157: 0 | AT157: 0 | AU157: 0 | AV157: 0 | AW157: 0 | AX157: 100000 | AY157: 0 | AZ157: 0 | BA157: 0 | BB157: 0 | BC157: 0 | BD157: 0 | BE157: 100000 | BF157: 0 | BG157: 0 | BH157: 0 | BI157: 0 | BJ157: 0 | BK157: 0 | BL157: 0 | BM157: 100000 | BN157: 0 | BO157: 0 | BP157: 0 | BQ157: 0 | BR157: 0 | BS157: 0 | BT157: 0 | BU157: 0 | BV157: 100000 | BW157: 0 | BX157: 0 | BY157: 0 | BZ157: 0 | CA157: 0 | CB157: 0 | CC157: 0 | CD157: 0 | CE157: 0 | CF157: 100000 | CG157: 0 | CH157: 0 | CI157: 0 | CJ157: 0 | CK157: 0 | CL157: 0 | CM157: 0 | CN157: 0 | CO157: 0 | CP157: 0 | CQ157: 100000 | CR157: 0 | CS157: 0 | CT157: 0 | CU157: 0 | CV157: 0 | CW157: 0 | CX157: 0 | CY157: 0 | CZ157: 0 | DA157: 0 | DB157: 0 | DC157: 100000 | DD157: 0 | DE157: 0 | DF157: 0 | DG157: 0 | DH157: 0 | DI157: 0 | DJ157: 0 | DK157: 0 | DL157: 0 | DM157: 0 | DN157: 0 | DO157: 0 | DP157: 100000 | DQ157: 0 | DR157: 0 | DS157: 0 | DT157: 0 | DU157: 0 | DV157: 0 | DW157: 0 | DX157: 0 | DY157: 0 | DZ157: 0 | EA157: 0 | EB157: 0 | EC157: 0 | ED157: 100000 | EE157: 0 | EF157: 0 | EG157: 0 | EH157: 0 | EI157: 0 | EJ157: 0 | EK157: 0 | EL157: 0 | EM157: 0 | EN157: 0 | EO157: 0 | EP157: 0 | EQ157: 0 | ER157: 0 | ES157: 0 | ET157: 0 | EU157: 0 | EV157: 0 | EW157: 0 | EX157: 0 | EY157: 0 | EZ157: 0 | FA157: 0 | FB157: 0 | FC157: 0
A158: 158 | G158: 0 | H158: Съемка видео-роликов | I158: Распределение расхода для одного запуска | M158: руб. | Q158: процесс | T158: 0 | U158: 0 | X158: 20000 | AA158: 0 | AB158: 20000 | AC158: 0 | AD158: 0 | AE158: 0 | AF158: 0 | AG158: 0 | AH158: 0 | AI158: 0 | AJ158: 0 | AK158: 0 | AL158: 0 | AM158: 0 | AN158: 0 | AO158: 0 | AP158: 0 | AQ158: 0 | AR158: 0 | AS158: 0 | AT158: 0 | AU158: 0 | AV158: 0 | AW158: 0 | AX158: 0 | AY158: 0 | AZ158: 0 | BA158: 0 | BB158: 0 | BC158: 0 | BD158: 0 | BE158: 0 | BF158: 0 | BG158: 0 | BH158: 0 | BI158: 0 | BJ158: 0 | BK158: 0 | BL158: 0 | BM158: 0 | BN158: 0 | BO158: 0 | BP158: 0 | BQ158: 0 | BR158: 0 | BS158: 0 | BT158: 0 | BU158: 0 | BV158: 0 | BW158: 0 | BX158: 0 | BY158: 0 | BZ158: 0 | CA158: 0 | CB158: 0 | CC158: 0 | CD158: 0 | CE158: 0 | CF158: 0 | CG158: 0 | CH158: 0 | CI158: 0 | CJ158: 0 | CK158: 0 | CL158: 0 | CM158: 0 | CN158: 0 | CO158: 0 | CP158: 0 | CQ158: 0 | CR158: 0 | CS158: 0 | CT158: 0 | CU158: 0 | CV158: 0 | CW158: 0 | CX158: 0 | CY158: 0 | CZ158: 0 | DA158: 0 | DB158: 0 | DC158: 0 | DD158: 0 | DE158: 0 | DF158: 0 | DG158: 0 | DH158: 0 | DI158: 0 | DJ158: 0 | DK158: 0 | DL158: 0 | DM158: 0 | DN158: 0 | DO158: 0 | DP158: 0 | DQ158: 0 | DR158: 0 | DS158: 0 | DT158: 0 | DU158: 0 | DV158: 0 | DW158: 0 | DX158: 0 | DY158: 0 | DZ158: 0 | EA158: 0 | EB158: 0 | EC158: 0 | ED158: 0 | EE158: 0 | EF158: 0 | EG158: 0 | EH158: 0 | EI158: 0 | EJ158: 0 | EK158: 0 | EL158: 0 | EM158: 0 | EN158: 0 | EO158: 0 | EP158: 0 | EQ158: 0 | ER158: 0 | ES158: 0 | ET158: 0 | EU158: 0 | EV158: 0 | EW158: 0 | EX158: 0 | EY158: 0 | EZ158: 0 | FA158: 0 | FB158: 0 | FC158: 0
A159: 159 | G159: 0 | H159: Съемка видео-роликов | I159: Распределение расхода для одного запуска | J159: Сумма расхода для одного запуска по этой статье | M159: руб. | P159: * | Q159: 20000 | S159: 0 | Y159: обратное распределение расхода | AA159: 0 | AB159: 0 | AC159: 0 | AD159: 0 | AE159: 0 | AF159: 0 | AG159: 0 | AH159: 0 | AI159: 0 | AJ159: 0 | AK159: 0 | AL159: 0 | AM159: 0 | AN159: 0 | AO159: 0 | AP159: 0 | AQ159: 0 | AR159: 0 | AS159: 0 | AT159: 0 | AU159: 0 | AV159: 0 | AW159: 0 | AX159: 0 | AY159: 0 | AZ159: 0 | BA159: 0 | BB159: 0 | BC159: 0 | BD159: 0 | BE159: 0 | BF159: 0 | BG159: 0 | BH159: 0 | BI159: 0 | BJ159: 0 | BK159: 0 | BL159: 0 | BM159: 0 | BN159: 0 | BO159: 0 | BP159: 0 | BQ159: 0 | BR159: 0 | BS159: 0 | BT159: 0 | BU159: 0 | BV159: 0 | BW159: 0 | BX159: 0 | BY159: 0 | BZ159: 0 | CA159: 0 | CB159: 0 | CC159: 0 | CD159: 0 | CE159: 0 | CF159: 0 | CG159: 0 | CH159: 0 | CI159: 0 | CJ159: 0 | CK159: 0 | CL159: 0 | CM159: 0 | CN159: 0 | CO159: 0 | CP159: 0 | CQ159: 0 | CR159: 0 | CS159: 0 | CT159: 0 | CU159: 0 | CV159: 0 | CW159: 0 | CX159: 0 | CY159: 0 | CZ159: 0 | DA159: 0 | DB159: 0 | DC159: 0 | DD159: 0 | DE159: 0 | DF159: 0 | DG159: 0 | DH159: 0 | DI159: 0 | DJ159: 0 | DK159: 0 | DL159: 0 | DM159: 0 | DN159: 0 | DO159: 0 | DP159: 0 | DQ159: 0 | DR159: 0 | DS159: 0 | DT159: 0 | DU159: 0 | DV159: 0 | DW159: 0 | DX159: 0 | DY159: 0 | DZ159: 0 | EA159: 0 | EB159: 0 | EC159: 0 | ED159: 0 | EE159: 0 | EF159: 0 | EG159: 0 | EH159: 0 | EI159: 0 | EJ159: 0 | EK159: 0 | EL159: 0 | EM159: 0 | EN159: 0 | EO159: 0 | EP159: 0 | EQ159: 0 | ER159: 0 | ES159: 0 | ET159: 0 | EU159: 0 | EV159: 0 | EW159: 0 | EX159: 0 | EY159: 0 | EZ159: 0 | FA159: 0 | FB159: 20000 | FC159: 0
A160: 160 | G160: 0 | H160: Съемка видео-роликов | I160: Распределение расхода для одного запуска | J160: Процентное распределение расхода по периодам | M160: % | T160: 0 | X160: 1 | Y160: * | AA160: 0 | AB160: 1
A161: 161
